Workbook

Sheet FX (hidden)
A1: EXCHANGE RATE AS AT 31TH DECEMBER 2010 (CURRENCY PER USD) | F1: January 2006 - December 2010 | Q1: Definition of 1 SDR (and approximate relative contribution)[14]
A2: XDR | B2: 0.67618 | Q2: Period | R2: USD | S2: DEM | T2: FRF | U2: JPY | V2: GBP
A3: USD | B3: 1 | G3: ISO | I3: Currency | K3: Weight | M3: Value | Q3: 1981–1985 | R3: 0.540 (ca. 42%) | S3: 0.460 (ca. 19%) | T3: 0.740 (ca. 13%) | U3: 34.0 (ca. 13%) | V3: 0.0710 (ca. 13%)
A4: EUR | B4: 0.8149295086 | Q4: 1986–1990 | R4: 0.452 (ca. 42%) | S4: 0.527 (ca. 19%) | T4: 1.020 (ca. 12%) | U4: 33.4 (ca. 15%) | V4: 0.0893 (ca. 12%)
A5: JPK | B5: =88.6/1000 -> 0.0886 | G5: USD | I5: US Dollar | K5: 44% | M5: $ 0.6320 | Q5: 1991–1995 | R5: 0.572 (ca. 40%) | S5: 0.453 (ca. 21%) | T5: 0.800 (ca. 11%) | U5: 31.8 (ca. 17%) | V5: 0.0812 (ca. 11%)
A6: GBP | B6: 0.6655574043 | G6: EUR | I6: European Euros | K6: 34% | M6: € 0.4100 | Q6: 1996–1998 | R6: 0.582 (ca. 39%) | S6: 0.446 (ca. 21%) | T6: 0.813 (ca. 11%) | U6: 27.2 (ca. 18%) | V6: 0.1050 (ca. 11%)
A7: CHF | B7: 1.0812 | G7: JPY | I7: Japanese Yen | K7: 11% | M7: ¥ 18.4 | Q7: Period | R7: USD | S7: EUR | U7: JPY | V7: GBP
A8: NLG | B8: =B4*B35 -> 1.795868307 | G8: GBP | I8: British Pound | K8: 11% | M8: £ 0.0903 | Q8: 1999–2000 | R8: 0.5820 (ca. 39%) | S8: 0.2280 (ca. 21%) | T8: 0.1239 (ca. 11%) | U8: 27.2 (ca. 18%) | V8: 0.1050 (ca. 11%)
A9: DKK | B9: 6.0702 | S9: 0.3519 (ca. 32%)[nb 1]
A10: DEM | B10: =B4*B26 -> 1.593863581 | Q10: 2001–2005 | R10: 0.5770 (ca. 45%) | S10: 0.4260 (ca. 29%) | U10: 21.0 (ca. 15%) | V10: 0.0984 (ca. 11%)
A11: CNY | B11: 6.7909 | Q11: 2006–2010 | R11: 0.6320 (ca. 44%) | S11: 0.4100 (ca. 34%) | U11: 18.4 (ca. 11%) | V11: 0.0903 (ca. 11%)
A12: INR | B12: 46.6 | Q12: 2011–[13] | R12: 0.6600 (ca. 41.9%) | S12: 0.4230 (ca. 37.4%) | U12: 12.1000 (ca. 9.4%) | V12: 0.1110 (ca. 11.3%)
A13: KRW | B13: 1210.3
A14: FRF | B14: =B4*B30 -> 5.345587157
A15: IQD | B15: 1168.5
A16: KWD | B16: 0.2909
A17: SAR | B17: 3.75
A18: AED | B18: 3.6725
A19: ZMK | B19: 5175.256
A20: BEF | B20: =B4*B25 -> 32.87417488
A21: TZS | B21: 1393.31
A24: FIXED exchange rate (currency per EURO)
A25: BEF | B25: 40.3399 | C25: Belgian francs
A26: DEM | B26: 1.95583 | C26: Deutsche Mark
A27: IEP | B27: 0.787564 | C27: Irish pound
A28: GRD | B28: 340.75 | C28: Greek drachmas
A29: ESP | B29: 166.386 | C29: Spanish pesetas
A30: FRF | B30: 6.55957 | C30: French francs
A31: ITL | B31: 1936.27 | C31: Italian lire
A32: CYP | B32: 0.585274 | C32: Cyprus pound
A33: LUF | B33: 40.3399 | C33: Luxembourg francs
A34: MTL | B34: 0.4293 | C34: Maltese lira
A35: NLG | B35: 2.20371 | C35: Dutch guilders
A36: ATS | B36: 13.7603 | C36: Austrian schillings
A37: PTE | B37: 200.482 | C37: Portuguese escudos
A38: SIT | B38: 239.64 | C38: Slovenian tolars
A39: SKK | B39: 30.126 | C39: Slovak koruna
A40: FIM | B40: 5.94573 | C40: Finnish markkas

Sheet READ ME
C3: MEDIUM TERM DEBT MANAGEMENT STRATEGY ANALYTICAL TOOL
C5: About | D5: This analytical tool should be used in conjunction with its user manual.
D6: In addition, users are expected to be familiar with the Guidance Note on the MTDS framework, where cost-risk indicators are explained in detail.
D7: Existing debt data should be aggregated by representative instruments, outside of the tool. Please refer to the Data Aggregation Manual for help with this.
C9: Terminology | D9: External debt in the MTDS framework and in the analytical tool, means debt denominated in foreign currency (that is, not residency based).
C11: Important | D11: Enable the macro after opening the tool, by clicking on "Enable Content" box at the top below the ribbon.
D12: If you make any change in any of the inputs sheets (existing debt, macro and market) you need to "Run all strategies" again, even if you made no changes to the strategies!
D13: By default the worksheets that do not require inputs are protected, to unprotect sheets click the UNPROTECT button below.
D14: To avoid inadvertent errors (e.g. accidentally overwriting formula) please protect sheets again by clicking on PROTECT button below.
D15: To use Instrument 1 "AfDF" for other than AfDF, please unprotect the spreadsheet by clicking the button below, and then
D16: amend the formulae in cells F37 to F46 by deleting "(30*2%)", and copy the new formulae across columns to BM in worksheet New_Debt (Original Currency).
D18: Follow the Instruction Worksheet to ensure all data requirement are met, and to be aware of what not to do.
D19: Do not delete or insert rows, particularly in the Macro and Market Data and Strategy sheets.
D20: Do not cut and paste cells in the Macro and Market Data and Strategy Sheets, instead use copy and paste.
C27: Color Codes
D28: Inputs required
D29: Consistency Checks
D30: Cells with formulas or areas used by the model, that must not be changed by the user
D31: The area in which shocks and alternative strategies are pasted by the user or by the Macro and calculations are made by the model
D32: Optional cells left for the user of the model in macro and market data area (for example, to include details of contingent liabilities).
C36: Sheets | D36: Instructions | H36: INSTRUCTIONS
D37: List of Outputs
D38: Input Area Visual Maps
D40: Existing Debt | H40: DATA INPUTS
D41: Macro and Market Data
D42: Strategy
D44: Tables | H44: COST-RISK OUTPUTS
D45: Charts
D46: Pricing
D47: Risk Indicators
D48: Redemption by FX-DX
D49: Redemption by Interest
D51: Strategy 1 | H51: STRATEGY OUTPUTS
D52: Strategy 2
D53: Strategy 3
D54: Strategy 4
D56: New_Debt (Original Currency) | H56: CALCULATION AREAS
D57: New_Debt (Domestic Currency)
D58: Total Debt
C61: Macros | D61: Run all Strategies
D63: Run Strategy 1 Only
D65: Run Strategy 2 Only
D67: Run Strategy 3 Only
D69: Run Strategy 4 Only
D71: Initalize Only

Sheet Instructions
D3: INPUT INSTRUCTIONS
D5: DO NOT: 1) Add or remove rows in the tool particularly in the, "Macro and Market Data" & "Strategy" Sheets
D6: 2) Cut and paste values in the "Macro and Market Data" & "Strategy Sheets" instead use copy, paste and delete.
D8: Types of Inputs | F8: Worksheets and Cell Areas
B10: Step 1 | D10: 1. Base Parameters | F10: Existing_Debt
D11: 1.1 Analysis Period: select the analysis period from the drop down menu, between 2 - 10 years | F11: B6
D12: 1.2 Base Year: type in the base year in four digits, including for fiscal years that start and end in the middle of the calendar year | F12: B7
D13: For example, for fiscal year April 2016 - March 2017, either enter 2016 or 2017, ensuring consequent years would need to be in line with this definition.
D14: 1.3 Calender/Fiscal Year: from the drop down menu choose the applicable year type | F14: B9
D15: 1.4 Country: type in the country name | F15: B10
D16: 1.5 Currency: type in three letter code for the currency of the country being analyzed | F16: B11
D17: 1.6 Units: enter the units in terms of thousands, millions, or billions that will be used | F17: B12
D18: 1.7 Existing Debt Data Currency: specify if the aggregated existing data is in foreign or local currency, yes, means it is in local currency and no, in USD or EUR, etc. | F18: B13
B20: Step 2 | D20: 2. Borrowing Instruments | F20: Existing_Debt
D21: Tip: For presentation and to easily identify, it is better to sequence borrowing instruments by their currency, for example, foreign currency (FX) first followed by domestic (DX).
D22: 2.1 ADF_Fixed: this is a fixed instrument dedicated for African Development Fund, with unique principal repayment profile, no adjustment needed | F22: D7 : J7
D23: 2.2 Representative Borrwing Instruments: insert instruments from the existing debt data aggregation sheet conducted outside the tool, as welll as new borrowing instruments | F23: D8 : D26
D24: Please refer to the Data Aggregation Manual for instructions on preparing debt data for the tool.
D25: 2.3 Interest Type: select from the drop down menu the type of interest for the instrument. T-bills, should only be used for T-bills | F25: E8 : E26
D26: 2.4 Discount Rate: select "yes" from the drop down menu for instruments that are concessional, often, these are borrowing from the international financial institutions | F26: F8 : F26
D27: and some official bilateral
D28: 2.5 Maturity of the Representative Instrument: enter the maturity of the instrument (note that this information is used for future borrowing) | F28: G8 : G26
D29: 2.6 Enter the Grace Period of the Representative Instrument: enter the grace period before principal repayment begin | F29: H8 : H26
D30: 2.7 Currency of the Instrument: enter the currency of borrowing for each instrument using three letter code. | F30: J8 : J26
D31: 2.8 Indexed Instrument: this instrument can be used for creating a structure where the principal is adjusted based on a index and interest is paid on adjusted principal | F31: D26 : J26
D32: Select IDX as the currency code. This instrument can be overwritten with other currency codes.
D33: In addition, make sure all cells, between J7:J25 have a three letter code, even if the instrument is not used. | F33: J8 : J25
B35: Step 3 | D35: 3. Exchange Rate [Historical] & Discount Rate | F35: Existing_Debt
D36: 3.1 Currencies: beginning with the main hard currency, e.g., USD, enter foreign currencies that will be used. | F36: L7 : L11
D37: 3.2 Exchange Rates: enter the exchange rates of all foreign currencies relative to the main hard currency, e.g. USD as at end of the period for the base year | F37: M7: M11
D38: For example, if the analysis base year is 2016, calendar year based, debt data should be as at 31-Dec-2016, and so should the exchange rates.
D39: 3.3 Exchange Rates: for the domestic currency, the three letter coded is automatically populated from cell B11, only the exhange rate is required | F39: M12
D40: 3.4 Discount Rate: the 5% discount rate is applied for all concessional borrowing, in line with the Debt Sustainability Framework | F40: O7 : O12
B42: Step 4 | D42: 4. Existing Debt Cash Flow | F42: Existing_Debt
D43: 4.1 Principal Payments: from the data aggregation sheet, done outside the toolkit, insert principal payments | F43: F55 : BM74
D44: 4.2 Interest Payments: from the data aggregation sheet, done outside the toolkit, insert interest payments | F44: F101 : BM120
D45: 4.3 Variable Rate Loans: as noted in the data aggregation manual, for variable loans, enter the payment associated with the spread in the interest rate | F45: F101 : BM120
D46: So, spread * outstanding debt at the end of the previous year. The reference element will be calculated and added by the tool (see Step 8 below).
B48: Step 5 | D48: 5. Macroeconomic Data | F48: Macro and Market Data
D49: 5.1 Budgeted Revenue and Grants: insert in domestic currency and in the unit specified (cell B4) revenue and grants for the analysis period, include data for the base year | F49: E4 : Q4
D50: 5.2 Non-budgetary assets that could reduce gross financing need, such as deposits, privatization proceeds, etc. | F50: E15 : Q17
D51: If the whole amount is not available, enter the applicable percentages. | F51: E19 : Q21
D52: 5.3 Primary Expenditures: insert in domestic currency and in the unit specified (cell B5) primary expenditure for the analysis period, include data for the base year | F52: E5 : Q5
D53: 5.4 Non-budgetary expenditures that could emerge increasing gross financing need, such as contingent liability, arrears, overdrafts, etc. | F53: E27 : Q29
D54: Assuming the probability of occurance is less than 100% (if it is then entries should be budgeted as part of item 5.4), the applicable percentages should be entered. | F54: E31: Q33
D55: 5.5 Interest Payments: insert in domestic currency and in the unit specified (cell B12) interest payments from the budget for the analysis period, include data for the base year. | F55: E7 : Q7
D56: Note that the Toolkit will calculate interest payments for each strategy, but it helpful to have the information from the budget for comparison and assessment.
D57: 5.6 International Reserves: insert in foreign currency, commonly USD million (or currency in cell L7 Existing Debt) | F57: E8 : Q8
D58: 5.7 GDP: insert in domestic currency and in the unit specified (cell B12) GDP figures for the analysis period, include data for the base year. | F58: E9 : Q9
D59: 5.8 Existing cash buffer that can be used to reduce gross financing need should be entered in cell E25. | F59: E25
B61: Step 6 | D61: 6. Optional Area | F61: Macro and Market Data
D62: 6.1 This area is optional and can be left blank. It is left for the user of the toolkit to add detailed analysis or information, for example:
D63: - to add macro or fiscal variables indicating capacity to repay that can be compared with ratios in output sheets, e.g. interest/revenue,
D64: - to clarify underlying macro framework, e.g., if one wishes to split revenue and grant, or specify revenue from other sources, such as Sovereign Wealth Fund
D65: - to include the option of incorporating contingent liabilities in the MTDS analysis
B67: Step 7 | D67: 7. Exchange Rate Projections [Baseline & Shock] / Index Reference | F67: Macro and Market Data
D68: 7.1 Exchange rate baseline projections are entered in terms of depreciation (+ve percent change) or appreciation (-ve percent change).
D69: Fill in projected exchange rate depreciation/appreciation versus main foreign currencies for each projection year, and 0% for the remaining years to 10 year period. | F69: F81 : O84, F86 : O86
D70: Note: please enter 0% for the domestic currency in row 86.
D71: 7.2 Index reference projections for Instrument 20 should be entered in row 85. | F71: F85 : O85
D72: For example, for inflation indexed instrument, inflation projection should be entered in F85:O85.
D73: 7.3 Exchange rate/Index shocks
D74: There are two types of shocks: moderate which is run in combination with moderate interest rate shock and extreme shock.
D75: For each foreign currency, enter the year the shock is to be applied and the additional shock.
D76: Moderate shock: the years to be applied are entered in the first column ( R ) and the shock in the second column ( S ). | F76: R81 : S86
D77: Extreme shock: the years to be applied are entered in the first column ( AF ) and the shock in the second column ( AG ) | F77: AF81 : AG86
D78: As noted in the user guide exchange rate shocks are maintained through the period of analysis once applied.
B80: Step 8 | D80: 8. Interest Rate Projections [Baseline & Shocks] | F80: Macro and Market Data
D81: 8.1 Interest rate baseline projections have two components.
D82: Reference rate: for variable/floating interest rate, for example, LIBOR, this is where the projections are entered. | F82: E112 : O131
D83: Risk Spread: for variable/floating interest rate, this is the area where the fixed element are entered. | F83: E135 : O154
D84: For fixed interest rate, interest rate projections, can be entered in the reference interest rate area, and where such rates can be thought of as two elements, for example,
D85: an international bond, priced in reference to the US Treasury (UST), UST rates can be entered in the reference area, with credit spread in risk spread.
D86: Notes: a) it is necessary to enter the interest rates for the base year of analysis as these are necessary to calculate interest payments in the first year of analysis.
D87: b) please fill interest rates for all 10 years; for years outside the projection period use the same rates as the last year of projection.
D88: 8.2 Interest rate shocks
D89: For each instrument and each year in the projection period, interest rate shocks can be applied, allowing parallel shift or change in the yield curve.
D90: There are two types of shocks; for both the incremental amount to the baseline should be entered.
D91: Moderate shocks: the shocks applied here are run in conjunction with moderate exchange rate as well as on their own. | F91: X112 : AG131
D92: Extreme shocks: the shocks applied here are run independently on their own. | F92: AO112 : AX131
B94: Step 9 | D94: 9. Cash Buffer: Interest Rate Projections [Baseline & Shocks] | F94: Macro and Market Data
D95: 9.1 Interest rate baseline projections
D96: Similar to the interest rate projections for borrowing instruments, interest rate for cash buffer has two components.
D97: Reference rate: the reference rate, for example, this can be the monetary policy rate, if cash buffer is being held at the central bank. | F97: F205 : O205
D98: A premium: an additional component, may be relevant; a premium (positive/negative) relative to the monetary policy rate. | F98: F206 : O206
D99: 9.2 Interest rate shocks
D100: Similar to borrowing instruments, there are areas to apply two types of shocks; moderate and extreme. | F100: F211 : O211
D101: Note: if the user wishes to be conservative, applied shocks can be entered as negative, thus lowering the interest earned. | F101: F212 : O212
B103: Step 10 | D103: 10. Strategy: [Names, Operational Targets, Cash Buffers & Allocation by Instruments] | F103: Strategy
D104: 10.1 Strategy Names: The tool allows the formulation of four strategies. It is important to give name to each strategy that reflects its aim.
D105: For example, "Status quo", maintaining the existing strategy, "Lengthening the maturity profile", shifting issuance/borrowing towards long-tenors, and so on. | F105: P3, AC3, AP3, BC3
D106: 10.2 Operational Targets: in designing a strategy the user needs to determine the overall operational limits or targets.
D107: Four operational targets are available from the drop down option as below: | F107: O29, AB29, AO29, BB29
D108: Make sure to enter target figures for each of the projection period. | F108: ROW 29 (Q: Z, AD : AM, AQ : AZ, BD, BM)
D109: (i) External (foreign currency) borrowing as a percent of total gross financing. Enter whole numbers, for example, for 40%, enter 40.
D110: (ii) Net domestic financing as a percent of GDP. Enter whole numbers, for example, for 2%, enter 2.
D111: (iii) Net domestic financing in local currency and in units specifed in Step (1.6)
D112: (iv) External (foreign currency) borrowing in the main foreign currency, and units specified in Step (1.6).
D113: For example, if units is in millions and targeted borrowing is USD 1 billion, enter 1000.
D114: Note: To make the comparison of results between different strategies, it would be easier to maintain the same operational targets across strategies (at least initally).
D115: 10.3 Cash Buffers: as part of the strategy, cash buffers can be built, so that not funds raised during the year are utilized.
D116: Cash buffer targets should be specified in amounts of local currency and units specified in Step (1.6) for each year of the projection period. | F116: ROW 30 (Q: Z, AD : AM, AQ : AZ, BD, BM)
D117: For example, under the first strategy if the plan is put aside UTP 500 milion at the end of the first year, then 500 should be entered in cell Q30.
D118: Note: the tool starts from the position of existing cash buffer specified in Macro and Market Data cell E25 (see 5.8 above).
D119: 10.4 Strategy Allocation by Instruments: in determining allocation by instruments, the foreign currency element needs to add up to 100% as does the domestic element, | F119: Strategy
D120: for each year in the projection period.
D121: Strategy 1: | F121: Q56 : Z75
D122: Strategy 2: | F122: AD56 : AM75
D123: Strategy 3: | F123: AQ56 : AZ75
D124: Strategy 4: | F124: BD56 : BM75
D125: Tips: a) check rows 76 and 77 to see if foreign and domestic currency element each add up to 100 percent.
D126: b) if a strategy depends on all financing coming from the domestic (foreign) currency, use the operational target of external gross financing and set that to zero (100).
D127: c) in some cases disbursements amounts from specific sources are known. In such circumstances, the user has various ways of incorporating this information
D128: into strategy formulations. For example, if AfDF financing is known in USD for each year of the projection period, one can use the operational target
D129: in millions of USD and calculate the disbursement amounts as a percent of the operational target to enter the allocation for AfDF in the strategy area.
B131: Step 11 | D131: 11. SAVE A BACKUP COPY OF THE TOOL | F131: Strategy
B133: Step 12 | D133: 12. Strategy [Analysis] | F133: Strategy
D134: 12.1 Strategy Analysis: to run the model click on "Run all strategies | F134: A26 : B28
D135: 'Click "ok" in the Message box when simulation is complete.

Sheet List of Outputs (hidden)
D3: OUTPUTS
D5: DO NOT: DELETE ENTRIES, ROWS, & INDICATORS (SUCH AS "FX"). IF NECESSARY, USE EMPTY AREA FOR OWN FURTHER ANALYSIS.
D7: Types of Outputs | F7: Worksheets and Cell Areas
D10: 1. Borrowing Composition by Instruments for Alternative Strategies | F10: Tables | I10: macro
D11: 1.1 Average gross borrowing over the analysis period by instruments, in percent | F11: A6 : F30
D12: 1.2 Outstanding debt by instruments, at the end of the analysis period presented along with pre-analysis composition | F12: A32 : T56
D13: in percent of total, in units of main foreign currency (e.g. millions of USD), and in units of local currency
D14: 1.3 Implied net borrowing average over the analysis period, and for each year, by external and domestic borrowing, as well as cash buffer
D15: in percent of GDP | F15: A58 : K76
D16: in units of main foreign currency and in units of local currency | F16: A79 : X97
D17: 1.4 Implied gross borrowing average over the analysis period, and for each year, by external and domestic borrowing
D18: in percent of GDP and in units of local currency | F18: A101 : K129
D20: 2. Cost-Risk Indicators (at the end of analysis period) | F20: Tables | I20: macro
D21: 2.1 Cost-risk indicators: a summary table showing base year (before analysis) and end of analysis period | F21: A143 : I159
D22: 2.2 Debt stock and gross financing: a summary table showing gross financing, primary balance, interest payments, and amortization at the end of analysis period | F22: A163 : I176
D23: 2.3 Cost-risk indicators for baseline and shock scenarios at the end of analysis period
D24: Debt to GDP | F24: A179 : K187
D25: Interest payments to GDP | F25: A190 : K198
D26: Present Value of Debt to GDP | F26: A201 : K209
D27: External Debt to GDP | F27: A212 : K220
D28: Debt Service to GDP | F28: A223 : K231
D29: Interest Payments to Revenue | F29: A234 : K242
D30: External Debt Service to International Reserves | F30: A245 : K253
D32: 3. Principal Repayments & Outstanding Debt Stock | F32: Tables | I32: macro
D33: 3.1 Profile of principal repayment at the end of analysis period for each strategy
D34: by external and domestic debt | F34: A263: AY286
D35: by interest type | F35: A290: AY317
D36: 3.2 Profile of outstanding amount at the end of analysis period for each strategy
D37: by external and domestic debt | F37: A325: AY348
D38: by interest type | F38: A350: AY377
D40: 4. Annual Gross Borrowing Requirement, Net Borrowing and Outstanding Debt | F40: Tables | I40: macro
D41: Tables for each strategy presenting the following indicators per year of the analysis period, in units of local currency, and main foreign currency (side by side).
D42: Outputs for each strategy are in sequence starting with Strategy 1 | F42: A381 : Y601
D43: 4.1 Gross borrowing requirement with components of primary deficit, interest payment (external, domestic), amortization, and cash buffer
D44: 4.2 Gross financing by financing sources (that is, by each instruments)
D45: 4.3 Outstanding debt by external and domestic
D46: 4.4 Gross borrowing requirement by external and domestic currency
D47: 4.5 In percent of GDP, and by external and domestic currency: overall deficit, gross borrowing and total debt stock
D49: 5. Annual Risk Indicators: Baseline and Shock Scenarios | F49: Tables | I49: macro
D50: Tables for each strategy presenting the following cost- risk indicators per year of the analysis period, and each of the five scenarios including baseline.
D51: Outputs for each strategy are in sequence starting with Strategy 1 | F51: A604 : L733
D52: Debt to GDP
D53: Interest payment to GDP
D54: Present value of debt to GDP
D55: Debt service to GDP
D56: External debt service in millions of main foreign currency (e.g. USD million)
D58: 6. Borrowing Composition by Instruments for Alternative Strategies | F58: Charts | I58: macro
D59: 6.1 Gross borrowing by instruments for each strategy (percent of total), average for the analysis period
D60: Charts for total gross borrowing, external instruments and domestic instruments | F60: B4 : AH31
D61: 6.2 Composition of debt by instrument type at the end of analysis period
D62: Charts for total gross borrowing, external instruments and domestic instruments | F62: B32 : AH64
D64: 7. Cost-Risk Indicators (at the end of analysis period) | F64: Charts
D65: Two types of charts (scatter and bar) are presented for the following indicators. | F65: B94 : AV155
D66: Debt to GDP
D67: Present Value of Debt to GDP
D68: External Debt to GDP
D69: Interest payments to GDP
D70: Interest Payments to Revenue
D71: Total Debt Service to GDP
D72: External Debt Service to International Reserves
D74: 8. Cost-Risk Indicators | F74: Charts
D75: The following cost-risk indicators are depicted for the entire analysis period for each strategy.
D76: Charts for each strategy are in sequence starting with Strategy 1 | F76: B163 : AI239
D77: Debt to GDP
D78: Interest payments to GDP
D79: Present Value of Debt to GDP
D80: Total Debt Service to GDP
D81: External Debt Service in units of main foreign currency
D83: 9. Cost and Risk Indicators: Baseline | F83: Risk Indicators
D84: The following indicators are presented for each year of the strategy period, in sequence starting with Strategy 1; presentation organized by cost-risk indicators follow immediately.
D85: Presentation organized by cost-risk indicators follow immediately. | F85: B4 : M342
D86: a) Debt Ratios: Nominal debt outstanding (in local and foreign currency) Debt to GDP PV Debt to GDP
D87: b) Cost of Debt: Interest payment to GDP Implied Interest Rate Interest payments (in local and foreign currency)
D88: c) Refinancing Risk: Debt maturing in 1 year (percent of total) Debt maturing in 1 year (percent of GDP)
D89: Average time to maturity (years) Amortizing debt (in local currency and foreign currency)
D90: d) Interest Rate Risk: Average time to refixing (years) Debt refixing in 1 year (in percent) Fixed rate debt portfolio including T-bills (in percent)
D91: Fixed rate debt portfolio including T-bills (in percent) T-bill portfolio (in percent)
D92: e) Exchange Rate Risk: Foreign currency debt (in percent of total) Short-term foreign currency debt as percent of reserves
D94: 10. Cost and Risk Indicators: Baseline | F94: Risk Indicators
D95: As noted above, the cost-risk indicators in 9 above are presented by cost-risk indicator, showing levels for all four strategies. | F95: B347 : M597
D97: 11. Redemption Profile by Foreign and Local Currency | F97: Redemption by FX-DX
D98: Redemption profile at the end of each year of the analysis period, presented sequentially starting with the first year of analysis. Strategies are presented across horizontally
D100: 12. Redemption Profile by Interest Type | F100: Redemption by Interest
D101: Redemption profile at the end of each year of the analysis period, presented sequentially starting with the first year of analysis. Strategies are presented across horizontally
D103: 13.Pricing | F103: Pricing
D104: Depiction of interest rate and exchange rate assumptions for baseline and shock scenarios.

Sheet Input Area Visual Maps (hidden)
A1: Existing Debt Worksheet | AB1: Macro and Market Data
A64: Strategy

Sheet Existing_Debt
A4: 1. KEY PARAMETERS & INSTRUMENTS
A6: Time horizon (years) | B6: 4 | C6: Instrument Nr. | D6: Instrument Type / Name | E6: Fix / Var/ T-bills | F6: For PV calculation, apply discount rate? | G6: Maturity (Years) | H6: Grace (years) | I6: Currency Type | J6: Currency (3-letter code) | L6: Currency (3-letter code) | M6: ="Exchange rate in currency unit per "&L7 -> Exchange rate in currency unit per USD | N6: ="Exchange Rate in "&L12&" per currency unit" -> Exchange Rate in UTP per currency unit | O6: Discount Rate | P6: ="Exchange rate in currency unit per "&B11 -> Exchange rate in currency unit per UTP
A7: Base year of data | B7: 2017 | C7: =J7&"_"&1 -> USD_1 | D7: ADF_Fixed | E7: Fix | F7: Yes | G7: 40 | H7: 10 | I7: FX | J7: USD | L7: USD | M7: 1 | N7: =$M$12/M7 -> 15 | O7: 0.05 | P7: =1/N7 -> 0.06666666667
A8: Start year of analysis | B8: =B7+1 -> 2018 | C8: =J8&"_"&2 -> USD_2 | D8: IDA/IFAD/EDF_Fixed | E8: Fix | F8: Yes | G8: 35 | H8: 7 | I8: =IF(J8="","",IF(J8=$L$12,"DX","FX")) -> FX | J8: USD | L8: EUR | M8: =1/1.199 -> 0.834028357 | N8: 17.985 | O8: 0.05 | P8: 0.05560189046
A9: Calendar/fiscal year | B9: Calendar | C9: =J9&"_"&3 -> USD_3 | D9: IBRD/ADB/IDB_Fixed | E9: Fix | F9: Yes | G9: 25 | H9: 5 | I9: FX | J9: USD | L9: JPY | M9: 112.7 | N9: 0.1330967169 | O9: 0.05 | P9: 7.513333333
A10: Country | B10: Utopia | C10: =J10&"_"&4 -> USD_4 | D10: IBRD/ADB/IDB_Var | E10: Var | F10: Yes | G10: 25 | H10: 5 | I10: FX | J10: USD | L10: CNY | M10: =1/0.154 -> 6.493506494 | N10: 2.31 | O10: 0.05 | P10: 0.4329004329
A11: Local currency (name/3-letter code) | B11: UTP | C11: =J11&"_"&5 -> USD_5 | D11: Bilateral_Fixed | E11: Fix | F11: Yes | G11: 20 | H11: 5 | I11: FX | J11: USD | L11: IDX | M11: =M12 -> 15 | N11: 1 | O11: 0.05 | P11: 1
A12: units | B12: millions | C12: =J12&"_"&6 -> USD_6 | D12: Commercial Bank_Var | E12: Var | F12: No | G12: 5 | H12: 1 | I12: FX | J12: USD | L12: =B11 -> UTP | M12: 15 | N12: 1 | P12: 1
A13: Debt Data Input in Local Currency | B13: No | C13: =J13&"_"&7 -> USD_7 | I13: FX | J13: USD
A14: Debt Data Input in Local Currency | B14: =IF(B13="Yes",TRUE,FALSE) -> FALSE | C14: =J14&"_"&8 -> USD_8 | I14: FX | J14: USD
C15: =J15&"_"&9 -> USD_9 | I15: FX | J15: USD
C16: =J16&"_"&10 -> USD_10 | I16: FX | J16: USD
C17: =J17&"_"&11 -> UTP_11 | D17: T-Bills_Fixed | E17: T-bills | F17: No | G17: 1 | H17: 0 | I17: DX | J17: =$L$12 -> UTP
C18: =J18&"_"&12 -> UTP_12 | D18: T-Bonds 3 YR_Fixed | E18: Fix | F18: No | G18: 3 | H18: 2 | I18: DX | J18: UTP
C19: =J19&"_"&13 -> UTP_13 | D19: T-Bonds 5 YR_Fixed | E19: Fix | F19: No | G19: 5 | H19: 4 | I19: DX | J19: UTP
C20: =J20&"_"&14 -> UTP_14 | D20: T-Bonds 10 YR_Fixed | E20: Fix | F20: No | G20: 10 | H20: 9 | I20: DX | J20: UTP
C21: =J21&"_"&15 -> UTP_15 | F21: No | I21: DX | J21: UTP
C22: =J22&"_"&16 -> UTP_16 | I22: DX | J22: UTP
C23: =J23&"_"&17 -> UTP_17 | I23: DX | J23: UTP
C24: =J24&"_"&18 -> UTP_18 | I24: DX | J24: UTP
C25: =J25&"_"&19 -> UTP_19 | I25: DX | J25: UTP
C26: =J26&"_"&20 -> IDX_20 | D26: Indexed Instrument | E26: Var | F26: No | G26: 5 | H26: 4 | I26: =IF(J26="","",IF(OR(J26=$L$12,J26="IDX"),"DX","FX")) -> DX | J26: IDX
A29: ="2. COST AND RISK INDICATORS FOR EXISTING DEBT AS AT END " & B7 -> 2. COST AND RISK INDICATORS FOR EXISTING DEBT AS AT END 2017
G31: =B10&": Redemption Profile, as at end-"&B7&" (in millions of "&B11&")" -> Utopia: Redemption Profile, as at end-2017 (in millions of UTP) | Q31: =B10&": Redemption Profile, as at end-"&B7&" (in millions of "&B11&")" -> Utopia: Redemption Profile, as at end-2017 (in millions of UTP) | AD31: =B10&": Composition of Debt Oustanding, as at end-"&B7&" (in millions of "&B11&")" -> Utopia: Composition of Debt Oustanding, as at end-2017 (in millions of UTP)
A32: Risk Indicators | C32: External debt | D32: Domestic debt | E32: Total debt
A33: ="Amount (in millions of "&B11&")" -> Amount (in millions of UTP) | C33: =IF(B14=TRUE,SUMIF($C$80:$C$99,"FX",$E$80:$E$99),C34*N7) -> 17607.38533 | D33: =IF(B14=TRUE,SUMIF($C$80:$C$99,"DX",$E$80:$E$99),D34*N7) -> 9738.849633 | E33: =D33+C33 -> 27346.23496
A34: ="Amount (in millions of "&L7&")" -> Amount (in millions of USD) | C34: =IF(B14=FALSE,SUMIF($C$80:$C$99,"FX",$E$80:$E$99),C33*P7) -> 1173.825689 | D34: =IF(B14=FALSE,SUMIF($C$80:$C$99,"DX",$E$80:$E$99),D33*P7) -> 649.2566422 | E34: =D34+C34 -> 1823.082331
A35: Nominal debt as percent of GDP | C35: =C33/'Macro and Market Data'!$E$9*100 -> 28.32492423 | D35: =D33/'Macro and Market Data'!$E$9*100 -> 15.66684506 | E35: =E33/('Macro and Market Data'!$E$9)*100 -> 43.99176929
A36: PV as percent of GDP1 | C36: =E36-D36 -> 21.90468953 | D36: =SUMIF($C$386:$C$405,$L$12,E386:E405)/'Macro and Market Data'!$E$9*100 -> 15.66684506 | E36: =E407/'Macro and Market Data'!$E$9*100 -> 37.5715346
A37: Cost of debt2 | B37: Interest payment as percent of GDP3 | C37: =SUMIF($A$338:$A$357,"FX",$F$338:$F$357)/('Macro and Market Data'!$E$9)*100 -> 0.6826206345 | D37: =SUMIF($A$338:$A$357,"DX",$F$338:$F$357)/('Macro and Market Data'!$E$9)*100 -> 2.243336177 | E37: =F359/('Macro and Market Data'!$E$9)*100 -> 2.925956812
B38: Weighted Av. IR (percent) | C38: =SUMPRODUCT($D$338:$D$357,$E$315:$E$334)/SUMIF($A$315:$A$334,"FX",$E$315:$E$334)*100 -> 2.409964556 | D38: =SUMPRODUCT($D$315:$D$334,$E$315:$E$334)/SUMIF($A$315:$A$334,"DX",$E$315:$E$334)*100 -> 14.31900404 | E38: =SUMPRODUCT($E$338:$E$357,$E$315:$E$334)/SUM($E$315:$E$334)*100 -> 6.651146018
A39: Refinancing risk2 | B39: ATM (years) | C39: =SUMPRODUCT($F$454:$BM$454,$F$444:$BM$444)/$E$454 -> 9.340152706 | D39: =SUMPRODUCT($F$455:$BM$455,$F$444:$BM$444)/$E$455 -> 3.696906569 | E39: =SUMPRODUCT($F$452:$BM$452,$F$444:$BM$444)/$E$452 -> 7.632547227
B40: Debt maturing in 1yr (percent of total) | C40: =F454/E454*100 -> 11.26286324 | D40: =F455/E455*100 -> 39.34042337 | E40: =F452/E452*100 -> 19.75892992
B41: Debt maturing in 1yr (percent of GDP) | C41: =F454/'Macro and Market Data'!$E$9*100 -> 4.066850971 | D41: =F455/'Macro and Market Data'!$E$9*100 -> 6.163403176 | E41: =F452/'Macro and Market Data'!$E$9*100 -> 10.23025415
A42: Interest rate risk2 | B42: ATR (years) | C42: =(($E$446+$E$450)*$F$444+SUMPRODUCT($F$444:$BM$444,$F$448:$BM$448))/$E$454 -> 8.796309753 | D42: =(($E$447+$E$451)*$F$444+SUMPRODUCT($F$444:$BM$444,$F$449:$BM$449))/$E$455 -> 3.696906569 | E42: =((SUM($E$446,$E$447,$E$450,$E$451)*$F$444+SUMPRODUCT($F$444:$BM$444,$F$448:$BM$448)+SUMPRODUCT($F$444:$BM$444,$F$449:$BM$449))/E452) -> 7.25326722
B43: Debt refixing in 1yr (percent of total) | C43: =(E446+E450+F448)/E454*100 -> 28.99664954 | D43: =(E447+E451+F449)/E455*100 -> 39.34042337 | E43: =(SUM(E446,E447,E450+E451)+SUM(F448:F449))/E452*100 -> 32.12660071
B44: Fixed rate debt incl T-bills (percent of total) | C44: =($E$448+$E$450)/$E$454*100 -> 77.99294795 | D44: =($E$449+$E$451)/$E$455*100 -> 100 | E44: =(SUM(E448:E451))/E452*100 -> 84.65212278
B45: T-bills (percent of total) | C45: =($E$450/$E$454)*100 -> 0 | D45: =($E$451/$E$455)*100 -> 39.34042337 | E45: =(($E$450+$E$451)/$E$452)*100 -> 11.90412767
A46: FX risk | B46: FX debt (percent of total debt) | E46: =E422/E420*100 -> 64.3868721
B47: ST FX debt (percent of reserves) | E47: =(F422/'Macro and Market Data'!E55)/'Macro and Market Data'!E8*100 -> 6.597131869
A48: Notes:
A49: 1PV as percent of GDP is calculated based on projected debt service payments where discount rate of 5% is applied to those instruments on concessional or semi-concessional terms.
A50: 2 Cost-Risk indicators that use projected cash flows such as weighted average interest rate, refinancing and interest rate risks use projected exchange rate assumptions.
A51: ="3 Interest payment as percent of GDP is calculated by dividing interest payment on outstanding debt at "&B7&" to "&B7&" GDP." -> 3 Interest payment as percent of GDP is calculated by dividing interest payment on outstanding debt at 2017 to 2017 GDP.
A53: ="3. EXISTING DEBT CASH FLOW FROM DATABASE (Millions of "&IF(B14=TRUE,B11,L7)&" calculated based on constant base year exchange rate)" -> 3. EXISTING DEBT CASH FLOW FROM DATABASE (Millions of USD calculated based on constant base year exchange rate)
B56: ="Principal Payments in "&IF(B14=TRUE,B11,L7) -> Principal Payments in USD | D56: Sum Principal Repayment | E56: =$B$7 -> 2017 | F56: =E56+1 -> 2018 | G56: 2019 | H56: 2020 | I56: 2021 | J56: 2022 | K56: 2023 | L56: 2024 | M56: 2025 | N56: 2026 | O56: 2027 | P56: 2028 | Q56: 2029 | R56: 2030 | S56: 2031 | T56: 2032 | U56: 2033 | V56: 2034 | W56: 2035 | X56: 2036 | Y56: 2037 | Z56: 2038 | AA56: 2039 | AB56: 2040 | AC56: 2041 | AD56: 2042 | AE56: 2043 | AF56: 2044 | AG56: 2045 | AH56: 2046 | AI56: 2047 | AJ56: 2048 | AK56: 2049 | AL56: =AK56+1 -> 2050 | AM56: 2051 | AN56: 2052 | AO56: 2053 | AP56: 2054 | AQ56: 2055 | AR56: 2056 | AS56: 2057 | AT56: 2058 | AU56: 2059 | AV56: 2060 | AW56: 2061 | AX56: 2062 | AY56: 2063 | AZ56: 2064 | BA56: 2065 | BB56: 2066 | BC56: =BB56+1 -> 2067 | BD56: 2068 | BE56: 2069 | BF56: 2070 | BG56: 2071 | BH56: 2072 | BI56: 2073 | BJ56: 2074 | BK56: 2075 | BL56: 2076 | BM56: 2077
A57: =$E$7 -> Fix | B57: =$C$7 -> USD_1 | C57: =IF(LEFT(B57,3)=$L$12,"Domestic","External")&"_"&A57 -> External_Fix | D57: =SUM(F57:BM57) -> 208.9282787 | F57: 3.070675845 | G57: 3.26028563 | H57: 4.826809773 | I57: 5.613230032 | J57: 5.261241078 | K57: 5.256037383 | L57: 6.141022754 | M57: 5.458644947 | N57: 5.55464554 | O57: 5.650823593 | P57: 6.066115345 | Q57: 6.066152293 | R57: 6.066152293 | S57: 5.987377955 | T57: 5.992096283 | U57: 5.992096283 | V57: 6.252026625 | W57: 6.251849165 | X57: 6.251849165 | Y57: 6.251849165 | Z57: 6.257859665 | AA57: 5.997929323 | AB57: 5.997929323 | AC57: 5.997929323 | AD57: 5.997929323 | AE57: 5.997929323 | AF57: 5.997929323 | AG57: 5.663507299 | AH57: 5.213927268 | AI57: 4.903237618 | AJ57: 4.93571639 | AK57: 4.899527706 | AL57: 3.891335018 | AM57: 4.129086594 | AN57: 3.597513516 | AO57: 3.597513516 | AP57: 3.595371441 | AQ57: 3.595371441 | AR57: 3.595371441 | AS57: 1.758553216 | AT57: 0.8622734086 | AU57: 0.8622734086 | AV57: 0.3112826284 | AW57: 0 | AX57: 0 | AY57: 0 | AZ57: 0 | BA57: 0 | BB57: 0 | BC57: 0 | BD57: 0 | BE57: 0 | BF57: 0 | BG57: 0 | BH57: 0 | BI57: 0 | BJ57: 0 | BK57: 0 | BL57: 0 | BM57: 0
A58: =$E$8 -> Fix | B58: =$C$8 -> USD_2 | C58: External_Fix | D58: =SUM(F58:BM58) -> 463.5395288 | F58: 25.18950236 | G58: 23.16046567 | H58: 22.58656567 | I58: 22.59475354 | J58: 22.60089443 | K58: 22.60703533 | L58: 22.65711569 | M58: 22.66530357 | N58: 22.66939745 | O58: 22.67758532 | P58: 22.7003132 | Q58: 22.63191409 | R58: 22.63805495 | S58: 22.64624281 | T58: 22.65443061 | U58: 22.66261847 | V58: 22.67080637 | W58: 22.67899413 | X58: 22.68308811 | Y58: 3.487655272 | Z58: 3.092591428 | AA58: 3.092591428 | AB58: 3.092591428 | AC58: 3.092591428 | AD58: 4.0213477 | AE58: 2.916890217 | AF58: 2.689887398 | AG58: 2.689887398 | AH58: 1.988413286 | AI58: 0 | AJ58: 0 | AK58: 0 | AL58: 0 | AM58: 0 | AN58: 0 | AO58: 0 | AP58: 0 | AQ58: 0 | AR58: 0 | AS58: 0 | AT58: 0 | AU58: 0 | AV58: 0 | AW58: 0 | AX58: 0 | AY58: 0 | AZ58: 0 | BA58: 0 | BB58: 0 | BC58: 0 | BD58: 0 | BE58: 0 | BF58: 0 | BG58: 0 | BH58: 0 | BI58: 0 | BJ58: 0 | BK58: 0 | BL58: 0 | BM58: 0
A59: =$E$9 -> Fix | B59: =$C$9 -> USD_3 | C59: External_Fix | D59: 39.27944459 | F59: 29.31499084 | G59: 6.309980644 | H59: 0 | I59: 0.2030262834 | J59: 0.2030262834 | K59: 0.2030262834 | L59: 0.2030262834 | M59: 0.2030262834 | N59: 0.2030262834 | O59: 0.2030262834 | P59: 0.2030262834 | Q59: 0.2030262834 | R59: 0.2030262834 | S59: 0.2030262834 | T59: 0.2030262834 | U59: 0.2030262834 | V59: 0.2030262834 | W59: 0.2030262834 | X59: 0.2030262834 | Y59: 0.2030262834 | Z59: 0.2030262834 | AA59: 0 | AB59: 0 | AC59: 0 | AD59: 0 | AE59: 0 | AF59: 0 | AG59: 0 | AH59: 0 | AI59: 0 | AJ59: 0 | AK59: 0 | AL59: 0 | AM59: 0 | AN59: 0 | AO59: 0 | AP59: 0 | AQ59: 0 | AR59: 0 | AS59: 0 | AT59: 0 | AU59: 0 | AV59: 0 | AW59: 0 | AX59: 0 | AY59: 0 | AZ59: 0 | BA59: 0 | BB59: 0 | BC59: 0 | BD59: 0 | BE59: 0 | BF59: 0 | BG59: 0 | BH59: 0 | BI59: 0 | BJ59: 0 | BK59: 0 | BL59: 0 | BM59: 0
A60: =$E$10 -> Var | B60: =$C$10 -> USD_4 | C60: External_Var | D60: 76.63160485 | F60: 23.02278304 | G60: 14.426633 | H60: 13.866003 | I60: 9.599068297 | J60: 3.690362115 | K60: 2.906142842 | L60: 2.252373332 | M60: 2.252373332 | N60: 2.252373332 | O60: 2.252373332 | P60: 0.1111192219 | Q60: 0 | R60: 0 | S60: 0 | T60: 0 | U60: 0 | V60: 0 | W60: 0 | X60: 0 | Y60: 0 | Z60: 0 | AA60: 0 | AB60: 0 | AC60: 0 | AD60: 0 | AE60: 0 | AF60: 0 | AG60: 0 | AH60: 0 | AI60: 0 | AJ60: 0 | AK60: 0 | AL60: 0 | AM60: 0 | AN60: 0 | AO60: 0 | AP60: 0 | AQ60: 0 | AR60: 0 | AS60: 0 | AT60: 0 | AU60: 0 | AV60: 0 | AW60: 0 | AX60: 0 | AY60: 0 | AZ60: 0 | BA60: 0 | BB60: 0 | BC60: 0 | BD60: 0 | BE60: 0 | BF60: 0 | BG60: 0 | BH60: 0 | BI60: 0 | BJ60: 0 | BK60: 0 | BL60: 0 | BM60: 0
A61: =$E$11 -> Fix | B61: =$C$11 -> USD_5 | C61: External_Fix | D61: 182.012277 | F61: 42.01106442 | G61: 40.00015157 | H61: 40.00015157 | I61: 40.00015157 | J61: 20.00015157 | K61: 0.0001515722038 | L61: 0.0001515722038 | M61: 0.0001515722038 | N61: 0.0001515722038 | O61: 0 | P61: 0 | Q61: 0 | R61: 0 | S61: 0 | T61: 0 | U61: 0 | V61: 0 | W61: 0 | X61: 0 | Y61: 0 | Z61: 0 | AA61: 0 | AB61: 0 | AC61: 0 | AD61: 0 | AE61: 0 | AF61: 0 | AG61: 0 | AH61: 0 | AI61: 0 | AJ61: 0 | AK61: 0 | AL61: 0 | AM61: 0 | AN61: 0 | AO61: 0 | AP61: 0 | AQ61: 0 | AR61: 0 | AS61: 0 | AT61: 0 | AU61: 0 | AV61: 0 | AW61: 0 | AX61: 0 | AY61: 0 | AZ61: 0 | BA61: 0 | BB61: 0 | BC61: 0 | BD61: 0 | BE61: 0 | BF61: 0 | BG61: 0 | BH61: 0 | BI61: 0 | BJ61: 0 | BK61: 0 | BL61: 0 | BM61: 0
A62: =$E$12 -> Var | B62: =$C$12 -> USD_6 | C62: External_Var | D62: 203.4345549 | F62: 37.86175867 | G62: 51.36231627 | H62: 31.13980173 | I62: 30.63980173 | J62: 17.05183016 | K62: 18.38952316 | L62: 16.98952316 | M62: 0 | N62: 0 | O62: 0 | P62: 0 | Q62: 0 | R62: 0 | S62: 0 | T62: 0 | U62: 0 | V62: 0 | W62: 0 | X62: 0 | Y62: 0 | Z62: 0 | AA62: 0 | AB62: 0 | AC62: 0 | AD62: 0 | AE62: 0 | AF62: 0 | AG62: 0 | AH62: 0 | AI62: 0 | AJ62: 0 | AK62: 0 | AL62: 0 | AM62: 0 | AN62: 0 | AO62: 0 | AP62: 0 | AQ62: 0 | AR62: 0 | AS62: 0 | AT62: 0 | AU62: 0 | AV62: 0 | AW62: 0 | AX62: 0 | AY62: 0 | AZ62: 0 | BA62: 0 | BB62: 0 | BC62: 0 | BD62: 0 | BE62: 0 | BF62: 0 | BG62: 0 | BH62: 0 | BI62: 0 | BJ62: 0 | BK62: 0 | BL62: 0 | BM62: 0
A63: =$E$13 -> 0 | B63: =$C$13 -> USD_7 | C63: External_0 | D63: 0 | F63: 0 | G63: 0 | H63: 0 | I63: 0 | J63: 0 | K63: 0 | L63: 0 | M63: 0 | N63: 0 | O63: 0 | P63: 0 | Q63: 0 | R63: 0 | S63: 0 | T63: 0 | U63: 0 | V63: 0 | W63: 0 | X63: 0 | Y63: 0 | Z63: 0 | AA63: 0 | AB63: 0 | AC63: 0 | AD63: 0 | AE63: 0 | AF63: 0 | AG63: 0 | AH63: 0 | AI63: 0 | AJ63: 0 | AK63: 0 | AL63: 0 | AM63: 0 | AN63: 0 | AO63: 0 | AP63: 0 | AQ63: 0 | AR63: 0 | AS63: 0 | AT63: 0 | AU63: 0 | AV63: 0 | AW63: 0 | AX63: 0 | AY63: 0 | AZ63: 0 | BA63: 0 | BB63: 0 | BC63: 0 | BD63: 0 | BE63: 0 | BF63: 0 | BG63: 0 | BH63: 0 | BI63: 0 | BJ63: 0 | BK63: 0 | BL63: 0 | BM63: 0
A64: =$E$14 -> 0 | B64: =$C$14 -> USD_8 | C64: External_0 | D64: 0 | F64: 0 | G64: 0 | H64: 0 | I64: 0 | J64: 0 | K64: 0 | L64: 0 | M64: 0 | N64: 0 | O64: 0 | P64: 0 | Q64: 0 | R64: 0 | S64: 0 | T64: 0 | U64: 0 | V64: 0 | W64: 0 | X64: 0 | Y64: 0 | Z64: 0 | AA64: 0 | AB64: 0 | AC64: 0 | AD64: 0 | AE64: 0 | AF64: 0 | AG64: 0 | AH64: 0 | AI64: 0 | AJ64: 0 | AK64: 0 | AL64: 0 | AM64: 0 | AN64: 0 | AO64: 0 | AP64: 0 | AQ64: 0 | AR64: 0 | AS64: 0 | AT64: 0 | AU64: 0 | AV64: 0 | AW64: 0 | AX64: 0 | AY64: 0 | AZ64: 0 | BA64: 0 | BB64: 0 | BC64: 0 | BD64: 0 | BE64: 0 | BF64: 0 | BG64: 0 | BH64: 0 | BI64: 0 | BJ64: 0 | BK64: 0 | BL64: 0 | BM64: 0
A65: =$E$15 -> 0 | B65: =$C$15 -> USD_9 | C65: External_0 | D65: 0 | F65: 0 | G65: 0 | H65: 0 | I65: 0 | J65: 0 | K65: 0 | L65: 0 | M65: 0 | N65: 0 | O65: 0 | P65: 0 | Q65: 0 | R65: 0 | S65: 0 | T65: 0 | U65: 0 | V65: 0 | W65: 0 | X65: 0 | Y65: 0 | Z65: 0 | AA65: 0 | AB65: 0 | AC65: 0 | AD65: 0 | AE65: 0 | AF65: 0 | AG65: 0 | AH65: 0 | AI65: 0 | AJ65: 0 | AK65: 0 | AL65: 0 | AM65: 0 | AN65: 0 | AO65: 0 | AP65: 0 | AQ65: 0 | AR65: 0 | AS65: 0 | AT65: 0 | AU65: 0 | AV65: 0 | AW65: 0 | AX65: 0 | AY65: 0 | AZ65: 0 | BA65: 0 | BB65: 0 | BC65: 0 | BD65: 0 | BE65: 0 | BF65: 0 | BG65: 0 | BH65: 0 | BI65: 0 | BJ65: 0 | BK65: 0 | BL65: 0 | BM65: 0
A66: =$E$16 -> 0 | B66: =$C$16 -> USD_10 | C66: External_0 | D66: 0 | F66: 0 | G66: 0 | H66: 0 | I66: 0 | J66: 0 | K66: 0 | L66: 0 | M66: 0 | N66: 0 | O66: 0 | P66: 0 | Q66: 0 | R66: 0 | S66: 0 | T66: 0 | U66: 0 | V66: 0 | W66: 0 | X66: 0 | Y66: 0 | Z66: 0 | AA66: 0 | AB66: 0 | AC66: 0 | AD66: 0 | AE66: 0 | AF66: 0 | AG66: 0 | AH66: 0 | AI66: 0 | AJ66: 0 | AK66: 0 | AL66: 0 | AM66: 0 | AN66: 0 | AO66: 0 | AP66: 0 | AQ66: 0 | AR66: 0 | AS66: 0 | AT66: 0 | AU66: 0 | AV66: 0 | AW66: 0 | AX66: 0 | AY66: 0 | AZ66: 0 | BA66: 0 | BB66: 0 | BC66: 0 | BD66: 0 | BE66: 0 | BF66: 0 | BG66: 0 | BH66: 0 | BI66: 0 | BJ66: 0 | BK66: 0 | BL66: 0 | BM66: 0
A67: =$E$17 -> T-bills | B67: =$C$17 -> UTP_11 | C67: Domestic_T-bills | D67: 255.4203118 | F67: 255.4203118 | G67: 0 | H67: 0 | I67: 0 | J67: 0 | K67: 0 | L67: 0 | M67: 0 | N67: 0 | O67: 0 | P67: 0 | Q67: 0 | R67: 0 | S67: 0 | T67: 0 | U67: 0 | V67: 0 | W67: 0 | X67: 0 | Y67: 0 | Z67: 0 | AA67: 0 | AB67: 0 | AC67: 0 | AD67: 0 | AE67: 0 | AF67: 0 | AG67: 0 | AH67: 0 | AI67: 0 | AJ67: 0 | AK67: 0 | AL67: 0 | AM67: 0 | AN67: 0 | AO67: 0 | AP67: 0 | AQ67: 0 | AR67: 0 | AS67: 0 | AT67: 0 | AU67: 0 | AV67: 0 | AW67: 0 | AX67: 0 | AY67: 0 | AZ67: 0 | BA67: 0 | BB67: 0 | BC67: 0 | BD67: 0 | BE67: 0 | BF67: 0 | BG67: 0 | BH67: 0 | BI67: 0 | BJ67: 0 | BK67: 0 | BL67: 0 | BM67: 0
A68: =$E$18 -> Fix | B68: =$C$18 -> UTP_12 | C68: Domestic_Fix | D68: 15.04588533 | F68: 0 | G68: 6.691376667 | H68: 8.354508667 | I68: 0 | J68: 0 | K68: 0 | L68: 0 | M68: 0 | N68: 0 | O68: 0 | P68: 0 | Q68: 0 | R68: 0 | S68: 0 | T68: 0 | U68: 0 | V68: 0 | W68: 0 | X68: 0 | Y68: 0 | Z68: 0 | AA68: 0 | AB68: 0 | AC68: 0 | AD68: 0 | AE68: 0 | AF68: 0 | AG68: 0 | AH68: 0 | AI68: 0 | AJ68: 0 | AK68: 0 | AL68: 0 | AM68: 0 | AN68: 0 | AO68: 0 | AP68: 0 | AQ68: 0 | AR68: 0 | AS68: 0 | AT68: 0 | AU68: 0 | AV68: 0 | AW68: 0 | AX68: 0 | AY68: 0 | AZ68: 0 | BA68: 0 | BB68: 0 | BC68: 0 | BD68: 0 | BE68: 0 | BF68: 0 | BG68: 0 | BH68: 0 | BI68: 0 | BJ68: 0 | BK68: 0 | BL68: 0 | BM68: 0
A69: =$E$19 -> Fix | B69: =$C$19 -> UTP_13 | C69: Domestic_Fix | D69: 339.3437784 | F69: 0 | G69: 0 | H69: 0 | I69: 0 | J69: 169.4351201 | K69: 0 | L69: 169.9086583 | M69: 0 | N69: 0 | O69: 0 | P69: 0 | Q69: 0 | R69: 0 | S69: 0 | T69: 0 | U69: 0 | V69: 0 | W69: 0 | X69: 0 | Y69: 0 | Z69: 0 | AA69: 0 | AB69: 0 | AC69: 0 | AD69: 0 | AE69: 0 | AF69: 0 | AG69: 0 | AH69: 0 | AI69: 0 | AJ69: 0 | AK69: 0 | AL69: 0 | AM69: 0 | AN69: 0 | AO69: 0 | AP69: 0 | AQ69: 0 | AR69: 0 | AS69: 0 | AT69: 0 | AU69: 0 | AV69: 0 | AW69: 0 | AX69: 0 | AY69: 0 | AZ69: 0 | BA69: 0 | BB69: 0 | BC69: 0 | BD69: 0 | BE69: 0 | BF69: 0 | BG69: 0 | BH69: 0 | BI69: 0 | BJ69: 0 | BK69: 0 | BL69: 0 | BM69: 0
A70: =$E$20 -> Fix | B70: =$C$20 -> UTP_14 | C70: Domestic_Fix | D70: 39.44666667 | F70: 0 | G70: 0 | H70: 0 | I70: 0 | J70: 0 | K70: 0 | L70: 0 | M70: 0 | N70: 0 | O70: 39.44666667 | P70: 0 | Q70: 0 | R70: 0 | S70: 0 | T70: 0 | U70: 0 | V70: 0 | W70: 0 | X70: 0 | Y70: 0 | Z70: 0 | AA70: 0 | AB70: 0 | AC70: 0 | AD70: 0 | AE70: 0 | AF70: 0 | AG70: 0 | AH70: 0 | AI70: 0 | AJ70: 0 | AK70: 0 | AL70: 0 | AM70: 0 | AN70: 0 | AO70: 0 | AP70: 0 | AQ70: 0 | AR70: 0 | AS70: 0 | AT70: 0 | AU70: 0 | AV70: 0 | AW70: 0 | AX70: 0 | AY70: 0 | AZ70: 0 | BA70: 0 | BB70: 0 | BC70: 0 | BD70: 0 | BE70: 0 | BF70: 0 | BG70: 0 | BH70: 0 | BI70: 0 | BJ70: 0 | BK70: 0 | BL70: 0 | BM70: 0
A71: =$E$21 -> 0 | B71: =$C$21 -> UTP_15 | C71: Domestic_0 | D71: 0 | F71: 0 | G71: 0 | H71: 0 | I71: 0 | J71: 0 | K71: 0 | L71: 0 | M71: 0 | N71: 0 | O71: 0 | P71: 0 | Q71: 0 | R71: 0 | S71: 0 | T71: 0 | U71: 0 | V71: 0 | W71: 0 | X71: 0 | Y71: 0 | Z71: 0 | AA71: 0 | AB71: 0 | AC71: 0 | AD71: 0 | AE71: 0 | AF71: 0 | AG71: 0 | AH71: 0 | AI71: 0 | AJ71: 0 | AK71: 0 | AL71: 0 | AM71: 0 | AN71: 0 | AO71: 0 | AP71: 0 | AQ71: 0 | AR71: 0 | AS71: 0 | AT71: 0 | AU71: 0 | AV71: 0 | AW71: 0 | AX71: 0 | AY71: 0 | AZ71: 0 | BA71: 0 | BB71: 0 | BC71: 0 | BD71: 0 | BE71: 0 | BF71: 0 | BG71: 0 | BH71: 0 | BI71: 0 | BJ71: 0 | BK71: 0 | BL71: 0 | BM71: 0
A72: =$E$22 -> 0 | B72: =$C$22 -> UTP_16 | C72: Domestic_0 | D72: 0 | F72: 0 | G72: 0 | H72: 0 | I72: 0 | J72: 0 | K72: 0 | L72: 0 | M72: 0 | N72: 0 | O72: 0 | P72: 0 | Q72: 0 | R72: 0 | S72: 0 | T72: 0 | U72: 0 | V72: 0 | W72: 0 | X72: 0 | Y72: 0 | Z72: 0 | AA72: 0 | AB72: 0 | AC72: 0 | AD72: 0 | AE72: 0 | AF72: 0 | AG72: 0 | AH72: 0 | AI72: 0 | AJ72: 0 | AK72: 0 | AL72: 0 | AM72: 0 | AN72: 0 | AO72: 0 | AP72: 0 | AQ72: 0 | AR72: 0 | AS72: 0 | AT72: 0 | AU72: 0 | AV72: 0 | AW72: 0 | AX72: 0 | AY72: 0 | AZ72: 0 | BA72: 0 | BB72: 0 | BC72: 0 | BD72: 0 | BE72: 0 | BF72: 0 | BG72: 0 | BH72: 0 | BI72: 0 | BJ72: 0 | BK72: 0 | BL72: 0 | BM72: 0
A73: =$E$23 -> 0 | B73: =$C$23 -> UTP_17 | C73: Domestic_0 | D73: 0 | F73: 0 | G73: 0 | H73: 0 | I73: 0 | J73: 0 | K73: 0 | L73: 0 | M73: 0 | N73: 0 | O73: 0 | P73: 0 | Q73: 0 | R73: 0 | S73: 0 | T73: 0 | U73: 0 | V73: 0 | W73: 0 | X73: 0 | Y73: 0 | Z73: 0 | AA73: 0 | AB73: 0 | AC73: 0 | AD73: 0 | AE73: 0 | AF73: 0 | AG73: 0 | AH73: 0 | AI73: 0 | AJ73: 0 | AK73: 0 | AL73: 0 | AM73: 0 | AN73: 0 | AO73: 0 | AP73: 0 | AQ73: 0 | AR73: 0 | AS73: 0 | AT73: 0 | AU73: 0 | AV73: 0 | AW73: 0 | AX73: 0 | AY73: 0 | AZ73: 0 | BA73: 0 | BB73: 0 | BC73: 0 | BD73: 0 | BE73: 0 | BF73: 0 | BG73: 0 | BH73: 0 | BI73: 0 | BJ73: 0 | BK73: 0 | BL73: 0 | BM73: 0
A74: =$E$24 -> 0 | B74: =$C$24 -> UTP_18 | C74: Domestic_0 | D74: 0 | F74: 0 | G74: 0 | H74: 0 | I74: 0 | J74: 0 | K74: 0 | L74: 0 | M74: 0 | N74: 0 | O74: 0 | P74: 0 | Q74: 0 | R74: 0 | S74: 0 | T74: 0 | U74: 0 | V74: 0 | W74: 0 | X74: 0 | Y74: 0 | Z74: 0 | AA74: 0 | AB74: 0 | AC74: 0 | AD74: 0 | AE74: 0 | AF74: 0 | AG74: 0 | AH74: 0 | AI74: 0 | AJ74: 0 | AK74: 0 | AL74: 0 | AM74: 0 | AN74: 0 | AO74: 0 | AP74: 0 | AQ74: 0 | AR74: 0 | AS74: 0 | AT74: 0 | AU74: 0 | AV74: 0 | AW74: 0 | AX74: 0 | AY74: 0 | AZ74: 0 | BA74: 0 | BB74: 0 | BC74: 0 | BD74: 0 | BE74: 0 | BF74: 0 | BG74: 0 | BH74: 0 | BI74: 0 | BJ74: 0 | BK74: 0 | BL74: 0 | BM74: 0
A75: =$E$25 -> 0 | B75: =$C$25 -> UTP_19 | C75: Domestic_0 | D75: 0 | F75: 0 | G75: 0 | H75: 0 | I75: 0 | J75: 0 | K75: 0 | L75: 0 | M75: 0 | N75: 0 | O75: 0 | P75: 0 | Q75: 0 | R75: 0 | S75: 0 | T75: 0 | U75: 0 | V75: 0 | W75: 0 | X75: 0 | Y75: 0 | Z75: 0 | AA75: 0 | AB75: 0 | AC75: 0 | AD75: 0 | AE75: 0 | AF75: 0 | AG75: 0 | AH75: 0 | AI75: 0 | AJ75: 0 | AK75: 0 | AL75: 0 | AM75: 0 | AN75: 0 | AO75: 0 | AP75: 0 | AQ75: 0 | AR75: 0 | AS75: 0 | AT75: 0 | AU75: 0 | AV75: 0 | AW75: 0 | AX75: 0 | AY75: 0 | AZ75: 0 | BA75: 0 | BB75: 0 | BC75: 0 | BD75: 0 | BE75: 0 | BF75: 0 | BG75: 0 | BH75: 0 | BI75: 0 | BJ75: 0 | BK75: 0 | BL75: 0 | BM75: 0
A76: =$E$26 -> Var | B76: =$C$26 -> IDX_20 | C76: =IF(OR(LEFT(B76,3)=$L$12,LEFT(B76,3)="IDX"),"Domestic","External")&"_"&A76 -> Domestic_Var | D76: 0 | F76: 0 | G76: 0 | H76: 0 | I76: 0 | J76: 0 | K76: 0 | L76: 0 | M76: 0 | N76: 0 | O76: 0 | P76: 0 | Q76: 0 | R76: 0 | S76: 0 | T76: 0 | U76: 0 | V76: 0 | W76: 0 | X76: 0 | Y76: 0 | Z76: 0 | AA76: 0 | AB76: 0 | AC76: 0 | AD76: 0 | AE76: 0 | AF76: 0 | AG76: 0 | AH76: 0 | AI76: 0 | AJ76: 0 | AK76: 0 | AL76: 0 | AM76: 0 | AN76: 0 | AO76: 0 | AP76: 0 | AQ76: 0 | AR76: 0 | AS76: 0 | AT76: 0 | AU76: 0 | AV76: 0 | AW76: 0 | AX76: 0 | AY76: 0 | AZ76: 0 | BA76: 0 | BB76: 0 | BC76: 0 | BD76: 0 | BE76: 0 | BF76: 0 | BG76: 0 | BH76: 0 | BI76: 0 | BJ76: 0 | BK76: 0 | BL76: 0 | BM76: 0
B79: ="Outstanding Stock in "&IF(B14=TRUE,B11,L7) -> Outstanding Stock in USD | E79: =$B$7 -> 2017 | F79: =E79+1 -> 2018 | G79: 2019 | H79: 2020 | I79: 2021 | J79: 2022 | K79: 2023 | L79: 2024 | M79: 2025 | N79: 2026 | O79: 2027 | P79: 2028 | Q79: 2029 | R79: 2030 | S79: 2031 | T79: 2032 | U79: 2033 | V79: 2034 | W79: 2035 | X79: 2036 | Y79: 2037 | Z79: 2038 | AA79: 2039 | AB79: 2040 | AC79: 2041 | AD79: 2042 | AE79: 2043 | AF79: 2044 | AG79: 2045 | AH79: 2046 | AI79: 2047 | AJ79: 2048 | AK79: 2049 | AL79: =AK79+1 -> 2050 | AM79: 2051 | AN79: 2052 | AO79: 2053 | AP79: 2054 | AQ79: 2055 | AR79: 2056 | AS79: 2057 | AT79: 2058 | AU79: 2059 | AV79: 2060 | AW79: 2061 | AX79: 2062 | AY79: 2063 | AZ79: 2064 | BA79: 2065 | BB79: 2066 | BC79: =BB79+1 -> 2067 | BD79: 2068 | BE79: 2069 | BF79: 2070 | BG79: 2071 | BH79: 2072 | BI79: 2073 | BJ79: 2074 | BK79: 2075 | BL79: 2076 | BM79: 2077
A80: =$E$7 -> Fix | B80: =$C$7 -> USD_1 | C80: =IF(LEFT(B80,3)=$L$12,"DX","FX") -> FX | E80: =D57 -> 208.9282787 | F80: =E80-F57 -> 205.8576028 | G80: =F80-G57 -> 202.5973172 | H80: 197.7705074 | I80: 192.1572774 | J80: 186.8960363 | K80: 181.6399989 | L80: 175.4989762 | M80: 170.0403312 | N80: 164.4856857 | O80: 158.8348621 | P80: 152.7687467 | Q80: 146.7025944 | R80: 140.6364421 | S80: 134.6490642 | T80: 128.6569679 | U80: 122.6648716 | V80: 116.412845 | W80: 110.1609958 | X80: 103.9091467 | Y80: 97.65729751 | Z80: 91.39943785 | AA80: 85.40150852 | AB80: 79.4035792 | AC80: 73.40564988 | AD80: 67.40772056 | AE80: 61.40979123 | AF80: 55.41186191 | AG80: 49.74835461 | AH80: 44.53442734 | AI80: 39.63118972 | AJ80: 34.69547333 | AK80: 29.79594563 | AL80: 25.90461061 | AM80: 21.77552402 | AN80: 18.1780105 | AO80: 14.58049698 | AP80: 10.98512554 | AQ80: 7.389754103 | AR80: 3.794382662 | AS80: 2.035829446 | AT80: 1.173556037 | AU80: 0.3112826284 | AV80: -7.166489624e-14 | AW80: -7.166489624e-14 | AX80: -7.166489624e-14 | AY80: -7.166489624e-14 | AZ80: -7.166489624e-14 | BA80: -7.166489624e-14 | BB80: -7.166489624e-14 | BC80: -7.166489624e-14 | BD80: -7.166489624e-14 | BE80: -7.166489624e-14 | BF80: -7.166489624e-14 | BG80: -7.166489624e-14 | BH80: -7.166489624e-14 | BI80: -7.166489624e-14 | BJ80: -7.166489624e-14 | BK80: -7.166489624e-14 | BL80: -7.166489624e-14 | BM80: -7.166489624e-14
A81: =$E$8 -> Fix | B81: =$C$8 -> USD_2 | C81: FX | E81: =D58 -> 463.5395288 | F81: =E81-F58 -> 438.3500264 | G81: 415.1895608 | H81: 392.6029951 | I81: 370.0082415 | J81: 347.4073471 | K81: 324.8003118 | L81: 302.1431961 | M81: 279.4778925 | N81: 256.8084951 | O81: 234.1309097 | P81: 211.4305965 | Q81: 188.7986824 | R81: 166.1606275 | S81: 143.5143847 | T81: 120.8599541 | U81: 98.1973356 | V81: 75.52652923 | W81: 52.8475351 | X81: 30.16444698 | Y81: 26.67679171 | Z81: 23.58420028 | AA81: 20.49160886 | AB81: 17.39901743 | AC81: 14.306426 | AD81: 10.2850783 | AE81: 7.368188082 | AF81: 4.678300684 | AG81: 1.988413286 | AH81: 4.574118861e-14 | AI81: 4.574118861e-14 | AJ81: 4.574118861e-14 | AK81: 4.574118861e-14 | AL81: 4.574118861e-14 | AM81: 4.574118861e-14 | AN81: 4.574118861e-14 | AO81: 4.574118861e-14 | AP81: 4.574118861e-14 | AQ81: 4.574118861e-14 | AR81: 4.574118861e-14 | AS81: 4.574118861e-14 | AT81: 4.574118861e-14 | AU81: 4.574118861e-14 | AV81: 4.574118861e-14 | AW81: 4.574118861e-14 | AX81: 4.574118861e-14 | AY81: 4.574118861e-14 | AZ81: 4.574118861e-14 | BA81: 4.574118861e-14 | BB81: 4.574118861e-14 | BC81: 4.574118861e-14 | BD81: 4.574118861e-14 | BE81: 4.574118861e-14 | BF81: 4.574118861e-14 | BG81: 4.574118861e-14 | BH81: 4.574118861e-14 | BI81: 4.574118861e-14 | BJ81: 4.574118861e-14 | BK81: 4.574118861e-14 | BL81: 4.574118861e-14 | BM81: 4.574118861e-14
A82: =$E$9 -> Fix | B82: =$C$9 -> USD_3 | C82: FX | E82: 39.27944459 | F82: =E82-F59 -> 9.964453745 | G82: 3.654473101 | H82: 3.654473101 | I82: 3.451446818 | J82: 3.248420534 | K82: 3.045394251 | L82: 2.842367967 | M82: 2.639341684 | N82: 2.436315401 | O82: 2.233289117 | P82: 2.030262834 | Q82: 1.827236551 | R82: 1.624210267 | S82: 1.421183984 | T82: 1.2181577 | U82: 1.015131417 | V82: 0.8121051336 | W82: 0.6090788502 | X82: 0.4060525668 | Y82: 0.2030262834 | Z82: -3.477773625e-14 | AA82: -3.477773625e-14 | AB82: -3.477773625e-14 | AC82: -3.477773625e-14 | AD82: -3.477773625e-14 | AE82: -3.477773625e-14 | AF82: -3.477773625e-14 | AG82: -3.477773625e-14 | AH82: -3.477773625e-14 | AI82: -3.477773625e-14 | AJ82: -3.477773625e-14 | AK82: -3.477773625e-14 | AL82: -3.477773625e-14 | AM82: -3.477773625e-14 | AN82: -3.477773625e-14 | AO82: -3.477773625e-14 | AP82: -3.477773625e-14 | AQ82: -3.477773625e-14 | AR82: -3.477773625e-14 | AS82: -3.477773625e-14 | AT82: -3.477773625e-14 | AU82: -3.477773625e-14 | AV82: -3.477773625e-14 | AW82: -3.477773625e-14 | AX82: -3.477773625e-14 | AY82: -3.477773625e-14 | AZ82: -3.477773625e-14 | BA82: -3.477773625e-14 | BB82: -3.477773625e-14 | BC82: -3.477773625e-14 | BD82: -3.477773625e-14 | BE82: -3.477773625e-14 | BF82: -3.477773625e-14 | BG82: -3.477773625e-14 | BH82: -3.477773625e-14 | BI82: -3.477773625e-14 | BJ82: -3.477773625e-14 | BK82: -3.477773625e-14 | BL82: -3.477773625e-14 | BM82: -3.477773625e-14
A83: =$E$10 -> Var | B83: =$C$10 -> USD_4 | C83: FX | E83: 76.63160485 | F83: =E83-F60 -> 53.60882181 | G83: 39.18218881 | H83: 25.31618581 | I83: 15.71711751 | J83: 12.02675539 | K83: 9.120612551 | L83: 6.868239219 | M83: 4.615865886 | N83: 2.363492554 | O83: 0.1111192219 | P83: -4.579669977e-16 | Q83: -4.579669977e-16 | R83: -4.579669977e-16 | S83: -4.579669977e-16 | T83: -4.579669977e-16 | U83: -4.579669977e-16 | V83: -4.579669977e-16 | W83: -4.579669977e-16 | X83: -4.579669977e-16 | Y83: -4.579669977e-16 | Z83: -4.579669977e-16 | AA83: -4.579669977e-16 | AB83: -4.579669977e-16 | AC83: -4.579669977e-16 | AD83: -4.579669977e-16 | AE83: -4.579669977e-16 | AF83: -4.579669977e-16 | AG83: -4.579669977e-16 | AH83: -4.579669977e-16 | AI83: -4.579669977e-16 | AJ83: -4.579669977e-16 | AK83: -4.579669977e-16 | AL83: -4.579669977e-16 | AM83: -4.579669977e-16 | AN83: -4.579669977e-16 | AO83: -4.579669977e-16 | AP83: -4.579669977e-16 | AQ83: -4.579669977e-16 | AR83: -4.579669977e-16 | AS83: -4.579669977e-16 | AT83: -4.579669977e-16 | AU83: -4.579669977e-16 | AV83: -4.579669977e-16 | AW83: -4.579669977e-16 | AX83: -4.579669977e-16 | AY83: -4.579669977e-16 | AZ83: -4.579669977e-16 | BA83: -4.579669977e-16 | BB83: -4.579669977e-16 | BC83: -4.579669977e-16 | BD83: -4.579669977e-16 | BE83: -4.579669977e-16 | BF83: -4.579669977e-16 | BG83: -4.579669977e-16 | BH83: -4.579669977e-16 | BI83: -4.579669977e-16 | BJ83: -4.579669977e-16 | BK83: -4.579669977e-16 | BL83: -4.579669977e-16 | BM83: -4.579669977e-16
A84: =$E$11 -> Fix | B84: =$C$11 -> USD_5 | C84: FX | E84: 182.012277 | F84: =E84-F61 -> 140.0012126 | G84: 100.001061 | H84: 60.00090943 | I84: 20.00075786 | J84: 0.0006062888151 | K84: 0.0004547166114 | L84: 0.0003031444076 | M84: 0.0001515722038 | N84: 7.881157749e-14 | O84: 7.881157749e-14 | P84: 7.881157749e-14 | Q84: 7.881157749e-14 | R84: 7.881157749e-14 | S84: 7.881157749e-14 | T84: 7.881157749e-14 | U84: 7.881157749e-14 | V84: 7.881157749e-14 | W84: 7.881157749e-14 | X84: 7.881157749e-14 | Y84: 7.881157749e-14 | Z84: =Y84-Z61 -> 7.881157749e-14 | AA84: =Z84-AA61 -> 7.881157749e-14 | AB84: =AA84-AB61 -> 7.881157749e-14 | AC84: =AB84-AC61 -> 7.881157749e-14 | AD84: =AC84-AD61 -> 7.881157749e-14 | AE84: =AD84-AE61 -> 7.881157749e-14 | AF84: =AE84-AF61 -> 7.881157749e-14 | AG84: =AF84-AG61 -> 7.881157749e-14 | AH84: =AG84-AH61 -> 7.881157749e-14 | AI84: =AH84-AI61 -> 7.881157749e-14 | AJ84: =AI84-AJ61 -> 7.881157749e-14 | AK84: =AJ84-AK61 -> 7.881157749e-14 | AL84: =AK84-AL61 -> 7.881157749e-14 | AM84: =AL84-AM61 -> 7.881157749e-14 | AN84: =AM84-AN61 -> 7.881157749e-14 | AO84: =AN84-AO61 -> 7.881157749e-14 | AP84: =AO84-AP61 -> 7.881157749e-14 | AQ84: =AP84-AQ61 -> 7.881157749e-14 | AR84: =AQ84-AR61 -> 7.881157749e-14 | AS84: =AR84-AS61 -> 7.881157749e-14 | AT84: =AS84-AT61 -> 7.881157749e-14 | AU84: =AT84-AU61 -> 7.881157749e-14 | AV84: =AU84-AV61 -> 7.881157749e-14 | AW84: =AV84-AW61 -> 7.881157749e-14 | AX84: =AW84-AX61 -> 7.881157749e-14 | AY84: =AX84-AY61 -> 7.881157749e-14 | AZ84: =AY84-AZ61 -> 7.881157749e-14 | BA84: =AZ84-BA61 -> 7.881157749e-14 | BB84: =BA84-BB61 -> 7.881157749e-14 | BC84: =BB84-BC61 -> 7.881157749e-14 | BD84: =BC84-BD61 -> 7.881157749e-14 | BE84: =BD84-BE61 -> 7.881157749e-14 | BF84: =BE84-BF61 -> 7.881157749e-14 | BG84: =BF84-BG61 -> 7.881157749e-14 | BH84: =BG84-BH61 -> 7.881157749e-14 | BI84: =BH84-BI61 -> 7.881157749e-14 | BJ84: =BI84-BJ61 -> 7.881157749e-14 | BK84: =BJ84-BK61 -> 7.881157749e-14 | BL84: =BK84-BL61 -> 7.881157749e-14 | BM84: =BL84-BM61 -> 7.881157749e-14
A85: =$E$12 -> Var | B85: =$C$12 -> USD_6 | C85: FX | E85: 203.4345549 | F85: =E85-F62 -> 165.5727962 | G85: =F85-G62 -> 114.2104799 | H85: =G85-H62 -> 83.07067821 | I85: =H85-I62 -> 52.43087648 | J85: =I85-J62 -> 35.37904632 | K85: =J85-K62 -> 16.98952316 | L85: =K85-L62 -> 0 | M85: =L85-M62 -> 0 | N85: =M85-N62 -> 0 | O85: =N85-O62 -> 0 | P85: =O85-P62 -> 0 | Q85: =P85-Q62 -> 0 | R85: =Q85-R62 -> 0 | S85: =R85-S62 -> 0 | T85: =S85-T62 -> 0 | U85: =T85-U62 -> 0 | V85: =U85-V62 -> 0 | W85: =V85-W62 -> 0 | X85: =W85-X62 -> 0 | Y85: =X85-Y62 -> 0 | Z85: 0 | AA85: 0 | AB85: 0 | AC85: 0 | AD85: 0 | AE85: 0 | AF85: 0 | AG85: 0 | AH85: 0 | AI85: 0 | AJ85: 0 | AK85: 0 | AL85: 0 | AM85: 0 | AN85: 0 | AO85: 0 | AP85: 0 | AQ85: 0 | AR85: 0 | AS85: 0 | AT85: 0 | AU85: 0 | AV85: 0 | AW85: 0 | AX85: 0 | AY85: 0 | AZ85: 0 | BA85: 0 | BB85: 0 | BC85: 0 | BD85: 0 | BE85: 0 | BF85: 0 | BG85: 0 | BH85: 0 | BI85: 0 | BJ85: 0 | BK85: 0 | BL85: 0 | BM85: 0
A86: =$E$13 -> 0 | B86: =$C$13 -> USD_7 | C86: FX | E86: 0 | F86: =E86-F63 -> 0 | G86: 0 | H86: 0 | I86: 0 | J86: 0 | K86: 0 | L86: 0 | M86: 0 | N86: 0 | O86: 0 | P86: 0 | Q86: 0 | R86: 0 | S86: 0 | T86: 0 | U86: 0 | V86: 0 | W86: 0 | X86: 0 | Y86: 0 | Z86: 0 | AA86: 0 | AB86: 0 | AC86: 0 | AD86: 0 | AE86: 0 | AF86: 0 | AG86: 0 | AH86: 0 | AI86: 0 | AJ86: 0 | AK86: 0 | AL86: 0 | AM86: 0 | AN86: 0 | AO86: 0 | AP86: 0 | AQ86: 0 | AR86: 0 | AS86: 0 | AT86: 0 | AU86: 0 | AV86: 0 | AW86: 0 | AX86: 0 | AY86: 0 | AZ86: 0 | BA86: 0 | BB86: 0 | BC86: 0 | BD86: 0 | BE86: 0 | BF86: 0 | BG86: 0 | BH86: 0 | BI86: 0 | BJ86: 0 | BK86: 0 | BL86: 0 | BM86: 0
A87: =$E$14 -> 0 | B87: =$C$14 -> USD_8 | C87: FX | E87: 0 | F87: =E87-F64 -> 0 | G87: 0 | H87: 0 | I87: 0 | J87: 0 | K87: 0 | L87: 0 | M87: 0 | N87: 0 | O87: 0 | P87: 0 | Q87: 0 | R87: 0 | S87: 0 | T87: 0 | U87: 0 | V87: 0 | W87: 0 | X87: 0 | Y87: 0 | Z87: 0 | AA87: 0 | AB87: 0 | AC87: 0 | AD87: 0 | AE87: 0 | AF87: 0 | AG87: 0 | AH87: 0 | AI87: 0 | AJ87: 0 | AK87: 0 | AL87: 0 | AM87: 0 | AN87: 0 | AO87: 0 | AP87: 0 | AQ87: 0 | AR87: 0 | AS87: 0 | AT87: 0 | AU87: 0 | AV87: 0 | AW87: 0 | AX87: 0 | AY87: 0 | AZ87: 0 | BA87: 0 | BB87: 0 | BC87: 0 | BD87: 0 | BE87: 0 | BF87: 0 | BG87: 0 | BH87: 0 | BI87: 0 | BJ87: 0 | BK87: 0 | BL87: 0 | BM87: 0
A88: =$E$15 -> 0 | B88: =$C$15 -> USD_9 | C88: FX | E88: 0 | F88: =E88-F65 -> 0 | G88: 0 | H88: 0 | I88: 0 | J88: 0 | K88: 0 | L88: 0 | M88: 0 | N88: 0 | O88: 0 | P88: 0 | Q88: 0 | R88: 0 | S88: 0 | T88: 0 | U88: 0 | V88: 0 | W88: 0 | X88: 0 | Y88: 0 | Z88: 0 | AA88: 0 | AB88: 0 | AC88: 0 | AD88: 0 | AE88: 0 | AF88: 0 | AG88: 0 | AH88: 0 | AI88: 0 | AJ88: 0 | AK88: 0 | AL88: 0 | AM88: 0 | AN88: 0 | AO88: 0 | AP88: 0 | AQ88: 0 | AR88: 0 | AS88: 0 | AT88: 0 | AU88: 0 | AV88: 0 | AW88: 0 | AX88: 0 | AY88: 0 | AZ88: 0 | BA88: 0 | BB88: 0 | BC88: 0 | BD88: 0 | BE88: 0 | BF88: 0 | BG88: 0 | BH88: 0 | BI88: 0 | BJ88: 0 | BK88: 0 | BL88: 0 | BM88: 0
A89: =$E$16 -> 0 | B89: =$C$16 -> USD_10 | C89: FX | E89: 0 | F89: =E89-F66 -> 0 | G89: 0 | H89: 0 | I89: 0 | J89: 0 | K89: 0 | L89: 0 | M89: 0 | N89: 0 | O89: 0 | P89: 0 | Q89: 0 | R89: 0 | S89: 0 | T89: 0 | U89: 0 | V89: 0 | W89: 0 | X89: 0 | Y89: 0 | Z89: 0 | AA89: 0 | AB89: 0 | AC89: 0 | AD89: 0 | AE89: 0 | AF89: 0 | AG89: 0 | AH89: 0 | AI89: 0 | AJ89: 0 | AK89: 0 | AL89: 0 | AM89: 0 | AN89: 0 | AO89: 0 | AP89: 0 | AQ89: 0 | AR89: 0 | AS89: 0 | AT89: 0 | AU89: 0 | AV89: 0 | AW89: 0 | AX89: 0 | AY89: 0 | AZ89: 0 | BA89: 0 | BB89: 0 | BC89: 0 | BD89: 0 | BE89: 0 | BF89: 0 | BG89: 0 | BH89: 0 | BI89: 0 | BJ89: 0 | BK89: 0 | BL89: 0 | BM89: 0
A90: =$E$17 -> T-bills | B90: =$C$17 -> UTP_11 | C90: DX | E90: 255.4203118 | F90: =E90-F67 -> 0 | G90: 0 | H90: 0 | I90: 0 | J90: 0 | K90: 0 | L90: 0 | M90: 0 | N90: 0 | O90: 0 | P90: 0 | Q90: 0 | R90: 0 | S90: 0 | T90: 0 | U90: 0 | V90: 0 | W90: 0 | X90: 0 | Y90: 0 | Z90: 0 | AA90: 0 | AB90: 0 | AC90: 0 | AD90: 0 | AE90: 0 | AF90: 0 | AG90: 0 | AH90: 0 | AI90: 0 | AJ90: 0 | AK90: 0 | AL90: 0 | AM90: 0 | AN90: 0 | AO90: 0 | AP90: 0 | AQ90: 0 | AR90: 0 | AS90: 0 | AT90: 0 | AU90: 0 | AV90: 0 | AW90: 0 | AX90: 0 | AY90: 0 | AZ90: 0 | BA90: 0 | BB90: 0 | BC90: 0 | BD90: 0 | BE90: 0 | BF90: 0 | BG90: 0 | BH90: 0 | BI90: 0 | BJ90: 0 | BK90: 0 | BL90: 0 | BM90: 0
A91: =$E$18 -> Fix | B91: =$C$18 -> UTP_12 | C91: DX | E91: 15.04588533 | F91: =E91-F68 -> 15.04588533 | G91: 8.354508667 | H91: 0 | I91: 0 | J91: 0 | K91: 0 | L91: 0 | M91: 0 | N91: 0 | O91: 0 | P91: 0 | Q91: 0 | R91: 0 | S91: 0 | T91: 0 | U91: 0 | V91: 0 | W91: 0 | X91: 0 | Y91: 0 | Z91: 0 | AA91: 0 | AB91: 0 | AC91: 0 | AD91: 0 | AE91: 0 | AF91: 0 | AG91: 0 | AH91: 0 | AI91: 0 | AJ91: 0 | AK91: 0 | AL91: 0 | AM91: 0 | AN91: 0 | AO91: 0 | AP91: 0 | AQ91: 0 | AR91: 0 | AS91: 0 | AT91: 0 | AU91: 0 | AV91: 0 | AW91: 0 | AX91: 0 | AY91: 0 | AZ91: 0 | BA91: 0 | BB91: 0 | BC91: 0 | BD91: 0 | BE91: 0 | BF91: 0 | BG91: 0 | BH91: 0 | BI91: 0 | BJ91: 0 | BK91: 0 | BL91: 0 | BM91: 0
A92: =$E$19 -> Fix | B92: =$C$19 -> UTP_13 | C92: DX | E92: 339.3437784 | F92: =E92-F69 -> 339.3437784 | G92: 339.3437784 | H92: 339.3437784 | I92: 339.3437784 | J92: 169.9086583 | K92: 169.9086583 | L92: 0 | M92: 0 | N92: 0 | O92: 0 | P92: 0 | Q92: 0 | R92: 0 | S92: 0 | T92: 0 | U92: 0 | V92: 0 | W92: 0 | X92: 0 | Y92: 0 | Z92: 0 | AA92: 0 | AB92: 0 | AC92: 0 | AD92: 0 | AE92: 0 | AF92: 0 | AG92: 0 | AH92: 0 | AI92: 0 | AJ92: 0 | AK92: 0 | AL92: 0 | AM92: 0 | AN92: 0 | AO92: 0 | AP92: 0 | AQ92: 0 | AR92: 0 | AS92: 0 | AT92: 0 | AU92: 0 | AV92: 0 | AW92: 0 | AX92: 0 | AY92: 0 | AZ92: 0 | BA92: 0 | BB92: 0 | BC92: 0 | BD92: 0 | BE92: 0 | BF92: 0 | BG92: 0 | BH92: 0 | BI92: 0 | BJ92: 0 | BK92: 0 | BL92: 0 | BM92: 0
A93: =$E$20 -> Fix | B93: =$C$20 -> UTP_14 | C93: DX | E93: 39.44666667 | F93: =E93-F70 -> 39.44666667 | G93: 39.44666667 | H93: 39.44666667 | I93: 39.44666667 | J93: 39.44666667 | K93: 39.44666667 | L93: 39.44666667 | M93: 39.44666667 | N93: 39.44666667 | O93: 0 | P93: 0 | Q93: 0 | R93: 0 | S93: 0 | T93: 0 | U93: 0 | V93: 0 | W93: 0 | X93: 0 | Y93: 0 | Z93: 0 | AA93: 0 | AB93: 0 | AC93: 0 | AD93: 0 | AE93: 0 | AF93: 0 | AG93: 0 | AH93: 0 | AI93: 0 | AJ93: 0 | AK93: 0 | AL93: 0 | AM93: 0 | AN93: 0 | AO93: 0 | AP93: 0 | AQ93: 0 | AR93: 0 | AS93: 0 | AT93: 0 | AU93: 0 | AV93: 0 | AW93: 0 | AX93: 0 | AY93: 0 | AZ93: 0 | BA93: 0 | BB93: 0 | BC93: 0 | BD93: 0 | BE93: 0 | BF93: 0 | BG93: 0 | BH93: 0 | BI93: 0 | BJ93: 0 | BK93: 0 | BL93: 0 | BM93: 0
A94: =$E$21 -> 0 | B94: =$C$21 -> UTP_15 | C94: DX | E94: 0 | F94: =E94-F71 -> 0 | G94: 0 | H94: 0 | I94: 0 | J94: 0 | K94: 0 | L94: 0 | M94: 0 | N94: 0 | O94: 0 | P94: 0 | Q94: 0 | R94: 0 | S94: 0 | T94: 0 | U94: 0 | V94: 0 | W94: 0 | X94: 0 | Y94: 0 | Z94: 0 | AA94: 0 | AB94: 0 | AC94: 0 | AD94: 0 | AE94: 0 | AF94: 0 | AG94: 0 | AH94: 0 | AI94: 0 | AJ94: 0 | AK94: 0 | AL94: 0 | AM94: 0 | AN94: 0 | AO94: 0 | AP94: 0 | AQ94: 0 | AR94: 0 | AS94: 0 | AT94: 0 | AU94: 0 | AV94: 0 | AW94: 0 | AX94: 0 | AY94: 0 | AZ94: 0 | BA94: 0 | BB94: 0 | BC94: 0 | BD94: 0 | BE94: 0 | BF94: 0 | BG94: 0 | BH94: 0 | BI94: 0 | BJ94: 0 | BK94: 0 | BL94: 0 | BM94: 0
A95: =$E$22 -> 0 | B95: =$C$22 -> UTP_16 | C95: DX | E95: 0 | F95: =E95-F72 -> 0 | G95: 0 | H95: 0 | I95: 0 | J95: 0 | K95: 0 | L95: 0 | M95: 0 | N95: 0 | O95: 0 | P95: 0 | Q95: 0 | R95: 0 | S95: 0 | T95: 0 | U95: 0 | V95: 0 | W95: 0 | X95: 0 | Y95: 0 | Z95: 0 | AA95: 0 | AB95: 0 | AC95: 0 | AD95: 0 | AE95: 0 | AF95: 0 | AG95: 0 | AH95: 0 | AI95: 0 | AJ95: 0 | AK95: 0 | AL95: 0 | AM95: 0 | AN95: 0 | AO95: 0 | AP95: 0 | AQ95: 0 | AR95: 0 | AS95: 0 | AT95: 0 | AU95: 0 | AV95: 0 | AW95: 0 | AX95: 0 | AY95: 0 | AZ95: 0 | BA95: 0 | BB95: 0 | BC95: 0 | BD95: 0 | BE95: 0 | BF95: 0 | BG95: 0 | BH95: 0 | BI95: 0 | BJ95: 0 | BK95: 0 | BL95: 0 | BM95: 0
A96: =$E$23 -> 0 | B96: =$C$23 -> UTP_17 | C96: DX | E96: 0 | F96: =E96-F73 -> 0 | G96: 0 | H96: 0 | I96: 0 | J96: 0 | K96: 0 | L96: 0 | M96: 0 | N96: 0 | O96: 0 | P96: 0 | Q96: 0 | R96: 0 | S96: 0 | T96: 0 | U96: 0 | V96: 0 | W96: 0 | X96: 0 | Y96: 0 | Z96: 0 | AA96: 0 | AB96: 0 | AC96: 0 | AD96: 0 | AE96: 0 | AF96: 0 | AG96: 0 | AH96: 0 | AI96: 0 | AJ96: 0 | AK96: 0 | AL96: 0 | AM96: 0 | AN96: 0 | AO96: 0 | AP96: 0 | AQ96: 0 | AR96: 0 | AS96: 0 | AT96: 0 | AU96: 0 | AV96: 0 | AW96: 0 | AX96: 0 | AY96: 0 | AZ96: 0 | BA96: 0 | BB96: 0 | BC96: 0 | BD96: 0 | BE96: 0 | BF96: 0 | BG96: 0 | BH96: 0 | BI96: 0 | BJ96: 0 | BK96: 0 | BL96: 0 | BM96: 0
A97: =$E$24 -> 0 | B97: =$C$24 -> UTP_18 | C97: DX | E97: 0 | F97: =E97-F74 -> 0 | G97: 0 | H97: 0 | I97: 0 | J97: 0 | K97: 0 | L97: 0 | M97: 0 | N97: 0 | O97: 0 | P97: 0 | Q97: 0 | R97: 0 | S97: 0 | T97: 0 | U97: 0 | V97: 0 | W97: 0 | X97: 0 | Y97: 0 | Z97: 0 | AA97: 0 | AB97: 0 | AC97: 0 | AD97: 0 | AE97: 0 | AF97: 0 | AG97: 0 | AH97: 0 | AI97: 0 | AJ97: 0 | AK97: 0 | AL97: 0 | AM97: 0 | AN97: 0 | AO97: 0 | AP97: 0 | AQ97: 0 | AR97: 0 | AS97: 0 | AT97: 0 | AU97: 0 | AV97: 0 | AW97: 0 | AX97: 0 | AY97: 0 | AZ97: 0 | BA97: 0 | BB97: 0 | BC97: 0 | BD97: 0 | BE97: 0 | BF97: 0 | BG97: 0 | BH97: 0 | BI97: 0 | BJ97: 0 | BK97: 0 | BL97: 0 | BM97: 0
A98: =$E$25 -> 0 | B98: =$C$25 -> UTP_19 | C98: DX | E98: 0 | F98: =E98-F75 -> 0 | G98: 0 | H98: 0 | I98: 0 | J98: 0 | K98: 0 | L98: 0 | M98: 0 | N98: 0 | O98: 0 | P98: 0 | Q98: 0 | R98: 0 | S98: 0 | T98: 0 | U98: 0 | V98: 0 | W98: 0 | X98: 0 | Y98: 0 | Z98: 0 | AA98: 0 | AB98: 0 | AC98: 0 | AD98: 0 | AE98: 0 | AF98: 0 | AG98: 0 | AH98: 0 | AI98: 0 | AJ98: 0 | AK98: 0 | AL98: 0 | AM98: 0 | AN98: 0 | AO98: 0 | AP98: 0 | AQ98: 0 | AR98: 0 | AS98: 0 | AT98: 0 | AU98: 0 | AV98: 0 | AW98: 0 | AX98: 0 | AY98: 0 | AZ98: 0 | BA98: 0 | BB98: 0 | BC98: 0 | BD98: 0 | BE98: 0 | BF98: 0 | BG98: 0 | BH98: 0 | BI98: 0 | BJ98: 0 | BK98: 0 | BL98: 0 | BM98: 0
A99: =$E$26 -> Var | B99: =$C$26 -> IDX_20 | C99: =IF(OR(LEFT(B76,3)=$L$12,LEFT(B76,3)="IDX"),"DX","FX") -> DX | E99: 0 | F99: =E99-F76 -> 0 | G99: 0 | H99: 0 | I99: 0 | J99: 0 | K99: 0 | L99: 0 | M99: 0 | N99: 0 | O99: 0 | P99: 0 | Q99: 0 | R99: 0 | S99: 0 | T99: 0 | U99: 0 | V99: 0 | W99: 0 | X99: 0 | Y99: 0 | Z99: 0 | AA99: 0 | AB99: 0 | AC99: 0 | AD99: 0 | AE99: 0 | AF99: 0 | AG99: 0 | AH99: 0 | AI99: 0 | AJ99: 0 | AK99: 0 | AL99: 0 | AM99: 0 | AN99: 0 | AO99: 0 | AP99: 0 | AQ99: 0 | AR99: 0 | AS99: 0 | AT99: 0 | AU99: 0 | AV99: 0 | AW99: 0 | AX99: 0 | AY99: 0 | AZ99: 0 | BA99: 0 | BB99: 0 | BC99: 0 | BD99: 0 | BE99: 0 | BF99: 0 | BG99: 0 | BH99: 0 | BI99: 0 | BJ99: 0 | BK99: 0 | BL99: 0 | BM99: 0
B101: ="Interest Payments in "&IF(B14=TRUE,B11,L7)&" - For (a) fixed-rate instruments are based on existing contractual agreeements & (b) floating-rate instruments, only the spread component is reflected below (the floating componemt is added in rows 218-237 below." -> Interest Payments in USD - For (a) fixed-rate instruments are based on existing contractual agreeements & (b) floating-rate instruments, only the spread component is reflected below (the floating componemt is added in rows 218-237 below. | N101: =5.30502713173992E-06*10^6 -> 5.305027132
E102: Implied IR | F102: =$B$7+1 -> 2018 | G102: =F102+1 -> 2019 | H102: =G102+1 -> 2020 | I102: 2021 | J102: 2022 | K102: 2023 | L102: 2024 | M102: 2025 | N102: 2026 | O102: 2027 | P102: 2028 | Q102: 2029 | R102: 2030 | S102: 2031 | T102: 2032 | U102: 2033 | V102: 2034 | W102: 2035 | X102: 2036 | Y102: 2037 | Z102: 2038 | AA102: 2039 | AB102: 2040 | AC102: 2041 | AD102: 2042 | AE102: 2043 | AF102: 2044 | AG102: 2045 | AH102: 2046 | AI102: 2047 | AJ102: 2048 | AK102: 2049 | AL102: 2050 | AM102: 2051 | AN102: 2052 | AO102: 2053 | AP102: 2054 | AQ102: 2055 | AR102: 2056 | AS102: 2057 | AT102: 2058 | AU102: 2059 | AV102: 2060 | AW102: 2061 | AX102: 2062 | AY102: 2063 | AZ102: 2064 | BA102: 2065 | BB102: 2066 | BC102: =BB102+1 -> 2067 | BD102: 2068 | BE102: 2069 | BF102: 2070 | BG102: 2071 | BH102: 2072 | BI102: 2073 | BJ102: 2074 | BK102: 2075 | BL102: 2076 | BM102: 2077
A103: =$E$7 -> Fix | B103: =$C$7 -> USD_1 | E103: =IF(E80=0,0,F103/E80) -> 0.007500000017 | F103: 1.566962094 | G103: 1.543932025 | H103: 1.519479882 | I103: 1.483278809 | J103: 1.441179584 | K103: 1.401720276 | L103: 1.362299995 | M103: 1.316242325 | N103: 1.275302488 | O103: 1.233642646 | P103: 1.191261469 | Q103: 1.145765604 | R103: 1.100269462 | S103: 1.05477332 | T103: 1.009867985 | U103: 0.964927263 | V103: 0.9199865408 | W103: 0.8730963412 | X103: 0.8262074724 | Y103: 0.7793186037 | Z103: 0.732429735 | AA103: 0.6854957875 | AB103: 0.6405113175 | AC103: 0.5955268476 | AD103: 0.5505423777 | AE103: 0.5055579078 | AF103: 0.4605734379 | AG103: 0.4155889679 | AH103: 0.3731126632 | AI103: 0.3340082087 | AJ103: 0.2972339266 | AK103: 0.2602160536 | AL103: 0.2234695958 | AM103: 0.1942845832 | AN103: 0.1633164337 | AO103: 0.1363350824 | AP103: 0.109353731 | AQ103: 0.0823884452 | AR103: 0.05542315939 | AS103: 0.02845787359 | AT103: 0.01526872447 | AU103: 0.008801673902 | AV103: 0.002334623337 | AW103: 3.624331695e-09 | AX103: 3.624331695e-09 | AY103: 3.624331695e-09 | AZ103: 3.624331695e-09 | BA103: 3.624331695e-09 | BB103: 3.624331695e-09 | BC103: 3.624331695e-09 | BD103: 0 | BE103: 0 | BF103: 0 | BG103: 0 | BH103: 0 | BI103: 0 | BJ103: 0 | BK103: 0 | BL103: 0 | BM103: 0
A104: =$E$8 -> Fix | B104: =$C$8 -> USD_2 | E104: 0.007575468389 | F104: 3.511529047 | G104: 3.320975327 | H104: 3.145618913 | I104: 2.974556514 | J104: 2.803412236 | K104: 2.632206549 | L104: 2.460939454 | M104: 2.289276286 | N104: 2.117531239 | O104: 1.945745253 | P104: 1.773877389 | Q104: 1.601818596 | R104: 1.430257444 | S104: 1.258634883 | T104: 1.086930444 | U104: 0.9151441271 | V104: 0.7432759313 | W104: 0.5713258566 | X104: 0.3992939042 | Y104: 0.227221012 | Z104: 0.2000759378 | AA104: 0.1768815021 | AB104: 0.1536870664 | AC104: 0.1304926307 | AD104: 0.107298195 | AE104: 0.07713808724 | AF104: 0.05526141061 | AG104: 0.03508725513 | AH104: 0.01491309965 | AI104: 1.738517312e-15 | AJ104: 1.738517312e-15 | AK104: 1.738517312e-15 | AL104: 1.738517312e-15 | AM104: 1.738517312e-15 | AN104: 1.738517312e-15 | AO104: 1.738517312e-15 | AP104: 1.738517312e-15 | AQ104: 1.738517312e-15 | AR104: 1.738517312e-15 | AS104: 1.738517312e-15 | AT104: 1.738517312e-15 | AU104: 1.738517312e-15 | AV104: 1.738517312e-15 | AW104: 1.738517312e-15 | AX104: 1.738517312e-15 | AY104: 1.738517312e-15 | AZ104: 1.738517312e-15 | BA104: 1.738517312e-15 | BB104: 1.738517312e-15 | BC104: 1.738517312e-15 | BD104: 0 | BE104: 0 | BF104: 0 | BG104: 0 | BH104: 0 | BI104: 0 | BJ104: 0 | BK104: 0 | BL104: 0 | BM104: 0
A105: =$E$9 -> Fix | B105: =$C$9 -> USD_3 | E105: 0.04805391887 | F105: 1.887531244 | G105: 0.5595621584 | H105: 0.2737200353 | I105: 0.2737200353 | J105: 0.2585133666 | K105: 0.243306698 | L105: 0.2281000294 | M105: 0.2128933608 | N105: 0.1976866921 | O105: 0.1824800235 | P105: 0.1672733549 | Q105: 0.1520666863 | R105: 0.1368600176 | S105: 0.121653349 | T105: 0.1064466804 | U105: 0.09124001175 | V105: 0.07603334313 | W105: 0.0608266745 | X105: 0.04562000588 | Y105: 0.03041333725 | Z105: 0.01520666863 | AA105: 1.002743375e-16 | AB105: 1.002743375e-16 | AC105: 1.002743375e-16 | AD105: 1.002743375e-16 | AE105: 1.002743375e-16 | AF105: 1.002743375e-16 | AG105: 1.002743375e-16 | AH105: 1.002743375e-16 | AI105: 1.002743375e-16 | AJ105: 1.002743375e-16 | AK105: 1.002743375e-16 | AL105: 1.002743375e-16 | AM105: 1.002743375e-16 | AN105: 1.002743375e-16 | AO105: 1.002743375e-16 | AP105: 1.002743375e-16 | AQ105: 1.002743375e-16 | AR105: 1.002743375e-16 | AS105: 1.002743375e-16 | AT105: 1.002743375e-16 | AU105: 1.002743375e-16 | AV105: 1.002743375e-16 | AW105: 1.002743375e-16 | AX105: 1.002743375e-16 | AY105: 1.002743375e-16 | AZ105: 1.002743375e-16 | BA105: 1.002743375e-16 | BB105: 1.002743375e-16 | BC105: 1.002743375e-16 | BD105: 0 | BE105: 0 | BF105: 0 | BG105: 0 | BH105: 0 | BI105: 0 | BJ105: 0 | BK105: 0 | BL105: 0 | BM105: 0
A106: =$E$10 -> Var | B106: =$C$10 -> USD_4 | E106: 0.005 | F106: 0.3831580243 | G106: 0.2680441091 | H106: 0.1959109441 | I106: 0.126580929 | J106: 0.07858558754 | K106: 0.06013377697 | L106: 0.04560306276 | M106: 0.03434119609 | N106: 0.02307932943 | O106: 0.01181746277 | P106: 0.0005555961095 | Q106: 2.471978178e-18 | R106: 2.471978178e-18 | S106: 2.471978178e-18 | T106: 2.471978178e-18 | U106: 2.471978178e-18 | V106: 2.471978178e-18 | W106: 2.471978178e-18 | X106: 2.471978178e-18 | Y106: 2.471978178e-18 | Z106: 2.471978178e-18 | AA106: 2.471978178e-18 | AB106: 2.471978178e-18 | AC106: 2.471978178e-18 | AD106: 2.471978178e-18 | AE106: 2.471978178e-18 | AF106: 2.471978178e-18 | AG106: 2.471978178e-18 | AH106: 2.471978178e-18 | AI106: 2.471978178e-18 | AJ106: 2.471978178e-18 | AK106: 2.471978178e-18 | AL106: 2.471978178e-18 | AM106: 2.471978178e-18 | AN106: 2.471978178e-18 | AO106: 2.471978178e-18 | AP106: 2.471978178e-18 | AQ106: 2.471978178e-18 | AR106: 2.471978178e-18 | AS106: 2.471978178e-18 | AT106: 2.471978178e-18 | AU106: 2.471978178e-18 | AV106: 2.471978178e-18 | AW106: 2.471978178e-18 | AX106: 2.471978178e-18 | AY106: 2.471978178e-18 | AZ106: 2.471978178e-18 | BA106: 2.471978178e-18 | BB106: 2.471978178e-18 | BC106: 2.471978178e-18 | BD106: 0 | BE106: 0 | BF106: 0 | BG106: 0 | BH106: 0 | BI106: 0 | BJ106: 0 | BK106: 0 | BL106: 0 | BM106: 0
A107: =$E$11 -> Fix | B107: =$C$11 -> USD_5 | E107: 0.03000003747 | F107: 5.460375131 | G107: 4.20004244 | H107: 3.000037135 | I107: 1.80003183 | J107: 0.6000265251 | K107: 2.122010853e-05 | L107: 1.59150814e-05 | M107: 1.061005426e-05 | N107: 5.305027132e-06 | O107: -7.958078641e-21 | P107: -7.958078641e-21 | Q107: -7.958078641e-21 | R107: -7.958078641e-21 | S107: -7.958078641e-21 | T107: -7.958078641e-21 | U107: -7.958078641e-21 | V107: -7.958078641e-21 | W107: -7.958078641e-21 | X107: -7.958078641e-21 | Y107: -7.958078641e-21 | Z107: -7.958078641e-21 | AA107: -7.958078641e-21 | AB107: -7.958078641e-21 | AC107: -7.958078641e-21 | AD107: -7.958078641e-21 | AE107: -7.958078641e-21 | AF107: -7.958078641e-21 | AG107: -7.958078641e-21 | AH107: -7.958078641e-21 | AI107: -7.958078641e-21 | AJ107: -7.958078641e-21 | AK107: -7.958078641e-21 | AL107: -7.958078641e-21 | AM107: -7.958078641e-21 | AN107: -7.958078641e-21 | AO107: -7.958078641e-21 | AP107: -7.958078641e-21 | AQ107: -7.958078641e-21 | AR107: -7.958078641e-21 | AS107: -7.958078641e-21 | AT107: -7.958078641e-21 | AU107: -7.958078641e-21 | AV107: -7.958078641e-21 | AW107: -7.958078641e-21 | AX107: -7.958078641e-21 | AY107: -7.958078641e-21 | AZ107: -7.958078641e-21 | BA107: -7.958078641e-21 | BB107: -7.958078641e-21 | BC107: -7.958078641e-21 | BD107: 0 | BE107: 0 | BF107: 0 | BG107: 0 | BH107: 0 | BI107: 0 | BJ107: 0 | BK107: 0 | BL107: 0 | BM107: 0
A108: =$E$12 -> Var | B108: =$C$12 -> USD_6 | E108: 0.05422404981 | F108: 11.03104544 | G108: 8.759339916 | H108: 6.265114868 | I108: 4.690483728 | J108: 3.145852589 | K108: 2.122742779 | L108: 1.01937139 | M108: 0 | N108: 0 | O108: 0 | P108: 0 | Q108: 0 | R108: 0 | S108: 0 | T108: 0 | U108: 0 | V108: 0 | W108: 0 | X108: 0 | Y108: 0 | Z108: 0 | AA108: 0 | AB108: 0 | AC108: 0 | AD108: 0 | AE108: 0 | AF108: 0 | AG108: 0 | AH108: 0 | AI108: 0 | AJ108: 0 | AK108: 0 | AL108: 0 | AM108: 0 | AN108: 0 | AO108: 0 | AP108: 0 | AQ108: 0 | AR108: 0 | AS108: 0 | AT108: 0 | AU108: 0 | AV108: 0 | AW108: 0 | AX108: 0 | AY108: 0 | AZ108: 0 | BA108: 0 | BB108: 0 | BC108: 0 | BD108: 0 | BE108: 0 | BF108: 0 | BG108: 0 | BH108: 0 | BI108: 0 | BJ108: 0 | BK108: 0 | BL108: 0 | BM108: 0
A109: =$E$13 -> 0 | B109: =$C$13 -> USD_7 | E109: 0 | F109: 0 | G109: 0 | H109: 0 | I109: 0 | J109: 0 | K109: 0 | L109: 0 | M109: 0 | N109: 0 | O109: 0 | P109: 0 | Q109: 0 | R109: 0 | S109: 0 | T109: 0 | U109: 0 | V109: 0 | W109: 0 | X109: 0 | Y109: 0 | Z109: 0 | AA109: 0 | AB109: 0 | AC109: 0 | AD109: 0 | AE109: 0 | AF109: 0 | AG109: 0 | AH109: 0 | AI109: 0 | AJ109: 0 | AK109: 0 | AL109: 0 | AM109: 0 | AN109: 0 | AO109: 0 | AP109: 0 | AQ109: 0 | AR109: 0 | AS109: 0 | AT109: 0 | AU109: 0 | AV109: 0 | AW109: 0 | AX109: 0 | AY109: 0 | AZ109: 0 | BA109: 0 | BB109: 0 | BC109: 0 | BD109: 0 | BE109: 0 | BF109: 0 | BG109: 0 | BH109: 0 | BI109: 0 | BJ109: 0 | BK109: 0 | BL109: 0 | BM109: 0
A110: =$E$14 -> 0 | B110: =$C$14 -> USD_8 | E110: 0 | F110: 0 | G110: 0 | H110: 0 | I110: 0 | J110: 0 | K110: 0 | L110: 0 | M110: 0 | N110: 0 | O110: 0 | P110: 0 | Q110: 0 | R110: 0 | S110: 0 | T110: 0 | U110: 0 | V110: 0 | W110: 0 | X110: 0 | Y110: 0 | Z110: 0 | AA110: 0 | AB110: 0 | AC110: 0 | AD110: 0 | AE110: 0 | AF110: 0 | AG110: 0 | AH110: 0 | AI110: 0 | AJ110: 0 | AK110: 0 | AL110: 0 | AM110: 0 | AN110: 0 | AO110: 0 | AP110: 0 | AQ110: 0 | AR110: 0 | AS110: 0 | AT110: 0 | AU110: 0 | AV110: 0 | AW110: 0 | AX110: 0 | AY110: 0 | AZ110: 0 | BA110: 0 | BB110: 0 | BC110: 0 | BD110: 0 | BE110: 0 | BF110: 0 | BG110: 0 | BH110: 0 | BI110: 0 | BJ110: 0 | BK110: 0 | BL110: 0 | BM110: 0
A111: =$E$15 -> 0 | B111: =$C$15 -> USD_9 | E111: 0 | F111: 0 | G111: 0 | H111: 0 | I111: 0 | J111: 0 | K111: 0 | L111: 0 | M111: 0 | N111: 0 | O111: 0 | P111: 0 | Q111: 0 | R111: 0 | S111: 0 | T111: 0 | U111: 0 | V111: 0 | W111: 0 | X111: 0 | Y111: 0 | Z111: 0 | AA111: 0 | AB111: 0 | AC111: 0 | AD111: 0 | AE111: 0 | AF111: 0 | AG111: 0 | AH111: 0 | AI111: 0 | AJ111: 0 | AK111: 0 | AL111: 0 | AM111: 0 | AN111: 0 | AO111: 0 | AP111: 0 | AQ111: 0 | AR111: 0 | AS111: 0 | AT111: 0 | AU111: 0 | AV111: 0 | AW111: 0 | AX111: 0 | AY111: 0 | AZ111: 0 | BA111: 0 | BB111: 0 | BC111: 0 | BD111: 0 | BE111: 0 | BF111: 0 | BG111: 0 | BH111: 0 | BI111: 0 | BJ111: 0 | BK111: 0 | BL111: 0 | BM111: 0
A112: =$E$16 -> 0 | B112: =$C$16 -> USD_10 | E112: 0 | F112: 0 | G112: 0 | H112: 0 | I112: 0 | J112: 0 | K112: 0 | L112: 0 | M112: 0 | N112: 0 | O112: 0 | P112: 0 | Q112: 0 | R112: 0 | S112: 0 | T112: 0 | U112: 0 | V112: 0 | W112: 0 | X112: 0 | Y112: 0 | Z112: 0 | AA112: 0 | AB112: 0 | AC112: 0 | AD112: 0 | AE112: 0 | AF112: 0 | AG112: 0 | AH112: 0 | AI112: 0 | AJ112: 0 | AK112: 0 | AL112: 0 | AM112: 0 | AN112: 0 | AO112: 0 | AP112: 0 | AQ112: 0 | AR112: 0 | AS112: 0 | AT112: 0 | AU112: 0 | AV112: 0 | AW112: 0 | AX112: 0 | AY112: 0 | AZ112: 0 | BA112: 0 | BB112: 0 | BC112: 0 | BD112: 0 | BE112: 0 | BF112: 0 | BG112: 0 | BH112: 0 | BI112: 0 | BJ112: 0 | BK112: 0 | BL112: 0 | BM112: 0
A113: =$E$17 -> T-bills | B113: =$C$17 -> UTP_11 | E113: 0.13 | F113: 33.20464053 | G113: 0 | H113: 0 | I113: 0 | J113: 0 | K113: 0 | L113: 0 | M113: 0 | N113: 0 | O113: 0 | P113: 0 | Q113: 0 | R113: 0 | S113: 0 | T113: 0 | U113: 0 | V113: 0 | W113: 0 | X113: 0 | Y113: 0 | Z113: 0 | AA113: 0 | AB113: 0 | AC113: 0 | AD113: 0 | AE113: 0 | AF113: 0 | AG113: 0 | AH113: 0 | AI113: 0 | AJ113: 0 | AK113: 0 | AL113: 0 | AM113: 0 | AN113: 0 | AO113: 0 | AP113: 0 | AQ113: 0 | AR113: 0 | AS113: 0 | AT113: 0 | AU113: 0 | AV113: 0 | AW113: 0 | AX113: 0 | AY113: 0 | AZ113: 0 | BA113: 0 | BB113: 0 | BC113: 0 | BD113: 0 | BE113: 0 | BF113: 0 | BG113: 0 | BH113: 0 | BI113: 0 | BJ113: 0 | BK113: 0 | BL113: 0 | BM113: 0
A114: =$E$18 -> Fix | B114: =$C$18 -> UTP_12 | E114: 0.139331612 | F114: 2.096367457 | G114: 2.096367457 | H114: 1.186340231 | I114: 0 | J114: 0 | K114: 0 | L114: 0 | M114: 0 | N114: 0 | O114: 0 | P114: 0 | Q114: 0 | R114: 0 | S114: 0 | T114: 0 | U114: 0 | V114: 0 | W114: 0 | X114: 0 | Y114: 0 | Z114: 0 | AA114: 0 | AB114: 0 | AC114: 0 | AD114: 0 | AE114: 0 | AF114: 0 | AG114: 0 | AH114: 0 | AI114: 0 | AJ114: 0 | AK114: 0 | AL114: 0 | AM114: 0 | AN114: 0 | AO114: 0 | AP114: 0 | AQ114: 0 | AR114: 0 | AS114: 0 | AT114: 0 | AU114: 0 | AV114: 0 | AW114: 0 | AX114: 0 | AY114: 0 | AZ114: 0 | BA114: 0 | BB114: 0 | BC114: 0 | BD114: 0 | BE114: 0 | BF114: 0 | BG114: 0 | BH114: 0 | BI114: 0 | BJ114: 0 | BK114: 0 | BL114: 0 | BM114: 0
A115: =$E$19 -> Fix | B115: =$C$19 -> UTP_13 | E115: 0.1507538375 | F115: 51.15737682 | G115: 51.15737682 | H115: 51.15737682 | I115: 51.15737682 | J115: 51.15737682 | K115: 26.08097904 | L115: 26.08097904 | M115: 0 | N115: 0 | O115: 0 | P115: 0 | Q115: 0 | R115: 0 | S115: 0 | T115: 0 | U115: 0 | V115: 0 | W115: 0 | X115: 0 | Y115: 0 | Z115: 0 | AA115: 0 | AB115: 0 | AC115: 0 | AD115: 0 | AE115: 0 | AF115: 0 | AG115: 0 | AH115: 0 | AI115: 0 | AJ115: 0 | AK115: 0 | AL115: 0 | AM115: 0 | AN115: 0 | AO115: 0 | AP115: 0 | AQ115: 0 | AR115: 0 | AS115: 0 | AT115: 0 | AU115: 0 | AV115: 0 | AW115: 0 | AX115: 0 | AY115: 0 | AZ115: 0 | BA115: 0 | BB115: 0 | BC115: 0 | BD115: 0 | BE115: 0 | BF115: 0 | BG115: 0 | BH115: 0 | BI115: 0 | BJ115: 0 | BK115: 0 | BL115: 0 | BM115: 0
A116: =$E$20 -> Fix | B116: =$C$20 -> UTP_14 | E116: 0.165 | F116: 6.5087 | G116: 6.5087 | H116: 6.5087 | I116: 6.5087 | J116: 6.5087 | K116: 6.5087 | L116: 6.5087 | M116: 6.5087 | N116: 6.5087 | O116: 6.5087 | P116: 0 | Q116: 0 | R116: 0 | S116: 0 | T116: 0 | U116: 0 | V116: 0 | W116: 0 | X116: 0 | Y116: 0 | Z116: 0 | AA116: 0 | AB116: 0 | AC116: 0 | AD116: 0 | AE116: 0 | AF116: 0 | AG116: 0 | AH116: 0 | AI116: 0 | AJ116: 0 | AK116: 0 | AL116: 0 | AM116: 0 | AN116: 0 | AO116: 0 | AP116: 0 | AQ116: 0 | AR116: 0 | AS116: 0 | AT116: 0 | AU116: 0 | AV116: 0 | AW116: 0 | AX116: 0 | AY116: 0 | AZ116: 0 | BA116: 0 | BB116: 0 | BC116: 0 | BD116: 0 | BE116: 0 | BF116: 0 | BG116: 0 | BH116: 0 | BI116: 0 | BJ116: 0 | BK116: 0 | BL116: 0 | BM116: 0
A117: =$E$21 -> 0 | B117: =$C$21 -> UTP_15 | E117: 0 | F117: 0 | G117: 0 | H117: 0 | I117: 0 | J117: 0 | K117: 0 | L117: 0 | M117: 0 | N117: 0 | O117: 0 | P117: 0 | Q117: 0 | R117: 0 | S117: 0 | T117: 0 | U117: 0 | V117: 0 | W117: 0 | X117: 0 | Y117: 0 | Z117: 0 | AA117: 0 | AB117: 0 | AC117: 0 | AD117: 0 | AE117: 0 | AF117: 0 | AG117: 0 | AH117: 0 | AI117: 0 | AJ117: 0 | AK117: 0 | AL117: 0 | AM117: 0 | AN117: 0 | AO117: 0 | AP117: 0 | AQ117: 0 | AR117: 0 | AS117: 0 | AT117: 0 | AU117: 0 | AV117: 0 | AW117: 0 | AX117: 0 | AY117: 0 | AZ117: 0 | BA117: 0 | BB117: 0 | BC117: 0 | BD117: 0 | BE117: 0 | BF117: 0 | BG117: 0 | BH117: 0 | BI117: 0 | BJ117: 0 | BK117: 0 | BL117: 0 | BM117: 0
A118: =$E$22 -> 0 | B118: =$C$22 -> UTP_16 | E118: 0 | F118: 0 | G118: 0 | H118: 0 | I118: 0 | J118: 0 | K118: 0 | L118: 0 | M118: 0 | N118: 0 | O118: 0 | P118: 0 | Q118: 0 | R118: 0 | S118: 0 | T118: 0 | U118: 0 | V118: 0 | W118: 0 | X118: 0 | Y118: 0 | Z118: 0 | AA118: 0 | AB118: 0 | AC118: 0 | AD118: 0 | AE118: 0 | AF118: 0 | AG118: 0 | AH118: 0 | AI118: 0 | AJ118: 0 | AK118: 0 | AL118: 0 | AM118: 0 | AN118: 0 | AO118: 0 | AP118: 0 | AQ118: 0 | AR118: 0 | AS118: 0 | AT118: 0 | AU118: 0 | AV118: 0 | AW118: 0 | AX118: 0 | AY118: 0 | AZ118: 0 | BA118: 0 | BB118: 0 | BC118: 0
A119: =$E$23 -> 0 | B119: =$C$23 -> UTP_17 | E119: 0 | F119: 0 | G119: 0 | H119: 0 | I119: 0 | J119: 0 | K119: 0 | L119: 0 | M119: 0 | N119: 0 | O119: 0 | P119: 0 | Q119: 0 | R119: 0 | S119: 0 | T119: 0 | U119: 0 | V119: 0 | W119: 0 | X119: 0 | Y119: 0 | Z119: 0 | AA119: 0 | AB119: 0 | AC119: 0 | AD119: 0 | AE119: 0 | AF119: 0 | AG119: 0 | AH119: 0 | AI119: 0 | AJ119: 0 | AK119: 0 | AL119: 0 | AM119: 0 | AN119: 0 | AO119: 0 | AP119: 0 | AQ119: 0 | AR119: 0 | AS119: 0 | AT119: 0 | AU119: 0 | AV119: 0 | AW119: 0 | AX119: 0 | AY119: 0 | AZ119: 0 | BA119: 0 | BB119: 0 | BC119: 0
A120: =$E$24 -> 0 | B120: =$C$24 -> UTP_18 | E120: 0 | F120: 0 | G120: 0 | H120: 0 | I120: 0 | J120: 0 | K120: 0 | L120: 0 | M120: 0 | N120: 0 | O120: 0 | P120: 0 | Q120: 0 | R120: 0 | S120: 0 | T120: 0 | U120: 0 | V120: 0 | W120: 0 | X120: 0 | Y120: 0 | Z120: 0 | AA120: 0 | AB120: 0 | AC120: 0 | AD120: 0 | AE120: 0 | AF120: 0 | AG120: 0 | AH120: 0 | AI120: 0 | AJ120: 0 | AK120: 0 | AL120: 0 | AM120: 0 | AN120: 0 | AO120: 0 | AP120: 0 | AQ120: 0 | AR120: 0 | AS120: 0 | AT120: 0 | AU120: 0 | AV120: 0 | AW120: 0 | AX120: 0 | AY120: 0 | AZ120: 0 | BA120: 0 | BB120: 0 | BC120: 0
A121: =$E$25 -> 0 | B121: =$C$25 -> UTP_19 | E121: 0 | F121: 0 | G121: 0 | H121: 0 | I121: 0 | J121: 0 | K121: 0 | L121: 0 | M121: 0 | N121: 0 | O121: 0 | P121: 0 | Q121: 0 | R121: 0 | S121: 0 | T121: 0 | U121: 0 | V121: 0 | W121: 0 | X121: 0 | Y121: 0 | Z121: 0 | AA121: 0 | AB121: 0 | AC121: 0 | AD121: 0 | AE121: 0 | AF121: 0 | AG121: 0 | AH121: 0 | AI121: 0 | AJ121: 0 | AK121: 0 | AL121: 0 | AM121: 0 | AN121: 0 | AO121: 0 | AP121: 0 | AQ121: 0 | AR121: 0 | AS121: 0 | AT121: 0 | AU121: 0 | AV121: 0 | AW121: 0 | AX121: 0 | AY121: 0 | AZ121: 0 | BA121: 0 | BB121: 0 | BC121: 0
A122: =$E$26 -> Var | B122: =$C$26 -> IDX_20 | E122: 0 | F122: 0 | G122: 0 | H122: 0 | I122: 0 | J122: 0 | K122: 0 | L122: 0 | M122: 0 | N122: 0 | O122: 0 | P122: 0 | Q122: 0 | R122: 0 | S122: 0 | T122: 0 | U122: 0 | V122: 0 | W122: 0 | X122: 0 | Y122: 0 | Z122: 0 | AA122: 0 | AB122: 0 | AC122: 0 | AD122: 0 | AE122: 0 | AF122: 0 | AG122: 0 | AH122: 0 | AI122: 0 | AJ122: 0 | AK122: 0 | AL122: 0 | AM122: 0 | AN122: 0 | AO122: 0 | AP122: 0 | AQ122: 0 | AR122: 0 | AS122: 0 | AT122: 0 | AU122: 0 | AV122: 0 | AW122: 0 | AX122: 0 | AY122: 0 | AZ122: 0 | BA122: 0 | BB122: 0 | BC122: 0
B125: ="Total Debt Service in "&IF(B14=TRUE,B11,L7) -> Total Debt Service in USD | E125: =$B$7 -> 2017 | F125: =E125+1 -> 2018 | G125: 2019 | H125: 2020 | I125: 2021 | J125: 2022 | K125: 2023 | L125: 2024 | M125: 2025 | N125: 2026 | O125: 2027 | P125: 2028 | Q125: 2029 | R125: 2030 | S125: 2031 | T125: 2032 | U125: 2033 | V125: 2034 | W125: 2035 | X125: 2036 | Y125: 2037 | Z125: 2038 | AA125: 2039 | AB125: 2040 | AC125: 2041 | AD125: 2042 | AE125: 2043 | AF125: 2044 | AG125: 2045 | AH125: 2046 | AI125: 2047 | AJ125: 2048 | AK125: 2049 | AL125: =AK125+1 -> 2050 | AM125: 2051 | AN125: 2052 | AO125: 2053 | AP125: 2054 | AQ125: 2055 | AR125: 2056 | AS125: 2057 | AT125: 2058 | AU125: 2059 | AV125: 2060 | AW125: 2061 | AX125: 2062 | AY125: 2063 | AZ125: 2064 | BA125: 2065 | BB125: 2066 | BC125: =BB125+1 -> 2067 | BD125: 2068 | BE125: 2069 | BF125: 2070 | BG125: 2071 | BH125: 2072 | BI125: 2073 | BJ125: 2074 | BK125: 2075 | BL125: 2076 | BM125: 2077
A126: =$E$7 -> Fix | B126: =$C$7 -> USD_1 | F126: =F57+F103 -> 4.637637938 | G126: 4.804217654 | H126: 6.346289656 | I126: 7.096508841 | J126: 6.702420662 | K126: 6.657757659 | L126: 7.503322749 | M126: 6.774887272 | N126: 6.829948028 | O126: 6.884466239 | P126: 7.257376814 | Q126: 7.211917897 | R126: 7.166421755 | S126: 7.042151275 | T126: 7.001964268 | U126: 6.957023546 | V126: 7.172013166 | W126: 7.124945506 | X126: 7.078056637 | Y126: 7.031167768 | Z126: 6.9902894 | AA126: 6.68342511 | AB126: 6.63844064 | AC126: 6.59345617 | AD126: 6.5484717 | AE126: 6.50348723 | AF126: 6.458502761 | AG126: 6.079096267 | AH126: 5.587039932 | AI126: 5.237245827 | AJ126: 5.232950316 | AK126: 5.159743759 | AL126: =AL57+AL103 -> 4.114804614 | AM126: 4.323371177 | AN126: 3.76082995 | AO126: 3.733848598 | AP126: 3.704725172 | AQ126: 3.677759886 | AR126: 3.6507946 | AS126: 1.78701109 | AT126: 0.8775421331 | AU126: 0.8710750825 | AV126: 0.3136172517 | AW126: 3.624331695e-09 | AX126: 3.624331695e-09 | AY126: 3.624331695e-09 | AZ126: 3.624331695e-09 | BA126: 3.624331695e-09 | BB126: 3.624331695e-09 | BC126: =BC57+BC103 -> 3.624331695e-09 | BD126: 0 | BE126: 0 | BF126: 0 | BG126: 0 | BH126: 0 | BI126: =BI57+BI103 -> 0 | BJ126: 0 | BK126: 0 | BL126: 0 | BM126: 0
A127: =$E$8 -> Fix | B127: =$C$8 -> USD_2 | F127: =F58+F104 -> 28.70103141 | G127: 26.481441 | H127: 25.73218459 | I127: 25.56931005 | J127: 25.40430667 | K127: 25.23924188 | L127: 25.11805514 | M127: 24.95457985 | N127: 24.78692869 | O127: 24.62333057 | P127: 24.47419059 | Q127: 24.23373269 | R127: 24.0683124 | S127: 23.9048777 | T127: 23.74136105 | U127: 23.5777626 | V127: 23.4140823 | W127: 23.25031999 | X127: 23.08238202 | Y127: 3.714876284 | Z127: 3.292667366 | AA127: 3.269472931 | AB127: 3.246278495 | AC127: 3.223084059 | AD127: 4.128645895 | AE127: 2.994028304 | AF127: 2.745148808 | AG127: 2.724974653 | AH127: 2.003326386 | AI127: 1.738517312e-15 | AJ127: 1.738517312e-15 | AK127: 1.738517312e-15 | AL127: =AL58+AL104 -> 1.738517312e-15 | AM127: 1.738517312e-15 | AN127: 1.738517312e-15 | AO127: 1.738517312e-15 | AP127: 1.738517312e-15 | AQ127: 1.738517312e-15 | AR127: 1.738517312e-15 | AS127: 1.738517312e-15 | AT127: 1.738517312e-15 | AU127: 1.738517312e-15 | AV127: 1.738517312e-15 | AW127: 1.738517312e-15 | AX127: 1.738517312e-15 | AY127: 1.738517312e-15 | AZ127: 1.738517312e-15 | BA127: 1.738517312e-15 | BB127: 1.738517312e-15 | BC127: =BC58+BC104 -> 1.738517312e-15 | BD127: 0 | BE127: 0 | BF127: 0 | BG127: 0 | BH127: 0 | BI127: 0 | BJ127: 0 | BK127: 0 | BL127: 0 | BM127: 0
A128: =$E$9 -> Fix | B128: =$C$9 -> USD_3 | F128: =F59+F105 -> 31.20252209 | G128: 6.869542803 | H128: 0.2737200353 | I128: 0.4767463187 | J128: 0.46153965 | K128: 0.4463329814 | L128: 0.4311263128 | M128: 0.4159196442 | N128: 0.4007129755 | O128: 0.3855063069 | P128: 0.3702996383 | Q128: 0.3550929696 | R128: 0.339886301 | S128: 0.3246796324 | T128: 0.3094729638 | U128: 0.2942662951 | V128: 0.2790596265 | W128: 0.2638529579 | X128: 0.2486462893 | Y128: 0.2334396206 | Z128: 0.218232952 | AA128: 1.002743375e-16 | AB128: 1.002743375e-16 | AC128: 1.002743375e-16 | AD128: 1.002743375e-16 | AE128: 1.002743375e-16 | AF128: 1.002743375e-16 | AG128: 1.002743375e-16 | AH128: 1.002743375e-16 | AI128: 1.002743375e-16 | AJ128: 1.002743375e-16 | AK128: 1.002743375e-16 | AL128: =AL59+AL105 -> 1.002743375e-16 | AM128: 1.002743375e-16 | AN128: 1.002743375e-16 | AO128: 1.002743375e-16 | AP128: 1.002743375e-16 | AQ128: 1.002743375e-16 | AR128: 1.002743375e-16 | AS128: 1.002743375e-16 | AT128: 1.002743375e-16 | AU128: 1.002743375e-16 | AV128: 1.002743375e-16 | AW128: 1.002743375e-16 | AX128: 1.002743375e-16 | AY128: 1.002743375e-16 | AZ128: 1.002743375e-16 | BA128: 1.002743375e-16 | BB128: 1.002743375e-16 | BC128: =BC59+BC105 -> 1.002743375e-16 | BD128: 0 | BE128: 0 | BF128: 0 | BG128: 0 | BH128: 0 | BI128: 0 | BJ128: 0 | BK128: 0 | BL128: 0 | BM128: 0
A129: =$E$10 -> Var | B129: =$C$10 -> USD_4 | F129: =F60+F106 -> 23.40594106 | G129: 14.69467711 | H129: 14.06191395 | I129: 9.725649226 | J129: 3.768947702 | K129: 2.966276619 | L129: 2.297976395 | M129: 2.286714528 | N129: 2.275452662 | O129: 2.264190795 | P129: 0.111674818 | Q129: 2.471978178e-18 | R129: 2.471978178e-18 | S129: 2.471978178e-18 | T129: 2.471978178e-18 | U129: 2.471978178e-18 | V129: 2.471978178e-18 | W129: 2.471978178e-18 | X129: 2.471978178e-18 | Y129: 2.471978178e-18 | Z129: 2.471978178e-18 | AA129: 2.471978178e-18 | AB129: 2.471978178e-18 | AC129: 2.471978178e-18 | AD129: 2.471978178e-18 | AE129: 2.471978178e-18 | AF129: 2.471978178e-18 | AG129: 2.471978178e-18 | AH129: 2.471978178e-18 | AI129: 2.471978178e-18 | AJ129: 2.471978178e-18 | AK129: 2.471978178e-18 | AL129: =AL60+AL106 -> 2.471978178e-18 | AM129: 2.471978178e-18 | AN129: 2.471978178e-18 | AO129: 2.471978178e-18 | AP129: 2.471978178e-18 | AQ129: 2.471978178e-18 | AR129: 2.471978178e-18 | AS129: 2.471978178e-18 | AT129: 2.471978178e-18 | AU129: 2.471978178e-18 | AV129: 2.471978178e-18 | AW129: 2.471978178e-18 | AX129: 2.471978178e-18 | AY129: 2.471978178e-18 | AZ129: 2.471978178e-18 | BA129: 2.471978178e-18 | BB129: 2.471978178e-18 | BC129: =BC60+BC106 -> 2.471978178e-18 | BD129: 0 | BE129: 0 | BF129: 0 | BG129: 0 | BH129: 0 | BI129: 0 | BJ129: 0 | BK129: 0 | BL129: 0 | BM129: 0
A130: =$E$11 -> Fix | B130: =$C$11 -> USD_5 | F130: =F61+F107 -> 47.47143955 | G130: 44.20019401 | H130: 43.00018871 | I130: 41.8001834 | J130: 20.6001781 | K130: 0.0001727923123 | L130: 0.0001674872852 | M130: 0.000162182258 | N130: 0.0001568772309 | O130: -7.958078641e-21 | P130: -7.958078641e-21 | Q130: -7.958078641e-21 | R130: -7.958078641e-21 | S130: -7.958078641e-21 | T130: -7.958078641e-21 | U130: -7.958078641e-21 | V130: -7.958078641e-21 | W130: -7.958078641e-21 | X130: -7.958078641e-21 | Y130: -7.958078641e-21 | Z130: -7.958078641e-21 | AA130: -7.958078641e-21 | AB130: -7.958078641e-21 | AC130: -7.958078641e-21 | AD130: -7.958078641e-21 | AE130: -7.958078641e-21 | AF130: -7.958078641e-21 | AG130: -7.958078641e-21 | AH130: -7.958078641e-21 | AI130: -7.958078641e-21 | AJ130: -7.958078641e-21 | AK130: -7.958078641e-21 | AL130: =AL61+AL107 -> -7.958078641e-21 | AM130: -7.958078641e-21 | AN130: -7.958078641e-21 | AO130: -7.958078641e-21 | AP130: -7.958078641e-21 | AQ130: -7.958078641e-21 | AR130: -7.958078641e-21 | AS130: -7.958078641e-21 | AT130: -7.958078641e-21 | AU130: -7.958078641e-21 | AV130: -7.958078641e-21 | AW130: -7.958078641e-21 | AX130: -7.958078641e-21 | AY130: -7.958078641e-21 | AZ130: -7.958078641e-21 | BA130: -7.958078641e-21 | BB130: -7.958078641e-21 | BC130: =BC61+BC107 -> -7.958078641e-21 | BD130: 0 | BE130: 0 | BF130: 0 | BG130: 0 | BH130: 0 | BI130: 0 | BJ130: 0 | BK130: 0 | BL130: 0 | BM130: 0
A131: =$E$12 -> Var | B131: =$C$12 -> USD_6 | F131: =F62+F108 -> 48.89280411 | G131: 60.12165619 | H131: 37.40491659 | I131: 35.33028545 | J131: 20.19768275 | K131: 20.51226594 | L131: 18.00889455 | M131: 0 | N131: 0 | O131: 0 | P131: 0 | Q131: 0 | R131: 0 | S131: 0 | T131: 0 | U131: 0 | V131: 0 | W131: 0 | X131: 0 | Y131: 0 | Z131: 0 | AA131: 0 | AB131: 0 | AC131: 0 | AD131: 0 | AE131: 0 | AF131: 0 | AG131: 0 | AH131: 0 | AI131: 0 | AJ131: 0 | AK131: 0 | AL131: =AL62+AL108 -> 0 | AM131: 0 | AN131: 0 | AO131: 0 | AP131: 0 | AQ131: 0 | AR131: 0 | AS131: 0 | AT131: 0 | AU131: 0 | AV131: 0 | AW131: 0 | AX131: 0 | AY131: 0 | AZ131: 0 | BA131: 0 | BB131: 0 | BC131: =BC62+BC108 -> 0 | BD131: 0 | BE131: 0 | BF131: 0 | BG131: 0 | BH131: 0 | BI131: 0 | BJ131: 0 | BK131: 0 | BL131: 0 | BM131: 0
A132: =$E$13 -> 0 | B132: =$C$13 -> USD_7 | F132: =F63+F109 -> 0 | G132: 0 | H132: 0 | I132: 0 | J132: 0 | K132: 0 | L132: 0 | M132: 0 | N132: 0 | O132: 0 | P132: 0 | Q132: 0 | R132: 0 | S132: 0 | T132: 0 | U132: 0 | V132: 0 | W132: 0 | X132: 0 | Y132: 0 | Z132: 0 | AA132: 0 | AB132: 0 | AC132: 0 | AD132: 0 | AE132: 0 | AF132: 0 | AG132: 0 | AH132: 0 | AI132: 0 | AJ132: 0 | AK132: 0 | AL132: =AL63+AL109 -> 0 | AM132: 0 | AN132: 0 | AO132: 0 | AP132: 0 | AQ132: 0 | AR132: 0 | AS132: 0 | AT132: 0 | AU132: 0 | AV132: 0 | AW132: 0 | AX132: 0 | AY132: 0 | AZ132: 0 | BA132: 0 | BB132: 0 | BC132: =BC63+BC109 -> 0 | BD132: 0 | BE132: 0 | BF132: 0 | BG132: 0 | BH132: 0 | BI132: 0 | BJ132: 0 | BK132: 0 | BL132: 0 | BM132: 0
A133: =$E$14 -> 0 | B133: =$C$14 -> USD_8 | F133: =F64+F110 -> 0 | G133: 0 | H133: 0 | I133: 0 | J133: 0 | K133: 0 | L133: 0 | M133: 0 | N133: 0 | O133: 0 | P133: 0 | Q133: 0 | R133: 0 | S133: 0 | T133: 0 | U133: 0 | V133: 0 | W133: 0 | X133: 0 | Y133: 0 | Z133: 0 | AA133: 0 | AB133: 0 | AC133: 0 | AD133: 0 | AE133: 0 | AF133: 0 | AG133: 0 | AH133: 0 | AI133: 0 | AJ133: 0 | AK133: 0 | AL133: =AL64+AL110 -> 0 | AM133: 0 | AN133: 0 | AO133: 0 | AP133: 0 | AQ133: 0 | AR133: 0 | AS133: 0 | AT133: 0 | AU133: 0 | AV133: 0 | AW133: 0 | AX133: 0 | AY133: 0 | AZ133: 0 | BA133: 0 | BB133: 0 | BC133: =BC64+BC110 -> 0 | BD133: 0 | BE133: 0 | BF133: 0 | BG133: 0 | BH133: 0 | BI133: 0 | BJ133: 0 | BK133: 0 | BL133: 0 | BM133: 0
A134: =$E$15 -> 0 | B134: =$C$15 -> USD_9 | F134: =F65+F111 -> 0 | G134: 0 | H134: 0 | I134: 0 | J134: 0 | K134: 0 | L134: 0 | M134: 0 | N134: 0 | O134: 0 | P134: 0 | Q134: 0 | R134: 0 | S134: 0 | T134: 0 | U134: 0 | V134: 0 | W134: 0 | X134: 0 | Y134: 0 | Z134: 0 | AA134: 0 | AB134: 0 | AC134: 0 | AD134: 0 | AE134: 0 | AF134: 0 | AG134: 0 | AH134: 0 | AI134: 0 | AJ134: 0 | AK134: 0 | AL134: =AL65+AL111 -> 0 | AM134: 0 | AN134: 0 | AO134: 0 | AP134: 0 | AQ134: 0 | AR134: 0 | AS134: 0 | AT134: 0 | AU134: 0 | AV134: 0 | AW134: 0 | AX134: 0 | AY134: 0 | AZ134: 0 | BA134: 0 | BB134: 0 | BC134: =BC65+BC111 -> 0 | BD134: 0 | BE134: 0 | BF134: 0 | BG134: 0 | BH134: 0 | BI134: 0 | BJ134: 0 | BK134: 0 | BL134: 0 | BM134: 0
A135: =$E$16 -> 0 | B135: =$C$16 -> USD_10 | F135: =F66+F112 -> 0 | G135: 0 | H135: 0 | I135: 0 | J135: 0 | K135: 0 | L135: 0 | M135: 0 | N135: 0 | O135: 0 | P135: 0 | Q135: 0 | R135: 0 | S135: 0 | T135: 0 | U135: 0 | V135: 0 | W135: 0 | X135: 0 | Y135: 0 | Z135: 0 | AA135: 0 | AB135: 0 | AC135: 0 | AD135: 0 | AE135: 0 | AF135: 0 | AG135: 0 | AH135: 0 | AI135: 0 | AJ135: 0 | AK135: 0 | AL135: =AL66+AL112 -> 0 | AM135: 0 | AN135: 0 | AO135: 0 | AP135: 0 | AQ135: 0 | AR135: 0 | AS135: 0 | AT135: 0 | AU135: 0 | AV135: 0 | AW135: 0 | AX135: 0 | AY135: 0 | AZ135: 0 | BA135: 0 | BB135: 0 | BC135: =BC66+BC112 -> 0 | BD135: 0 | BE135: 0 | BF135: 0 | BG135: 0 | BH135: 0 | BI135: 0 | BJ135: 0 | BK135: 0 | BL135: 0 | BM135: 0
A136: =$E$17 -> T-bills | B136: =$C$17 -> UTP_11 | F136: =F67+F113 -> 288.6249523 | G136: 0 | H136: 0 | I136: 0 | J136: 0 | K136: 0 | L136: 0 | M136: 0 | N136: 0 | O136: 0 | P136: 0 | Q136: 0 | R136: 0 | S136: 0 | T136: 0 | U136: 0 | V136: 0 | W136: 0 | X136: 0 | Y136: 0 | Z136: 0 | AA136: 0 | AB136: 0 | AC136: 0 | AD136: 0 | AE136: 0 | AF136: 0 | AG136: 0 | AH136: 0 | AI136: 0 | AJ136: 0 | AK136: 0 | AL136: 0 | AM136: 0 | AN136: 0 | AO136: 0 | AP136: 0 | AQ136: 0 | AR136: 0 | AS136: 0 | AT136: 0 | AU136: 0 | AV136: 0 | AW136: 0 | AX136: 0 | AY136: 0 | AZ136: 0 | BA136: 0 | BB136: 0 | BC136: =BC67+BC113 -> 0 | BD136: 0 | BE136: 0 | BF136: 0 | BG136: 0 | BH136: 0 | BI136: 0 | BJ136: 0 | BK136: 0 | BL136: 0 | BM136: 0
A137: =$E$18 -> Fix | B137: =$C$18 -> UTP_12 | F137: =F68+F114 -> 2.096367457 | G137: 8.787744124 | H137: 9.540848897 | I137: 0 | J137: 0 | K137: 0 | L137: 0 | M137: 0 | N137: 0 | O137: 0 | P137: 0 | Q137: 0 | R137: 0 | S137: 0 | T137: 0 | U137: 0 | V137: 0 | W137: 0 | X137: 0 | Y137: 0 | Z137: 0 | AA137: 0 | AB137: 0 | AC137: 0 | AD137: 0 | AE137: 0 | AF137: 0 | AG137: 0 | AH137: 0 | AI137: 0 | AJ137: 0 | AK137: 0 | AL137: 0 | AM137: 0 | AN137: 0 | AO137: 0 | AP137: 0 | AQ137: 0 | AR137: 0 | AS137: 0 | AT137: 0 | AU137: 0 | AV137: 0 | AW137: 0 | AX137: 0 | AY137: 0 | AZ137: 0 | BA137: 0 | BB137: 0 | BC137: =BC68+BC114 -> 0 | BD137: 0 | BE137: 0 | BF137: 0 | BG137: 0 | BH137: 0 | BI137: 0 | BJ137: 0 | BK137: 0 | BL137: 0 | BM137: 0
A138: =$E$19 -> Fix | B138: =$C$19 -> UTP_13 | F138: =F69+F115 -> 51.15737682 | G138: 51.15737682 | H138: 51.15737682 | I138: 51.15737682 | J138: 220.592497 | K138: 26.08097904 | L138: 195.9896373 | M138: 0 | N138: 0 | O138: 0 | P138: 0 | Q138: 0 | R138: 0 | S138: 0 | T138: 0 | U138: 0 | V138: 0 | W138: 0 | X138: 0 | Y138: 0 | Z138: 0 | AA138: 0 | AB138: 0 | AC138: 0 | AD138: 0 | AE138: 0 | AF138: 0 | AG138: 0 | AH138: 0 | AI138: 0 | AJ138: 0 | AK138: 0 | AL138: 0 | AM138: 0 | AN138: 0 | AO138: 0 | AP138: 0 | AQ138: 0 | AR138: 0 | AS138: 0 | AT138: 0 | AU138: 0 | AV138: 0 | AW138: 0 | AX138: 0 | AY138: 0 | AZ138: 0 | BA138: 0 | BB138: 0 | BC138: =BC69+BC115 -> 0 | BD138: 0 | BE138: 0 | BF138: 0 | BG138: 0 | BH138: 0 | BI138: 0 | BJ138: 0 | BK138: 0 | BL138: 0 | BM138: 0
A139: =$E$20 -> Fix | B139: =$C$20 -> UTP_14 | F139: =F70+F116 -> 6.5087 | G139: 6.5087 | H139: 6.5087 | I139: 6.5087 | J139: 6.5087 | K139: 6.5087 | L139: 6.5087 | M139: 6.5087 | N139: 6.5087 | O139: 45.95536667 | P139: 0 | Q139: 0 | R139: 0 | S139: 0 | T139: 0 | U139: 0 | V139: 0 | W139: 0 | X139: 0 | Y139: 0 | Z139: 0 | AA139: 0 | AB139: 0 | AC139: 0 | AD139: 0 | AE139: 0 | AF139: 0 | AG139: 0 | AH139: 0 | AI139: 0 | AJ139: 0 | AK139: 0 | AL139: 0 | AM139: 0 | AN139: 0 | AO139: 0 | AP139: 0 | AQ139: 0 | AR139: 0 | AS139: 0 | AT139: 0 | AU139: 0 | AV139: 0 | AW139: 0 | AX139: 0 | AY139: 0 | AZ139: 0 | BA139: 0 | BB139: 0 | BC139: =BC70+BC116 -> 0 | BD139: 0 | BE139: 0 | BF139: 0 | BG139: 0 | BH139: 0 | BI139: 0 | BJ139: 0 | BK139: 0 | BL139: 0 | BM139: 0
A140: =$E$21 -> 0 | B140: =$C$21 -> UTP_15 | F140: =F71+F117 -> 0 | G140: 0 | H140: 0 | I140: 0 | J140: 0 | K140: 0 | L140: 0 | M140: 0 | N140: 0 | O140: 0 | P140: 0 | Q140: 0 | R140: 0 | S140: 0 | T140: 0 | U140: 0 | V140: 0 | W140: 0 | X140: 0 | Y140: 0 | Z140: 0 | AA140: 0 | AB140: 0 | AC140: 0 | AD140: 0 | AE140: 0 | AF140: 0 | AG140: 0 | AH140: 0 | AI140: 0 | AJ140: 0 | AK140: 0 | AL140: =AL71+AL117 -> 0 | AM140: 0 | AN140: 0 | AO140: 0 | AP140: 0 | AQ140: 0 | AR140: 0 | AS140: 0 | AT140: 0 | AU140: 0 | AV140: 0 | AW140: 0 | AX140: 0 | AY140: 0 | AZ140: 0 | BA140: 0 | BB140: 0 | BC140: 0 | BD140: 0 | BE140: 0 | BF140: 0 | BG140: 0 | BH140: 0 | BI140: 0 | BJ140: 0 | BK140: 0 | BL140: 0 | BM140: 0
A141: =$E$22 -> 0 | B141: =$C$22 -> UTP_16 | F141: =F72+F118 -> 0 | G141: 0 | H141: 0 | I141: 0 | J141: 0 | K141: 0 | L141: 0 | M141: 0 | N141: 0 | O141: 0 | P141: 0 | Q141: 0 | R141: 0 | S141: 0 | T141: 0 | U141: 0 | V141: 0 | W141: 0 | X141: 0 | Y141: 0 | Z141: 0 | AA141: 0 | AB141: 0 | AC141: 0 | AD141: 0 | AE141: 0 | AF141: 0 | AG141: 0 | AH141: 0 | AI141: 0 | AJ141: 0 | AK141: 0 | AL141: 0 | AM141: 0 | AN141: 0 | AO141: 0 | AP141: 0 | AQ141: 0 | AR141: 0 | AS141: 0 | AT141: 0 | AU141: 0 | AV141: 0 | AW141: 0 | AX141: 0 | AY141: 0 | AZ141: 0 | BA141: 0 | BB141: 0 | BC141: 0 | BD141: 0 | BE141: 0 | BF141: 0 | BG141: 0 | BH141: 0 | BI141: 0 | BJ141: 0 | BK141: 0 | BL141: 0 | BM141: 0
A142: =$E$23 -> 0 | B142: =$C$23 -> UTP_17 | F142: =F73+F119 -> 0 | G142: 0 | H142: 0 | I142: 0 | J142: 0 | K142: 0 | L142: 0 | M142: 0 | N142: 0 | O142: 0 | P142: 0 | Q142: 0 | R142: 0 | S142: 0 | T142: 0 | U142: 0 | V142: 0 | W142: 0 | X142: 0 | Y142: 0 | Z142: 0 | AA142: 0 | AB142: 0 | AC142: 0 | AD142: 0 | AE142: 0 | AF142: 0 | AG142: 0 | AH142: 0 | AI142: 0 | AJ142: 0 | AK142: 0 | AL142: 0 | AM142: 0 | AN142: 0 | AO142: 0 | AP142: 0 | AQ142: 0 | AR142: 0 | AS142: 0 | AT142: 0 | AU142: 0 | AV142: 0 | AW142: 0 | AX142: 0 | AY142: 0 | AZ142: 0 | BA142: 0 | BB142: 0 | BC142: 0 | BD142: 0 | BE142: 0 | BF142: 0 | BG142: 0 | BH142: 0 | BI142: 0 | BJ142: 0 | BK142: 0 | BL142: 0 | BM142: 0
A143: =$E$24 -> 0 | B143: =$C$24 -> UTP_18 | F143: =F74+F120 -> 0 | G143: 0 | H143: 0 | I143: 0 | J143: 0 | K143: 0 | L143: 0 | M143: 0 | N143: 0 | O143: 0 | P143: 0 | Q143: 0 | R143: 0 | S143: 0 | T143: 0 | U143: 0 | V143: 0 | W143: 0 | X143: 0 | Y143: 0 | Z143: 0 | AA143: 0 | AB143: 0 | AC143: 0 | AD143: 0 | AE143: 0 | AF143: 0 | AG143: 0 | AH143: 0 | AI143: 0 | AJ143: 0 | AK143: 0 | AL143: 0 | AM143: 0 | AN143: 0 | AO143: 0 | AP143: 0 | AQ143: 0 | AR143: 0 | AS143: 0 | AT143: 0 | AU143: 0 | AV143: 0 | AW143: 0 | AX143: 0 | AY143: 0 | AZ143: 0 | BA143: 0 | BB143: 0 | BC143: 0 | BD143: 0 | BE143: 0 | BF143: 0 | BG143: 0 | BH143: 0 | BI143: 0 | BJ143: 0 | BK143: 0 | BL143: 0 | BM143: 0
A144: =$E$25 -> 0 | B144: =$C$25 -> UTP_19 | F144: =F75+F121 -> 0 | G144: 0 | H144: 0 | I144: 0 | J144: 0 | K144: 0 | L144: 0 | M144: 0 | N144: 0 | O144: 0 | P144: 0 | Q144: 0 | R144: 0 | S144: 0 | T144: 0 | U144: 0 | V144: 0 | W144: 0 | X144: 0 | Y144: 0 | Z144: 0 | AA144: 0 | AB144: 0 | AC144: 0 | AD144: 0 | AE144: 0 | AF144: 0 | AG144: 0 | AH144: 0 | AI144: 0 | AJ144: 0 | AK144: 0 | AL144: 0 | AM144: 0 | AN144: 0 | AO144: 0 | AP144: 0 | AQ144: 0 | AR144: 0 | AS144: 0 | AT144: 0 | AU144: 0 | AV144: 0 | AW144: 0 | AX144: 0 | AY144: 0 | AZ144: 0 | BA144: 0 | BB144: 0 | BC144: 0 | BD144: 0 | BE144: 0 | BF144: 0 | BG144: 0 | BH144: 0 | BI144: 0 | BJ144: 0 | BK144: 0 | BL144: 0 | BM144: 0
A145: =$E$26 -> Var | B145: =$C$26 -> IDX_20 | F145: =F76+F122 -> 0 | G145: 0 | H145: 0 | I145: 0 | J145: 0 | K145: 0 | L145: 0 | M145: 0 | N145: 0 | O145: 0 | P145: 0 | Q145: 0 | R145: 0 | S145: 0 | T145: 0 | U145: 0 | V145: 0 | W145: 0 | X145: 0 | Y145: 0 | Z145: 0 | AA145: 0 | AB145: 0 | AC145: 0 | AD145: 0 | AE145: 0 | AF145: 0 | AG145: 0 | AH145: 0 | AI145: 0 | AJ145: 0 | AK145: 0 | AL145: 0 | AM145: 0 | AN145: 0 | AO145: 0 | AP145: 0 | AQ145: 0 | AR145: 0 | AS145: 0 | AT145: 0 | AU145: 0 | AV145: 0 | AW145: 0 | AX145: 0 | AY145: 0 | AZ145: 0 | BA145: 0 | BB145: 0 | BC145: 0 | BD145: 0 | BE145: 0 | BF145: 0 | BG145: 0 | BH145: 0 | BI145: 0 | BJ145: 0 | BK145: 0 | BL145: 0 | BM145: 0
B148: ="Total PV in " &IF(B14=TRUE,B11,L7) -> Total PV in USD | E148: =$B$7 -> 2017 | F148: =E148+1 -> 2018 | G148: 2019 | H148: 2020 | I148: 2021 | J148: 2022 | K148: 2023 | L148: 2024 | M148: 2025 | N148: 2026 | O148: 2027 | P148: 2028 | Q148: 2029 | R148: 2030 | S148: 2031 | T148: 2032 | U148: 2033 | V148: 2034 | W148: 2035 | X148: 2036 | Y148: 2037 | Z148: 2038 | AA148: 2039 | AB148: 2040 | AC148: 2041 | AD148: 2042 | AE148: 2043 | AF148: 2044 | AG148: 2045 | AH148: 2046 | AI148: 2047 | AJ148: 2048 | AK148: 2049 | AL148: =AK148+1 -> 2050 | AM148: 2051 | AN148: 2052 | AO148: 2053 | AP148: 2054 | AQ148: 2055 | AR148: 2056 | AS148: 2057 | AT148: 2058 | AU148: 2059 | AV148: 2060 | AW148: 2061 | AX148: 2062 | AY148: 2063 | AZ148: 2064 | BA148: 2065 | BB148: 2066 | BC148: =BB148+1 -> 2067 | BD148: 2068 | BE148: 2069 | BF148: 2070 | BG148: 2071 | BH148: 2072 | BI148: 2073 | BJ148: 2074 | BK148: 2075 | BL148: 2076 | BM148: 2077
A149: =F7 -> Yes | B149: =$C$7 -> USD_1 | E149: =IF(E80=0,0,IF($A149="No",E80,NPV(VLOOKUP(LEFT($B149,3),$L$7:$O$12,4,FALSE),F126:$BM126))) -> 108.6467339 | F149: =IF(F80=0,0,IF($A149="No",F80,NPV(VLOOKUP(LEFT($B149,3),$L$7:$O$12,4,FALSE),G126:$BM126))) -> 109.4414327 | G149: =IF(G80=0,0,IF($A149="No",G80,NPV(VLOOKUP(LEFT($B149,3),$L$7:$O$12,4,FALSE),H126:$BM126))) -> 110.1092867 | H149: =IF(H80=0,0,IF($A149="No",H80,NPV(VLOOKUP(LEFT($B149,3),$L$7:$O$12,4,FALSE),I126:$BM126))) -> 109.2684613 | I149: =IF(I80=0,0,IF($A149="No",I80,NPV(VLOOKUP(LEFT($B149,3),$L$7:$O$12,4,FALSE),J126:$BM126))) -> 107.6353756 | J149: =IF(J80=0,0,IF($A149="No",J80,NPV(VLOOKUP(LEFT($B149,3),$L$7:$O$12,4,FALSE),K126:$BM126))) -> 106.3147237 | K149: =IF(K80=0,0,IF($A149="No",K80,NPV(VLOOKUP(LEFT($B149,3),$L$7:$O$12,4,FALSE),L126:$BM126))) -> 104.9727022 | L149: =IF(L80=0,0,IF($A149="No",L80,NPV(VLOOKUP(LEFT($B149,3),$L$7:$O$12,4,FALSE),M126:$BM126))) -> 102.7180146 | M149: =IF(M80=0,0,IF($A149="No",M80,NPV(VLOOKUP(LEFT($B149,3),$L$7:$O$12,4,FALSE),N126:$BM126))) -> 101.079028 | N149: =IF(N80=0,0,IF($A149="No",N80,NPV(VLOOKUP(LEFT($B149,3),$L$7:$O$12,4,FALSE),O126:$BM126))) -> 99.30303139 | O149: =IF(O80=0,0,IF($A149="No",O80,NPV(VLOOKUP(LEFT($B149,3),$L$7:$O$12,4,FALSE),P126:$BM126))) -> 97.38371672 | P149: =IF(P80=0,0,IF($A149="No",P80,NPV(VLOOKUP(LEFT($B149,3),$L$7:$O$12,4,FALSE),Q126:$BM126))) -> 94.99552574 | Q149: =IF(Q80=0,0,IF($A149="No",Q80,NPV(VLOOKUP(LEFT($B149,3),$L$7:$O$12,4,FALSE),R126:$BM126))) -> 92.53338413 | R149: =IF(R80=0,0,IF($A149="No",R80,NPV(VLOOKUP(LEFT($B149,3),$L$7:$O$12,4,FALSE),S126:$BM126))) -> 89.99363159 | S149: =IF(S80=0,0,IF($A149="No",S80,NPV(VLOOKUP(LEFT($B149,3),$L$7:$O$12,4,FALSE),T126:$BM126))) -> 87.45116189 | T149: =IF(T80=0,0,IF($A149="No",T80,NPV(VLOOKUP(LEFT($B149,3),$L$7:$O$12,4,FALSE),U126:$BM126))) -> 84.82175572 | U149: =IF(U80=0,0,IF($A149="No",U80,NPV(VLOOKUP(LEFT($B149,3),$L$7:$O$12,4,FALSE),V126:$BM126))) -> 82.10581996 | V149: =IF(V80=0,0,IF($A149="No",V80,NPV(VLOOKUP(LEFT($B149,3),$L$7:$O$12,4,FALSE),W126:$BM126))) -> 79.03909779 | W149: =IF(W80=0,0,IF($A149="No",W80,NPV(VLOOKUP(LEFT($B149,3),$L$7:$O$12,4,FALSE),X126:$BM126))) -> 75.86610717 | X149: =IF(X80=0,0,IF($A149="No",X80,NPV(VLOOKUP(LEFT($B149,3),$L$7:$O$12,4,FALSE),Y126:$BM126))) -> 72.5813559 | Y149: =IF(Y80=0,0,IF($A149="No",Y80,NPV(VLOOKUP(LEFT($B149,3),$L$7:$O$12,4,FALSE),Z126:$BM126))) -> 69.17925592 | Z149: =IF(Z80=0,0,IF($A149="No",Z80,NPV(VLOOKUP(LEFT($B149,3),$L$7:$O$12,4,FALSE),AA126:$BM126))) -> 65.64792932 | AA149: =IF(AA80=0,0,IF($A149="No",AA80,NPV(VLOOKUP(LEFT($B149,3),$L$7:$O$12,4,FALSE),AB126:$BM126))) -> 62.24690067 | AB149: =IF(AB80=0,0,IF($A149="No",AB80,NPV(VLOOKUP(LEFT($B149,3),$L$7:$O$12,4,FALSE),AC126:$BM126))) -> 58.72080507 | AC149: =IF(AC80=0,0,IF($A149="No",AC80,NPV(VLOOKUP(LEFT($B149,3),$L$7:$O$12,4,FALSE),AD126:$BM126))) -> 55.06338915 | AD149: =IF(AD80=0,0,IF($A149="No",AD80,NPV(VLOOKUP(LEFT($B149,3),$L$7:$O$12,4,FALSE),AE126:$BM126))) -> 51.26808691 | AE149: =IF(AE80=0,0,IF($A149="No",AE80,NPV(VLOOKUP(LEFT($B149,3),$L$7:$O$12,4,FALSE),AF126:$BM126))) -> 47.32800402 | AF149: =IF(AF80=0,0,IF($A149="No",AF80,NPV(VLOOKUP(LEFT($B149,3),$L$7:$O$12,4,FALSE),AG126:$BM126))) -> 43.23590146 | AG149: =IF(AG80=0,0,IF($A149="No",AG80,NPV(VLOOKUP(LEFT($B149,3),$L$7:$O$12,4,FALSE),AH126:$BM126))) -> 39.31860027 | AH149: =IF(AH80=0,0,IF($A149="No",AH80,NPV(VLOOKUP(LEFT($B149,3),$L$7:$O$12,4,FALSE),AI126:$BM126))) -> 35.69749035 | AI149: =IF(AI80=0,0,IF($A149="No",AI80,NPV(VLOOKUP(LEFT($B149,3),$L$7:$O$12,4,FALSE),AJ126:$BM126))) -> 32.24511904 | AJ149: =IF(AJ80=0,0,IF($A149="No",AJ80,NPV(VLOOKUP(LEFT($B149,3),$L$7:$O$12,4,FALSE),AK126:$BM126))) -> 28.62442468 | AK149: =IF(AK80=0,0,IF($A149="No",AK80,NPV(VLOOKUP(LEFT($B149,3),$L$7:$O$12,4,FALSE),AL126:$BM126))) -> 24.89590215 | AL149: =IF(AL80=0,0,IF($A149="No",AL80,NPV(VLOOKUP(LEFT($B149,3),$L$7:$O$12,4,FALSE),AM126:$BM126))) -> 22.02589265 | AM149: =IF(AM80=0,0,IF($A149="No",AM80,NPV(VLOOKUP(LEFT($B149,3),$L$7:$O$12,4,FALSE),AN126:$BM126))) -> 18.8038161 | AN149: =IF(AN80=0,0,IF($A149="No",AN80,NPV(VLOOKUP(LEFT($B149,3),$L$7:$O$12,4,FALSE),AO126:$BM126))) -> 15.98317696 | AO149: =IF(AO80=0,0,IF($A149="No",AO80,NPV(VLOOKUP(LEFT($B149,3),$L$7:$O$12,4,FALSE),AP126:$BM126))) -> 13.04848721 | AP149: =IF(AP80=0,0,IF($A149="No",AP80,NPV(VLOOKUP(LEFT($B149,3),$L$7:$O$12,4,FALSE),AQ126:$BM126))) -> 9.996186396 | AQ149: =IF(AQ80=0,0,IF($A149="No",AQ80,NPV(VLOOKUP(LEFT($B149,3),$L$7:$O$12,4,FALSE),AR126:$BM126))) -> 6.818235829 | AR149: =IF(AR80=0,0,IF($A149="No",AR80,NPV(VLOOKUP(LEFT($B149,3),$L$7:$O$12,4,FALSE),AS126:$BM126))) -> 3.508353021 | AS149: =IF(AS80=0,0,IF($A149="No",AS80,NPV(VLOOKUP(LEFT($B149,3),$L$7:$O$12,4,FALSE),AT126:$BM126))) -> 1.896759582 | AT149: =IF(AT80=0,0,IF($A149="No",AT80,NPV(VLOOKUP(LEFT($B149,3),$L$7:$O$12,4,FALSE),AU126:$BM126))) -> 1.114055428 | AU149: =IF(AU80=0,0,IF($A149="No",AU80,NPV(VLOOKUP(LEFT($B149,3),$L$7:$O$12,4,FALSE),AV126:$BM126))) -> 0.2986831168 | AV149: =IF(AV80=0,0,IF($A149="No",AV80,NPV(VLOOKUP(LEFT($B149,3),$L$7:$O$12,4,FALSE),AW126:$BM126))) -> 2.09717365e-08 | AW149: =IF(AW80=0,0,IF($A149="No",AW80,NPV(VLOOKUP(LEFT($B149,3),$L$7:$O$12,4,FALSE),AX126:$BM126))) -> 1.839599163e-08 | AX149: =IF(AX80=0,0,IF($A149="No",AX80,NPV(VLOOKUP(LEFT($B149,3),$L$7:$O$12,4,FALSE),AY126:$BM126))) -> 1.569145952e-08 | AY149: =IF(AY80=0,0,IF($A149="No",AY80,NPV(VLOOKUP(LEFT($B149,3),$L$7:$O$12,4,FALSE),AZ126:$BM126))) -> 1.28517008e-08 | AZ149: =IF(AZ80=0,0,IF($A149="No",AZ80,NPV(VLOOKUP(LEFT($B149,3),$L$7:$O$12,4,FALSE),BA126:$BM126))) -> 9.869954146e-09 | BA149: =IF(BA80=0,0,IF($A149="No",BA80,NPV(VLOOKUP(LEFT($B149,3),$L$7:$O$12,4,FALSE),BB126:$BM126))) -> 6.739120158e-09 | BB149: =IF(BB80=0,0,IF($A149="No",BB80,NPV(VLOOKUP(LEFT($B149,3),$L$7:$O$12,4,FALSE),BC126:$BM126))) -> 3.451744471e-09 | BC149: =IF(BC80=0,0,IF($A149="No",BC80,NPV(VLOOKUP(LEFT($B149,3),$L$7:$O$12,4,FALSE),BD126:$BM126))) -> 0 | BD149: =IF(BD80=0,0,IF($A149="No",BD80,NPV(VLOOKUP(LEFT($B149,3),$L$7:$O$12,4,FALSE),BE126:$BM126))) -> 0 | BE149: =IF(BE80=0,0,IF($A149="No",BE80,NPV(VLOOKUP(LEFT($B149,3),$L$7:$O$12,4,FALSE),BF126:$BM126))) -> 0 | BF149: =IF(BF80=0,0,IF($A149="No",BF80,NPV(VLOOKUP(LEFT($B149,3),$L$7:$O$12,4,FALSE),BG126:$BM126))) -> 0 | BG149: =IF(BG80=0,0,IF($A149="No",BG80,NPV(VLOOKUP(LEFT($B149,3),$L$7:$O$12,4,FALSE),BH126:$BM126))) -> 0 | BH149: =IF(BH80=0,0,IF($A149="No",BH80,NPV(VLOOKUP(LEFT($B149,3),$L$7:$O$12,4,FALSE),BI126:$BM126))) -> 0 | BI149: =IF(BI80=0,0,IF($A149="No",BI80,NPV(VLOOKUP(LEFT($B149,3),$L$7:$O$12,4,FALSE),BJ126:$BM126))) -> 0 | BJ149: =IF(BJ80=0,0,IF($A149="No",BJ80,NPV(VLOOKUP(LEFT($B149,3),$L$7:$O$12,4,FALSE),BK126:$BM126))) -> 0 | BK149: =IF(BK80=0,0,IF($A149="No",BK80,NPV(VLOOKUP(LEFT($B149,3),$L$7:$O$12,4,FALSE),BL126:$BM126))) -> 0 | BL149: =IF(BL80=0,0,IF($A149="No",BL80,NPV(VLOOKUP(LEFT($B149,3),$L$7:$O$12,4,FALSE),BM126:$BM126))) -> 0 | BM149: =IF(BM80=0,0,IF($A149="No",BM80,NPV(VLOOKUP(LEFT($B149,3),$L$7:$O$12,4,FALSE),$BM126:BN126))) -> 0
A150: Yes | B150: =$C$8 -> USD_2 | E150: =IF(E81=0,0,IF($A150="No",E81,NPV(VLOOKUP(LEFT($B150,3),$L$7:$O$12,4,FALSE),F127:$BM127))) -> 312.8004127 | F150: =IF(F81=0,0,IF($A150="No",F81,NPV(VLOOKUP(LEFT($B150,3),$L$7:$O$12,4,FALSE),G127:$BM127))) -> 299.7394019 | G150: =IF(G81=0,0,IF($A150="No",G81,NPV(VLOOKUP(LEFT($B150,3),$L$7:$O$12,4,FALSE),H127:$BM127))) -> 288.244931 | H150: =IF(H81=0,0,IF($A150="No",H81,NPV(VLOOKUP(LEFT($B150,3),$L$7:$O$12,4,FALSE),I127:$BM127))) -> 276.9249929 | I150: =IF(I81=0,0,IF($A150="No",I81,NPV(VLOOKUP(LEFT($B150,3),$L$7:$O$12,4,FALSE),J127:$BM127))) -> 265.2019325 | J150: =IF(J81=0,0,IF($A150="No",J81,NPV(VLOOKUP(LEFT($B150,3),$L$7:$O$12,4,FALSE),K127:$BM127))) -> 253.0577225 | K150: =IF(K81=0,0,IF($A150="No",K81,NPV(VLOOKUP(LEFT($B150,3),$L$7:$O$12,4,FALSE),L127:$BM127))) -> 240.4713667 | L150: =IF(L81=0,0,IF($A150="No",L81,NPV(VLOOKUP(LEFT($B150,3),$L$7:$O$12,4,FALSE),M127:$BM127))) -> 227.3768799 | M150: =IF(M81=0,0,IF($A150="No",M81,NPV(VLOOKUP(LEFT($B150,3),$L$7:$O$12,4,FALSE),N127:$BM127))) -> 213.7911441 | N150: =IF(N81=0,0,IF($A150="No",N81,NPV(VLOOKUP(LEFT($B150,3),$L$7:$O$12,4,FALSE),O127:$BM127))) -> 199.6937726 | O150: =IF(O81=0,0,IF($A150="No",O81,NPV(VLOOKUP(LEFT($B150,3),$L$7:$O$12,4,FALSE),P127:$BM127))) -> 185.0551306 | P150: =IF(P81=0,0,IF($A150="No",P81,NPV(VLOOKUP(LEFT($B150,3),$L$7:$O$12,4,FALSE),Q127:$BM127))) -> 169.8336966 | Q150: =IF(Q81=0,0,IF($A150="No",Q81,NPV(VLOOKUP(LEFT($B150,3),$L$7:$O$12,4,FALSE),R127:$BM127))) -> 154.0916487 | R150: =IF(R81=0,0,IF($A150="No",R81,NPV(VLOOKUP(LEFT($B150,3),$L$7:$O$12,4,FALSE),S127:$BM127))) -> 137.7279188 | S150: =IF(S81=0,0,IF($A150="No",S81,NPV(VLOOKUP(LEFT($B150,3),$L$7:$O$12,4,FALSE),T127:$BM127))) -> 120.709437 | T150: =IF(T81=0,0,IF($A150="No",T81,NPV(VLOOKUP(LEFT($B150,3),$L$7:$O$12,4,FALSE),U127:$BM127))) -> 103.0035478 | U150: =IF(U81=0,0,IF($A150="No",U81,NPV(VLOOKUP(LEFT($B150,3),$L$7:$O$12,4,FALSE),V127:$BM127))) -> 84.5759626 | V150: =IF(V81=0,0,IF($A150="No",V81,NPV(VLOOKUP(LEFT($B150,3),$L$7:$O$12,4,FALSE),W127:$BM127))) -> 65.39067844 | W150: =IF(W81=0,0,IF($A150="No",W81,NPV(VLOOKUP(LEFT($B150,3),$L$7:$O$12,4,FALSE),X127:$BM127))) -> 45.40989237 | X150: =IF(X81=0,0,IF($A150="No",X81,NPV(VLOOKUP(LEFT($B150,3),$L$7:$O$12,4,FALSE),Y127:$BM127))) -> 24.59800497 | Y150: =IF(Y81=0,0,IF($A150="No",Y81,NPV(VLOOKUP(LEFT($B150,3),$L$7:$O$12,4,FALSE),Z127:$BM127))) -> 22.11302893 | Z150: =IF(Z81=0,0,IF($A150="No",Z81,NPV(VLOOKUP(LEFT($B150,3),$L$7:$O$12,4,FALSE),AA127:$BM127))) -> 19.92601301 | AA150: =IF(AA81=0,0,IF($A150="No",AA81,NPV(VLOOKUP(LEFT($B150,3),$L$7:$O$12,4,FALSE),AB127:$BM127))) -> 17.65284073 | AB150: =IF(AB81=0,0,IF($A150="No",AB81,NPV(VLOOKUP(LEFT($B150,3),$L$7:$O$12,4,FALSE),AC127:$BM127))) -> 15.28920427 | AC150: =IF(AC81=0,0,IF($A150="No",AC81,NPV(VLOOKUP(LEFT($B150,3),$L$7:$O$12,4,FALSE),AD127:$BM127))) -> 12.83058043 | AD150: =IF(AD81=0,0,IF($A150="No",AD81,NPV(VLOOKUP(LEFT($B150,3),$L$7:$O$12,4,FALSE),AE127:$BM127))) -> 9.343463555 | AE150: =IF(AE81=0,0,IF($A150="No",AE81,NPV(VLOOKUP(LEFT($B150,3),$L$7:$O$12,4,FALSE),AF127:$BM127))) -> 6.816608429 | AF150: =IF(AF81=0,0,IF($A150="No",AF81,NPV(VLOOKUP(LEFT($B150,3),$L$7:$O$12,4,FALSE),AG127:$BM127))) -> 4.412290042 | AG150: =IF(AG81=0,0,IF($A150="No",AG81,NPV(VLOOKUP(LEFT($B150,3),$L$7:$O$12,4,FALSE),AH127:$BM127))) -> 1.907929891 | AH150: =IF(AH81=0,0,IF($A150="No",AH81,NPV(VLOOKUP(LEFT($B150,3),$L$7:$O$12,4,FALSE),AI127:$BM127))) -> 2.228979595e-14 | AI150: =IF(AI81=0,0,IF($A150="No",AI81,NPV(VLOOKUP(LEFT($B150,3),$L$7:$O$12,4,FALSE),AJ127:$BM127))) -> 2.166576843e-14 | AJ150: =IF(AJ81=0,0,IF($A150="No",AJ81,NPV(VLOOKUP(LEFT($B150,3),$L$7:$O$12,4,FALSE),AK127:$BM127))) -> 2.101053954e-14 | AK150: =IF(AK81=0,0,IF($A150="No",AK81,NPV(VLOOKUP(LEFT($B150,3),$L$7:$O$12,4,FALSE),AL127:$BM127))) -> 2.03225492e-14 | AL150: =IF(AL81=0,0,IF($A150="No",AL81,NPV(VLOOKUP(LEFT($B150,3),$L$7:$O$12,4,FALSE),AM127:$BM127))) -> 1.960015935e-14 | AM150: =IF(AM81=0,0,IF($A150="No",AM81,NPV(VLOOKUP(LEFT($B150,3),$L$7:$O$12,4,FALSE),AN127:$BM127))) -> 1.884165001e-14 | AN150: =IF(AN81=0,0,IF($A150="No",AN81,NPV(VLOOKUP(LEFT($B150,3),$L$7:$O$12,4,FALSE),AO127:$BM127))) -> 1.80452152e-14 | AO150: =IF(AO81=0,0,IF($A150="No",AO81,NPV(VLOOKUP(LEFT($B150,3),$L$7:$O$12,4,FALSE),AP127:$BM127))) -> 1.720895864e-14 | AP150: =IF(AP81=0,0,IF($A150="No",AP81,NPV(VLOOKUP(LEFT($B150,3),$L$7:$O$12,4,FALSE),AQ127:$BM127))) -> 1.633088926e-14 | AQ150: =IF(AQ81=0,0,IF($A150="No",AQ81,NPV(VLOOKUP(LEFT($B150,3),$L$7:$O$12,4,FALSE),AR127:$BM127))) -> 1.540891641e-14 | AR150: =IF(AR81=0,0,IF($A150="No",AR81,NPV(VLOOKUP(LEFT($B150,3),$L$7:$O$12,4,FALSE),AS127:$BM127))) -> 1.444084492e-14 | AS150: =IF(AS81=0,0,IF($A150="No",AS81,NPV(VLOOKUP(LEFT($B150,3),$L$7:$O$12,4,FALSE),AT127:$BM127))) -> 1.342436986e-14 | AT150: =IF(AT81=0,0,IF($A150="No",AT81,NPV(VLOOKUP(LEFT($B150,3),$L$7:$O$12,4,FALSE),AU127:$BM127))) -> 1.235707104e-14 | AU150: =IF(AU81=0,0,IF($A150="No",AU81,NPV(VLOOKUP(LEFT($B150,3),$L$7:$O$12,4,FALSE),AV127:$BM127))) -> 1.123640728e-14 | AV150: =IF(AV81=0,0,IF($A150="No",AV81,NPV(VLOOKUP(LEFT($B150,3),$L$7:$O$12,4,FALSE),AW127:$BM127))) -> 1.005971033e-14 | AW150: =IF(AW81=0,0,IF($A150="No",AW81,NPV(VLOOKUP(LEFT($B150,3),$L$7:$O$12,4,FALSE),AX127:$BM127))) -> 8.824178531e-15 | AX150: =IF(AX81=0,0,IF($A150="No",AX81,NPV(VLOOKUP(LEFT($B150,3),$L$7:$O$12,4,FALSE),AY127:$BM127))) -> 7.526870145e-15 | AY150: =IF(AY81=0,0,IF($A150="No",AY81,NPV(VLOOKUP(LEFT($B150,3),$L$7:$O$12,4,FALSE),AZ127:$BM127))) -> 6.16469634e-15 | AZ150: =IF(AZ81=0,0,IF($A150="No",AZ81,NPV(VLOOKUP(LEFT($B150,3),$L$7:$O$12,4,FALSE),BA127:$BM127))) -> 4.734413845e-15 | BA150: =IF(BA81=0,0,IF($A150="No",BA81,NPV(VLOOKUP(LEFT($B150,3),$L$7:$O$12,4,FALSE),BB127:$BM127))) -> 3.232617225e-15 | BB150: =IF(BB81=0,0,IF($A150="No",BB81,NPV(VLOOKUP(LEFT($B150,3),$L$7:$O$12,4,FALSE),BC127:$BM127))) -> 1.655730774e-15 | BC150: =IF(BC81=0,0,IF($A150="No",BC81,NPV(VLOOKUP(LEFT($B150,3),$L$7:$O$12,4,FALSE),BD127:$BM127))) -> 0 | BD150: =IF(BD81=0,0,IF($A150="No",BD81,NPV(VLOOKUP(LEFT($B150,3),$L$7:$O$12,4,FALSE),BE127:$BM127))) -> 0 | BE150: =IF(BE81=0,0,IF($A150="No",BE81,NPV(VLOOKUP(LEFT($B150,3),$L$7:$O$12,4,FALSE),BF127:$BM127))) -> 0 | BF150: =IF(BF81=0,0,IF($A150="No",BF81,NPV(VLOOKUP(LEFT($B150,3),$L$7:$O$12,4,FALSE),BG127:$BM127))) -> 0 | BG150: =IF(BG81=0,0,IF($A150="No",BG81,NPV(VLOOKUP(LEFT($B150,3),$L$7:$O$12,4,FALSE),BH127:$BM127))) -> 0 | BH150: =IF(BH81=0,0,IF($A150="No",BH81,NPV(VLOOKUP(LEFT($B150,3),$L$7:$O$12,4,FALSE),BI127:$BM127))) -> 0 | BI150: =IF(BI81=0,0,IF($A150="No",BI81,NPV(VLOOKUP(LEFT($B150,3),$L$7:$O$12,4,FALSE),BJ127:$BM127))) -> 0 | BJ150: =IF(BJ81=0,0,IF($A150="No",BJ81,NPV(VLOOKUP(LEFT($B150,3),$L$7:$O$12,4,FALSE),BK127:$BM127))) -> 0 | BK150: =IF(BK81=0,0,IF($A150="No",BK81,NPV(VLOOKUP(LEFT($B150,3),$L$7:$O$12,4,FALSE),BL127:$BM127))) -> 0 | BL150: =IF(BL81=0,0,IF($A150="No",BL81,NPV(VLOOKUP(LEFT($B150,3),$L$7:$O$12,4,FALSE),BM127:$BM127))) -> 0 | BM150: =IF(BM81=0,0,IF($A150="No",BM81,NPV(VLOOKUP(LEFT($B150,3),$L$7:$O$12,4,FALSE),$BM127:BN127))) -> 0
A151: Yes | B151: =$C$9 -> USD_3 | E151: =IF(E82=0,0,IF($A151="No",E82,NPV(VLOOKUP(LEFT($B151,3),$L$7:$O$12,4,FALSE),F128:$BM128))) -> 39.89203859 | F151: =IF(F82=0,0,IF($A151="No",F82,NPV(VLOOKUP(LEFT($B151,3),$L$7:$O$12,4,FALSE),G128:$BM128))) -> 10.68411844 | G151: =IF(G82=0,0,IF($A151="No",G82,NPV(VLOOKUP(LEFT($B151,3),$L$7:$O$12,4,FALSE),H128:$BM128))) -> 4.348781558 | H151: =IF(H82=0,0,IF($A151="No",H82,NPV(VLOOKUP(LEFT($B151,3),$L$7:$O$12,4,FALSE),I128:$BM128))) -> 4.2925006 | I151: =IF(I82=0,0,IF($A151="No",I82,NPV(VLOOKUP(LEFT($B151,3),$L$7:$O$12,4,FALSE),J128:$BM128))) -> 4.030379312 | J151: =IF(J82=0,0,IF($A151="No",J82,NPV(VLOOKUP(LEFT($B151,3),$L$7:$O$12,4,FALSE),K128:$BM128))) -> 3.770358627 | K151: =IF(K82=0,0,IF($A151="No",K82,NPV(VLOOKUP(LEFT($B151,3),$L$7:$O$12,4,FALSE),L128:$BM128))) -> 3.512543577 | L151: =IF(L82=0,0,IF($A151="No",L82,NPV(VLOOKUP(LEFT($B151,3),$L$7:$O$12,4,FALSE),M128:$BM128))) -> 3.257044443 | M151: =IF(M82=0,0,IF($A151="No",M82,NPV(VLOOKUP(LEFT($B151,3),$L$7:$O$12,4,FALSE),N128:$BM128))) -> 3.003977021 | N151: =IF(N82=0,0,IF($A151="No",N82,NPV(VLOOKUP(LEFT($B151,3),$L$7:$O$12,4,FALSE),O128:$BM128))) -> 2.753462897 | O151: =IF(O82=0,0,IF($A151="No",O82,NPV(VLOOKUP(LEFT($B151,3),$L$7:$O$12,4,FALSE),P128:$BM128))) -> 2.505629735 | P151: =IF(P82=0,0,IF($A151="No",P82,NPV(VLOOKUP(LEFT($B151,3),$L$7:$O$12,4,FALSE),Q128:$BM128))) -> 2.260611583 | Q151: =IF(Q82=0,0,IF($A151="No",Q82,NPV(VLOOKUP(LEFT($B151,3),$L$7:$O$12,4,FALSE),R128:$BM128))) -> 2.018549193 | R151: =IF(R82=0,0,IF($A151="No",R82,NPV(VLOOKUP(LEFT($B151,3),$L$7:$O$12,4,FALSE),S128:$BM128))) -> 1.779590352 | S151: =IF(S82=0,0,IF($A151="No",S82,NPV(VLOOKUP(LEFT($B151,3),$L$7:$O$12,4,FALSE),T128:$BM128))) -> 1.543890237 | T151: =IF(T82=0,0,IF($A151="No",T82,NPV(VLOOKUP(LEFT($B151,3),$L$7:$O$12,4,FALSE),U128:$BM128))) -> 1.311611785 | U151: =IF(U82=0,0,IF($A151="No",U82,NPV(VLOOKUP(LEFT($B151,3),$L$7:$O$12,4,FALSE),V128:$BM128))) -> 1.082926079 | V151: =IF(V82=0,0,IF($A151="No",V82,NPV(VLOOKUP(LEFT($B151,3),$L$7:$O$12,4,FALSE),W128:$BM128))) -> 0.8580127564 | W151: =IF(W82=0,0,IF($A151="No",W82,NPV(VLOOKUP(LEFT($B151,3),$L$7:$O$12,4,FALSE),X128:$BM128))) -> 0.6370604363 | X151: =IF(X82=0,0,IF($A151="No",X82,NPV(VLOOKUP(LEFT($B151,3),$L$7:$O$12,4,FALSE),Y128:$BM128))) -> 0.4202671689 | Y151: =IF(Y82=0,0,IF($A151="No",Y82,NPV(VLOOKUP(LEFT($B151,3),$L$7:$O$12,4,FALSE),Z128:$BM128))) -> 0.2078409067 | Z151: =IF(Z82=0,0,IF($A151="No",Z82,NPV(VLOOKUP(LEFT($B151,3),$L$7:$O$12,4,FALSE),AA128:$BM128))) -> 1.518261121e-15 | AA151: =IF(AA82=0,0,IF($A151="No",AA82,NPV(VLOOKUP(LEFT($B151,3),$L$7:$O$12,4,FALSE),AB128:$BM128))) -> 1.49389984e-15 | AB151: =IF(AB82=0,0,IF($A151="No",AB82,NPV(VLOOKUP(LEFT($B151,3),$L$7:$O$12,4,FALSE),AC128:$BM128))) -> 1.468320495e-15 | AC151: =IF(AC82=0,0,IF($A151="No",AC82,NPV(VLOOKUP(LEFT($B151,3),$L$7:$O$12,4,FALSE),AD128:$BM128))) -> 1.441462182e-15 | AD151: =IF(AD82=0,0,IF($A151="No",AD82,NPV(VLOOKUP(LEFT($B151,3),$L$7:$O$12,4,FALSE),AE128:$BM128))) -> 1.413260953e-15 | AE151: =IF(AE82=0,0,IF($A151="No",AE82,NPV(VLOOKUP(LEFT($B151,3),$L$7:$O$12,4,FALSE),AF128:$BM128))) -> 1.383649664e-15 | AF151: =IF(AF82=0,0,IF($A151="No",AF82,NPV(VLOOKUP(LEFT($B151,3),$L$7:$O$12,4,FALSE),AG128:$BM128))) -> 1.352557809e-15 | AG151: =IF(AG82=0,0,IF($A151="No",AG82,NPV(VLOOKUP(LEFT($B151,3),$L$7:$O$12,4,FALSE),AH128:$BM128))) -> 1.319911362e-15 | AH151: =IF(AH82=0,0,IF($A151="No",AH82,NPV(VLOOKUP(LEFT($B151,3),$L$7:$O$12,4,FALSE),AI128:$BM128))) -> 1.285632593e-15 | AI151: =IF(AI82=0,0,IF($A151="No",AI82,NPV(VLOOKUP(LEFT($B151,3),$L$7:$O$12,4,FALSE),AJ128:$BM128))) -> 1.249639885e-15 | AJ151: =IF(AJ82=0,0,IF($A151="No",AJ82,NPV(VLOOKUP(LEFT($B151,3),$L$7:$O$12,4,FALSE),AK128:$BM128))) -> 1.211847542e-15 | AK151: =IF(AK82=0,0,IF($A151="No",AK82,NPV(VLOOKUP(LEFT($B151,3),$L$7:$O$12,4,FALSE),AL128:$BM128))) -> 1.172165582e-15 | AL151: =IF(AL82=0,0,IF($A151="No",AL82,NPV(VLOOKUP(LEFT($B151,3),$L$7:$O$12,4,FALSE),AM128:$BM128))) -> 1.130499523e-15 | AM151: =IF(AM82=0,0,IF($A151="No",AM82,NPV(VLOOKUP(LEFT($B151,3),$L$7:$O$12,4,FALSE),AN128:$BM128))) -> 1.086750162e-15 | AN151: =IF(AN82=0,0,IF($A151="No",AN82,NPV(VLOOKUP(LEFT($B151,3),$L$7:$O$12,4,FALSE),AO128:$BM128))) -> 1.040813333e-15 | AO151: =IF(AO82=0,0,IF($A151="No",AO82,NPV(VLOOKUP(LEFT($B151,3),$L$7:$O$12,4,FALSE),AP128:$BM128))) -> 9.92579662e-16 | AP151: =IF(AP82=0,0,IF($A151="No",AP82,NPV(VLOOKUP(LEFT($B151,3),$L$7:$O$12,4,FALSE),AQ128:$BM128))) -> 9.419343076e-16 | AQ151: =IF(AQ82=0,0,IF($A151="No",AQ82,NPV(VLOOKUP(LEFT($B151,3),$L$7:$O$12,4,FALSE),AR128:$BM128))) -> 8.887566855e-16 | AR151: =IF(AR82=0,0,IF($A151="No",AR82,NPV(VLOOKUP(LEFT($B151,3),$L$7:$O$12,4,FALSE),AS128:$BM128))) -> 8.329201824e-16 | AS151: =IF(AS82=0,0,IF($A151="No",AS82,NPV(VLOOKUP(LEFT($B151,3),$L$7:$O$12,4,FALSE),AT128:$BM128))) -> 7.74291854e-16 | AT151: =IF(AT82=0,0,IF($A151="No",AT82,NPV(VLOOKUP(LEFT($B151,3),$L$7:$O$12,4,FALSE),AU128:$BM128))) -> 7.127321093e-16 | AU151: =IF(AU82=0,0,IF($A151="No",AU82,NPV(VLOOKUP(LEFT($B151,3),$L$7:$O$12,4,FALSE),AV128:$BM128))) -> 6.480943773e-16 | AV151: =IF(AV82=0,0,IF($A151="No",AV82,NPV(VLOOKUP(LEFT($B151,3),$L$7:$O$12,4,FALSE),AW128:$BM128))) -> 5.802247587e-16 | AW151: =IF(AW82=0,0,IF($A151="No",AW82,NPV(VLOOKUP(LEFT($B151,3),$L$7:$O$12,4,FALSE),AX128:$BM128))) -> 5.089616592e-16 | AX151: =IF(AX82=0,0,IF($A151="No",AX82,NPV(VLOOKUP(LEFT($B151,3),$L$7:$O$12,4,FALSE),AY128:$BM128))) -> 4.341354047e-16 | AY151: =IF(AY82=0,0,IF($A151="No",AY82,NPV(VLOOKUP(LEFT($B151,3),$L$7:$O$12,4,FALSE),AZ128:$BM128))) -> 3.555678375e-16 | AZ151: =IF(AZ82=0,0,IF($A151="No",AZ82,NPV(VLOOKUP(LEFT($B151,3),$L$7:$O$12,4,FALSE),BA128:$BM128))) -> 2.730718919e-16 | BA151: =IF(BA82=0,0,IF($A151="No",BA82,NPV(VLOOKUP(LEFT($B151,3),$L$7:$O$12,4,FALSE),BB128:$BM128))) -> 1.86451149e-16 | BB151: =IF(BB82=0,0,IF($A151="No",BB82,NPV(VLOOKUP(LEFT($B151,3),$L$7:$O$12,4,FALSE),BC128:$BM128))) -> 9.549936901e-17 | BC151: =IF(BC82=0,0,IF($A151="No",BC82,NPV(VLOOKUP(LEFT($B151,3),$L$7:$O$12,4,FALSE),BD128:$BM128))) -> 0 | BD151: =IF(BD82=0,0,IF($A151="No",BD82,NPV(VLOOKUP(LEFT($B151,3),$L$7:$O$12,4,FALSE),BE128:$BM128))) -> 0 | BE151: =IF(BE82=0,0,IF($A151="No",BE82,NPV(VLOOKUP(LEFT($B151,3),$L$7:$O$12,4,FALSE),BF128:$BM128))) -> 0 | BF151: =IF(BF82=0,0,IF($A151="No",BF82,NPV(VLOOKUP(LEFT($B151,3),$L$7:$O$12,4,FALSE),BG128:$BM128))) -> 0 | BG151: =IF(BG82=0,0,IF($A151="No",BG82,NPV(VLOOKUP(LEFT($B151,3),$L$7:$O$12,4,FALSE),BH128:$BM128))) -> 0 | BH151: =IF(BH82=0,0,IF($A151="No",BH82,NPV(VLOOKUP(LEFT($B151,3),$L$7:$O$12,4,FALSE),BI128:$BM128))) -> 0 | BI151: =IF(BI82=0,0,IF($A151="No",BI82,NPV(VLOOKUP(LEFT($B151,3),$L$7:$O$12,4,FALSE),BJ128:$BM128))) -> 0 | BJ151: =IF(BJ82=0,0,IF($A151="No",BJ82,NPV(VLOOKUP(LEFT($B151,3),$L$7:$O$12,4,FALSE),BK128:$BM128))) -> 0 | BK151: =IF(BK82=0,0,IF($A151="No",BK82,NPV(VLOOKUP(LEFT($B151,3),$L$7:$O$12,4,FALSE),BL128:$BM128))) -> 0 | BL151: =IF(BL82=0,0,IF($A151="No",BL82,NPV(VLOOKUP(LEFT($B151,3),$L$7:$O$12,4,FALSE),BM128:$BM128))) -> 0 | BM151: =IF(BM82=0,0,IF($A151="No",BM82,NPV(VLOOKUP(LEFT($B151,3),$L$7:$O$12,4,FALSE),$BM128:BN128))) -> 0
A152: Yes | B152: =$C$10 -> USD_4 | E152: =IF(E83=0,0,IF($A152="No",E83,NPV(VLOOKUP(LEFT($B152,3),$L$7:$O$12,4,FALSE),F129:$BM129))) -> 67.03790894 | F152: =IF(F83=0,0,IF($A152="No",F83,NPV(VLOOKUP(LEFT($B152,3),$L$7:$O$12,4,FALSE),G129:$BM129))) -> 46.98386332 | G152: =IF(G83=0,0,IF($A152="No",G83,NPV(VLOOKUP(LEFT($B152,3),$L$7:$O$12,4,FALSE),H129:$BM129))) -> 34.63837938 | H152: =IF(H83=0,0,IF($A152="No",H83,NPV(VLOOKUP(LEFT($B152,3),$L$7:$O$12,4,FALSE),I129:$BM129))) -> 22.3083844 | I152: =IF(I83=0,0,IF($A152="No",I83,NPV(VLOOKUP(LEFT($B152,3),$L$7:$O$12,4,FALSE),J129:$BM129))) -> 13.69815439 | J152: =IF(J83=0,0,IF($A152="No",J83,NPV(VLOOKUP(LEFT($B152,3),$L$7:$O$12,4,FALSE),K129:$BM129))) -> 10.61411441 | K152: =IF(K83=0,0,IF($A152="No",K83,NPV(VLOOKUP(LEFT($B152,3),$L$7:$O$12,4,FALSE),L129:$BM129))) -> 8.178543509 | L152: =IF(L83=0,0,IF($A152="No",L83,NPV(VLOOKUP(LEFT($B152,3),$L$7:$O$12,4,FALSE),M129:$BM129))) -> 6.28949429 | M152: =IF(M83=0,0,IF($A152="No",M83,NPV(VLOOKUP(LEFT($B152,3),$L$7:$O$12,4,FALSE),N129:$BM129))) -> 4.317254476 | N152: =IF(N83=0,0,IF($A152="No",N83,NPV(VLOOKUP(LEFT($B152,3),$L$7:$O$12,4,FALSE),O129:$BM129))) -> 2.257664538 | O152: =IF(O83=0,0,IF($A152="No",O83,NPV(VLOOKUP(LEFT($B152,3),$L$7:$O$12,4,FALSE),P129:$BM129))) -> 0.1063569695 | P152: =IF(P83=0,0,IF($A152="No",P83,NPV(VLOOKUP(LEFT($B152,3),$L$7:$O$12,4,FALSE),Q129:$BM129))) -> 4.206575319e-17 | Q152: =IF(Q83=0,0,IF($A152="No",Q83,NPV(VLOOKUP(LEFT($B152,3),$L$7:$O$12,4,FALSE),R129:$BM129))) -> 4.169706267e-17 | R152: =IF(R83=0,0,IF($A152="No",R83,NPV(VLOOKUP(LEFT($B152,3),$L$7:$O$12,4,FALSE),S129:$BM129))) -> 4.130993763e-17 | S152: =IF(S83=0,0,IF($A152="No",S83,NPV(VLOOKUP(LEFT($B152,3),$L$7:$O$12,4,FALSE),T129:$BM129))) -> 4.090345633e-17 | T152: =IF(T83=0,0,IF($A152="No",T83,NPV(VLOOKUP(LEFT($B152,3),$L$7:$O$12,4,FALSE),U129:$BM129))) -> 4.047665097e-17 | U152: =IF(U83=0,0,IF($A152="No",U83,NPV(VLOOKUP(LEFT($B152,3),$L$7:$O$12,4,FALSE),V129:$BM129))) -> 4.002850534e-17 | V152: =IF(V83=0,0,IF($A152="No",V83,NPV(VLOOKUP(LEFT($B152,3),$L$7:$O$12,4,FALSE),W129:$BM129))) -> 3.955795243e-17 | W152: =IF(W83=0,0,IF($A152="No",W83,NPV(VLOOKUP(LEFT($B152,3),$L$7:$O$12,4,FALSE),X129:$BM129))) -> 3.906387187e-17 | X152: =IF(X83=0,0,IF($A152="No",X83,NPV(VLOOKUP(LEFT($B152,3),$L$7:$O$12,4,FALSE),Y129:$BM129))) -> 3.854508729e-17 | Y152: =IF(Y83=0,0,IF($A152="No",Y83,NPV(VLOOKUP(LEFT($B152,3),$L$7:$O$12,4,FALSE),Z129:$BM129))) -> 3.800036348e-17 | Z152: =IF(Z83=0,0,IF($A152="No",Z83,NPV(VLOOKUP(LEFT($B152,3),$L$7:$O$12,4,FALSE),AA129:$BM129))) -> 3.742840347e-17 | AA152: =IF(AA83=0,0,IF($A152="No",AA83,NPV(VLOOKUP(LEFT($B152,3),$L$7:$O$12,4,FALSE),AB129:$BM129))) -> 3.682784547e-17 | AB152: =IF(AB83=0,0,IF($A152="No",AB83,NPV(VLOOKUP(LEFT($B152,3),$L$7:$O$12,4,FALSE),AC129:$BM129))) -> 3.619725956e-17 | AC152: =IF(AC83=0,0,IF($A152="No",AC83,NPV(VLOOKUP(LEFT($B152,3),$L$7:$O$12,4,FALSE),AD129:$BM129))) -> 3.553514436e-17 | AD152: =IF(AD83=0,0,IF($A152="No",AD83,NPV(VLOOKUP(LEFT($B152,3),$L$7:$O$12,4,FALSE),AE129:$BM129))) -> 3.483992341e-17 | AE152: =IF(AE83=0,0,IF($A152="No",AE83,NPV(VLOOKUP(LEFT($B152,3),$L$7:$O$12,4,FALSE),AF129:$BM129))) -> 3.41099414e-17 | AF152: =IF(AF83=0,0,IF($A152="No",AF83,NPV(VLOOKUP(LEFT($B152,3),$L$7:$O$12,4,FALSE),AG129:$BM129))) -> 3.334346029e-17 | AG152: =IF(AG83=0,0,IF($A152="No",AG83,NPV(VLOOKUP(LEFT($B152,3),$L$7:$O$12,4,FALSE),AH129:$BM129))) -> 3.253865513e-17 | AH152: =IF(AH83=0,0,IF($A152="No",AH83,NPV(VLOOKUP(LEFT($B152,3),$L$7:$O$12,4,FALSE),AI129:$BM129))) -> 3.169360971e-17 | AI152: =IF(AI83=0,0,IF($A152="No",AI83,NPV(VLOOKUP(LEFT($B152,3),$L$7:$O$12,4,FALSE),AJ129:$BM129))) -> 3.080631201e-17 | AJ152: =IF(AJ83=0,0,IF($A152="No",AJ83,NPV(VLOOKUP(LEFT($B152,3),$L$7:$O$12,4,FALSE),AK129:$BM129))) -> 2.987464944e-17 | AK152: =IF(AK83=0,0,IF($A152="No",AK83,NPV(VLOOKUP(LEFT($B152,3),$L$7:$O$12,4,FALSE),AL129:$BM129))) -> 2.889640373e-17 | AL152: =IF(AL83=0,0,IF($A152="No",AL83,NPV(VLOOKUP(LEFT($B152,3),$L$7:$O$12,4,FALSE),AM129:$BM129))) -> 2.786924574e-17 | AM152: =IF(AM83=0,0,IF($A152="No",AM83,NPV(VLOOKUP(LEFT($B152,3),$L$7:$O$12,4,FALSE),AN129:$BM129))) -> 2.679072985e-17 | AN152: =IF(AN83=0,0,IF($A152="No",AN83,NPV(VLOOKUP(LEFT($B152,3),$L$7:$O$12,4,FALSE),AO129:$BM129))) -> 2.565828816e-17 | AO152: =IF(AO83=0,0,IF($A152="No",AO83,NPV(VLOOKUP(LEFT($B152,3),$L$7:$O$12,4,FALSE),AP129:$BM129))) -> 2.446922439e-17 | AP152: =IF(AP83=0,0,IF($A152="No",AP83,NPV(VLOOKUP(LEFT($B152,3),$L$7:$O$12,4,FALSE),AQ129:$BM129))) -> 2.322070743e-17 | AQ152: =IF(AQ83=0,0,IF($A152="No",AQ83,NPV(VLOOKUP(LEFT($B152,3),$L$7:$O$12,4,FALSE),AR129:$BM129))) -> 2.190976463e-17 | AR152: =IF(AR83=0,0,IF($A152="No",AR83,NPV(VLOOKUP(LEFT($B152,3),$L$7:$O$12,4,FALSE),AS129:$BM129))) -> 2.053327468e-17 | AS152: =IF(AS83=0,0,IF($A152="No",AS83,NPV(VLOOKUP(LEFT($B152,3),$L$7:$O$12,4,FALSE),AT129:$BM129))) -> 1.908796024e-17 | AT152: =IF(AT83=0,0,IF($A152="No",AT83,NPV(VLOOKUP(LEFT($B152,3),$L$7:$O$12,4,FALSE),AU129:$BM129))) -> 1.757038007e-17 | AU152: =IF(AU83=0,0,IF($A152="No",AU83,NPV(VLOOKUP(LEFT($B152,3),$L$7:$O$12,4,FALSE),AV129:$BM129))) -> 1.59769209e-17 | AV152: =IF(AV83=0,0,IF($A152="No",AV83,NPV(VLOOKUP(LEFT($B152,3),$L$7:$O$12,4,FALSE),AW129:$BM129))) -> 1.430378877e-17 | AW152: =IF(AW83=0,0,IF($A152="No",AW83,NPV(VLOOKUP(LEFT($B152,3),$L$7:$O$12,4,FALSE),AX129:$BM129))) -> 1.254700003e-17 | AX152: =IF(AX83=0,0,IF($A152="No",AX83,NPV(VLOOKUP(LEFT($B152,3),$L$7:$O$12,4,FALSE),AY129:$BM129))) -> 1.070237185e-17 | AY152: =IF(AY83=0,0,IF($A152="No",AY83,NPV(VLOOKUP(LEFT($B152,3),$L$7:$O$12,4,FALSE),AZ129:$BM129))) -> 8.765512266e-18 | AZ152: =IF(AZ83=0,0,IF($A152="No",AZ83,NPV(VLOOKUP(LEFT($B152,3),$L$7:$O$12,4,FALSE),BA129:$BM129))) -> 6.731809701e-18 | BA152: =IF(BA83=0,0,IF($A152="No",BA83,NPV(VLOOKUP(LEFT($B152,3),$L$7:$O$12,4,FALSE),BB129:$BM129))) -> 4.596422008e-18 | BB152: =IF(BB83=0,0,IF($A152="No",BB83,NPV(VLOOKUP(LEFT($B152,3),$L$7:$O$12,4,FALSE),BC129:$BM129))) -> 2.354264931e-18 | BC152: =IF(BC83=0,0,IF($A152="No",BC83,NPV(VLOOKUP(LEFT($B152,3),$L$7:$O$12,4,FALSE),BD129:$BM129))) -> 0 | BD152: =IF(BD83=0,0,IF($A152="No",BD83,NPV(VLOOKUP(LEFT($B152,3),$L$7:$O$12,4,FALSE),BE129:$BM129))) -> 0 | BE152: =IF(BE83=0,0,IF($A152="No",BE83,NPV(VLOOKUP(LEFT($B152,3),$L$7:$O$12,4,FALSE),BF129:$BM129))) -> 0 | BF152: =IF(BF83=0,0,IF($A152="No",BF83,NPV(VLOOKUP(LEFT($B152,3),$L$7:$O$12,4,FALSE),BG129:$BM129))) -> 0 | BG152: =IF(BG83=0,0,IF($A152="No",BG83,NPV(VLOOKUP(LEFT($B152,3),$L$7:$O$12,4,FALSE),BH129:$BM129))) -> 0 | BH152: =IF(BH83=0,0,IF($A152="No",BH83,NPV(VLOOKUP(LEFT($B152,3),$L$7:$O$12,4,FALSE),BI129:$BM129))) -> 0 | BI152: =IF(BI83=0,0,IF($A152="No",BI83,NPV(VLOOKUP(LEFT($B152,3),$L$7:$O$12,4,FALSE),BJ129:$BM129))) -> 0 | BJ152: =IF(BJ83=0,0,IF($A152="No",BJ83,NPV(VLOOKUP(LEFT($B152,3),$L$7:$O$12,4,FALSE),BK129:$BM129))) -> 0 | BK152: =IF(BK83=0,0,IF($A152="No",BK83,NPV(VLOOKUP(LEFT($B152,3),$L$7:$O$12,4,FALSE),BL129:$BM129))) -> 0 | BL152: =IF(BL83=0,0,IF($A152="No",BL83,NPV(VLOOKUP(LEFT($B152,3),$L$7:$O$12,4,FALSE),BM129:$BM129))) -> 0 | BM152: =IF(BM83=0,0,IF($A152="No",BM83,NPV(VLOOKUP(LEFT($B152,3),$L$7:$O$12,4,FALSE),$BM129:BN129))) -> 0
A153: Yes | B153: =$C$11 -> USD_5 | E153: =IF(E84=0,0,IF($A153="No",E84,NPV(VLOOKUP(LEFT($B153,3),$L$7:$O$12,4,FALSE),F130:$BM130))) -> 172.9773053 | F153: =IF(F84=0,0,IF($A153="No",F84,NPV(VLOOKUP(LEFT($B153,3),$L$7:$O$12,4,FALSE),G130:$BM130))) -> 134.154731 | G153: =IF(G84=0,0,IF($A153="No",G84,NPV(VLOOKUP(LEFT($B153,3),$L$7:$O$12,4,FALSE),H130:$BM130))) -> 96.6622735 | H153: =IF(H84=0,0,IF($A153="No",H84,NPV(VLOOKUP(LEFT($B153,3),$L$7:$O$12,4,FALSE),I130:$BM130))) -> 58.49519847 | I153: =IF(I84=0,0,IF($A153="No",I84,NPV(VLOOKUP(LEFT($B153,3),$L$7:$O$12,4,FALSE),J130:$BM130))) -> 19.61977499 | J153: =IF(J84=0,0,IF($A153="No",J84,NPV(VLOOKUP(LEFT($B153,3),$L$7:$O$12,4,FALSE),K130:$BM130))) -> 0.0005856424302 | K153: =IF(K84=0,0,IF($A153="No",K84,NPV(VLOOKUP(LEFT($B153,3),$L$7:$O$12,4,FALSE),L130:$BM130))) -> 0.0004421322395 | L153: =IF(L84=0,0,IF($A153="No",L84,NPV(VLOOKUP(LEFT($B153,3),$L$7:$O$12,4,FALSE),M130:$BM130))) -> 0.0002967515663 | M153: =IF(M84=0,0,IF($A153="No",M84,NPV(VLOOKUP(LEFT($B153,3),$L$7:$O$12,4,FALSE),N130:$BM130))) -> 0.0001494068866 | N153: =IF(N84=0,0,IF($A153="No",N84,NPV(VLOOKUP(LEFT($B153,3),$L$7:$O$12,4,FALSE),O130:$BM130))) -> -1.376299402e-19 | O153: =IF(O84=0,0,IF($A153="No",O84,NPV(VLOOKUP(LEFT($B153,3),$L$7:$O$12,4,FALSE),P130:$BM130))) -> -1.365533586e-19 | P153: =IF(P84=0,0,IF($A153="No",P84,NPV(VLOOKUP(LEFT($B153,3),$L$7:$O$12,4,FALSE),Q130:$BM130))) -> -1.354229479e-19 | Q153: =IF(Q84=0,0,IF($A153="No",Q84,NPV(VLOOKUP(LEFT($B153,3),$L$7:$O$12,4,FALSE),R130:$BM130))) -> -1.342360166e-19 | R153: =IF(R84=0,0,IF($A153="No",R84,NPV(VLOOKUP(LEFT($B153,3),$L$7:$O$12,4,FALSE),S130:$BM130))) -> -1.329897388e-19 | S153: =IF(S84=0,0,IF($A153="No",S84,NPV(VLOOKUP(LEFT($B153,3),$L$7:$O$12,4,FALSE),T130:$BM130))) -> -1.316811471e-19 | T153: =IF(T84=0,0,IF($A153="No",T84,NPV(VLOOKUP(LEFT($B153,3),$L$7:$O$12,4,FALSE),U130:$BM130))) -> -1.303071259e-19 | U153: =IF(U84=0,0,IF($A153="No",U84,NPV(VLOOKUP(LEFT($B153,3),$L$7:$O$12,4,FALSE),V130:$BM130))) -> -1.288644035e-19 | V153: =IF(V84=0,0,IF($A153="No",V84,NPV(VLOOKUP(LEFT($B153,3),$L$7:$O$12,4,FALSE),W130:$BM130))) -> -1.27349545e-19 | W153: =IF(W84=0,0,IF($A153="No",W84,NPV(VLOOKUP(LEFT($B153,3),$L$7:$O$12,4,FALSE),X130:$BM130))) -> -1.257589437e-19 | X153: =IF(X84=0,0,IF($A153="No",X84,NPV(VLOOKUP(LEFT($B153,3),$L$7:$O$12,4,FALSE),Y130:$BM130))) -> -1.240888122e-19 | Y153: =IF(Y84=0,0,IF($A153="No",Y84,NPV(VLOOKUP(LEFT($B153,3),$L$7:$O$12,4,FALSE),Z130:$BM130))) -> -1.223351742e-19 | Z153: =IF(Z84=0,0,IF($A153="No",Z84,NPV(VLOOKUP(LEFT($B153,3),$L$7:$O$12,4,FALSE),AA130:$BM130))) -> -1.204938542e-19 | AA153: =IF(AA84=0,0,IF($A153="No",AA84,NPV(VLOOKUP(LEFT($B153,3),$L$7:$O$12,4,FALSE),AB130:$BM130))) -> -1.185604683e-19 | AB153: =IF(AB84=0,0,IF($A153="No",AB84,NPV(VLOOKUP(LEFT($B153,3),$L$7:$O$12,4,FALSE),AC130:$BM130))) -> -1.165304131e-19 | AC153: =IF(AC84=0,0,IF($A153="No",AC84,NPV(VLOOKUP(LEFT($B153,3),$L$7:$O$12,4,FALSE),AD130:$BM130))) -> -1.143988551e-19 | AD153: =IF(AD84=0,0,IF($A153="No",AD84,NPV(VLOOKUP(LEFT($B153,3),$L$7:$O$12,4,FALSE),AE130:$BM130))) -> -1.121607192e-19 | AE153: =IF(AE84=0,0,IF($A153="No",AE84,NPV(VLOOKUP(LEFT($B153,3),$L$7:$O$12,4,FALSE),AF130:$BM130))) -> -1.098106765e-19 | AF153: =IF(AF84=0,0,IF($A153="No",AF84,NPV(VLOOKUP(LEFT($B153,3),$L$7:$O$12,4,FALSE),AG130:$BM130))) -> -1.073431317e-19 | AG153: =IF(AG84=0,0,IF($A153="No",AG84,NPV(VLOOKUP(LEFT($B153,3),$L$7:$O$12,4,FALSE),AH130:$BM130))) -> -1.047522097e-19 | AH153: =IF(AH84=0,0,IF($A153="No",AH84,NPV(VLOOKUP(LEFT($B153,3),$L$7:$O$12,4,FALSE),AI130:$BM130))) -> -1.020317415e-19 | AI153: =IF(AI84=0,0,IF($A153="No",AI84,NPV(VLOOKUP(LEFT($B153,3),$L$7:$O$12,4,FALSE),AJ130:$BM130))) -> -9.917524994e-20 | AJ153: =IF(AJ84=0,0,IF($A153="No",AJ84,NPV(VLOOKUP(LEFT($B153,3),$L$7:$O$12,4,FALSE),AK130:$BM130))) -> -9.61759338e-20 | AK153: =IF(AK84=0,0,IF($A153="No",AK84,NPV(VLOOKUP(LEFT($B153,3),$L$7:$O$12,4,FALSE),AL130:$BM130))) -> -9.302665185e-20 | AL153: =IF(AL84=0,0,IF($A153="No",AL84,NPV(VLOOKUP(LEFT($B153,3),$L$7:$O$12,4,FALSE),AM130:$BM130))) -> -8.97199058e-20 | AM153: =IF(AM84=0,0,IF($A153="No",AM84,NPV(VLOOKUP(LEFT($B153,3),$L$7:$O$12,4,FALSE),AN130:$BM130))) -> -8.624782245e-20 | AN153: =IF(AN84=0,0,IF($A153="No",AN84,NPV(VLOOKUP(LEFT($B153,3),$L$7:$O$12,4,FALSE),AO130:$BM130))) -> -8.260213493e-20 | AO153: =IF(AO84=0,0,IF($A153="No",AO84,NPV(VLOOKUP(LEFT($B153,3),$L$7:$O$12,4,FALSE),AP130:$BM130))) -> -7.877416304e-20 | AP153: =IF(AP84=0,0,IF($A153="No",AP84,NPV(VLOOKUP(LEFT($B153,3),$L$7:$O$12,4,FALSE),AQ130:$BM130))) -> -7.475479255e-20 | AQ153: =IF(AQ84=0,0,IF($A153="No",AQ84,NPV(VLOOKUP(LEFT($B153,3),$L$7:$O$12,4,FALSE),AR130:$BM130))) -> -7.053445353e-20 | AR153: =IF(AR84=0,0,IF($A153="No",AR84,NPV(VLOOKUP(LEFT($B153,3),$L$7:$O$12,4,FALSE),AS130:$BM130))) -> -6.610309757e-20 | AS153: =IF(AS84=0,0,IF($A153="No",AS84,NPV(VLOOKUP(LEFT($B153,3),$L$7:$O$12,4,FALSE),AT130:$BM130))) -> -6.145017381e-20 | AT153: =IF(AT84=0,0,IF($A153="No",AT84,NPV(VLOOKUP(LEFT($B153,3),$L$7:$O$12,4,FALSE),AU130:$BM130))) -> -5.656460386e-20 | AU153: =IF(AU84=0,0,IF($A153="No",AU84,NPV(VLOOKUP(LEFT($B153,3),$L$7:$O$12,4,FALSE),AV130:$BM130))) -> -5.143475541e-20 | AV153: =IF(AV84=0,0,IF($A153="No",AV84,NPV(VLOOKUP(LEFT($B153,3),$L$7:$O$12,4,FALSE),AW130:$BM130))) -> -4.604841454e-20 | AW153: =IF(AW84=0,0,IF($A153="No",AW84,NPV(VLOOKUP(LEFT($B153,3),$L$7:$O$12,4,FALSE),AX130:$BM130))) -> -4.039275663e-20 | AX153: =IF(AX84=0,0,IF($A153="No",AX84,NPV(VLOOKUP(LEFT($B153,3),$L$7:$O$12,4,FALSE),AY130:$BM130))) -> -3.445431582e-20 | AY153: =IF(AY84=0,0,IF($A153="No",AY84,NPV(VLOOKUP(LEFT($B153,3),$L$7:$O$12,4,FALSE),AZ130:$BM130))) -> -2.821895297e-20 | AZ153: =IF(AZ84=0,0,IF($A153="No",AZ84,NPV(VLOOKUP(LEFT($B153,3),$L$7:$O$12,4,FALSE),BA130:$BM130))) -> -2.167182198e-20 | BA153: =IF(BA84=0,0,IF($A153="No",BA84,NPV(VLOOKUP(LEFT($B153,3),$L$7:$O$12,4,FALSE),BB130:$BM130))) -> -1.479733443e-20 | BB153: =IF(BB84=0,0,IF($A153="No",BB84,NPV(VLOOKUP(LEFT($B153,3),$L$7:$O$12,4,FALSE),BC130:$BM130))) -> -7.579122515e-21 | BC153: =IF(BC84=0,0,IF($A153="No",BC84,NPV(VLOOKUP(LEFT($B153,3),$L$7:$O$12,4,FALSE),BD130:$BM130))) -> 0 | BD153: =IF(BD84=0,0,IF($A153="No",BD84,NPV(VLOOKUP(LEFT($B153,3),$L$7:$O$12,4,FALSE),BE130:$BM130))) -> 0 | BE153: =IF(BE84=0,0,IF($A153="No",BE84,NPV(VLOOKUP(LEFT($B153,3),$L$7:$O$12,4,FALSE),BF130:$BM130))) -> 0 | BF153: =IF(BF84=0,0,IF($A153="No",BF84,NPV(VLOOKUP(LEFT($B153,3),$L$7:$O$12,4,FALSE),BG130:$BM130))) -> 0 | BG153: =IF(BG84=0,0,IF($A153="No",BG84,NPV(VLOOKUP(LEFT($B153,3),$L$7:$O$12,4,FALSE),BH130:$BM130))) -> 0 | BH153: =IF(BH84=0,0,IF($A153="No",BH84,NPV(VLOOKUP(LEFT($B153,3),$L$7:$O$12,4,FALSE),BI130:$BM130))) -> 0 | BI153: =IF(BI84=0,0,IF($A153="No",BI84,NPV(VLOOKUP(LEFT($B153,3),$L$7:$O$12,4,FALSE),BJ130:$BM130))) -> 0 | BJ153: =IF(BJ84=0,0,IF($A153="No",BJ84,NPV(VLOOKUP(LEFT($B153,3),$L$7:$O$12,4,FALSE),BK130:$BM130))) -> 0 | BK153: =IF(BK84=0,0,IF($A153="No",BK84,NPV(VLOOKUP(LEFT($B153,3),$L$7:$O$12,4,FALSE),BL130:$BM130))) -> 0 | BL153: =IF(BL84=0,0,IF($A153="No",BL84,NPV(VLOOKUP(LEFT($B153,3),$L$7:$O$12,4,FALSE),BM130:$BM130))) -> 0 | BM153: =IF(BM84=0,0,IF($A153="No",BM84,NPV(VLOOKUP(LEFT($B153,3),$L$7:$O$12,4,FALSE),$BM130:BN130))) -> 0
A154: No | B154: =$C$12 -> USD_6 | E154: =IF(E85=0,0,IF($A154="No",E85,NPV(VLOOKUP(LEFT($B154,3),$L$7:$O$12,4,FALSE),F131:$BM131))) -> 203.4345549 | F154: =IF(F85=0,0,IF($A154="No",F85,NPV(VLOOKUP(LEFT($B154,3),$L$7:$O$12,4,FALSE),G131:$BM131))) -> 165.5727962 | G154: =IF(G85=0,0,IF($A154="No",G85,NPV(VLOOKUP(LEFT($B154,3),$L$7:$O$12,4,FALSE),H131:$BM131))) -> 114.2104799 | H154: =IF(H85=0,0,IF($A154="No",H85,NPV(VLOOKUP(LEFT($B154,3),$L$7:$O$12,4,FALSE),I131:$BM131))) -> 83.07067821 | I154: =IF(I85=0,0,IF($A154="No",I85,NPV(VLOOKUP(LEFT($B154,3),$L$7:$O$12,4,FALSE),J131:$BM131))) -> 52.43087648 | J154: =IF(J85=0,0,IF($A154="No",J85,NPV(VLOOKUP(LEFT($B154,3),$L$7:$O$12,4,FALSE),K131:$BM131))) -> 35.37904632 | K154: =IF(K85=0,0,IF($A154="No",K85,NPV(VLOOKUP(LEFT($B154,3),$L$7:$O$12,4,FALSE),L131:$BM131))) -> 16.98952316 | L154: =IF(L85=0,0,IF($A154="No",L85,NPV(VLOOKUP(LEFT($B154,3),$L$7:$O$12,4,FALSE),M131:$BM131))) -> 0 | M154: =IF(M85=0,0,IF($A154="No",M85,NPV(VLOOKUP(LEFT($B154,3),$L$7:$O$12,4,FALSE),N131:$BM131))) -> 0 | N154: =IF(N85=0,0,IF($A154="No",N85,NPV(VLOOKUP(LEFT($B154,3),$L$7:$O$12,4,FALSE),O131:$BM131))) -> 0 | O154: =IF(O85=0,0,IF($A154="No",O85,NPV(VLOOKUP(LEFT($B154,3),$L$7:$O$12,4,FALSE),P131:$BM131))) -> 0 | P154: =IF(P85=0,0,IF($A154="No",P85,NPV(VLOOKUP(LEFT($B154,3),$L$7:$O$12,4,FALSE),Q131:$BM131))) -> 0 | Q154: =IF(Q85=0,0,IF($A154="No",Q85,NPV(VLOOKUP(LEFT($B154,3),$L$7:$O$12,4,FALSE),R131:$BM131))) -> 0 | R154: =IF(R85=0,0,IF($A154="No",R85,NPV(VLOOKUP(LEFT($B154,3),$L$7:$O$12,4,FALSE),S131:$BM131))) -> 0 | S154: =IF(S85=0,0,IF($A154="No",S85,NPV(VLOOKUP(LEFT($B154,3),$L$7:$O$12,4,FALSE),T131:$BM131))) -> 0 | T154: =IF(T85=0,0,IF($A154="No",T85,NPV(VLOOKUP(LEFT($B154,3),$L$7:$O$12,4,FALSE),U131:$BM131))) -> 0 | U154: =IF(U85=0,0,IF($A154="No",U85,NPV(VLOOKUP(LEFT($B154,3),$L$7:$O$12,4,FALSE),V131:$BM131))) -> 0 | V154: =IF(V85=0,0,IF($A154="No",V85,NPV(VLOOKUP(LEFT($B154,3),$L$7:$O$12,4,FALSE),W131:$BM131))) -> 0 | W154: =IF(W85=0,0,IF($A154="No",W85,NPV(VLOOKUP(LEFT($B154,3),$L$7:$O$12,4,FALSE),X131:$BM131))) -> 0 | X154: =IF(X85=0,0,IF($A154="No",X85,NPV(VLOOKUP(LEFT($B154,3),$L$7:$O$12,4,FALSE),Y131:$BM131))) -> 0 | Y154: =IF(Y85=0,0,IF($A154="No",Y85,NPV(VLOOKUP(LEFT($B154,3),$L$7:$O$12,4,FALSE),Z131:$BM131))) -> 0 | Z154: =IF(Z85=0,0,IF($A154="No",Z85,NPV(VLOOKUP(LEFT($B154,3),$L$7:$O$12,4,FALSE),AA131:$BM131))) -> 0 | AA154: =IF(AA85=0,0,IF($A154="No",AA85,NPV(VLOOKUP(LEFT($B154,3),$L$7:$O$12,4,FALSE),AB131:$BM131))) -> 0 | AB154: =IF(AB85=0,0,IF($A154="No",AB85,NPV(VLOOKUP(LEFT($B154,3),$L$7:$O$12,4,FALSE),AC131:$BM131))) -> 0 | AC154: =IF(AC85=0,0,IF($A154="No",AC85,NPV(VLOOKUP(LEFT($B154,3),$L$7:$O$12,4,FALSE),AD131:$BM131))) -> 0 | AD154: =IF(AD85=0,0,IF($A154="No",AD85,NPV(VLOOKUP(LEFT($B154,3),$L$7:$O$12,4,FALSE),AE131:$BM131))) -> 0 | AE154: =IF(AE85=0,0,IF($A154="No",AE85,NPV(VLOOKUP(LEFT($B154,3),$L$7:$O$12,4,FALSE),AF131:$BM131))) -> 0 | AF154: =IF(AF85=0,0,IF($A154="No",AF85,NPV(VLOOKUP(LEFT($B154,3),$L$7:$O$12,4,FALSE),AG131:$BM131))) -> 0 | AG154: =IF(AG85=0,0,IF($A154="No",AG85,NPV(VLOOKUP(LEFT($B154,3),$L$7:$O$12,4,FALSE),AH131:$BM131))) -> 0 | AH154: =IF(AH85=0,0,IF($A154="No",AH85,NPV(VLOOKUP(LEFT($B154,3),$L$7:$O$12,4,FALSE),AI131:$BM131))) -> 0 | AI154: =IF(AI85=0,0,IF($A154="No",AI85,NPV(VLOOKUP(LEFT($B154,3),$L$7:$O$12,4,FALSE),AJ131:$BM131))) -> 0 | AJ154: =IF(AJ85=0,0,IF($A154="No",AJ85,NPV(VLOOKUP(LEFT($B154,3),$L$7:$O$12,4,FALSE),AK131:$BM131))) -> 0 | AK154: =IF(AK85=0,0,IF($A154="No",AK85,NPV(VLOOKUP(LEFT($B154,3),$L$7:$O$12,4,FALSE),AL131:$BM131))) -> 0 | AL154: =IF(AL85=0,0,IF($A154="No",AL85,NPV(VLOOKUP(LEFT($B154,3),$L$7:$O$12,4,FALSE),AM131:$BM131))) -> 0 | AM154: =IF(AM85=0,0,IF($A154="No",AM85,NPV(VLOOKUP(LEFT($B154,3),$L$7:$O$12,4,FALSE),AN131:$BM131))) -> 0 | AN154: =IF(AN85=0,0,IF($A154="No",AN85,NPV(VLOOKUP(LEFT($B154,3),$L$7:$O$12,4,FALSE),AO131:$BM131))) -> 0 | AO154: =IF(AO85=0,0,IF($A154="No",AO85,NPV(VLOOKUP(LEFT($B154,3),$L$7:$O$12,4,FALSE),AP131:$BM131))) -> 0 | AP154: =IF(AP85=0,0,IF($A154="No",AP85,NPV(VLOOKUP(LEFT($B154,3),$L$7:$O$12,4,FALSE),AQ131:$BM131))) -> 0 | AQ154: =IF(AQ85=0,0,IF($A154="No",AQ85,NPV(VLOOKUP(LEFT($B154,3),$L$7:$O$12,4,FALSE),AR131:$BM131))) -> 0 | AR154: =IF(AR85=0,0,IF($A154="No",AR85,NPV(VLOOKUP(LEFT($B154,3),$L$7:$O$12,4,FALSE),AS131:$BM131))) -> 0 | AS154: =IF(AS85=0,0,IF($A154="No",AS85,NPV(VLOOKUP(LEFT($B154,3),$L$7:$O$12,4,FALSE),AT131:$BM131))) -> 0 | AT154: =IF(AT85=0,0,IF($A154="No",AT85,NPV(VLOOKUP(LEFT($B154,3),$L$7:$O$12,4,FALSE),AU131:$BM131))) -> 0 | AU154: =IF(AU85=0,0,IF($A154="No",AU85,NPV(VLOOKUP(LEFT($B154,3),$L$7:$O$12,4,FALSE),AV131:$BM131))) -> 0 | AV154: =IF(AV85=0,0,IF($A154="No",AV85,NPV(VLOOKUP(LEFT($B154,3),$L$7:$O$12,4,FALSE),AW131:$BM131))) -> 0 | AW154: =IF(AW85=0,0,IF($A154="No",AW85,NPV(VLOOKUP(LEFT($B154,3),$L$7:$O$12,4,FALSE),AX131:$BM131))) -> 0 | AX154: =IF(AX85=0,0,IF($A154="No",AX85,NPV(VLOOKUP(LEFT($B154,3),$L$7:$O$12,4,FALSE),AY131:$BM131))) -> 0 | AY154: =IF(AY85=0,0,IF($A154="No",AY85,NPV(VLOOKUP(LEFT($B154,3),$L$7:$O$12,4,FALSE),AZ131:$BM131))) -> 0 | AZ154: =IF(AZ85=0,0,IF($A154="No",AZ85,NPV(VLOOKUP(LEFT($B154,3),$L$7:$O$12,4,FALSE),BA131:$BM131))) -> 0 | BA154: =IF(BA85=0,0,IF($A154="No",BA85,NPV(VLOOKUP(LEFT($B154,3),$L$7:$O$12,4,FALSE),BB131:$BM131))) -> 0 | BB154: =IF(BB85=0,0,IF($A154="No",BB85,NPV(VLOOKUP(LEFT($B154,3),$L$7:$O$12,4,FALSE),BC131:$BM131))) -> 0 | BC154: =IF(BC85=0,0,IF($A154="No",BC85,NPV(VLOOKUP(LEFT($B154,3),$L$7:$O$12,4,FALSE),BD131:$BM131))) -> 0 | BD154: =IF(BD85=0,0,IF($A154="No",BD85,NPV(VLOOKUP(LEFT($B154,3),$L$7:$O$12,4,FALSE),BE131:$BM131))) -> 0 | BE154: =IF(BE85=0,0,IF($A154="No",BE85,NPV(VLOOKUP(LEFT($B154,3),$L$7:$O$12,4,FALSE),BF131:$BM131))) -> 0 | BF154: =IF(BF85=0,0,IF($A154="No",BF85,NPV(VLOOKUP(LEFT($B154,3),$L$7:$O$12,4,FALSE),BG131:$BM131))) -> 0 | BG154: =IF(BG85=0,0,IF($A154="No",BG85,NPV(VLOOKUP(LEFT($B154,3),$L$7:$O$12,4,FALSE),BH131:$BM131))) -> 0 | BH154: =IF(BH85=0,0,IF($A154="No",BH85,NPV(VLOOKUP(LEFT($B154,3),$L$7:$O$12,4,FALSE),BI131:$BM131))) -> 0 | BI154: =IF(BI85=0,0,IF($A154="No",BI85,NPV(VLOOKUP(LEFT($B154,3),$L$7:$O$12,4,FALSE),BJ131:$BM131))) -> 0 | BJ154: =IF(BJ85=0,0,IF($A154="No",BJ85,NPV(VLOOKUP(LEFT($B154,3),$L$7:$O$12,4,FALSE),BK131:$BM131))) -> 0 | BK154: =IF(BK85=0,0,IF($A154="No",BK85,NPV(VLOOKUP(LEFT($B154,3),$L$7:$O$12,4,FALSE),BL131:$BM131))) -> 0 | BL154: =IF(BL85=0,0,IF($A154="No",BL85,NPV(VLOOKUP(LEFT($B154,3),$L$7:$O$12,4,FALSE),BM131:$BM131))) -> 0 | BM154: =IF(BM85=0,0,IF($A154="No",BM85,NPV(VLOOKUP(LEFT($B154,3),$L$7:$O$12,4,FALSE),$BM131:BN131))) -> 0
A155: 0 | B155: =$C$13 -> USD_7 | E155: =IF(E86=0,0,IF($A155="No",E86,NPV(VLOOKUP(LEFT($B155,3),$L$7:$O$12,4,FALSE),F132:$BM132))) -> 0 | F155: =IF(F86=0,0,IF($A155="No",F86,NPV(VLOOKUP(LEFT($B155,3),$L$7:$O$12,4,FALSE),G132:$BM132))) -> 0 | G155: =IF(G86=0,0,IF($A155="No",G86,NPV(VLOOKUP(LEFT($B155,3),$L$7:$O$12,4,FALSE),H132:$BM132))) -> 0 | H155: =IF(H86=0,0,IF($A155="No",H86,NPV(VLOOKUP(LEFT($B155,3),$L$7:$O$12,4,FALSE),I132:$BM132))) -> 0 | I155: =IF(I86=0,0,IF($A155="No",I86,NPV(VLOOKUP(LEFT($B155,3),$L$7:$O$12,4,FALSE),J132:$BM132))) -> 0 | J155: =IF(J86=0,0,IF($A155="No",J86,NPV(VLOOKUP(LEFT($B155,3),$L$7:$O$12,4,FALSE),K132:$BM132))) -> 0 | K155: =IF(K86=0,0,IF($A155="No",K86,NPV(VLOOKUP(LEFT($B155,3),$L$7:$O$12,4,FALSE),L132:$BM132))) -> 0 | L155: =IF(L86=0,0,IF($A155="No",L86,NPV(VLOOKUP(LEFT($B155,3),$L$7:$O$12,4,FALSE),M132:$BM132))) -> 0 | M155: =IF(M86=0,0,IF($A155="No",M86,NPV(VLOOKUP(LEFT($B155,3),$L$7:$O$12,4,FALSE),N132:$BM132))) -> 0 | N155: =IF(N86=0,0,IF($A155="No",N86,NPV(VLOOKUP(LEFT($B155,3),$L$7:$O$12,4,FALSE),O132:$BM132))) -> 0 | O155: =IF(O86=0,0,IF($A155="No",O86,NPV(VLOOKUP(LEFT($B155,3),$L$7:$O$12,4,FALSE),P132:$BM132))) -> 0 | P155: =IF(P86=0,0,IF($A155="No",P86,NPV(VLOOKUP(LEFT($B155,3),$L$7:$O$12,4,FALSE),Q132:$BM132))) -> 0 | Q155: =IF(Q86=0,0,IF($A155="No",Q86,NPV(VLOOKUP(LEFT($B155,3),$L$7:$O$12,4,FALSE),R132:$BM132))) -> 0 | R155: =IF(R86=0,0,IF($A155="No",R86,NPV(VLOOKUP(LEFT($B155,3),$L$7:$O$12,4,FALSE),S132:$BM132))) -> 0 | S155: =IF(S86=0,0,IF($A155="No",S86,NPV(VLOOKUP(LEFT($B155,3),$L$7:$O$12,4,FALSE),T132:$BM132))) -> 0 | T155: =IF(T86=0,0,IF($A155="No",T86,NPV(VLOOKUP(LEFT($B155,3),$L$7:$O$12,4,FALSE),U132:$BM132))) -> 0 | U155: =IF(U86=0,0,IF($A155="No",U86,NPV(VLOOKUP(LEFT($B155,3),$L$7:$O$12,4,FALSE),V132:$BM132))) -> 0 | V155: =IF(V86=0,0,IF($A155="No",V86,NPV(VLOOKUP(LEFT($B155,3),$L$7:$O$12,4,FALSE),W132:$BM132))) -> 0 | W155: =IF(W86=0,0,IF($A155="No",W86,NPV(VLOOKUP(LEFT($B155,3),$L$7:$O$12,4,FALSE),X132:$BM132))) -> 0 | X155: =IF(X86=0,0,IF($A155="No",X86,NPV(VLOOKUP(LEFT($B155,3),$L$7:$O$12,4,FALSE),Y132:$BM132))) -> 0 | Y155: =IF(Y86=0,0,IF($A155="No",Y86,NPV(VLOOKUP(LEFT($B155,3),$L$7:$O$12,4,FALSE),Z132:$BM132))) -> 0 | Z155: =IF(Z86=0,0,IF($A155="No",Z86,NPV(VLOOKUP(LEFT($B155,3),$L$7:$O$12,4,FALSE),AA132:$BM132))) -> 0 | AA155: =IF(AA86=0,0,IF($A155="No",AA86,NPV(VLOOKUP(LEFT($B155,3),$L$7:$O$12,4,FALSE),AB132:$BM132))) -> 0 | AB155: =IF(AB86=0,0,IF($A155="No",AB86,NPV(VLOOKUP(LEFT($B155,3),$L$7:$O$12,4,FALSE),AC132:$BM132))) -> 0 | AC155: =IF(AC86=0,0,IF($A155="No",AC86,NPV(VLOOKUP(LEFT($B155,3),$L$7:$O$12,4,FALSE),AD132:$BM132))) -> 0 | AD155: =IF(AD86=0,0,IF($A155="No",AD86,NPV(VLOOKUP(LEFT($B155,3),$L$7:$O$12,4,FALSE),AE132:$BM132))) -> 0 | AE155: =IF(AE86=0,0,IF($A155="No",AE86,NPV(VLOOKUP(LEFT($B155,3),$L$7:$O$12,4,FALSE),AF132:$BM132))) -> 0 | AF155: =IF(AF86=0,0,IF($A155="No",AF86,NPV(VLOOKUP(LEFT($B155,3),$L$7:$O$12,4,FALSE),AG132:$BM132))) -> 0 | AG155: =IF(AG86=0,0,IF($A155="No",AG86,NPV(VLOOKUP(LEFT($B155,3),$L$7:$O$12,4,FALSE),AH132:$BM132))) -> 0 | AH155: =IF(AH86=0,0,IF($A155="No",AH86,NPV(VLOOKUP(LEFT($B155,3),$L$7:$O$12,4,FALSE),AI132:$BM132))) -> 0 | AI155: =IF(AI86=0,0,IF($A155="No",AI86,NPV(VLOOKUP(LEFT($B155,3),$L$7:$O$12,4,FALSE),AJ132:$BM132))) -> 0 | AJ155: =IF(AJ86=0,0,IF($A155="No",AJ86,NPV(VLOOKUP(LEFT($B155,3),$L$7:$O$12,4,FALSE),AK132:$BM132))) -> 0 | AK155: =IF(AK86=0,0,IF($A155="No",AK86,NPV(VLOOKUP(LEFT($B155,3),$L$7:$O$12,4,FALSE),AL132:$BM132))) -> 0 | AL155: =IF(AL86=0,0,IF($A155="No",AL86,NPV(VLOOKUP(LEFT($B155,3),$L$7:$O$12,4,FALSE),AM132:$BM132))) -> 0 | AM155: =IF(AM86=0,0,IF($A155="No",AM86,NPV(VLOOKUP(LEFT($B155,3),$L$7:$O$12,4,FALSE),AN132:$BM132))) -> 0 | AN155: =IF(AN86=0,0,IF($A155="No",AN86,NPV(VLOOKUP(LEFT($B155,3),$L$7:$O$12,4,FALSE),AO132:$BM132))) -> 0 | AO155: =IF(AO86=0,0,IF($A155="No",AO86,NPV(VLOOKUP(LEFT($B155,3),$L$7:$O$12,4,FALSE),AP132:$BM132))) -> 0 | AP155: =IF(AP86=0,0,IF($A155="No",AP86,NPV(VLOOKUP(LEFT($B155,3),$L$7:$O$12,4,FALSE),AQ132:$BM132))) -> 0 | AQ155: =IF(AQ86=0,0,IF($A155="No",AQ86,NPV(VLOOKUP(LEFT($B155,3),$L$7:$O$12,4,FALSE),AR132:$BM132))) -> 0 | AR155: =IF(AR86=0,0,IF($A155="No",AR86,NPV(VLOOKUP(LEFT($B155,3),$L$7:$O$12,4,FALSE),AS132:$BM132))) -> 0 | AS155: =IF(AS86=0,0,IF($A155="No",AS86,NPV(VLOOKUP(LEFT($B155,3),$L$7:$O$12,4,FALSE),AT132:$BM132))) -> 0 | AT155: =IF(AT86=0,0,IF($A155="No",AT86,NPV(VLOOKUP(LEFT($B155,3),$L$7:$O$12,4,FALSE),AU132:$BM132))) -> 0 | AU155: =IF(AU86=0,0,IF($A155="No",AU86,NPV(VLOOKUP(LEFT($B155,3),$L$7:$O$12,4,FALSE),AV132:$BM132))) -> 0 | AV155: =IF(AV86=0,0,IF($A155="No",AV86,NPV(VLOOKUP(LEFT($B155,3),$L$7:$O$12,4,FALSE),AW132:$BM132))) -> 0 | AW155: =IF(AW86=0,0,IF($A155="No",AW86,NPV(VLOOKUP(LEFT($B155,3),$L$7:$O$12,4,FALSE),AX132:$BM132))) -> 0 | AX155: =IF(AX86=0,0,IF($A155="No",AX86,NPV(VLOOKUP(LEFT($B155,3),$L$7:$O$12,4,FALSE),AY132:$BM132))) -> 0 | AY155: =IF(AY86=0,0,IF($A155="No",AY86,NPV(VLOOKUP(LEFT($B155,3),$L$7:$O$12,4,FALSE),AZ132:$BM132))) -> 0 | AZ155: =IF(AZ86=0,0,IF($A155="No",AZ86,NPV(VLOOKUP(LEFT($B155,3),$L$7:$O$12,4,FALSE),BA132:$BM132))) -> 0 | BA155: =IF(BA86=0,0,IF($A155="No",BA86,NPV(VLOOKUP(LEFT($B155,3),$L$7:$O$12,4,FALSE),BB132:$BM132))) -> 0 | BB155: =IF(BB86=0,0,IF($A155="No",BB86,NPV(VLOOKUP(LEFT($B155,3),$L$7:$O$12,4,FALSE),BC132:$BM132))) -> 0 | BC155: =IF(BC86=0,0,IF($A155="No",BC86,NPV(VLOOKUP(LEFT($B155,3),$L$7:$O$12,4,FALSE),BD132:$BM132))) -> 0 | BD155: =IF(BD86=0,0,IF($A155="No",BD86,NPV(VLOOKUP(LEFT($B155,3),$L$7:$O$12,4,FALSE),BE132:$BM132))) -> 0 | BE155: =IF(BE86=0,0,IF($A155="No",BE86,NPV(VLOOKUP(LEFT($B155,3),$L$7:$O$12,4,FALSE),BF132:$BM132))) -> 0 | BF155: =IF(BF86=0,0,IF($A155="No",BF86,NPV(VLOOKUP(LEFT($B155,3),$L$7:$O$12,4,FALSE),BG132:$BM132))) -> 0 | BG155: =IF(BG86=0,0,IF($A155="No",BG86,NPV(VLOOKUP(LEFT($B155,3),$L$7:$O$12,4,FALSE),BH132:$BM132))) -> 0 | BH155: =IF(BH86=0,0,IF($A155="No",BH86,NPV(VLOOKUP(LEFT($B155,3),$L$7:$O$12,4,FALSE),BI132:$BM132))) -> 0 | BI155: =IF(BI86=0,0,IF($A155="No",BI86,NPV(VLOOKUP(LEFT($B155,3),$L$7:$O$12,4,FALSE),BJ132:$BM132))) -> 0 | BJ155: =IF(BJ86=0,0,IF($A155="No",BJ86,NPV(VLOOKUP(LEFT($B155,3),$L$7:$O$12,4,FALSE),BK132:$BM132))) -> 0 | BK155: =IF(BK86=0,0,IF($A155="No",BK86,NPV(VLOOKUP(LEFT($B155,3),$L$7:$O$12,4,FALSE),BL132:$BM132))) -> 0 | BL155: =IF(BL86=0,0,IF($A155="No",BL86,NPV(VLOOKUP(LEFT($B155,3),$L$7:$O$12,4,FALSE),BM132:$BM132))) -> 0 | BM155: =IF(BM86=0,0,IF($A155="No",BM86,NPV(VLOOKUP(LEFT($B155,3),$L$7:$O$12,4,FALSE),$BM132:BN132))) -> 0
A156: 0 | B156: =$C$14 -> USD_8 | E156: =IF(E87=0,0,IF($A156="No",E87,NPV(VLOOKUP(LEFT($B156,3),$L$7:$O$12,4,FALSE),F133:$BM133))) -> 0 | F156: =IF(F87=0,0,IF($A156="No",F87,NPV(VLOOKUP(LEFT($B156,3),$L$7:$O$12,4,FALSE),G133:$BM133))) -> 0 | G156: =IF(G87=0,0,IF($A156="No",G87,NPV(VLOOKUP(LEFT($B156,3),$L$7:$O$12,4,FALSE),H133:$BM133))) -> 0 | H156: =IF(H87=0,0,IF($A156="No",H87,NPV(VLOOKUP(LEFT($B156,3),$L$7:$O$12,4,FALSE),I133:$BM133))) -> 0 | I156: =IF(I87=0,0,IF($A156="No",I87,NPV(VLOOKUP(LEFT($B156,3),$L$7:$O$12,4,FALSE),J133:$BM133))) -> 0 | J156: =IF(J87=0,0,IF($A156="No",J87,NPV(VLOOKUP(LEFT($B156,3),$L$7:$O$12,4,FALSE),K133:$BM133))) -> 0 | K156: =IF(K87=0,0,IF($A156="No",K87,NPV(VLOOKUP(LEFT($B156,3),$L$7:$O$12,4,FALSE),L133:$BM133))) -> 0 | L156: =IF(L87=0,0,IF($A156="No",L87,NPV(VLOOKUP(LEFT($B156,3),$L$7:$O$12,4,FALSE),M133:$BM133))) -> 0 | M156: =IF(M87=0,0,IF($A156="No",M87,NPV(VLOOKUP(LEFT($B156,3),$L$7:$O$12,4,FALSE),N133:$BM133))) -> 0 | N156: =IF(N87=0,0,IF($A156="No",N87,NPV(VLOOKUP(LEFT($B156,3),$L$7:$O$12,4,FALSE),O133:$BM133))) -> 0 | O156: =IF(O87=0,0,IF($A156="No",O87,NPV(VLOOKUP(LEFT($B156,3),$L$7:$O$12,4,FALSE),P133:$BM133))) -> 0 | P156: =IF(P87=0,0,IF($A156="No",P87,NPV(VLOOKUP(LEFT($B156,3),$L$7:$O$12,4,FALSE),Q133:$BM133))) -> 0 | Q156: =IF(Q87=0,0,IF($A156="No",Q87,NPV(VLOOKUP(LEFT($B156,3),$L$7:$O$12,4,FALSE),R133:$BM133))) -> 0 | R156: =IF(R87=0,0,IF($A156="No",R87,NPV(VLOOKUP(LEFT($B156,3),$L$7:$O$12,4,FALSE),S133:$BM133))) -> 0 | S156: =IF(S87=0,0,IF($A156="No",S87,NPV(VLOOKUP(LEFT($B156,3),$L$7:$O$12,4,FALSE),T133:$BM133))) -> 0 | T156: =IF(T87=0,0,IF($A156="No",T87,NPV(VLOOKUP(LEFT($B156,3),$L$7:$O$12,4,FALSE),U133:$BM133))) -> 0 | U156: =IF(U87=0,0,IF($A156="No",U87,NPV(VLOOKUP(LEFT($B156,3),$L$7:$O$12,4,FALSE),V133:$BM133))) -> 0 | V156: =IF(V87=0,0,IF($A156="No",V87,NPV(VLOOKUP(LEFT($B156,3),$L$7:$O$12,4,FALSE),W133:$BM133))) -> 0 | W156: =IF(W87=0,0,IF($A156="No",W87,NPV(VLOOKUP(LEFT($B156,3),$L$7:$O$12,4,FALSE),X133:$BM133))) -> 0 | X156: =IF(X87=0,0,IF($A156="No",X87,NPV(VLOOKUP(LEFT($B156,3),$L$7:$O$12,4,FALSE),Y133:$BM133))) -> 0 | Y156: =IF(Y87=0,0,IF($A156="No",Y87,NPV(VLOOKUP(LEFT($B156,3),$L$7:$O$12,4,FALSE),Z133:$BM133))) -> 0 | Z156: =IF(Z87=0,0,IF($A156="No",Z87,NPV(VLOOKUP(LEFT($B156,3),$L$7:$O$12,4,FALSE),AA133:$BM133))) -> 0 | AA156: =IF(AA87=0,0,IF($A156="No",AA87,NPV(VLOOKUP(LEFT($B156,3),$L$7:$O$12,4,FALSE),AB133:$BM133))) -> 0 | AB156: =IF(AB87=0,0,IF($A156="No",AB87,NPV(VLOOKUP(LEFT($B156,3),$L$7:$O$12,4,FALSE),AC133:$BM133))) -> 0 | AC156: =IF(AC87=0,0,IF($A156="No",AC87,NPV(VLOOKUP(LEFT($B156,3),$L$7:$O$12,4,FALSE),AD133:$BM133))) -> 0 | AD156: =IF(AD87=0,0,IF($A156="No",AD87,NPV(VLOOKUP(LEFT($B156,3),$L$7:$O$12,4,FALSE),AE133:$BM133))) -> 0 | AE156: =IF(AE87=0,0,IF($A156="No",AE87,NPV(VLOOKUP(LEFT($B156,3),$L$7:$O$12,4,FALSE),AF133:$BM133))) -> 0 | AF156: =IF(AF87=0,0,IF($A156="No",AF87,NPV(VLOOKUP(LEFT($B156,3),$L$7:$O$12,4,FALSE),AG133:$BM133))) -> 0 | AG156: =IF(AG87=0,0,IF($A156="No",AG87,NPV(VLOOKUP(LEFT($B156,3),$L$7:$O$12,4,FALSE),AH133:$BM133))) -> 0 | AH156: =IF(AH87=0,0,IF($A156="No",AH87,NPV(VLOOKUP(LEFT($B156,3),$L$7:$O$12,4,FALSE),AI133:$BM133))) -> 0 | AI156: =IF(AI87=0,0,IF($A156="No",AI87,NPV(VLOOKUP(LEFT($B156,3),$L$7:$O$12,4,FALSE),AJ133:$BM133))) -> 0 | AJ156: =IF(AJ87=0,0,IF($A156="No",AJ87,NPV(VLOOKUP(LEFT($B156,3),$L$7:$O$12,4,FALSE),AK133:$BM133))) -> 0 | AK156: =IF(AK87=0,0,IF($A156="No",AK87,NPV(VLOOKUP(LEFT($B156,3),$L$7:$O$12,4,FALSE),AL133:$BM133))) -> 0 | AL156: =IF(AL87=0,0,IF($A156="No",AL87,NPV(VLOOKUP(LEFT($B156,3),$L$7:$O$12,4,FALSE),AM133:$BM133))) -> 0 | AM156: =IF(AM87=0,0,IF($A156="No",AM87,NPV(VLOOKUP(LEFT($B156,3),$L$7:$O$12,4,FALSE),AN133:$BM133))) -> 0 | AN156: =IF(AN87=0,0,IF($A156="No",AN87,NPV(VLOOKUP(LEFT($B156,3),$L$7:$O$12,4,FALSE),AO133:$BM133))) -> 0 | AO156: =IF(AO87=0,0,IF($A156="No",AO87,NPV(VLOOKUP(LEFT($B156,3),$L$7:$O$12,4,FALSE),AP133:$BM133))) -> 0 | AP156: =IF(AP87=0,0,IF($A156="No",AP87,NPV(VLOOKUP(LEFT($B156,3),$L$7:$O$12,4,FALSE),AQ133:$BM133))) -> 0 | AQ156: =IF(AQ87=0,0,IF($A156="No",AQ87,NPV(VLOOKUP(LEFT($B156,3),$L$7:$O$12,4,FALSE),AR133:$BM133))) -> 0 | AR156: =IF(AR87=0,0,IF($A156="No",AR87,NPV(VLOOKUP(LEFT($B156,3),$L$7:$O$12,4,FALSE),AS133:$BM133))) -> 0 | AS156: =IF(AS87=0,0,IF($A156="No",AS87,NPV(VLOOKUP(LEFT($B156,3),$L$7:$O$12,4,FALSE),AT133:$BM133))) -> 0 | AT156: =IF(AT87=0,0,IF($A156="No",AT87,NPV(VLOOKUP(LEFT($B156,3),$L$7:$O$12,4,FALSE),AU133:$BM133))) -> 0 | AU156: =IF(AU87=0,0,IF($A156="No",AU87,NPV(VLOOKUP(LEFT($B156,3),$L$7:$O$12,4,FALSE),AV133:$BM133))) -> 0 | AV156: =IF(AV87=0,0,IF($A156="No",AV87,NPV(VLOOKUP(LEFT($B156,3),$L$7:$O$12,4,FALSE),AW133:$BM133))) -> 0 | AW156: =IF(AW87=0,0,IF($A156="No",AW87,NPV(VLOOKUP(LEFT($B156,3),$L$7:$O$12,4,FALSE),AX133:$BM133))) -> 0 | AX156: =IF(AX87=0,0,IF($A156="No",AX87,NPV(VLOOKUP(LEFT($B156,3),$L$7:$O$12,4,FALSE),AY133:$BM133))) -> 0 | AY156: =IF(AY87=0,0,IF($A156="No",AY87,NPV(VLOOKUP(LEFT($B156,3),$L$7:$O$12,4,FALSE),AZ133:$BM133))) -> 0 | AZ156: =IF(AZ87=0,0,IF($A156="No",AZ87,NPV(VLOOKUP(LEFT($B156,3),$L$7:$O$12,4,FALSE),BA133:$BM133))) -> 0 | BA156: =IF(BA87=0,0,IF($A156="No",BA87,NPV(VLOOKUP(LEFT($B156,3),$L$7:$O$12,4,FALSE),BB133:$BM133))) -> 0 | BB156: =IF(BB87=0,0,IF($A156="No",BB87,NPV(VLOOKUP(LEFT($B156,3),$L$7:$O$12,4,FALSE),BC133:$BM133))) -> 0 | BC156: =IF(BC87=0,0,IF($A156="No",BC87,NPV(VLOOKUP(LEFT($B156,3),$L$7:$O$12,4,FALSE),BD133:$BM133))) -> 0 | BD156: =IF(BD87=0,0,IF($A156="No",BD87,NPV(VLOOKUP(LEFT($B156,3),$L$7:$O$12,4,FALSE),BE133:$BM133))) -> 0 | BE156: =IF(BE87=0,0,IF($A156="No",BE87,NPV(VLOOKUP(LEFT($B156,3),$L$7:$O$12,4,FALSE),BF133:$BM133))) -> 0 | BF156: =IF(BF87=0,0,IF($A156="No",BF87,NPV(VLOOKUP(LEFT($B156,3),$L$7:$O$12,4,FALSE),BG133:$BM133))) -> 0 | BG156: =IF(BG87=0,0,IF($A156="No",BG87,NPV(VLOOKUP(LEFT($B156,3),$L$7:$O$12,4,FALSE),BH133:$BM133))) -> 0 | BH156: =IF(BH87=0,0,IF($A156="No",BH87,NPV(VLOOKUP(LEFT($B156,3),$L$7:$O$12,4,FALSE),BI133:$BM133))) -> 0 | BI156: =IF(BI87=0,0,IF($A156="No",BI87,NPV(VLOOKUP(LEFT($B156,3),$L$7:$O$12,4,FALSE),BJ133:$BM133))) -> 0 | BJ156: =IF(BJ87=0,0,IF($A156="No",BJ87,NPV(VLOOKUP(LEFT($B156,3),$L$7:$O$12,4,FALSE),BK133:$BM133))) -> 0 | BK156: =IF(BK87=0,0,IF($A156="No",BK87,NPV(VLOOKUP(LEFT($B156,3),$L$7:$O$12,4,FALSE),BL133:$BM133))) -> 0 | BL156: =IF(BL87=0,0,IF($A156="No",BL87,NPV(VLOOKUP(LEFT($B156,3),$L$7:$O$12,4,FALSE),BM133:$BM133))) -> 0 | BM156: =IF(BM87=0,0,IF($A156="No",BM87,NPV(VLOOKUP(LEFT($B156,3),$L$7:$O$12,4,FALSE),$BM133:BN133))) -> 0
A157: 0 | B157: =$C$15 -> USD_9 | E157: =IF(E88=0,0,IF($A157="No",E88,NPV(VLOOKUP(LEFT($B157,3),$L$7:$O$12,4,FALSE),F134:$BM134))) -> 0 | F157: =IF(F88=0,0,IF($A157="No",F88,NPV(VLOOKUP(LEFT($B157,3),$L$7:$O$12,4,FALSE),G134:$BM134))) -> 0 | G157: =IF(G88=0,0,IF($A157="No",G88,NPV(VLOOKUP(LEFT($B157,3),$L$7:$O$12,4,FALSE),H134:$BM134))) -> 0 | H157: =IF(H88=0,0,IF($A157="No",H88,NPV(VLOOKUP(LEFT($B157,3),$L$7:$O$12,4,FALSE),I134:$BM134))) -> 0 | I157: =IF(I88=0,0,IF($A157="No",I88,NPV(VLOOKUP(LEFT($B157,3),$L$7:$O$12,4,FALSE),J134:$BM134))) -> 0 | J157: =IF(J88=0,0,IF($A157="No",J88,NPV(VLOOKUP(LEFT($B157,3),$L$7:$O$12,4,FALSE),K134:$BM134))) -> 0 | K157: =IF(K88=0,0,IF($A157="No",K88,NPV(VLOOKUP(LEFT($B157,3),$L$7:$O$12,4,FALSE),L134:$BM134))) -> 0 | L157: =IF(L88=0,0,IF($A157="No",L88,NPV(VLOOKUP(LEFT($B157,3),$L$7:$O$12,4,FALSE),M134:$BM134))) -> 0 | M157: =IF(M88=0,0,IF($A157="No",M88,NPV(VLOOKUP(LEFT($B157,3),$L$7:$O$12,4,FALSE),N134:$BM134))) -> 0 | N157: =IF(N88=0,0,IF($A157="No",N88,NPV(VLOOKUP(LEFT($B157,3),$L$7:$O$12,4,FALSE),O134:$BM134))) -> 0 | O157: =IF(O88=0,0,IF($A157="No",O88,NPV(VLOOKUP(LEFT($B157,3),$L$7:$O$12,4,FALSE),P134:$BM134))) -> 0 | P157: =IF(P88=0,0,IF($A157="No",P88,NPV(VLOOKUP(LEFT($B157,3),$L$7:$O$12,4,FALSE),Q134:$BM134))) -> 0 | Q157: =IF(Q88=0,0,IF($A157="No",Q88,NPV(VLOOKUP(LEFT($B157,3),$L$7:$O$12,4,FALSE),R134:$BM134))) -> 0 | R157: =IF(R88=0,0,IF($A157="No",R88,NPV(VLOOKUP(LEFT($B157,3),$L$7:$O$12,4,FALSE),S134:$BM134))) -> 0 | S157: =IF(S88=0,0,IF($A157="No",S88,NPV(VLOOKUP(LEFT($B157,3),$L$7:$O$12,4,FALSE),T134:$BM134))) -> 0 | T157: =IF(T88=0,0,IF($A157="No",T88,NPV(VLOOKUP(LEFT($B157,3),$L$7:$O$12,4,FALSE),U134:$BM134))) -> 0 | U157: =IF(U88=0,0,IF($A157="No",U88,NPV(VLOOKUP(LEFT($B157,3),$L$7:$O$12,4,FALSE),V134:$BM134))) -> 0 | V157: =IF(V88=0,0,IF($A157="No",V88,NPV(VLOOKUP(LEFT($B157,3),$L$7:$O$12,4,FALSE),W134:$BM134))) -> 0 | W157: =IF(W88=0,0,IF($A157="No",W88,NPV(VLOOKUP(LEFT($B157,3),$L$7:$O$12,4,FALSE),X134:$BM134))) -> 0 | X157: =IF(X88=0,0,IF($A157="No",X88,NPV(VLOOKUP(LEFT($B157,3),$L$7:$O$12,4,FALSE),Y134:$BM134))) -> 0 | Y157: =IF(Y88=0,0,IF($A157="No",Y88,NPV(VLOOKUP(LEFT($B157,3),$L$7:$O$12,4,FALSE),Z134:$BM134))) -> 0 | Z157: =IF(Z88=0,0,IF($A157="No",Z88,NPV(VLOOKUP(LEFT($B157,3),$L$7:$O$12,4,FALSE),AA134:$BM134))) -> 0 | AA157: =IF(AA88=0,0,IF($A157="No",AA88,NPV(VLOOKUP(LEFT($B157,3),$L$7:$O$12,4,FALSE),AB134:$BM134))) -> 0 | AB157: =IF(AB88=0,0,IF($A157="No",AB88,NPV(VLOOKUP(LEFT($B157,3),$L$7:$O$12,4,FALSE),AC134:$BM134))) -> 0 | AC157: =IF(AC88=0,0,IF($A157="No",AC88,NPV(VLOOKUP(LEFT($B157,3),$L$7:$O$12,4,FALSE),AD134:$BM134))) -> 0 | AD157: =IF(AD88=0,0,IF($A157="No",AD88,NPV(VLOOKUP(LEFT($B157,3),$L$7:$O$12,4,FALSE),AE134:$BM134))) -> 0 | AE157: =IF(AE88=0,0,IF($A157="No",AE88,NPV(VLOOKUP(LEFT($B157,3),$L$7:$O$12,4,FALSE),AF134:$BM134))) -> 0 | AF157: =IF(AF88=0,0,IF($A157="No",AF88,NPV(VLOOKUP(LEFT($B157,3),$L$7:$O$12,4,FALSE),AG134:$BM134))) -> 0 | AG157: =IF(AG88=0,0,IF($A157="No",AG88,NPV(VLOOKUP(LEFT($B157,3),$L$7:$O$12,4,FALSE),AH134:$BM134))) -> 0 | AH157: =IF(AH88=0,0,IF($A157="No",AH88,NPV(VLOOKUP(LEFT($B157,3),$L$7:$O$12,4,FALSE),AI134:$BM134))) -> 0 | AI157: =IF(AI88=0,0,IF($A157="No",AI88,NPV(VLOOKUP(LEFT($B157,3),$L$7:$O$12,4,FALSE),AJ134:$BM134))) -> 0 | AJ157: =IF(AJ88=0,0,IF($A157="No",AJ88,NPV(VLOOKUP(LEFT($B157,3),$L$7:$O$12,4,FALSE),AK134:$BM134))) -> 0 | AK157: =IF(AK88=0,0,IF($A157="No",AK88,NPV(VLOOKUP(LEFT($B157,3),$L$7:$O$12,4,FALSE),AL134:$BM134))) -> 0 | AL157: =IF(AL88=0,0,IF($A157="No",AL88,NPV(VLOOKUP(LEFT($B157,3),$L$7:$O$12,4,FALSE),AM134:$BM134))) -> 0 | AM157: =IF(AM88=0,0,IF($A157="No",AM88,NPV(VLOOKUP(LEFT($B157,3),$L$7:$O$12,4,FALSE),AN134:$BM134))) -> 0 | AN157: =IF(AN88=0,0,IF($A157="No",AN88,NPV(VLOOKUP(LEFT($B157,3),$L$7:$O$12,4,FALSE),AO134:$BM134))) -> 0 | AO157: =IF(AO88=0,0,IF($A157="No",AO88,NPV(VLOOKUP(LEFT($B157,3),$L$7:$O$12,4,FALSE),AP134:$BM134))) -> 0 | AP157: =IF(AP88=0,0,IF($A157="No",AP88,NPV(VLOOKUP(LEFT($B157,3),$L$7:$O$12,4,FALSE),AQ134:$BM134))) -> 0 | AQ157: =IF(AQ88=0,0,IF($A157="No",AQ88,NPV(VLOOKUP(LEFT($B157,3),$L$7:$O$12,4,FALSE),AR134:$BM134))) -> 0 | AR157: =IF(AR88=0,0,IF($A157="No",AR88,NPV(VLOOKUP(LEFT($B157,3),$L$7:$O$12,4,FALSE),AS134:$BM134))) -> 0 | AS157: =IF(AS88=0,0,IF($A157="No",AS88,NPV(VLOOKUP(LEFT($B157,3),$L$7:$O$12,4,FALSE),AT134:$BM134))) -> 0 | AT157: =IF(AT88=0,0,IF($A157="No",AT88,NPV(VLOOKUP(LEFT($B157,3),$L$7:$O$12,4,FALSE),AU134:$BM134))) -> 0 | AU157: =IF(AU88=0,0,IF($A157="No",AU88,NPV(VLOOKUP(LEFT($B157,3),$L$7:$O$12,4,FALSE),AV134:$BM134))) -> 0 | AV157: =IF(AV88=0,0,IF($A157="No",AV88,NPV(VLOOKUP(LEFT($B157,3),$L$7:$O$12,4,FALSE),AW134:$BM134))) -> 0 | AW157: =IF(AW88=0,0,IF($A157="No",AW88,NPV(VLOOKUP(LEFT($B157,3),$L$7:$O$12,4,FALSE),AX134:$BM134))) -> 0 | AX157: =IF(AX88=0,0,IF($A157="No",AX88,NPV(VLOOKUP(LEFT($B157,3),$L$7:$O$12,4,FALSE),AY134:$BM134))) -> 0 | AY157: =IF(AY88=0,0,IF($A157="No",AY88,NPV(VLOOKUP(LEFT($B157,3),$L$7:$O$12,4,FALSE),AZ134:$BM134))) -> 0 | AZ157: =IF(AZ88=0,0,IF($A157="No",AZ88,NPV(VLOOKUP(LEFT($B157,3),$L$7:$O$12,4,FALSE),BA134:$BM134))) -> 0 | BA157: =IF(BA88=0,0,IF($A157="No",BA88,NPV(VLOOKUP(LEFT($B157,3),$L$7:$O$12,4,FALSE),BB134:$BM134))) -> 0 | BB157: =IF(BB88=0,0,IF($A157="No",BB88,NPV(VLOOKUP(LEFT($B157,3),$L$7:$O$12,4,FALSE),BC134:$BM134))) -> 0 | BC157: =IF(BC88=0,0,IF($A157="No",BC88,NPV(VLOOKUP(LEFT($B157,3),$L$7:$O$12,4,FALSE),BD134:$BM134))) -> 0 | BD157: =IF(BD88=0,0,IF($A157="No",BD88,NPV(VLOOKUP(LEFT($B157,3),$L$7:$O$12,4,FALSE),BE134:$BM134))) -> 0 | BE157: =IF(BE88=0,0,IF($A157="No",BE88,NPV(VLOOKUP(LEFT($B157,3),$L$7:$O$12,4,FALSE),BF134:$BM134))) -> 0 | BF157: =IF(BF88=0,0,IF($A157="No",BF88,NPV(VLOOKUP(LEFT($B157,3),$L$7:$O$12,4,FALSE),BG134:$BM134))) -> 0 | BG157: =IF(BG88=0,0,IF($A157="No",BG88,NPV(VLOOKUP(LEFT($B157,3),$L$7:$O$12,4,FALSE),BH134:$BM134))) -> 0 | BH157: =IF(BH88=0,0,IF($A157="No",BH88,NPV(VLOOKUP(LEFT($B157,3),$L$7:$O$12,4,FALSE),BI134:$BM134))) -> 0 | BI157: =IF(BI88=0,0,IF($A157="No",BI88,NPV(VLOOKUP(LEFT($B157,3),$L$7:$O$12,4,FALSE),BJ134:$BM134))) -> 0 | BJ157: =IF(BJ88=0,0,IF($A157="No",BJ88,NPV(VLOOKUP(LEFT($B157,3),$L$7:$O$12,4,FALSE),BK134:$BM134))) -> 0 | BK157: =IF(BK88=0,0,IF($A157="No",BK88,NPV(VLOOKUP(LEFT($B157,3),$L$7:$O$12,4,FALSE),BL134:$BM134))) -> 0 | BL157: =IF(BL88=0,0,IF($A157="No",BL88,NPV(VLOOKUP(LEFT($B157,3),$L$7:$O$12,4,FALSE),BM134:$BM134))) -> 0 | BM157: =IF(BM88=0,0,IF($A157="No",BM88,NPV(VLOOKUP(LEFT($B157,3),$L$7:$O$12,4,FALSE),$BM134:BN134))) -> 0
A158: 0 | B158: =$C$16 -> USD_10 | E158: =IF(E89=0,0,IF($A158="No",E89,NPV(VLOOKUP(LEFT($B158,3),$L$7:$O$12,4,FALSE),F135:$BM135))) -> 0 | F158: =IF(F89=0,0,IF($A158="No",F89,NPV(VLOOKUP(LEFT($B158,3),$L$7:$O$12,4,FALSE),G135:$BM135))) -> 0 | G158: =IF(G89=0,0,IF($A158="No",G89,NPV(VLOOKUP(LEFT($B158,3),$L$7:$O$12,4,FALSE),H135:$BM135))) -> 0 | H158: =IF(H89=0,0,IF($A158="No",H89,NPV(VLOOKUP(LEFT($B158,3),$L$7:$O$12,4,FALSE),I135:$BM135))) -> 0 | I158: =IF(I89=0,0,IF($A158="No",I89,NPV(VLOOKUP(LEFT($B158,3),$L$7:$O$12,4,FALSE),J135:$BM135))) -> 0 | J158: =IF(J89=0,0,IF($A158="No",J89,NPV(VLOOKUP(LEFT($B158,3),$L$7:$O$12,4,FALSE),K135:$BM135))) -> 0 | K158: =IF(K89=0,0,IF($A158="No",K89,NPV(VLOOKUP(LEFT($B158,3),$L$7:$O$12,4,FALSE),L135:$BM135))) -> 0 | L158: =IF(L89=0,0,IF($A158="No",L89,NPV(VLOOKUP(LEFT($B158,3),$L$7:$O$12,4,FALSE),M135:$BM135))) -> 0 | M158: =IF(M89=0,0,IF($A158="No",M89,NPV(VLOOKUP(LEFT($B158,3),$L$7:$O$12,4,FALSE),N135:$BM135))) -> 0 | N158: =IF(N89=0,0,IF($A158="No",N89,NPV(VLOOKUP(LEFT($B158,3),$L$7:$O$12,4,FALSE),O135:$BM135))) -> 0 | O158: =IF(O89=0,0,IF($A158="No",O89,NPV(VLOOKUP(LEFT($B158,3),$L$7:$O$12,4,FALSE),P135:$BM135))) -> 0 | P158: =IF(P89=0,0,IF($A158="No",P89,NPV(VLOOKUP(LEFT($B158,3),$L$7:$O$12,4,FALSE),Q135:$BM135))) -> 0 | Q158: =IF(Q89=0,0,IF($A158="No",Q89,NPV(VLOOKUP(LEFT($B158,3),$L$7:$O$12,4,FALSE),R135:$BM135))) -> 0 | R158: =IF(R89=0,0,IF($A158="No",R89,NPV(VLOOKUP(LEFT($B158,3),$L$7:$O$12,4,FALSE),S135:$BM135))) -> 0 | S158: =IF(S89=0,0,IF($A158="No",S89,NPV(VLOOKUP(LEFT($B158,3),$L$7:$O$12,4,FALSE),T135:$BM135))) -> 0 | T158: =IF(T89=0,0,IF($A158="No",T89,NPV(VLOOKUP(LEFT($B158,3),$L$7:$O$12,4,FALSE),U135:$BM135))) -> 0 | U158: =IF(U89=0,0,IF($A158="No",U89,NPV(VLOOKUP(LEFT($B158,3),$L$7:$O$12,4,FALSE),V135:$BM135))) -> 0 | V158: =IF(V89=0,0,IF($A158="No",V89,NPV(VLOOKUP(LEFT($B158,3),$L$7:$O$12,4,FALSE),W135:$BM135))) -> 0 | W158: =IF(W89=0,0,IF($A158="No",W89,NPV(VLOOKUP(LEFT($B158,3),$L$7:$O$12,4,FALSE),X135:$BM135))) -> 0 | X158: =IF(X89=0,0,IF($A158="No",X89,NPV(VLOOKUP(LEFT($B158,3),$L$7:$O$12,4,FALSE),Y135:$BM135))) -> 0 | Y158: =IF(Y89=0,0,IF($A158="No",Y89,NPV(VLOOKUP(LEFT($B158,3),$L$7:$O$12,4,FALSE),Z135:$BM135))) -> 0 | Z158: =IF(Z89=0,0,IF($A158="No",Z89,NPV(VLOOKUP(LEFT($B158,3),$L$7:$O$12,4,FALSE),AA135:$BM135))) -> 0 | AA158: =IF(AA89=0,0,IF($A158="No",AA89,NPV(VLOOKUP(LEFT($B158,3),$L$7:$O$12,4,FALSE),AB135:$BM135))) -> 0 | AB158: =IF(AB89=0,0,IF($A158="No",AB89,NPV(VLOOKUP(LEFT($B158,3),$L$7:$O$12,4,FALSE),AC135:$BM135))) -> 0 | AC158: =IF(AC89=0,0,IF($A158="No",AC89,NPV(VLOOKUP(LEFT($B158,3),$L$7:$O$12,4,FALSE),AD135:$BM135))) -> 0 | AD158: =IF(AD89=0,0,IF($A158="No",AD89,NPV(VLOOKUP(LEFT($B158,3),$L$7:$O$12,4,FALSE),AE135:$BM135))) -> 0 | AE158: =IF(AE89=0,0,IF($A158="No",AE89,NPV(VLOOKUP(LEFT($B158,3),$L$7:$O$12,4,FALSE),AF135:$BM135))) -> 0 | AF158: =IF(AF89=0,0,IF($A158="No",AF89,NPV(VLOOKUP(LEFT($B158,3),$L$7:$O$12,4,FALSE),AG135:$BM135))) -> 0 | AG158: =IF(AG89=0,0,IF($A158="No",AG89,NPV(VLOOKUP(LEFT($B158,3),$L$7:$O$12,4,FALSE),AH135:$BM135))) -> 0 | AH158: =IF(AH89=0,0,IF($A158="No",AH89,NPV(VLOOKUP(LEFT($B158,3),$L$7:$O$12,4,FALSE),AI135:$BM135))) -> 0 | AI158: =IF(AI89=0,0,IF($A158="No",AI89,NPV(VLOOKUP(LEFT($B158,3),$L$7:$O$12,4,FALSE),AJ135:$BM135))) -> 0 | AJ158: =IF(AJ89=0,0,IF($A158="No",AJ89,NPV(VLOOKUP(LEFT($B158,3),$L$7:$O$12,4,FALSE),AK135:$BM135))) -> 0 | AK158: =IF(AK89=0,0,IF($A158="No",AK89,NPV(VLOOKUP(LEFT($B158,3),$L$7:$O$12,4,FALSE),AL135:$BM135))) -> 0 | AL158: =IF(AL89=0,0,IF($A158="No",AL89,NPV(VLOOKUP(LEFT($B158,3),$L$7:$O$12,4,FALSE),AM135:$BM135))) -> 0 | AM158: =IF(AM89=0,0,IF($A158="No",AM89,NPV(VLOOKUP(LEFT($B158,3),$L$7:$O$12,4,FALSE),AN135:$BM135))) -> 0 | AN158: =IF(AN89=0,0,IF($A158="No",AN89,NPV(VLOOKUP(LEFT($B158,3),$L$7:$O$12,4,FALSE),AO135:$BM135))) -> 0 | AO158: =IF(AO89=0,0,IF($A158="No",AO89,NPV(VLOOKUP(LEFT($B158,3),$L$7:$O$12,4,FALSE),AP135:$BM135))) -> 0 | AP158: =IF(AP89=0,0,IF($A158="No",AP89,NPV(VLOOKUP(LEFT($B158,3),$L$7:$O$12,4,FALSE),AQ135:$BM135))) -> 0 | AQ158: =IF(AQ89=0,0,IF($A158="No",AQ89,NPV(VLOOKUP(LEFT($B158,3),$L$7:$O$12,4,FALSE),AR135:$BM135))) -> 0 | AR158: =IF(AR89=0,0,IF($A158="No",AR89,NPV(VLOOKUP(LEFT($B158,3),$L$7:$O$12,4,FALSE),AS135:$BM135))) -> 0 | AS158: =IF(AS89=0,0,IF($A158="No",AS89,NPV(VLOOKUP(LEFT($B158,3),$L$7:$O$12,4,FALSE),AT135:$BM135))) -> 0 | AT158: =IF(AT89=0,0,IF($A158="No",AT89,NPV(VLOOKUP(LEFT($B158,3),$L$7:$O$12,4,FALSE),AU135:$BM135))) -> 0 | AU158: =IF(AU89=0,0,IF($A158="No",AU89,NPV(VLOOKUP(LEFT($B158,3),$L$7:$O$12,4,FALSE),AV135:$BM135))) -> 0 | AV158: =IF(AV89=0,0,IF($A158="No",AV89,NPV(VLOOKUP(LEFT($B158,3),$L$7:$O$12,4,FALSE),AW135:$BM135))) -> 0 | AW158: =IF(AW89=0,0,IF($A158="No",AW89,NPV(VLOOKUP(LEFT($B158,3),$L$7:$O$12,4,FALSE),AX135:$BM135))) -> 0 | AX158: =IF(AX89=0,0,IF($A158="No",AX89,NPV(VLOOKUP(LEFT($B158,3),$L$7:$O$12,4,FALSE),AY135:$BM135))) -> 0 | AY158: =IF(AY89=0,0,IF($A158="No",AY89,NPV(VLOOKUP(LEFT($B158,3),$L$7:$O$12,4,FALSE),AZ135:$BM135))) -> 0 | AZ158: =IF(AZ89=0,0,IF($A158="No",AZ89,NPV(VLOOKUP(LEFT($B158,3),$L$7:$O$12,4,FALSE),BA135:$BM135))) -> 0 | BA158: =IF(BA89=0,0,IF($A158="No",BA89,NPV(VLOOKUP(LEFT($B158,3),$L$7:$O$12,4,FALSE),BB135:$BM135))) -> 0 | BB158: =IF(BB89=0,0,IF($A158="No",BB89,NPV(VLOOKUP(LEFT($B158,3),$L$7:$O$12,4,FALSE),BC135:$BM135))) -> 0 | BC158: =IF(BC89=0,0,IF($A158="No",BC89,NPV(VLOOKUP(LEFT($B158,3),$L$7:$O$12,4,FALSE),BD135:$BM135))) -> 0 | BD158: =IF(BD89=0,0,IF($A158="No",BD89,NPV(VLOOKUP(LEFT($B158,3),$L$7:$O$12,4,FALSE),BE135:$BM135))) -> 0 | BE158: =IF(BE89=0,0,IF($A158="No",BE89,NPV(VLOOKUP(LEFT($B158,3),$L$7:$O$12,4,FALSE),BF135:$BM135))) -> 0 | BF158: =IF(BF89=0,0,IF($A158="No",BF89,NPV(VLOOKUP(LEFT($B158,3),$L$7:$O$12,4,FALSE),BG135:$BM135))) -> 0 | BG158: =IF(BG89=0,0,IF($A158="No",BG89,NPV(VLOOKUP(LEFT($B158,3),$L$7:$O$12,4,FALSE),BH135:$BM135))) -> 0 | BH158: =IF(BH89=0,0,IF($A158="No",BH89,NPV(VLOOKUP(LEFT($B158,3),$L$7:$O$12,4,FALSE),BI135:$BM135))) -> 0 | BI158: =IF(BI89=0,0,IF($A158="No",BI89,NPV(VLOOKUP(LEFT($B158,3),$L$7:$O$12,4,FALSE),BJ135:$BM135))) -> 0 | BJ158: =IF(BJ89=0,0,IF($A158="No",BJ89,NPV(VLOOKUP(LEFT($B158,3),$L$7:$O$12,4,FALSE),BK135:$BM135))) -> 0 | BK158: =IF(BK89=0,0,IF($A158="No",BK89,NPV(VLOOKUP(LEFT($B158,3),$L$7:$O$12,4,FALSE),BL135:$BM135))) -> 0 | BL158: =IF(BL89=0,0,IF($A158="No",BL89,NPV(VLOOKUP(LEFT($B158,3),$L$7:$O$12,4,FALSE),BM135:$BM135))) -> 0 | BM158: =IF(BM89=0,0,IF($A158="No",BM89,NPV(VLOOKUP(LEFT($B158,3),$L$7:$O$12,4,FALSE),$BM135:BN135))) -> 0
A159: No | B159: =$C$17 -> UTP_11 | E159: =IF(E90=0,0,IF($A159="No",E90,NPV(VLOOKUP(LEFT($B159,3),$L$7:$O$12,4,FALSE),F136:$BM136))) -> 255.4203118 | F159: =IF(F90=0,0,IF($A159="No",F90,NPV(VLOOKUP(LEFT($B159,3),$L$7:$O$12,4,FALSE),G136:$BM136))) -> 0 | G159: =IF(G90=0,0,IF($A159="No",G90,NPV(VLOOKUP(LEFT($B159,3),$L$7:$O$12,4,FALSE),H136:$BM136))) -> 0 | H159: =IF(H90=0,0,IF($A159="No",H90,NPV(VLOOKUP(LEFT($B159,3),$L$7:$O$12,4,FALSE),I136:$BM136))) -> 0 | I159: =IF(I90=0,0,IF($A159="No",I90,NPV(VLOOKUP(LEFT($B159,3),$L$7:$O$12,4,FALSE),J136:$BM136))) -> 0 | J159: =IF(J90=0,0,IF($A159="No",J90,NPV(VLOOKUP(LEFT($B159,3),$L$7:$O$12,4,FALSE),K136:$BM136))) -> 0 | K159: =IF(K90=0,0,IF($A159="No",K90,NPV(VLOOKUP(LEFT($B159,3),$L$7:$O$12,4,FALSE),L136:$BM136))) -> 0 | L159: =IF(L90=0,0,IF($A159="No",L90,NPV(VLOOKUP(LEFT($B159,3),$L$7:$O$12,4,FALSE),M136:$BM136))) -> 0 | M159: =IF(M90=0,0,IF($A159="No",M90,NPV(VLOOKUP(LEFT($B159,3),$L$7:$O$12,4,FALSE),N136:$BM136))) -> 0 | N159: =IF(N90=0,0,IF($A159="No",N90,NPV(VLOOKUP(LEFT($B159,3),$L$7:$O$12,4,FALSE),O136:$BM136))) -> 0 | O159: =IF(O90=0,0,IF($A159="No",O90,NPV(VLOOKUP(LEFT($B159,3),$L$7:$O$12,4,FALSE),P136:$BM136))) -> 0 | P159: =IF(P90=0,0,IF($A159="No",P90,NPV(VLOOKUP(LEFT($B159,3),$L$7:$O$12,4,FALSE),Q136:$BM136))) -> 0 | Q159: =IF(Q90=0,0,IF($A159="No",Q90,NPV(VLOOKUP(LEFT($B159,3),$L$7:$O$12,4,FALSE),R136:$BM136))) -> 0 | R159: =IF(R90=0,0,IF($A159="No",R90,NPV(VLOOKUP(LEFT($B159,3),$L$7:$O$12,4,FALSE),S136:$BM136))) -> 0 | S159: =IF(S90=0,0,IF($A159="No",S90,NPV(VLOOKUP(LEFT($B159,3),$L$7:$O$12,4,FALSE),T136:$BM136))) -> 0 | T159: =IF(T90=0,0,IF($A159="No",T90,NPV(VLOOKUP(LEFT($B159,3),$L$7:$O$12,4,FALSE),U136:$BM136))) -> 0 | U159: =IF(U90=0,0,IF($A159="No",U90,NPV(VLOOKUP(LEFT($B159,3),$L$7:$O$12,4,FALSE),V136:$BM136))) -> 0 | V159: =IF(V90=0,0,IF($A159="No",V90,NPV(VLOOKUP(LEFT($B159,3),$L$7:$O$12,4,FALSE),W136:$BM136))) -> 0 | W159: =IF(W90=0,0,IF($A159="No",W90,NPV(VLOOKUP(LEFT($B159,3),$L$7:$O$12,4,FALSE),X136:$BM136))) -> 0 | X159: =IF(X90=0,0,IF($A159="No",X90,NPV(VLOOKUP(LEFT($B159,3),$L$7:$O$12,4,FALSE),Y136:$BM136))) -> 0 | Y159: =IF(Y90=0,0,IF($A159="No",Y90,NPV(VLOOKUP(LEFT($B159,3),$L$7:$O$12,4,FALSE),Z136:$BM136))) -> 0 | Z159: =IF(Z90=0,0,IF($A159="No",Z90,NPV(VLOOKUP(LEFT($B159,3),$L$7:$O$12,4,FALSE),AA136:$BM136))) -> 0 | AA159: =IF(AA90=0,0,IF($A159="No",AA90,NPV(VLOOKUP(LEFT($B159,3),$L$7:$O$12,4,FALSE),AB136:$BM136))) -> 0 | AB159: =IF(AB90=0,0,IF($A159="No",AB90,NPV(VLOOKUP(LEFT($B159,3),$L$7:$O$12,4,FALSE),AC136:$BM136))) -> 0 | AC159: =IF(AC90=0,0,IF($A159="No",AC90,NPV(VLOOKUP(LEFT($B159,3),$L$7:$O$12,4,FALSE),AD136:$BM136))) -> 0 | AD159: =IF(AD90=0,0,IF($A159="No",AD90,NPV(VLOOKUP(LEFT($B159,3),$L$7:$O$12,4,FALSE),AE136:$BM136))) -> 0 | AE159: =IF(AE90=0,0,IF($A159="No",AE90,NPV(VLOOKUP(LEFT($B159,3),$L$7:$O$12,4,FALSE),AF136:$BM136))) -> 0 | AF159: =IF(AF90=0,0,IF($A159="No",AF90,NPV(VLOOKUP(LEFT($B159,3),$L$7:$O$12,4,FALSE),AG136:$BM136))) -> 0 | AG159: =IF(AG90=0,0,IF($A159="No",AG90,NPV(VLOOKUP(LEFT($B159,3),$L$7:$O$12,4,FALSE),AH136:$BM136))) -> 0 | AH159: =IF(AH90=0,0,IF($A159="No",AH90,NPV(VLOOKUP(LEFT($B159,3),$L$7:$O$12,4,FALSE),AI136:$BM136))) -> 0 | AI159: =IF(AI90=0,0,IF($A159="No",AI90,NPV(VLOOKUP(LEFT($B159,3),$L$7:$O$12,4,FALSE),AJ136:$BM136))) -> 0 | AJ159: =IF(AJ90=0,0,IF($A159="No",AJ90,NPV(VLOOKUP(LEFT($B159,3),$L$7:$O$12,4,FALSE),AK136:$BM136))) -> 0 | AK159: =IF(AK90=0,0,IF($A159="No",AK90,NPV(VLOOKUP(LEFT($B159,3),$L$7:$O$12,4,FALSE),AL136:$BM136))) -> 0 | AL159: =IF(AL90=0,0,IF($A159="No",AL90,NPV(VLOOKUP(LEFT($B159,3),$L$7:$O$12,4,FALSE),AM136:$BM136))) -> 0 | AM159: =IF(AM90=0,0,IF($A159="No",AM90,NPV(VLOOKUP(LEFT($B159,3),$L$7:$O$12,4,FALSE),AN136:$BM136))) -> 0 | AN159: =IF(AN90=0,0,IF($A159="No",AN90,NPV(VLOOKUP(LEFT($B159,3),$L$7:$O$12,4,FALSE),AO136:$BM136))) -> 0 | AO159: =IF(AO90=0,0,IF($A159="No",AO90,NPV(VLOOKUP(LEFT($B159,3),$L$7:$O$12,4,FALSE),AP136:$BM136))) -> 0 | AP159: =IF(AP90=0,0,IF($A159="No",AP90,NPV(VLOOKUP(LEFT($B159,3),$L$7:$O$12,4,FALSE),AQ136:$BM136))) -> 0 | AQ159: =IF(AQ90=0,0,IF($A159="No",AQ90,NPV(VLOOKUP(LEFT($B159,3),$L$7:$O$12,4,FALSE),AR136:$BM136))) -> 0 | AR159: =IF(AR90=0,0,IF($A159="No",AR90,NPV(VLOOKUP(LEFT($B159,3),$L$7:$O$12,4,FALSE),AS136:$BM136))) -> 0 | AS159: =IF(AS90=0,0,IF($A159="No",AS90,NPV(VLOOKUP(LEFT($B159,3),$L$7:$O$12,4,FALSE),AT136:$BM136))) -> 0 | AT159: =IF(AT90=0,0,IF($A159="No",AT90,NPV(VLOOKUP(LEFT($B159,3),$L$7:$O$12,4,FALSE),AU136:$BM136))) -> 0 | AU159: =IF(AU90=0,0,IF($A159="No",AU90,NPV(VLOOKUP(LEFT($B159,3),$L$7:$O$12,4,FALSE),AV136:$BM136))) -> 0 | AV159: =IF(AV90=0,0,IF($A159="No",AV90,NPV(VLOOKUP(LEFT($B159,3),$L$7:$O$12,4,FALSE),AW136:$BM136))) -> 0 | AW159: =IF(AW90=0,0,IF($A159="No",AW90,NPV(VLOOKUP(LEFT($B159,3),$L$7:$O$12,4,FALSE),AX136:$BM136))) -> 0 | AX159: =IF(AX90=0,0,IF($A159="No",AX90,NPV(VLOOKUP(LEFT($B159,3),$L$7:$O$12,4,FALSE),AY136:$BM136))) -> 0 | AY159: =IF(AY90=0,0,IF($A159="No",AY90,NPV(VLOOKUP(LEFT($B159,3),$L$7:$O$12,4,FALSE),AZ136:$BM136))) -> 0 | AZ159: =IF(AZ90=0,0,IF($A159="No",AZ90,NPV(VLOOKUP(LEFT($B159,3),$L$7:$O$12,4,FALSE),BA136:$BM136))) -> 0 | BA159: =IF(BA90=0,0,IF($A159="No",BA90,NPV(VLOOKUP(LEFT($B159,3),$L$7:$O$12,4,FALSE),BB136:$BM136))) -> 0 | BB159: =IF(BB90=0,0,IF($A159="No",BB90,NPV(VLOOKUP(LEFT($B159,3),$L$7:$O$12,4,FALSE),BC136:$BM136))) -> 0 | BC159: =IF(BC90=0,0,IF($A159="No",BC90,NPV(VLOOKUP(LEFT($B159,3),$L$7:$O$12,4,FALSE),BD136:$BM136))) -> 0 | BD159: =IF(BD90=0,0,IF($A159="No",BD90,NPV(VLOOKUP(LEFT($B159,3),$L$7:$O$12,4,FALSE),BE136:$BM136))) -> 0 | BE159: =IF(BE90=0,0,IF($A159="No",BE90,NPV(VLOOKUP(LEFT($B159,3),$L$7:$O$12,4,FALSE),BF136:$BM136))) -> 0 | BF159: =IF(BF90=0,0,IF($A159="No",BF90,NPV(VLOOKUP(LEFT($B159,3),$L$7:$O$12,4,FALSE),BG136:$BM136))) -> 0 | BG159: =IF(BG90=0,0,IF($A159="No",BG90,NPV(VLOOKUP(LEFT($B159,3),$L$7:$O$12,4,FALSE),BH136:$BM136))) -> 0 | BH159: =IF(BH90=0,0,IF($A159="No",BH90,NPV(VLOOKUP(LEFT($B159,3),$L$7:$O$12,4,FALSE),BI136:$BM136))) -> 0 | BI159: =IF(BI90=0,0,IF($A159="No",BI90,NPV(VLOOKUP(LEFT($B159,3),$L$7:$O$12,4,FALSE),BJ136:$BM136))) -> 0 | BJ159: =IF(BJ90=0,0,IF($A159="No",BJ90,NPV(VLOOKUP(LEFT($B159,3),$L$7:$O$12,4,FALSE),BK136:$BM136))) -> 0 | BK159: =IF(BK90=0,0,IF($A159="No",BK90,NPV(VLOOKUP(LEFT($B159,3),$L$7:$O$12,4,FALSE),BL136:$BM136))) -> 0 | BL159: =IF(BL90=0,0,IF($A159="No",BL90,NPV(VLOOKUP(LEFT($B159,3),$L$7:$O$12,4,FALSE),BM136:$BM136))) -> 0 | BM159: =IF(BM90=0,0,IF($A159="No",BM90,NPV(VLOOKUP(LEFT($B159,3),$L$7:$O$12,4,FALSE),$BM136:BN136))) -> 0
A160: No | B160: =$C$18 -> UTP_12 | E160: =IF(E91=0,0,IF($A160="No",E91,NPV(VLOOKUP(LEFT($B160,3),$L$7:$O$12,4,FALSE),F137:$BM137))) -> 15.04588533 | F160: =IF(F91=0,0,IF($A160="No",F91,NPV(VLOOKUP(LEFT($B160,3),$L$7:$O$12,4,FALSE),G137:$BM137))) -> 15.04588533 | G160: =IF(G91=0,0,IF($A160="No",G91,NPV(VLOOKUP(LEFT($B160,3),$L$7:$O$12,4,FALSE),H137:$BM137))) -> 8.354508667 | H160: =IF(H91=0,0,IF($A160="No",H91,NPV(VLOOKUP(LEFT($B160,3),$L$7:$O$12,4,FALSE),I137:$BM137))) -> 0 | I160: =IF(I91=0,0,IF($A160="No",I91,NPV(VLOOKUP(LEFT($B160,3),$L$7:$O$12,4,FALSE),J137:$BM137))) -> 0 | J160: =IF(J91=0,0,IF($A160="No",J91,NPV(VLOOKUP(LEFT($B160,3),$L$7:$O$12,4,FALSE),K137:$BM137))) -> 0 | K160: =IF(K91=0,0,IF($A160="No",K91,NPV(VLOOKUP(LEFT($B160,3),$L$7:$O$12,4,FALSE),L137:$BM137))) -> 0 | L160: =IF(L91=0,0,IF($A160="No",L91,NPV(VLOOKUP(LEFT($B160,3),$L$7:$O$12,4,FALSE),M137:$BM137))) -> 0 | M160: =IF(M91=0,0,IF($A160="No",M91,NPV(VLOOKUP(LEFT($B160,3),$L$7:$O$12,4,FALSE),N137:$BM137))) -> 0 | N160: =IF(N91=0,0,IF($A160="No",N91,NPV(VLOOKUP(LEFT($B160,3),$L$7:$O$12,4,FALSE),O137:$BM137))) -> 0 | O160: =IF(O91=0,0,IF($A160="No",O91,NPV(VLOOKUP(LEFT($B160,3),$L$7:$O$12,4,FALSE),P137:$BM137))) -> 0 | P160: =IF(P91=0,0,IF($A160="No",P91,NPV(VLOOKUP(LEFT($B160,3),$L$7:$O$12,4,FALSE),Q137:$BM137))) -> 0 | Q160: =IF(Q91=0,0,IF($A160="No",Q91,NPV(VLOOKUP(LEFT($B160,3),$L$7:$O$12,4,FALSE),R137:$BM137))) -> 0 | R160: =IF(R91=0,0,IF($A160="No",R91,NPV(VLOOKUP(LEFT($B160,3),$L$7:$O$12,4,FALSE),S137:$BM137))) -> 0 | S160: =IF(S91=0,0,IF($A160="No",S91,NPV(VLOOKUP(LEFT($B160,3),$L$7:$O$12,4,FALSE),T137:$BM137))) -> 0 | T160: =IF(T91=0,0,IF($A160="No",T91,NPV(VLOOKUP(LEFT($B160,3),$L$7:$O$12,4,FALSE),U137:$BM137))) -> 0 | U160: =IF(U91=0,0,IF($A160="No",U91,NPV(VLOOKUP(LEFT($B160,3),$L$7:$O$12,4,FALSE),V137:$BM137))) -> 0 | V160: =IF(V91=0,0,IF($A160="No",V91,NPV(VLOOKUP(LEFT($B160,3),$L$7:$O$12,4,FALSE),W137:$BM137))) -> 0 | W160: =IF(W91=0,0,IF($A160="No",W91,NPV(VLOOKUP(LEFT($B160,3),$L$7:$O$12,4,FALSE),X137:$BM137))) -> 0 | X160: =IF(X91=0,0,IF($A160="No",X91,NPV(VLOOKUP(LEFT($B160,3),$L$7:$O$12,4,FALSE),Y137:$BM137))) -> 0 | Y160: =IF(Y91=0,0,IF($A160="No",Y91,NPV(VLOOKUP(LEFT($B160,3),$L$7:$O$12,4,FALSE),Z137:$BM137))) -> 0 | Z160: =IF(Z91=0,0,IF($A160="No",Z91,NPV(VLOOKUP(LEFT($B160,3),$L$7:$O$12,4,FALSE),AA137:$BM137))) -> 0 | AA160: =IF(AA91=0,0,IF($A160="No",AA91,NPV(VLOOKUP(LEFT($B160,3),$L$7:$O$12,4,FALSE),AB137:$BM137))) -> 0 | AB160: =IF(AB91=0,0,IF($A160="No",AB91,NPV(VLOOKUP(LEFT($B160,3),$L$7:$O$12,4,FALSE),AC137:$BM137))) -> 0 | AC160: =IF(AC91=0,0,IF($A160="No",AC91,NPV(VLOOKUP(LEFT($B160,3),$L$7:$O$12,4,FALSE),AD137:$BM137))) -> 0 | AD160: =IF(AD91=0,0,IF($A160="No",AD91,NPV(VLOOKUP(LEFT($B160,3),$L$7:$O$12,4,FALSE),AE137:$BM137))) -> 0 | AE160: =IF(AE91=0,0,IF($A160="No",AE91,NPV(VLOOKUP(LEFT($B160,3),$L$7:$O$12,4,FALSE),AF137:$BM137))) -> 0 | AF160: =IF(AF91=0,0,IF($A160="No",AF91,NPV(VLOOKUP(LEFT($B160,3),$L$7:$O$12,4,FALSE),AG137:$BM137))) -> 0 | AG160: =IF(AG91=0,0,IF($A160="No",AG91,NPV(VLOOKUP(LEFT($B160,3),$L$7:$O$12,4,FALSE),AH137:$BM137))) -> 0 | AH160: =IF(AH91=0,0,IF($A160="No",AH91,NPV(VLOOKUP(LEFT($B160,3),$L$7:$O$12,4,FALSE),AI137:$BM137))) -> 0 | AI160: =IF(AI91=0,0,IF($A160="No",AI91,NPV(VLOOKUP(LEFT($B160,3),$L$7:$O$12,4,FALSE),AJ137:$BM137))) -> 0 | AJ160: =IF(AJ91=0,0,IF($A160="No",AJ91,NPV(VLOOKUP(LEFT($B160,3),$L$7:$O$12,4,FALSE),AK137:$BM137))) -> 0 | AK160: =IF(AK91=0,0,IF($A160="No",AK91,NPV(VLOOKUP(LEFT($B160,3),$L$7:$O$12,4,FALSE),AL137:$BM137))) -> 0 | AL160: =IF(AL91=0,0,IF($A160="No",AL91,NPV(VLOOKUP(LEFT($B160,3),$L$7:$O$12,4,FALSE),AM137:$BM137))) -> 0 | AM160: =IF(AM91=0,0,IF($A160="No",AM91,NPV(VLOOKUP(LEFT($B160,3),$L$7:$O$12,4,FALSE),AN137:$BM137))) -> 0 | AN160: =IF(AN91=0,0,IF($A160="No",AN91,NPV(VLOOKUP(LEFT($B160,3),$L$7:$O$12,4,FALSE),AO137:$BM137))) -> 0 | AO160: =IF(AO91=0,0,IF($A160="No",AO91,NPV(VLOOKUP(LEFT($B160,3),$L$7:$O$12,4,FALSE),AP137:$BM137))) -> 0 | AP160: =IF(AP91=0,0,IF($A160="No",AP91,NPV(VLOOKUP(LEFT($B160,3),$L$7:$O$12,4,FALSE),AQ137:$BM137))) -> 0 | AQ160: =IF(AQ91=0,0,IF($A160="No",AQ91,NPV(VLOOKUP(LEFT($B160,3),$L$7:$O$12,4,FALSE),AR137:$BM137))) -> 0 | AR160: =IF(AR91=0,0,IF($A160="No",AR91,NPV(VLOOKUP(LEFT($B160,3),$L$7:$O$12,4,FALSE),AS137:$BM137))) -> 0 | AS160: =IF(AS91=0,0,IF($A160="No",AS91,NPV(VLOOKUP(LEFT($B160,3),$L$7:$O$12,4,FALSE),AT137:$BM137))) -> 0 | AT160: =IF(AT91=0,0,IF($A160="No",AT91,NPV(VLOOKUP(LEFT($B160,3),$L$7:$O$12,4,FALSE),AU137:$BM137))) -> 0 | AU160: =IF(AU91=0,0,IF($A160="No",AU91,NPV(VLOOKUP(LEFT($B160,3),$L$7:$O$12,4,FALSE),AV137:$BM137))) -> 0 | AV160: =IF(AV91=0,0,IF($A160="No",AV91,NPV(VLOOKUP(LEFT($B160,3),$L$7:$O$12,4,FALSE),AW137:$BM137))) -> 0 | AW160: =IF(AW91=0,0,IF($A160="No",AW91,NPV(VLOOKUP(LEFT($B160,3),$L$7:$O$12,4,FALSE),AX137:$BM137))) -> 0 | AX160: =IF(AX91=0,0,IF($A160="No",AX91,NPV(VLOOKUP(LEFT($B160,3),$L$7:$O$12,4,FALSE),AY137:$BM137))) -> 0 | AY160: =IF(AY91=0,0,IF($A160="No",AY91,NPV(VLOOKUP(LEFT($B160,3),$L$7:$O$12,4,FALSE),AZ137:$BM137))) -> 0 | AZ160: =IF(AZ91=0,0,IF($A160="No",AZ91,NPV(VLOOKUP(LEFT($B160,3),$L$7:$O$12,4,FALSE),BA137:$BM137))) -> 0 | BA160: =IF(BA91=0,0,IF($A160="No",BA91,NPV(VLOOKUP(LEFT($B160,3),$L$7:$O$12,4,FALSE),BB137:$BM137))) -> 0 | BB160: =IF(BB91=0,0,IF($A160="No",BB91,NPV(VLOOKUP(LEFT($B160,3),$L$7:$O$12,4,FALSE),BC137:$BM137))) -> 0 | BC160: =IF(BC91=0,0,IF($A160="No",BC91,NPV(VLOOKUP(LEFT($B160,3),$L$7:$O$12,4,FALSE),BD137:$BM137))) -> 0 | BD160: =IF(BD91=0,0,IF($A160="No",BD91,NPV(VLOOKUP(LEFT($B160,3),$L$7:$O$12,4,FALSE),BE137:$BM137))) -> 0 | BE160: =IF(BE91=0,0,IF($A160="No",BE91,NPV(VLOOKUP(LEFT($B160,3),$L$7:$O$12,4,FALSE),BF137:$BM137))) -> 0 | BF160: =IF(BF91=0,0,IF($A160="No",BF91,NPV(VLOOKUP(LEFT($B160,3),$L$7:$O$12,4,FALSE),BG137:$BM137))) -> 0 | BG160: =IF(BG91=0,0,IF($A160="No",BG91,NPV(VLOOKUP(LEFT($B160,3),$L$7:$O$12,4,FALSE),BH137:$BM137))) -> 0 | BH160: =IF(BH91=0,0,IF($A160="No",BH91,NPV(VLOOKUP(LEFT($B160,3),$L$7:$O$12,4,FALSE),BI137:$BM137))) -> 0 | BI160: =IF(BI91=0,0,IF($A160="No",BI91,NPV(VLOOKUP(LEFT($B160,3),$L$7:$O$12,4,FALSE),BJ137:$BM137))) -> 0 | BJ160: =IF(BJ91=0,0,IF($A160="No",BJ91,NPV(VLOOKUP(LEFT($B160,3),$L$7:$O$12,4,FALSE),BK137:$BM137))) -> 0 | BK160: =IF(BK91=0,0,IF($A160="No",BK91,NPV(VLOOKUP(LEFT($B160,3),$L$7:$O$12,4,FALSE),BL137:$BM137))) -> 0 | BL160: =IF(BL91=0,0,IF($A160="No",BL91,NPV(VLOOKUP(LEFT($B160,3),$L$7:$O$12,4,FALSE),BM137:$BM137))) -> 0 | BM160: =IF(BM91=0,0,IF($A160="No",BM91,NPV(VLOOKUP(LEFT($B160,3),$L$7:$O$12,4,FALSE),$BM137:BN137))) -> 0
A161: No | B161: =$C$19 -> UTP_13 | E161: =IF(E92=0,0,IF($A161="No",E92,NPV(VLOOKUP(LEFT($B161,3),$L$7:$O$12,4,FALSE),F138:$BM138))) -> 339.3437784 | F161: =IF(F92=0,0,IF($A161="No",F92,NPV(VLOOKUP(LEFT($B161,3),$L$7:$O$12,4,FALSE),G138:$BM138))) -> 339.3437784 | G161: =IF(G92=0,0,IF($A161="No",G92,NPV(VLOOKUP(LEFT($B161,3),$L$7:$O$12,4,FALSE),H138:$BM138))) -> 339.3437784 | H161: =IF(H92=0,0,IF($A161="No",H92,NPV(VLOOKUP(LEFT($B161,3),$L$7:$O$12,4,FALSE),I138:$BM138))) -> 339.3437784 | I161: =IF(I92=0,0,IF($A161="No",I92,NPV(VLOOKUP(LEFT($B161,3),$L$7:$O$12,4,FALSE),J138:$BM138))) -> 339.3437784 | J161: =IF(J92=0,0,IF($A161="No",J92,NPV(VLOOKUP(LEFT($B161,3),$L$7:$O$12,4,FALSE),K138:$BM138))) -> 169.9086583 | K161: =IF(K92=0,0,IF($A161="No",K92,NPV(VLOOKUP(LEFT($B161,3),$L$7:$O$12,4,FALSE),L138:$BM138))) -> 169.9086583 | L161: =IF(L92=0,0,IF($A161="No",L92,NPV(VLOOKUP(LEFT($B161,3),$L$7:$O$12,4,FALSE),M138:$BM138))) -> 0 | M161: =IF(M92=0,0,IF($A161="No",M92,NPV(VLOOKUP(LEFT($B161,3),$L$7:$O$12,4,FALSE),N138:$BM138))) -> 0 | N161: =IF(N92=0,0,IF($A161="No",N92,NPV(VLOOKUP(LEFT($B161,3),$L$7:$O$12,4,FALSE),O138:$BM138))) -> 0 | O161: =IF(O92=0,0,IF($A161="No",O92,NPV(VLOOKUP(LEFT($B161,3),$L$7:$O$12,4,FALSE),P138:$BM138))) -> 0 | P161: =IF(P92=0,0,IF($A161="No",P92,NPV(VLOOKUP(LEFT($B161,3),$L$7:$O$12,4,FALSE),Q138:$BM138))) -> 0 | Q161: =IF(Q92=0,0,IF($A161="No",Q92,NPV(VLOOKUP(LEFT($B161,3),$L$7:$O$12,4,FALSE),R138:$BM138))) -> 0 | R161: =IF(R92=0,0,IF($A161="No",R92,NPV(VLOOKUP(LEFT($B161,3),$L$7:$O$12,4,FALSE),S138:$BM138))) -> 0 | S161: =IF(S92=0,0,IF($A161="No",S92,NPV(VLOOKUP(LEFT($B161,3),$L$7:$O$12,4,FALSE),T138:$BM138))) -> 0 | T161: =IF(T92=0,0,IF($A161="No",T92,NPV(VLOOKUP(LEFT($B161,3),$L$7:$O$12,4,FALSE),U138:$BM138))) -> 0 | U161: =IF(U92=0,0,IF($A161="No",U92,NPV(VLOOKUP(LEFT($B161,3),$L$7:$O$12,4,FALSE),V138:$BM138))) -> 0 | V161: =IF(V92=0,0,IF($A161="No",V92,NPV(VLOOKUP(LEFT($B161,3),$L$7:$O$12,4,FALSE),W138:$BM138))) -> 0 | W161: =IF(W92=0,0,IF($A161="No",W92,NPV(VLOOKUP(LEFT($B161,3),$L$7:$O$12,4,FALSE),X138:$BM138))) -> 0 | X161: =IF(X92=0,0,IF($A161="No",X92,NPV(VLOOKUP(LEFT($B161,3),$L$7:$O$12,4,FALSE),Y138:$BM138))) -> 0 | Y161: =IF(Y92=0,0,IF($A161="No",Y92,NPV(VLOOKUP(LEFT($B161,3),$L$7:$O$12,4,FALSE),Z138:$BM138))) -> 0 | Z161: =IF(Z92=0,0,IF($A161="No",Z92,NPV(VLOOKUP(LEFT($B161,3),$L$7:$O$12,4,FALSE),AA138:$BM138))) -> 0 | AA161: =IF(AA92=0,0,IF($A161="No",AA92,NPV(VLOOKUP(LEFT($B161,3),$L$7:$O$12,4,FALSE),AB138:$BM138))) -> 0 | AB161: =IF(AB92=0,0,IF($A161="No",AB92,NPV(VLOOKUP(LEFT($B161,3),$L$7:$O$12,4,FALSE),AC138:$BM138))) -> 0 | AC161: =IF(AC92=0,0,IF($A161="No",AC92,NPV(VLOOKUP(LEFT($B161,3),$L$7:$O$12,4,FALSE),AD138:$BM138))) -> 0 | AD161: =IF(AD92=0,0,IF($A161="No",AD92,NPV(VLOOKUP(LEFT($B161,3),$L$7:$O$12,4,FALSE),AE138:$BM138))) -> 0 | AE161: =IF(AE92=0,0,IF($A161="No",AE92,NPV(VLOOKUP(LEFT($B161,3),$L$7:$O$12,4,FALSE),AF138:$BM138))) -> 0 | AF161: =IF(AF92=0,0,IF($A161="No",AF92,NPV(VLOOKUP(LEFT($B161,3),$L$7:$O$12,4,FALSE),AG138:$BM138))) -> 0 | AG161: =IF(AG92=0,0,IF($A161="No",AG92,NPV(VLOOKUP(LEFT($B161,3),$L$7:$O$12,4,FALSE),AH138:$BM138))) -> 0 | AH161: =IF(AH92=0,0,IF($A161="No",AH92,NPV(VLOOKUP(LEFT($B161,3),$L$7:$O$12,4,FALSE),AI138:$BM138))) -> 0 | AI161: =IF(AI92=0,0,IF($A161="No",AI92,NPV(VLOOKUP(LEFT($B161,3),$L$7:$O$12,4,FALSE),AJ138:$BM138))) -> 0 | AJ161: =IF(AJ92=0,0,IF($A161="No",AJ92,NPV(VLOOKUP(LEFT($B161,3),$L$7:$O$12,4,FALSE),AK138:$BM138))) -> 0 | AK161: =IF(AK92=0,0,IF($A161="No",AK92,NPV(VLOOKUP(LEFT($B161,3),$L$7:$O$12,4,FALSE),AL138:$BM138))) -> 0 | AL161: =IF(AL92=0,0,IF($A161="No",AL92,NPV(VLOOKUP(LEFT($B161,3),$L$7:$O$12,4,FALSE),AM138:$BM138))) -> 0 | AM161: =IF(AM92=0,0,IF($A161="No",AM92,NPV(VLOOKUP(LEFT($B161,3),$L$7:$O$12,4,FALSE),AN138:$BM138))) -> 0 | AN161: =IF(AN92=0,0,IF($A161="No",AN92,NPV(VLOOKUP(LEFT($B161,3),$L$7:$O$12,4,FALSE),AO138:$BM138))) -> 0 | AO161: =IF(AO92=0,0,IF($A161="No",AO92,NPV(VLOOKUP(LEFT($B161,3),$L$7:$O$12,4,FALSE),AP138:$BM138))) -> 0 | AP161: =IF(AP92=0,0,IF($A161="No",AP92,NPV(VLOOKUP(LEFT($B161,3),$L$7:$O$12,4,FALSE),AQ138:$BM138))) -> 0 | AQ161: =IF(AQ92=0,0,IF($A161="No",AQ92,NPV(VLOOKUP(LEFT($B161,3),$L$7:$O$12,4,FALSE),AR138:$BM138))) -> 0 | AR161: =IF(AR92=0,0,IF($A161="No",AR92,NPV(VLOOKUP(LEFT($B161,3),$L$7:$O$12,4,FALSE),AS138:$BM138))) -> 0 | AS161: =IF(AS92=0,0,IF($A161="No",AS92,NPV(VLOOKUP(LEFT($B161,3),$L$7:$O$12,4,FALSE),AT138:$BM138))) -> 0 | AT161: =IF(AT92=0,0,IF($A161="No",AT92,NPV(VLOOKUP(LEFT($B161,3),$L$7:$O$12,4,FALSE),AU138:$BM138))) -> 0 | AU161: =IF(AU92=0,0,IF($A161="No",AU92,NPV(VLOOKUP(LEFT($B161,3),$L$7:$O$12,4,FALSE),AV138:$BM138))) -> 0 | AV161: =IF(AV92=0,0,IF($A161="No",AV92,NPV(VLOOKUP(LEFT($B161,3),$L$7:$O$12,4,FALSE),AW138:$BM138))) -> 0 | AW161: =IF(AW92=0,0,IF($A161="No",AW92,NPV(VLOOKUP(LEFT($B161,3),$L$7:$O$12,4,FALSE),AX138:$BM138))) -> 0 | AX161: =IF(AX92=0,0,IF($A161="No",AX92,NPV(VLOOKUP(LEFT($B161,3),$L$7:$O$12,4,FALSE),AY138:$BM138))) -> 0 | AY161: =IF(AY92=0,0,IF($A161="No",AY92,NPV(VLOOKUP(LEFT($B161,3),$L$7:$O$12,4,FALSE),AZ138:$BM138))) -> 0 | AZ161: =IF(AZ92=0,0,IF($A161="No",AZ92,NPV(VLOOKUP(LEFT($B161,3),$L$7:$O$12,4,FALSE),BA138:$BM138))) -> 0 | BA161: =IF(BA92=0,0,IF($A161="No",BA92,NPV(VLOOKUP(LEFT($B161,3),$L$7:$O$12,4,FALSE),BB138:$BM138))) -> 0 | BB161: =IF(BB92=0,0,IF($A161="No",BB92,NPV(VLOOKUP(LEFT($B161,3),$L$7:$O$12,4,FALSE),BC138:$BM138))) -> 0 | BC161: =IF(BC92=0,0,IF($A161="No",BC92,NPV(VLOOKUP(LEFT($B161,3),$L$7:$O$12,4,FALSE),BD138:$BM138))) -> 0 | BD161: =IF(BD92=0,0,IF($A161="No",BD92,NPV(VLOOKUP(LEFT($B161,3),$L$7:$O$12,4,FALSE),BE138:$BM138))) -> 0 | BE161: =IF(BE92=0,0,IF($A161="No",BE92,NPV(VLOOKUP(LEFT($B161,3),$L$7:$O$12,4,FALSE),BF138:$BM138))) -> 0 | BF161: =IF(BF92=0,0,IF($A161="No",BF92,NPV(VLOOKUP(LEFT($B161,3),$L$7:$O$12,4,FALSE),BG138:$BM138))) -> 0 | BG161: =IF(BG92=0,0,IF($A161="No",BG92,NPV(VLOOKUP(LEFT($B161,3),$L$7:$O$12,4,FALSE),BH138:$BM138))) -> 0 | BH161: =IF(BH92=0,0,IF($A161="No",BH92,NPV(VLOOKUP(LEFT($B161,3),$L$7:$O$12,4,FALSE),BI138:$BM138))) -> 0 | BI161: =IF(BI92=0,0,IF($A161="No",BI92,NPV(VLOOKUP(LEFT($B161,3),$L$7:$O$12,4,FALSE),BJ138:$BM138))) -> 0 | BJ161: =IF(BJ92=0,0,IF($A161="No",BJ92,NPV(VLOOKUP(LEFT($B161,3),$L$7:$O$12,4,FALSE),BK138:$BM138))) -> 0 | BK161: =IF(BK92=0,0,IF($A161="No",BK92,NPV(VLOOKUP(LEFT($B161,3),$L$7:$O$12,4,FALSE),BL138:$BM138))) -> 0 | BL161: =IF(BL92=0,0,IF($A161="No",BL92,NPV(VLOOKUP(LEFT($B161,3),$L$7:$O$12,4,FALSE),BM138:$BM138))) -> 0 | BM161: =IF(BM92=0,0,IF($A161="No",BM92,NPV(VLOOKUP(LEFT($B161,3),$L$7:$O$12,4,FALSE),$BM138:BN138))) -> 0
A162: No | B162: =$C$20 -> UTP_14 | E162: =IF(E93=0,0,IF($A162="No",E93,NPV(VLOOKUP(LEFT($B162,3),$L$7:$O$12,4,FALSE),F139:$BM139))) -> 39.44666667 | F162: =IF(F93=0,0,IF($A162="No",F93,NPV(VLOOKUP(LEFT($B162,3),$L$7:$O$12,4,FALSE),G139:$BM139))) -> 39.44666667 | G162: =IF(G93=0,0,IF($A162="No",G93,NPV(VLOOKUP(LEFT($B162,3),$L$7:$O$12,4,FALSE),H139:$BM139))) -> 39.44666667 | H162: =IF(H93=0,0,IF($A162="No",H93,NPV(VLOOKUP(LEFT($B162,3),$L$7:$O$12,4,FALSE),I139:$BM139))) -> 39.44666667 | I162: =IF(I93=0,0,IF($A162="No",I93,NPV(VLOOKUP(LEFT($B162,3),$L$7:$O$12,4,FALSE),J139:$BM139))) -> 39.44666667 | J162: =IF(J93=0,0,IF($A162="No",J93,NPV(VLOOKUP(LEFT($B162,3),$L$7:$O$12,4,FALSE),K139:$BM139))) -> 39.44666667 | K162: =IF(K93=0,0,IF($A162="No",K93,NPV(VLOOKUP(LEFT($B162,3),$L$7:$O$12,4,FALSE),L139:$BM139))) -> 39.44666667 | L162: =IF(L93=0,0,IF($A162="No",L93,NPV(VLOOKUP(LEFT($B162,3),$L$7:$O$12,4,FALSE),M139:$BM139))) -> 39.44666667 | M162: =IF(M93=0,0,IF($A162="No",M93,NPV(VLOOKUP(LEFT($B162,3),$L$7:$O$12,4,FALSE),N139:$BM139))) -> 39.44666667 | N162: =IF(N93=0,0,IF($A162="No",N93,NPV(VLOOKUP(LEFT($B162,3),$L$7:$O$12,4,FALSE),O139:$BM139))) -> 39.44666667 | O162: =IF(O93=0,0,IF($A162="No",O93,NPV(VLOOKUP(LEFT($B162,3),$L$7:$O$12,4,FALSE),P139:$BM139))) -> 0 | P162: =IF(P93=0,0,IF($A162="No",P93,NPV(VLOOKUP(LEFT($B162,3),$L$7:$O$12,4,FALSE),Q139:$BM139))) -> 0 | Q162: =IF(Q93=0,0,IF($A162="No",Q93,NPV(VLOOKUP(LEFT($B162,3),$L$7:$O$12,4,FALSE),R139:$BM139))) -> 0 | R162: =IF(R93=0,0,IF($A162="No",R93,NPV(VLOOKUP(LEFT($B162,3),$L$7:$O$12,4,FALSE),S139:$BM139))) -> 0 | S162: =IF(S93=0,0,IF($A162="No",S93,NPV(VLOOKUP(LEFT($B162,3),$L$7:$O$12,4,FALSE),T139:$BM139))) -> 0 | T162: =IF(T93=0,0,IF($A162="No",T93,NPV(VLOOKUP(LEFT($B162,3),$L$7:$O$12,4,FALSE),U139:$BM139))) -> 0 | U162: =IF(U93=0,0,IF($A162="No",U93,NPV(VLOOKUP(LEFT($B162,3),$L$7:$O$12,4,FALSE),V139:$BM139))) -> 0 | V162: =IF(V93=0,0,IF($A162="No",V93,NPV(VLOOKUP(LEFT($B162,3),$L$7:$O$12,4,FALSE),W139:$BM139))) -> 0 | W162: =IF(W93=0,0,IF($A162="No",W93,NPV(VLOOKUP(LEFT($B162,3),$L$7:$O$12,4,FALSE),X139:$BM139))) -> 0 | X162: =IF(X93=0,0,IF($A162="No",X93,NPV(VLOOKUP(LEFT($B162,3),$L$7:$O$12,4,FALSE),Y139:$BM139))) -> 0 | Y162: =IF(Y93=0,0,IF($A162="No",Y93,NPV(VLOOKUP(LEFT($B162,3),$L$7:$O$12,4,FALSE),Z139:$BM139))) -> 0 | Z162: =IF(Z93=0,0,IF($A162="No",Z93,NPV(VLOOKUP(LEFT($B162,3),$L$7:$O$12,4,FALSE),AA139:$BM139))) -> 0 | AA162: =IF(AA93=0,0,IF($A162="No",AA93,NPV(VLOOKUP(LEFT($B162,3),$L$7:$O$12,4,FALSE),AB139:$BM139))) -> 0 | AB162: =IF(AB93=0,0,IF($A162="No",AB93,NPV(VLOOKUP(LEFT($B162,3),$L$7:$O$12,4,FALSE),AC139:$BM139))) -> 0 | AC162: =IF(AC93=0,0,IF($A162="No",AC93,NPV(VLOOKUP(LEFT($B162,3),$L$7:$O$12,4,FALSE),AD139:$BM139))) -> 0 | AD162: =IF(AD93=0,0,IF($A162="No",AD93,NPV(VLOOKUP(LEFT($B162,3),$L$7:$O$12,4,FALSE),AE139:$BM139))) -> 0 | AE162: =IF(AE93=0,0,IF($A162="No",AE93,NPV(VLOOKUP(LEFT($B162,3),$L$7:$O$12,4,FALSE),AF139:$BM139))) -> 0 | AF162: =IF(AF93=0,0,IF($A162="No",AF93,NPV(VLOOKUP(LEFT($B162,3),$L$7:$O$12,4,FALSE),AG139:$BM139))) -> 0 | AG162: =IF(AG93=0,0,IF($A162="No",AG93,NPV(VLOOKUP(LEFT($B162,3),$L$7:$O$12,4,FALSE),AH139:$BM139))) -> 0 | AH162: =IF(AH93=0,0,IF($A162="No",AH93,NPV(VLOOKUP(LEFT($B162,3),$L$7:$O$12,4,FALSE),AI139:$BM139))) -> 0 | AI162: =IF(AI93=0,0,IF($A162="No",AI93,NPV(VLOOKUP(LEFT($B162,3),$L$7:$O$12,4,FALSE),AJ139:$BM139))) -> 0 | AJ162: =IF(AJ93=0,0,IF($A162="No",AJ93,NPV(VLOOKUP(LEFT($B162,3),$L$7:$O$12,4,FALSE),AK139:$BM139))) -> 0 | AK162: =IF(AK93=0,0,IF($A162="No",AK93,NPV(VLOOKUP(LEFT($B162,3),$L$7:$O$12,4,FALSE),AL139:$BM139))) -> 0 | AL162: =IF(AL93=0,0,IF($A162="No",AL93,NPV(VLOOKUP(LEFT($B162,3),$L$7:$O$12,4,FALSE),AM139:$BM139))) -> 0 | AM162: =IF(AM93=0,0,IF($A162="No",AM93,NPV(VLOOKUP(LEFT($B162,3),$L$7:$O$12,4,FALSE),AN139:$BM139))) -> 0 | AN162: =IF(AN93=0,0,IF($A162="No",AN93,NPV(VLOOKUP(LEFT($B162,3),$L$7:$O$12,4,FALSE),AO139:$BM139))) -> 0 | AO162: =IF(AO93=0,0,IF($A162="No",AO93,NPV(VLOOKUP(LEFT($B162,3),$L$7:$O$12,4,FALSE),AP139:$BM139))) -> 0 | AP162: =IF(AP93=0,0,IF($A162="No",AP93,NPV(VLOOKUP(LEFT($B162,3),$L$7:$O$12,4,FALSE),AQ139:$BM139))) -> 0 | AQ162: =IF(AQ93=0,0,IF($A162="No",AQ93,NPV(VLOOKUP(LEFT($B162,3),$L$7:$O$12,4,FALSE),AR139:$BM139))) -> 0 | AR162: =IF(AR93=0,0,IF($A162="No",AR93,NPV(VLOOKUP(LEFT($B162,3),$L$7:$O$12,4,FALSE),AS139:$BM139))) -> 0 | AS162: =IF(AS93=0,0,IF($A162="No",AS93,NPV(VLOOKUP(LEFT($B162,3),$L$7:$O$12,4,FALSE),AT139:$BM139))) -> 0 | AT162: =IF(AT93=0,0,IF($A162="No",AT93,NPV(VLOOKUP(LEFT($B162,3),$L$7:$O$12,4,FALSE),AU139:$BM139))) -> 0 | AU162: =IF(AU93=0,0,IF($A162="No",AU93,NPV(VLOOKUP(LEFT($B162,3),$L$7:$O$12,4,FALSE),AV139:$BM139))) -> 0 | AV162: =IF(AV93=0,0,IF($A162="No",AV93,NPV(VLOOKUP(LEFT($B162,3),$L$7:$O$12,4,FALSE),AW139:$BM139))) -> 0 | AW162: =IF(AW93=0,0,IF($A162="No",AW93,NPV(VLOOKUP(LEFT($B162,3),$L$7:$O$12,4,FALSE),AX139:$BM139))) -> 0 | AX162: =IF(AX93=0,0,IF($A162="No",AX93,NPV(VLOOKUP(LEFT($B162,3),$L$7:$O$12,4,FALSE),AY139:$BM139))) -> 0 | AY162: =IF(AY93=0,0,IF($A162="No",AY93,NPV(VLOOKUP(LEFT($B162,3),$L$7:$O$12,4,FALSE),AZ139:$BM139))) -> 0 | AZ162: =IF(AZ93=0,0,IF($A162="No",AZ93,NPV(VLOOKUP(LEFT($B162,3),$L$7:$O$12,4,FALSE),BA139:$BM139))) -> 0 | BA162: =IF(BA93=0,0,IF($A162="No",BA93,NPV(VLOOKUP(LEFT($B162,3),$L$7:$O$12,4,FALSE),BB139:$BM139))) -> 0 | BB162: =IF(BB93=0,0,IF($A162="No",BB93,NPV(VLOOKUP(LEFT($B162,3),$L$7:$O$12,4,FALSE),BC139:$BM139))) -> 0 | BC162: =IF(BC93=0,0,IF($A162="No",BC93,NPV(VLOOKUP(LEFT($B162,3),$L$7:$O$12,4,FALSE),BD139:$BM139))) -> 0 | BD162: =IF(BD93=0,0,IF($A162="No",BD93,NPV(VLOOKUP(LEFT($B162,3),$L$7:$O$12,4,FALSE),BE139:$BM139))) -> 0 | BE162: =IF(BE93=0,0,IF($A162="No",BE93,NPV(VLOOKUP(LEFT($B162,3),$L$7:$O$12,4,FALSE),BF139:$BM139))) -> 0 | BF162: =IF(BF93=0,0,IF($A162="No",BF93,NPV(VLOOKUP(LEFT($B162,3),$L$7:$O$12,4,FALSE),BG139:$BM139))) -> 0 | BG162: =IF(BG93=0,0,IF($A162="No",BG93,NPV(VLOOKUP(LEFT($B162,3),$L$7:$O$12,4,FALSE),BH139:$BM139))) -> 0 | BH162: =IF(BH93=0,0,IF($A162="No",BH93,NPV(VLOOKUP(LEFT($B162,3),$L$7:$O$12,4,FALSE),BI139:$BM139))) -> 0 | BI162: =IF(BI93=0,0,IF($A162="No",BI93,NPV(VLOOKUP(LEFT($B162,3),$L$7:$O$12,4,FALSE),BJ139:$BM139))) -> 0 | BJ162: =IF(BJ93=0,0,IF($A162="No",BJ93,NPV(VLOOKUP(LEFT($B162,3),$L$7:$O$12,4,FALSE),BK139:$BM139))) -> 0 | BK162: =IF(BK93=0,0,IF($A162="No",BK93,NPV(VLOOKUP(LEFT($B162,3),$L$7:$O$12,4,FALSE),BL139:$BM139))) -> 0 | BL162: =IF(BL93=0,0,IF($A162="No",BL93,NPV(VLOOKUP(LEFT($B162,3),$L$7:$O$12,4,FALSE),BM139:$BM139))) -> 0 | BM162: =IF(BM93=0,0,IF($A162="No",BM93,NPV(VLOOKUP(LEFT($B162,3),$L$7:$O$12,4,FALSE),$BM139:BN139))) -> 0
A163: No | B163: =$C$21 -> UTP_15 | E163: =IF(E94=0,0,IF($A163="No",E94,NPV(VLOOKUP(LEFT($B163,3),$L$7:$O$12,4,FALSE),F140:$BM140))) -> 0 | F163: =IF(F94=0,0,IF($A163="No",F94,NPV(VLOOKUP(LEFT($B163,3),$L$7:$O$12,4,FALSE),G140:$BM140))) -> 0 | G163: =IF(G94=0,0,IF($A163="No",G94,NPV(VLOOKUP(LEFT($B163,3),$L$7:$O$12,4,FALSE),H140:$BM140))) -> 0 | H163: =IF(H94=0,0,IF($A163="No",H94,NPV(VLOOKUP(LEFT($B163,3),$L$7:$O$12,4,FALSE),I140:$BM140))) -> 0 | I163: =IF(I94=0,0,IF($A163="No",I94,NPV(VLOOKUP(LEFT($B163,3),$L$7:$O$12,4,FALSE),J140:$BM140))) -> 0 | J163: =IF(J94=0,0,IF($A163="No",J94,NPV(VLOOKUP(LEFT($B163,3),$L$7:$O$12,4,FALSE),K140:$BM140))) -> 0 | K163: =IF(K94=0,0,IF($A163="No",K94,NPV(VLOOKUP(LEFT($B163,3),$L$7:$O$12,4,FALSE),L140:$BM140))) -> 0 | L163: =IF(L94=0,0,IF($A163="No",L94,NPV(VLOOKUP(LEFT($B163,3),$L$7:$O$12,4,FALSE),M140:$BM140))) -> 0 | M163: =IF(M94=0,0,IF($A163="No",M94,NPV(VLOOKUP(LEFT($B163,3),$L$7:$O$12,4,FALSE),N140:$BM140))) -> 0 | N163: =IF(N94=0,0,IF($A163="No",N94,NPV(VLOOKUP(LEFT($B163,3),$L$7:$O$12,4,FALSE),O140:$BM140))) -> 0 | O163: =IF(O94=0,0,IF($A163="No",O94,NPV(VLOOKUP(LEFT($B163,3),$L$7:$O$12,4,FALSE),P140:$BM140))) -> 0 | P163: =IF(P94=0,0,IF($A163="No",P94,NPV(VLOOKUP(LEFT($B163,3),$L$7:$O$12,4,FALSE),Q140:$BM140))) -> 0 | Q163: =IF(Q94=0,0,IF($A163="No",Q94,NPV(VLOOKUP(LEFT($B163,3),$L$7:$O$12,4,FALSE),R140:$BM140))) -> 0 | R163: =IF(R94=0,0,IF($A163="No",R94,NPV(VLOOKUP(LEFT($B163,3),$L$7:$O$12,4,FALSE),S140:$BM140))) -> 0 | S163: =IF(S94=0,0,IF($A163="No",S94,NPV(VLOOKUP(LEFT($B163,3),$L$7:$O$12,4,FALSE),T140:$BM140))) -> 0 | T163: =IF(T94=0,0,IF($A163="No",T94,NPV(VLOOKUP(LEFT($B163,3),$L$7:$O$12,4,FALSE),U140:$BM140))) -> 0 | U163: =IF(U94=0,0,IF($A163="No",U94,NPV(VLOOKUP(LEFT($B163,3),$L$7:$O$12,4,FALSE),V140:$BM140))) -> 0 | V163: =IF(V94=0,0,IF($A163="No",V94,NPV(VLOOKUP(LEFT($B163,3),$L$7:$O$12,4,FALSE),W140:$BM140))) -> 0 | W163: =IF(W94=0,0,IF($A163="No",W94,NPV(VLOOKUP(LEFT($B163,3),$L$7:$O$12,4,FALSE),X140:$BM140))) -> 0 | X163: =IF(X94=0,0,IF($A163="No",X94,NPV(VLOOKUP(LEFT($B163,3),$L$7:$O$12,4,FALSE),Y140:$BM140))) -> 0 | Y163: =IF(Y94=0,0,IF($A163="No",Y94,NPV(VLOOKUP(LEFT($B163,3),$L$7:$O$12,4,FALSE),Z140:$BM140))) -> 0 | Z163: =IF(Z94=0,0,IF($A163="No",Z94,NPV(VLOOKUP(LEFT($B163,3),$L$7:$O$12,4,FALSE),AA140:$BM140))) -> 0 | AA163: =IF(AA94=0,0,IF($A163="No",AA94,NPV(VLOOKUP(LEFT($B163,3),$L$7:$O$12,4,FALSE),AB140:$BM140))) -> 0 | AB163: =IF(AB94=0,0,IF($A163="No",AB94,NPV(VLOOKUP(LEFT($B163,3),$L$7:$O$12,4,FALSE),AC140:$BM140))) -> 0 | AC163: =IF(AC94=0,0,IF($A163="No",AC94,NPV(VLOOKUP(LEFT($B163,3),$L$7:$O$12,4,FALSE),AD140:$BM140))) -> 0 | AD163: =IF(AD94=0,0,IF($A163="No",AD94,NPV(VLOOKUP(LEFT($B163,3),$L$7:$O$12,4,FALSE),AE140:$BM140))) -> 0 | AE163: =IF(AE94=0,0,IF($A163="No",AE94,NPV(VLOOKUP(LEFT($B163,3),$L$7:$O$12,4,FALSE),AF140:$BM140))) -> 0 | AF163: =IF(AF94=0,0,IF($A163="No",AF94,NPV(VLOOKUP(LEFT($B163,3),$L$7:$O$12,4,FALSE),AG140:$BM140))) -> 0 | AG163: =IF(AG94=0,0,IF($A163="No",AG94,NPV(VLOOKUP(LEFT($B163,3),$L$7:$O$12,4,FALSE),AH140:$BM140))) -> 0 | AH163: =IF(AH94=0,0,IF($A163="No",AH94,NPV(VLOOKUP(LEFT($B163,3),$L$7:$O$12,4,FALSE),AI140:$BM140))) -> 0 | AI163: =IF(AI94=0,0,IF($A163="No",AI94,NPV(VLOOKUP(LEFT($B163,3),$L$7:$O$12,4,FALSE),AJ140:$BM140))) -> 0 | AJ163: =IF(AJ94=0,0,IF($A163="No",AJ94,NPV(VLOOKUP(LEFT($B163,3),$L$7:$O$12,4,FALSE),AK140:$BM140))) -> 0 | AK163: =IF(AK94=0,0,IF($A163="No",AK94,NPV(VLOOKUP(LEFT($B163,3),$L$7:$O$12,4,FALSE),AL140:$BM140))) -> 0 | AL163: =IF(AL94=0,0,IF($A163="No",AL94,NPV(VLOOKUP(LEFT($B163,3),$L$7:$O$12,4,FALSE),AM140:$BM140))) -> 0 | AM163: =IF(AM94=0,0,IF($A163="No",AM94,NPV(VLOOKUP(LEFT($B163,3),$L$7:$O$12,4,FALSE),AN140:$BM140))) -> 0 | AN163: =IF(AN94=0,0,IF($A163="No",AN94,NPV(VLOOKUP(LEFT($B163,3),$L$7:$O$12,4,FALSE),AO140:$BM140))) -> 0 | AO163: =IF(AO94=0,0,IF($A163="No",AO94,NPV(VLOOKUP(LEFT($B163,3),$L$7:$O$12,4,FALSE),AP140:$BM140))) -> 0 | AP163: =IF(AP94=0,0,IF($A163="No",AP94,NPV(VLOOKUP(LEFT($B163,3),$L$7:$O$12,4,FALSE),AQ140:$BM140))) -> 0 | AQ163: =IF(AQ94=0,0,IF($A163="No",AQ94,NPV(VLOOKUP(LEFT($B163,3),$L$7:$O$12,4,FALSE),AR140:$BM140))) -> 0 | AR163: =IF(AR94=0,0,IF($A163="No",AR94,NPV(VLOOKUP(LEFT($B163,3),$L$7:$O$12,4,FALSE),AS140:$BM140))) -> 0 | AS163: =IF(AS94=0,0,IF($A163="No",AS94,NPV(VLOOKUP(LEFT($B163,3),$L$7:$O$12,4,FALSE),AT140:$BM140))) -> 0 | AT163: =IF(AT94=0,0,IF($A163="No",AT94,NPV(VLOOKUP(LEFT($B163,3),$L$7:$O$12,4,FALSE),AU140:$BM140))) -> 0 | AU163: =IF(AU94=0,0,IF($A163="No",AU94,NPV(VLOOKUP(LEFT($B163,3),$L$7:$O$12,4,FALSE),AV140:$BM140))) -> 0 | AV163: =IF(AV94=0,0,IF($A163="No",AV94,NPV(VLOOKUP(LEFT($B163,3),$L$7:$O$12,4,FALSE),AW140:$BM140))) -> 0 | AW163: =IF(AW94=0,0,IF($A163="No",AW94,NPV(VLOOKUP(LEFT($B163,3),$L$7:$O$12,4,FALSE),AX140:$BM140))) -> 0 | AX163: =IF(AX94=0,0,IF($A163="No",AX94,NPV(VLOOKUP(LEFT($B163,3),$L$7:$O$12,4,FALSE),AY140:$BM140))) -> 0 | AY163: =IF(AY94=0,0,IF($A163="No",AY94,NPV(VLOOKUP(LEFT($B163,3),$L$7:$O$12,4,FALSE),AZ140:$BM140))) -> 0 | AZ163: =IF(AZ94=0,0,IF($A163="No",AZ94,NPV(VLOOKUP(LEFT($B163,3),$L$7:$O$12,4,FALSE),BA140:$BM140))) -> 0 | BA163: =IF(BA94=0,0,IF($A163="No",BA94,NPV(VLOOKUP(LEFT($B163,3),$L$7:$O$12,4,FALSE),BB140:$BM140))) -> 0 | BB163: =IF(BB94=0,0,IF($A163="No",BB94,NPV(VLOOKUP(LEFT($B163,3),$L$7:$O$12,4,FALSE),BC140:$BM140))) -> 0 | BC163: =IF(BC94=0,0,IF($A163="No",BC94,NPV(VLOOKUP(LEFT($B163,3),$L$7:$O$12,4,FALSE),BD140:$BM140))) -> 0 | BD163: =IF(BD94=0,0,IF($A163="No",BD94,NPV(VLOOKUP(LEFT($B163,3),$L$7:$O$12,4,FALSE),BE140:$BM140))) -> 0 | BE163: =IF(BE94=0,0,IF($A163="No",BE94,NPV(VLOOKUP(LEFT($B163,3),$L$7:$O$12,4,FALSE),BF140:$BM140))) -> 0 | BF163: =IF(BF94=0,0,IF($A163="No",BF94,NPV(VLOOKUP(LEFT($B163,3),$L$7:$O$12,4,FALSE),BG140:$BM140))) -> 0 | BG163: =IF(BG94=0,0,IF($A163="No",BG94,NPV(VLOOKUP(LEFT($B163,3),$L$7:$O$12,4,FALSE),BH140:$BM140))) -> 0 | BH163: =IF(BH94=0,0,IF($A163="No",BH94,NPV(VLOOKUP(LEFT($B163,3),$L$7:$O$12,4,FALSE),BI140:$BM140))) -> 0 | BI163: =IF(BI94=0,0,IF($A163="No",BI94,NPV(VLOOKUP(LEFT($B163,3),$L$7:$O$12,4,FALSE),BJ140:$BM140))) -> 0 | BJ163: =IF(BJ94=0,0,IF($A163="No",BJ94,NPV(VLOOKUP(LEFT($B163,3),$L$7:$O$12,4,FALSE),BK140:$BM140))) -> 0 | BK163: =IF(BK94=0,0,IF($A163="No",BK94,NPV(VLOOKUP(LEFT($B163,3),$L$7:$O$12,4,FALSE),BL140:$BM140))) -> 0 | BL163: =IF(BL94=0,0,IF($A163="No",BL94,NPV(VLOOKUP(LEFT($B163,3),$L$7:$O$12,4,FALSE),BM140:$BM140))) -> 0 | BM163: =IF(BM94=0,0,IF($A163="No",BM94,NPV(VLOOKUP(LEFT($B163,3),$L$7:$O$12,4,FALSE),$BM140:BN140))) -> 0
A164: 0 | B164: =$C$22 -> UTP_16 | E164: =IF(E95=0,0,IF($A164="No",E95,NPV(VLOOKUP(LEFT($B164,3),$L$7:$O$12,4,FALSE),F141:$BM141))) -> 0 | F164: =IF(F95=0,0,IF($A164="No",F95,NPV(VLOOKUP(LEFT($B164,3),$L$7:$O$12,4,FALSE),G141:$BM141))) -> 0 | G164: =IF(G95=0,0,IF($A164="No",G95,NPV(VLOOKUP(LEFT($B164,3),$L$7:$O$12,4,FALSE),H141:$BM141))) -> 0 | H164: =IF(H95=0,0,IF($A164="No",H95,NPV(VLOOKUP(LEFT($B164,3),$L$7:$O$12,4,FALSE),I141:$BM141))) -> 0 | I164: =IF(I95=0,0,IF($A164="No",I95,NPV(VLOOKUP(LEFT($B164,3),$L$7:$O$12,4,FALSE),J141:$BM141))) -> 0 | J164: =IF(J95=0,0,IF($A164="No",J95,NPV(VLOOKUP(LEFT($B164,3),$L$7:$O$12,4,FALSE),K141:$BM141))) -> 0 | K164: =IF(K95=0,0,IF($A164="No",K95,NPV(VLOOKUP(LEFT($B164,3),$L$7:$O$12,4,FALSE),L141:$BM141))) -> 0 | L164: =IF(L95=0,0,IF($A164="No",L95,NPV(VLOOKUP(LEFT($B164,3),$L$7:$O$12,4,FALSE),M141:$BM141))) -> 0 | M164: =IF(M95=0,0,IF($A164="No",M95,NPV(VLOOKUP(LEFT($B164,3),$L$7:$O$12,4,FALSE),N141:$BM141))) -> 0 | N164: =IF(N95=0,0,IF($A164="No",N95,NPV(VLOOKUP(LEFT($B164,3),$L$7:$O$12,4,FALSE),O141:$BM141))) -> 0 | O164: =IF(O95=0,0,IF($A164="No",O95,NPV(VLOOKUP(LEFT($B164,3),$L$7:$O$12,4,FALSE),P141:$BM141))) -> 0 | P164: =IF(P95=0,0,IF($A164="No",P95,NPV(VLOOKUP(LEFT($B164,3),$L$7:$O$12,4,FALSE),Q141:$BM141))) -> 0 | Q164: =IF(Q95=0,0,IF($A164="No",Q95,NPV(VLOOKUP(LEFT($B164,3),$L$7:$O$12,4,FALSE),R141:$BM141))) -> 0 | R164: =IF(R95=0,0,IF($A164="No",R95,NPV(VLOOKUP(LEFT($B164,3),$L$7:$O$12,4,FALSE),S141:$BM141))) -> 0 | S164: =IF(S95=0,0,IF($A164="No",S95,NPV(VLOOKUP(LEFT($B164,3),$L$7:$O$12,4,FALSE),T141:$BM141))) -> 0 | T164: =IF(T95=0,0,IF($A164="No",T95,NPV(VLOOKUP(LEFT($B164,3),$L$7:$O$12,4,FALSE),U141:$BM141))) -> 0 | U164: =IF(U95=0,0,IF($A164="No",U95,NPV(VLOOKUP(LEFT($B164,3),$L$7:$O$12,4,FALSE),V141:$BM141))) -> 0 | V164: =IF(V95=0,0,IF($A164="No",V95,NPV(VLOOKUP(LEFT($B164,3),$L$7:$O$12,4,FALSE),W141:$BM141))) -> 0 | W164: =IF(W95=0,0,IF($A164="No",W95,NPV(VLOOKUP(LEFT($B164,3),$L$7:$O$12,4,FALSE),X141:$BM141))) -> 0 | X164: =IF(X95=0,0,IF($A164="No",X95,NPV(VLOOKUP(LEFT($B164,3),$L$7:$O$12,4,FALSE),Y141:$BM141))) -> 0 | Y164: =IF(Y95=0,0,IF($A164="No",Y95,NPV(VLOOKUP(LEFT($B164,3),$L$7:$O$12,4,FALSE),Z141:$BM141))) -> 0 | Z164: =IF(Z95=0,0,IF($A164="No",Z95,NPV(VLOOKUP(LEFT($B164,3),$L$7:$O$12,4,FALSE),AA141:$BM141))) -> 0 | AA164: =IF(AA95=0,0,IF($A164="No",AA95,NPV(VLOOKUP(LEFT($B164,3),$L$7:$O$12,4,FALSE),AB141:$BM141))) -> 0 | AB164: =IF(AB95=0,0,IF($A164="No",AB95,NPV(VLOOKUP(LEFT($B164,3),$L$7:$O$12,4,FALSE),AC141:$BM141))) -> 0 | AC164: =IF(AC95=0,0,IF($A164="No",AC95,NPV(VLOOKUP(LEFT($B164,3),$L$7:$O$12,4,FALSE),AD141:$BM141))) -> 0 | AD164: =IF(AD95=0,0,IF($A164="No",AD95,NPV(VLOOKUP(LEFT($B164,3),$L$7:$O$12,4,FALSE),AE141:$BM141))) -> 0 | AE164: =IF(AE95=0,0,IF($A164="No",AE95,NPV(VLOOKUP(LEFT($B164,3),$L$7:$O$12,4,FALSE),AF141:$BM141))) -> 0 | AF164: =IF(AF95=0,0,IF($A164="No",AF95,NPV(VLOOKUP(LEFT($B164,3),$L$7:$O$12,4,FALSE),AG141:$BM141))) -> 0 | AG164: =IF(AG95=0,0,IF($A164="No",AG95,NPV(VLOOKUP(LEFT($B164,3),$L$7:$O$12,4,FALSE),AH141:$BM141))) -> 0 | AH164: =IF(AH95=0,0,IF($A164="No",AH95,NPV(VLOOKUP(LEFT($B164,3),$L$7:$O$12,4,FALSE),AI141:$BM141))) -> 0 | AI164: =IF(AI95=0,0,IF($A164="No",AI95,NPV(VLOOKUP(LEFT($B164,3),$L$7:$O$12,4,FALSE),AJ141:$BM141))) -> 0 | AJ164: =IF(AJ95=0,0,IF($A164="No",AJ95,NPV(VLOOKUP(LEFT($B164,3),$L$7:$O$12,4,FALSE),AK141:$BM141))) -> 0 | AK164: =IF(AK95=0,0,IF($A164="No",AK95,NPV(VLOOKUP(LEFT($B164,3),$L$7:$O$12,4,FALSE),AL141:$BM141))) -> 0 | AL164: =IF(AL95=0,0,IF($A164="No",AL95,NPV(VLOOKUP(LEFT($B164,3),$L$7:$O$12,4,FALSE),AM141:$BM141))) -> 0 | AM164: =IF(AM95=0,0,IF($A164="No",AM95,NPV(VLOOKUP(LEFT($B164,3),$L$7:$O$12,4,FALSE),AN141:$BM141))) -> 0 | AN164: =IF(AN95=0,0,IF($A164="No",AN95,NPV(VLOOKUP(LEFT($B164,3),$L$7:$O$12,4,FALSE),AO141:$BM141))) -> 0 | AO164: =IF(AO95=0,0,IF($A164="No",AO95,NPV(VLOOKUP(LEFT($B164,3),$L$7:$O$12,4,FALSE),AP141:$BM141))) -> 0 | AP164: =IF(AP95=0,0,IF($A164="No",AP95,NPV(VLOOKUP(LEFT($B164,3),$L$7:$O$12,4,FALSE),AQ141:$BM141))) -> 0 | AQ164: =IF(AQ95=0,0,IF($A164="No",AQ95,NPV(VLOOKUP(LEFT($B164,3),$L$7:$O$12,4,FALSE),AR141:$BM141))) -> 0 | AR164: =IF(AR95=0,0,IF($A164="No",AR95,NPV(VLOOKUP(LEFT($B164,3),$L$7:$O$12,4,FALSE),AS141:$BM141))) -> 0 | AS164: =IF(AS95=0,0,IF($A164="No",AS95,NPV(VLOOKUP(LEFT($B164,3),$L$7:$O$12,4,FALSE),AT141:$BM141))) -> 0 | AT164: =IF(AT95=0,0,IF($A164="No",AT95,NPV(VLOOKUP(LEFT($B164,3),$L$7:$O$12,4,FALSE),AU141:$BM141))) -> 0 | AU164: =IF(AU95=0,0,IF($A164="No",AU95,NPV(VLOOKUP(LEFT($B164,3),$L$7:$O$12,4,FALSE),AV141:$BM141))) -> 0 | AV164: =IF(AV95=0,0,IF($A164="No",AV95,NPV(VLOOKUP(LEFT($B164,3),$L$7:$O$12,4,FALSE),AW141:$BM141))) -> 0 | AW164: =IF(AW95=0,0,IF($A164="No",AW95,NPV(VLOOKUP(LEFT($B164,3),$L$7:$O$12,4,FALSE),AX141:$BM141))) -> 0 | AX164: =IF(AX95=0,0,IF($A164="No",AX95,NPV(VLOOKUP(LEFT($B164,3),$L$7:$O$12,4,FALSE),AY141:$BM141))) -> 0 | AY164: =IF(AY95=0,0,IF($A164="No",AY95,NPV(VLOOKUP(LEFT($B164,3),$L$7:$O$12,4,FALSE),AZ141:$BM141))) -> 0 | AZ164: =IF(AZ95=0,0,IF($A164="No",AZ95,NPV(VLOOKUP(LEFT($B164,3),$L$7:$O$12,4,FALSE),BA141:$BM141))) -> 0 | BA164: =IF(BA95=0,0,IF($A164="No",BA95,NPV(VLOOKUP(LEFT($B164,3),$L$7:$O$12,4,FALSE),BB141:$BM141))) -> 0 | BB164: =IF(BB95=0,0,IF($A164="No",BB95,NPV(VLOOKUP(LEFT($B164,3),$L$7:$O$12,4,FALSE),BC141:$BM141))) -> 0 | BC164: =IF(BC95=0,0,IF($A164="No",BC95,NPV(VLOOKUP(LEFT($B164,3),$L$7:$O$12,4,FALSE),BD141:$BM141))) -> 0 | BD164: =IF(BD95=0,0,IF($A164="No",BD95,NPV(VLOOKUP(LEFT($B164,3),$L$7:$O$12,4,FALSE),BE141:$BM141))) -> 0 | BE164: =IF(BE95=0,0,IF($A164="No",BE95,NPV(VLOOKUP(LEFT($B164,3),$L$7:$O$12,4,FALSE),BF141:$BM141))) -> 0 | BF164: =IF(BF95=0,0,IF($A164="No",BF95,NPV(VLOOKUP(LEFT($B164,3),$L$7:$O$12,4,FALSE),BG141:$BM141))) -> 0 | BG164: =IF(BG95=0,0,IF($A164="No",BG95,NPV(VLOOKUP(LEFT($B164,3),$L$7:$O$12,4,FALSE),BH141:$BM141))) -> 0 | BH164: =IF(BH95=0,0,IF($A164="No",BH95,NPV(VLOOKUP(LEFT($B164,3),$L$7:$O$12,4,FALSE),BI141:$BM141))) -> 0 | BI164: =IF(BI95=0,0,IF($A164="No",BI95,NPV(VLOOKUP(LEFT($B164,3),$L$7:$O$12,4,FALSE),BJ141:$BM141))) -> 0 | BJ164: =IF(BJ95=0,0,IF($A164="No",BJ95,NPV(VLOOKUP(LEFT($B164,3),$L$7:$O$12,4,FALSE),BK141:$BM141))) -> 0 | BK164: =IF(BK95=0,0,IF($A164="No",BK95,NPV(VLOOKUP(LEFT($B164,3),$L$7:$O$12,4,FALSE),BL141:$BM141))) -> 0 | BL164: =IF(BL95=0,0,IF($A164="No",BL95,NPV(VLOOKUP(LEFT($B164,3),$L$7:$O$12,4,FALSE),BM141:$BM141))) -> 0 | BM164: =IF(BM95=0,0,IF($A164="No",BM95,NPV(VLOOKUP(LEFT($B164,3),$L$7:$O$12,4,FALSE),$BM141:BN141))) -> 0
A165: 0 | B165: =$C$23 -> UTP_17 | E165: =IF(E96=0,0,IF($A165="No",E96,NPV(VLOOKUP(LEFT($B165,3),$L$7:$O$12,4,FALSE),F142:$BM142))) -> 0 | F165: =IF(F96=0,0,IF($A165="No",F96,NPV(VLOOKUP(LEFT($B165,3),$L$7:$O$12,4,FALSE),G142:$BM142))) -> 0 | G165: =IF(G96=0,0,IF($A165="No",G96,NPV(VLOOKUP(LEFT($B165,3),$L$7:$O$12,4,FALSE),H142:$BM142))) -> 0 | H165: =IF(H96=0,0,IF($A165="No",H96,NPV(VLOOKUP(LEFT($B165,3),$L$7:$O$12,4,FALSE),I142:$BM142))) -> 0 | I165: =IF(I96=0,0,IF($A165="No",I96,NPV(VLOOKUP(LEFT($B165,3),$L$7:$O$12,4,FALSE),J142:$BM142))) -> 0 | J165: =IF(J96=0,0,IF($A165="No",J96,NPV(VLOOKUP(LEFT($B165,3),$L$7:$O$12,4,FALSE),K142:$BM142))) -> 0 | K165: =IF(K96=0,0,IF($A165="No",K96,NPV(VLOOKUP(LEFT($B165,3),$L$7:$O$12,4,FALSE),L142:$BM142))) -> 0 | L165: =IF(L96=0,0,IF($A165="No",L96,NPV(VLOOKUP(LEFT($B165,3),$L$7:$O$12,4,FALSE),M142:$BM142))) -> 0 | M165: =IF(M96=0,0,IF($A165="No",M96,NPV(VLOOKUP(LEFT($B165,3),$L$7:$O$12,4,FALSE),N142:$BM142))) -> 0 | N165: =IF(N96=0,0,IF($A165="No",N96,NPV(VLOOKUP(LEFT($B165,3),$L$7:$O$12,4,FALSE),O142:$BM142))) -> 0 | O165: =IF(O96=0,0,IF($A165="No",O96,NPV(VLOOKUP(LEFT($B165,3),$L$7:$O$12,4,FALSE),P142:$BM142))) -> 0 | P165: =IF(P96=0,0,IF($A165="No",P96,NPV(VLOOKUP(LEFT($B165,3),$L$7:$O$12,4,FALSE),Q142:$BM142))) -> 0 | Q165: =IF(Q96=0,0,IF($A165="No",Q96,NPV(VLOOKUP(LEFT($B165,3),$L$7:$O$12,4,FALSE),R142:$BM142))) -> 0 | R165: =IF(R96=0,0,IF($A165="No",R96,NPV(VLOOKUP(LEFT($B165,3),$L$7:$O$12,4,FALSE),S142:$BM142))) -> 0 | S165: =IF(S96=0,0,IF($A165="No",S96,NPV(VLOOKUP(LEFT($B165,3),$L$7:$O$12,4,FALSE),T142:$BM142))) -> 0 | T165: =IF(T96=0,0,IF($A165="No",T96,NPV(VLOOKUP(LEFT($B165,3),$L$7:$O$12,4,FALSE),U142:$BM142))) -> 0 | U165: =IF(U96=0,0,IF($A165="No",U96,NPV(VLOOKUP(LEFT($B165,3),$L$7:$O$12,4,FALSE),V142:$BM142))) -> 0 | V165: =IF(V96=0,0,IF($A165="No",V96,NPV(VLOOKUP(LEFT($B165,3),$L$7:$O$12,4,FALSE),W142:$BM142))) -> 0 | W165: =IF(W96=0,0,IF($A165="No",W96,NPV(VLOOKUP(LEFT($B165,3),$L$7:$O$12,4,FALSE),X142:$BM142))) -> 0 | X165: =IF(X96=0,0,IF($A165="No",X96,NPV(VLOOKUP(LEFT($B165,3),$L$7:$O$12,4,FALSE),Y142:$BM142))) -> 0 | Y165: =IF(Y96=0,0,IF($A165="No",Y96,NPV(VLOOKUP(LEFT($B165,3),$L$7:$O$12,4,FALSE),Z142:$BM142))) -> 0 | Z165: =IF(Z96=0,0,IF($A165="No",Z96,NPV(VLOOKUP(LEFT($B165,3),$L$7:$O$12,4,FALSE),AA142:$BM142))) -> 0 | AA165: =IF(AA96=0,0,IF($A165="No",AA96,NPV(VLOOKUP(LEFT($B165,3),$L$7:$O$12,4,FALSE),AB142:$BM142))) -> 0 | AB165: =IF(AB96=0,0,IF($A165="No",AB96,NPV(VLOOKUP(LEFT($B165,3),$L$7:$O$12,4,FALSE),AC142:$BM142))) -> 0 | AC165: =IF(AC96=0,0,IF($A165="No",AC96,NPV(VLOOKUP(LEFT($B165,3),$L$7:$O$12,4,FALSE),AD142:$BM142))) -> 0 | AD165: =IF(AD96=0,0,IF($A165="No",AD96,NPV(VLOOKUP(LEFT($B165,3),$L$7:$O$12,4,FALSE),AE142:$BM142))) -> 0 | AE165: =IF(AE96=0,0,IF($A165="No",AE96,NPV(VLOOKUP(LEFT($B165,3),$L$7:$O$12,4,FALSE),AF142:$BM142))) -> 0 | AF165: =IF(AF96=0,0,IF($A165="No",AF96,NPV(VLOOKUP(LEFT($B165,3),$L$7:$O$12,4,FALSE),AG142:$BM142))) -> 0 | AG165: =IF(AG96=0,0,IF($A165="No",AG96,NPV(VLOOKUP(LEFT($B165,3),$L$7:$O$12,4,FALSE),AH142:$BM142))) -> 0 | AH165: =IF(AH96=0,0,IF($A165="No",AH96,NPV(VLOOKUP(LEFT($B165,3),$L$7:$O$12,4,FALSE),AI142:$BM142))) -> 0 | AI165: =IF(AI96=0,0,IF($A165="No",AI96,NPV(VLOOKUP(LEFT($B165,3),$L$7:$O$12,4,FALSE),AJ142:$BM142))) -> 0 | AJ165: =IF(AJ96=0,0,IF($A165="No",AJ96,NPV(VLOOKUP(LEFT($B165,3),$L$7:$O$12,4,FALSE),AK142:$BM142))) -> 0 | AK165: =IF(AK96=0,0,IF($A165="No",AK96,NPV(VLOOKUP(LEFT($B165,3),$L$7:$O$12,4,FALSE),AL142:$BM142))) -> 0 | AL165: =IF(AL96=0,0,IF($A165="No",AL96,NPV(VLOOKUP(LEFT($B165,3),$L$7:$O$12,4,FALSE),AM142:$BM142))) -> 0 | AM165: =IF(AM96=0,0,IF($A165="No",AM96,NPV(VLOOKUP(LEFT($B165,3),$L$7:$O$12,4,FALSE),AN142:$BM142))) -> 0 | AN165: =IF(AN96=0,0,IF($A165="No",AN96,NPV(VLOOKUP(LEFT($B165,3),$L$7:$O$12,4,FALSE),AO142:$BM142))) -> 0 | AO165: =IF(AO96=0,0,IF($A165="No",AO96,NPV(VLOOKUP(LEFT($B165,3),$L$7:$O$12,4,FALSE),AP142:$BM142))) -> 0 | AP165: =IF(AP96=0,0,IF($A165="No",AP96,NPV(VLOOKUP(LEFT($B165,3),$L$7:$O$12,4,FALSE),AQ142:$BM142))) -> 0 | AQ165: =IF(AQ96=0,0,IF($A165="No",AQ96,NPV(VLOOKUP(LEFT($B165,3),$L$7:$O$12,4,FALSE),AR142:$BM142))) -> 0 | AR165: =IF(AR96=0,0,IF($A165="No",AR96,NPV(VLOOKUP(LEFT($B165,3),$L$7:$O$12,4,FALSE),AS142:$BM142))) -> 0 | AS165: =IF(AS96=0,0,IF($A165="No",AS96,NPV(VLOOKUP(LEFT($B165,3),$L$7:$O$12,4,FALSE),AT142:$BM142))) -> 0 | AT165: =IF(AT96=0,0,IF($A165="No",AT96,NPV(VLOOKUP(LEFT($B165,3),$L$7:$O$12,4,FALSE),AU142:$BM142))) -> 0 | AU165: =IF(AU96=0,0,IF($A165="No",AU96,NPV(VLOOKUP(LEFT($B165,3),$L$7:$O$12,4,FALSE),AV142:$BM142))) -> 0 | AV165: =IF(AV96=0,0,IF($A165="No",AV96,NPV(VLOOKUP(LEFT($B165,3),$L$7:$O$12,4,FALSE),AW142:$BM142))) -> 0 | AW165: =IF(AW96=0,0,IF($A165="No",AW96,NPV(VLOOKUP(LEFT($B165,3),$L$7:$O$12,4,FALSE),AX142:$BM142))) -> 0 | AX165: =IF(AX96=0,0,IF($A165="No",AX96,NPV(VLOOKUP(LEFT($B165,3),$L$7:$O$12,4,FALSE),AY142:$BM142))) -> 0 | AY165: =IF(AY96=0,0,IF($A165="No",AY96,NPV(VLOOKUP(LEFT($B165,3),$L$7:$O$12,4,FALSE),AZ142:$BM142))) -> 0 | AZ165: =IF(AZ96=0,0,IF($A165="No",AZ96,NPV(VLOOKUP(LEFT($B165,3),$L$7:$O$12,4,FALSE),BA142:$BM142))) -> 0 | BA165: =IF(BA96=0,0,IF($A165="No",BA96,NPV(VLOOKUP(LEFT($B165,3),$L$7:$O$12,4,FALSE),BB142:$BM142))) -> 0 | BB165: =IF(BB96=0,0,IF($A165="No",BB96,NPV(VLOOKUP(LEFT($B165,3),$L$7:$O$12,4,FALSE),BC142:$BM142))) -> 0 | BC165: =IF(BC96=0,0,IF($A165="No",BC96,NPV(VLOOKUP(LEFT($B165,3),$L$7:$O$12,4,FALSE),BD142:$BM142))) -> 0 | BD165: =IF(BD96=0,0,IF($A165="No",BD96,NPV(VLOOKUP(LEFT($B165,3),$L$7:$O$12,4,FALSE),BE142:$BM142))) -> 0 | BE165: =IF(BE96=0,0,IF($A165="No",BE96,NPV(VLOOKUP(LEFT($B165,3),$L$7:$O$12,4,FALSE),BF142:$BM142))) -> 0 | BF165: =IF(BF96=0,0,IF($A165="No",BF96,NPV(VLOOKUP(LEFT($B165,3),$L$7:$O$12,4,FALSE),BG142:$BM142))) -> 0 | BG165: =IF(BG96=0,0,IF($A165="No",BG96,NPV(VLOOKUP(LEFT($B165,3),$L$7:$O$12,4,FALSE),BH142:$BM142))) -> 0 | BH165: =IF(BH96=0,0,IF($A165="No",BH96,NPV(VLOOKUP(LEFT($B165,3),$L$7:$O$12,4,FALSE),BI142:$BM142))) -> 0 | BI165: =IF(BI96=0,0,IF($A165="No",BI96,NPV(VLOOKUP(LEFT($B165,3),$L$7:$O$12,4,FALSE),BJ142:$BM142))) -> 0 | BJ165: =IF(BJ96=0,0,IF($A165="No",BJ96,NPV(VLOOKUP(LEFT($B165,3),$L$7:$O$12,4,FALSE),BK142:$BM142))) -> 0 | BK165: =IF(BK96=0,0,IF($A165="No",BK96,NPV(VLOOKUP(LEFT($B165,3),$L$7:$O$12,4,FALSE),BL142:$BM142))) -> 0 | BL165: =IF(BL96=0,0,IF($A165="No",BL96,NPV(VLOOKUP(LEFT($B165,3),$L$7:$O$12,4,FALSE),BM142:$BM142))) -> 0 | BM165: =IF(BM96=0,0,IF($A165="No",BM96,NPV(VLOOKUP(LEFT($B165,3),$L$7:$O$12,4,FALSE),$BM142:BN142))) -> 0
A166: 0 | B166: =$C$24 -> UTP_18 | E166: =IF(E97=0,0,IF($A166="No",E97,NPV(VLOOKUP(LEFT($B166,3),$L$7:$O$12,4,FALSE),F143:$BM143))) -> 0 | F166: =IF(F97=0,0,IF($A166="No",F97,NPV(VLOOKUP(LEFT($B166,3),$L$7:$O$12,4,FALSE),G143:$BM143))) -> 0 | G166: =IF(G97=0,0,IF($A166="No",G97,NPV(VLOOKUP(LEFT($B166,3),$L$7:$O$12,4,FALSE),H143:$BM143))) -> 0 | H166: =IF(H97=0,0,IF($A166="No",H97,NPV(VLOOKUP(LEFT($B166,3),$L$7:$O$12,4,FALSE),I143:$BM143))) -> 0 | I166: =IF(I97=0,0,IF($A166="No",I97,NPV(VLOOKUP(LEFT($B166,3),$L$7:$O$12,4,FALSE),J143:$BM143))) -> 0 | J166: =IF(J97=0,0,IF($A166="No",J97,NPV(VLOOKUP(LEFT($B166,3),$L$7:$O$12,4,FALSE),K143:$BM143))) -> 0 | K166: =IF(K97=0,0,IF($A166="No",K97,NPV(VLOOKUP(LEFT($B166,3),$L$7:$O$12,4,FALSE),L143:$BM143))) -> 0 | L166: =IF(L97=0,0,IF($A166="No",L97,NPV(VLOOKUP(LEFT($B166,3),$L$7:$O$12,4,FALSE),M143:$BM143))) -> 0 | M166: =IF(M97=0,0,IF($A166="No",M97,NPV(VLOOKUP(LEFT($B166,3),$L$7:$O$12,4,FALSE),N143:$BM143))) -> 0 | N166: =IF(N97=0,0,IF($A166="No",N97,NPV(VLOOKUP(LEFT($B166,3),$L$7:$O$12,4,FALSE),O143:$BM143))) -> 0 | O166: =IF(O97=0,0,IF($A166="No",O97,NPV(VLOOKUP(LEFT($B166,3),$L$7:$O$12,4,FALSE),P143:$BM143))) -> 0 | P166: =IF(P97=0,0,IF($A166="No",P97,NPV(VLOOKUP(LEFT($B166,3),$L$7:$O$12,4,FALSE),Q143:$BM143))) -> 0 | Q166: =IF(Q97=0,0,IF($A166="No",Q97,NPV(VLOOKUP(LEFT($B166,3),$L$7:$O$12,4,FALSE),R143:$BM143))) -> 0 | R166: =IF(R97=0,0,IF($A166="No",R97,NPV(VLOOKUP(LEFT($B166,3),$L$7:$O$12,4,FALSE),S143:$BM143))) -> 0 | S166: =IF(S97=0,0,IF($A166="No",S97,NPV(VLOOKUP(LEFT($B166,3),$L$7:$O$12,4,FALSE),T143:$BM143))) -> 0 | T166: =IF(T97=0,0,IF($A166="No",T97,NPV(VLOOKUP(LEFT($B166,3),$L$7:$O$12,4,FALSE),U143:$BM143))) -> 0 | U166: =IF(U97=0,0,IF($A166="No",U97,NPV(VLOOKUP(LEFT($B166,3),$L$7:$O$12,4,FALSE),V143:$BM143))) -> 0 | V166: =IF(V97=0,0,IF($A166="No",V97,NPV(VLOOKUP(LEFT($B166,3),$L$7:$O$12,4,FALSE),W143:$BM143))) -> 0 | W166: =IF(W97=0,0,IF($A166="No",W97,NPV(VLOOKUP(LEFT($B166,3),$L$7:$O$12,4,FALSE),X143:$BM143))) -> 0 | X166: =IF(X97=0,0,IF($A166="No",X97,NPV(VLOOKUP(LEFT($B166,3),$L$7:$O$12,4,FALSE),Y143:$BM143))) -> 0 | Y166: =IF(Y97=0,0,IF($A166="No",Y97,NPV(VLOOKUP(LEFT($B166,3),$L$7:$O$12,4,FALSE),Z143:$BM143))) -> 0 | Z166: =IF(Z97=0,0,IF($A166="No",Z97,NPV(VLOOKUP(LEFT($B166,3),$L$7:$O$12,4,FALSE),AA143:$BM143))) -> 0 | AA166: =IF(AA97=0,0,IF($A166="No",AA97,NPV(VLOOKUP(LEFT($B166,3),$L$7:$O$12,4,FALSE),AB143:$BM143))) -> 0 | AB166: =IF(AB97=0,0,IF($A166="No",AB97,NPV(VLOOKUP(LEFT($B166,3),$L$7:$O$12,4,FALSE),AC143:$BM143))) -> 0 | AC166: =IF(AC97=0,0,IF($A166="No",AC97,NPV(VLOOKUP(LEFT($B166,3),$L$7:$O$12,4,FALSE),AD143:$BM143))) -> 0 | AD166: =IF(AD97=0,0,IF($A166="No",AD97,NPV(VLOOKUP(LEFT($B166,3),$L$7:$O$12,4,FALSE),AE143:$BM143))) -> 0 | AE166: =IF(AE97=0,0,IF($A166="No",AE97,NPV(VLOOKUP(LEFT($B166,3),$L$7:$O$12,4,FALSE),AF143:$BM143))) -> 0 | AF166: =IF(AF97=0,0,IF($A166="No",AF97,NPV(VLOOKUP(LEFT($B166,3),$L$7:$O$12,4,FALSE),AG143:$BM143))) -> 0 | AG166: =IF(AG97=0,0,IF($A166="No",AG97,NPV(VLOOKUP(LEFT($B166,3),$L$7:$O$12,4,FALSE),AH143:$BM143))) -> 0 | AH166: =IF(AH97=0,0,IF($A166="No",AH97,NPV(VLOOKUP(LEFT($B166,3),$L$7:$O$12,4,FALSE),AI143:$BM143))) -> 0 | AI166: =IF(AI97=0,0,IF($A166="No",AI97,NPV(VLOOKUP(LEFT($B166,3),$L$7:$O$12,4,FALSE),AJ143:$BM143))) -> 0 | AJ166: =IF(AJ97=0,0,IF($A166="No",AJ97,NPV(VLOOKUP(LEFT($B166,3),$L$7:$O$12,4,FALSE),AK143:$BM143))) -> 0 | AK166: =IF(AK97=0,0,IF($A166="No",AK97,NPV(VLOOKUP(LEFT($B166,3),$L$7:$O$12,4,FALSE),AL143:$BM143))) -> 0 | AL166: =IF(AL97=0,0,IF($A166="No",AL97,NPV(VLOOKUP(LEFT($B166,3),$L$7:$O$12,4,FALSE),AM143:$BM143))) -> 0 | AM166: =IF(AM97=0,0,IF($A166="No",AM97,NPV(VLOOKUP(LEFT($B166,3),$L$7:$O$12,4,FALSE),AN143:$BM143))) -> 0 | AN166: =IF(AN97=0,0,IF($A166="No",AN97,NPV(VLOOKUP(LEFT($B166,3),$L$7:$O$12,4,FALSE),AO143:$BM143))) -> 0 | AO166: =IF(AO97=0,0,IF($A166="No",AO97,NPV(VLOOKUP(LEFT($B166,3),$L$7:$O$12,4,FALSE),AP143:$BM143))) -> 0 | AP166: =IF(AP97=0,0,IF($A166="No",AP97,NPV(VLOOKUP(LEFT($B166,3),$L$7:$O$12,4,FALSE),AQ143:$BM143))) -> 0 | AQ166: =IF(AQ97=0,0,IF($A166="No",AQ97,NPV(VLOOKUP(LEFT($B166,3),$L$7:$O$12,4,FALSE),AR143:$BM143))) -> 0 | AR166: =IF(AR97=0,0,IF($A166="No",AR97,NPV(VLOOKUP(LEFT($B166,3),$L$7:$O$12,4,FALSE),AS143:$BM143))) -> 0 | AS166: =IF(AS97=0,0,IF($A166="No",AS97,NPV(VLOOKUP(LEFT($B166,3),$L$7:$O$12,4,FALSE),AT143:$BM143))) -> 0 | AT166: =IF(AT97=0,0,IF($A166="No",AT97,NPV(VLOOKUP(LEFT($B166,3),$L$7:$O$12,4,FALSE),AU143:$BM143))) -> 0 | AU166: =IF(AU97=0,0,IF($A166="No",AU97,NPV(VLOOKUP(LEFT($B166,3),$L$7:$O$12,4,FALSE),AV143:$BM143))) -> 0 | AV166: =IF(AV97=0,0,IF($A166="No",AV97,NPV(VLOOKUP(LEFT($B166,3),$L$7:$O$12,4,FALSE),AW143:$BM143))) -> 0 | AW166: =IF(AW97=0,0,IF($A166="No",AW97,NPV(VLOOKUP(LEFT($B166,3),$L$7:$O$12,4,FALSE),AX143:$BM143))) -> 0 | AX166: =IF(AX97=0,0,IF($A166="No",AX97,NPV(VLOOKUP(LEFT($B166,3),$L$7:$O$12,4,FALSE),AY143:$BM143))) -> 0 | AY166: =IF(AY97=0,0,IF($A166="No",AY97,NPV(VLOOKUP(LEFT($B166,3),$L$7:$O$12,4,FALSE),AZ143:$BM143))) -> 0 | AZ166: =IF(AZ97=0,0,IF($A166="No",AZ97,NPV(VLOOKUP(LEFT($B166,3),$L$7:$O$12,4,FALSE),BA143:$BM143))) -> 0 | BA166: =IF(BA97=0,0,IF($A166="No",BA97,NPV(VLOOKUP(LEFT($B166,3),$L$7:$O$12,4,FALSE),BB143:$BM143))) -> 0 | BB166: =IF(BB97=0,0,IF($A166="No",BB97,NPV(VLOOKUP(LEFT($B166,3),$L$7:$O$12,4,FALSE),BC143:$BM143))) -> 0 | BC166: =IF(BC97=0,0,IF($A166="No",BC97,NPV(VLOOKUP(LEFT($B166,3),$L$7:$O$12,4,FALSE),BD143:$BM143))) -> 0 | BD166: =IF(BD97=0,0,IF($A166="No",BD97,NPV(VLOOKUP(LEFT($B166,3),$L$7:$O$12,4,FALSE),BE143:$BM143))) -> 0 | BE166: =IF(BE97=0,0,IF($A166="No",BE97,NPV(VLOOKUP(LEFT($B166,3),$L$7:$O$12,4,FALSE),BF143:$BM143))) -> 0 | BF166: =IF(BF97=0,0,IF($A166="No",BF97,NPV(VLOOKUP(LEFT($B166,3),$L$7:$O$12,4,FALSE),BG143:$BM143))) -> 0 | BG166: =IF(BG97=0,0,IF($A166="No",BG97,NPV(VLOOKUP(LEFT($B166,3),$L$7:$O$12,4,FALSE),BH143:$BM143))) -> 0 | BH166: =IF(BH97=0,0,IF($A166="No",BH97,NPV(VLOOKUP(LEFT($B166,3),$L$7:$O$12,4,FALSE),BI143:$BM143))) -> 0 | BI166: =IF(BI97=0,0,IF($A166="No",BI97,NPV(VLOOKUP(LEFT($B166,3),$L$7:$O$12,4,FALSE),BJ143:$BM143))) -> 0 | BJ166: =IF(BJ97=0,0,IF($A166="No",BJ97,NPV(VLOOKUP(LEFT($B166,3),$L$7:$O$12,4,FALSE),BK143:$BM143))) -> 0 | BK166: =IF(BK97=0,0,IF($A166="No",BK97,NPV(VLOOKUP(LEFT($B166,3),$L$7:$O$12,4,FALSE),BL143:$BM143))) -> 0 | BL166: =IF(BL97=0,0,IF($A166="No",BL97,NPV(VLOOKUP(LEFT($B166,3),$L$7:$O$12,4,FALSE),BM143:$BM143))) -> 0 | BM166: =IF(BM97=0,0,IF($A166="No",BM97,NPV(VLOOKUP(LEFT($B166,3),$L$7:$O$12,4,FALSE),$BM143:BN143))) -> 0
A167: 0 | B167: =$C$25 -> UTP_19 | E167: =IF(E98=0,0,IF($A167="No",E98,NPV(VLOOKUP(LEFT($B167,3),$L$7:$O$12,4,FALSE),F144:$BM144))) -> 0 | F167: =IF(F98=0,0,IF($A167="No",F98,NPV(VLOOKUP(LEFT($B167,3),$L$7:$O$12,4,FALSE),G144:$BM144))) -> 0 | G167: =IF(G98=0,0,IF($A167="No",G98,NPV(VLOOKUP(LEFT($B167,3),$L$7:$O$12,4,FALSE),H144:$BM144))) -> 0 | H167: =IF(H98=0,0,IF($A167="No",H98,NPV(VLOOKUP(LEFT($B167,3),$L$7:$O$12,4,FALSE),I144:$BM144))) -> 0 | I167: =IF(I98=0,0,IF($A167="No",I98,NPV(VLOOKUP(LEFT($B167,3),$L$7:$O$12,4,FALSE),J144:$BM144))) -> 0 | J167: =IF(J98=0,0,IF($A167="No",J98,NPV(VLOOKUP(LEFT($B167,3),$L$7:$O$12,4,FALSE),K144:$BM144))) -> 0 | K167: =IF(K98=0,0,IF($A167="No",K98,NPV(VLOOKUP(LEFT($B167,3),$L$7:$O$12,4,FALSE),L144:$BM144))) -> 0 | L167: =IF(L98=0,0,IF($A167="No",L98,NPV(VLOOKUP(LEFT($B167,3),$L$7:$O$12,4,FALSE),M144:$BM144))) -> 0 | M167: =IF(M98=0,0,IF($A167="No",M98,NPV(VLOOKUP(LEFT($B167,3),$L$7:$O$12,4,FALSE),N144:$BM144))) -> 0 | N167: =IF(N98=0,0,IF($A167="No",N98,NPV(VLOOKUP(LEFT($B167,3),$L$7:$O$12,4,FALSE),O144:$BM144))) -> 0 | O167: =IF(O98=0,0,IF($A167="No",O98,NPV(VLOOKUP(LEFT($B167,3),$L$7:$O$12,4,FALSE),P144:$BM144))) -> 0 | P167: =IF(P98=0,0,IF($A167="No",P98,NPV(VLOOKUP(LEFT($B167,3),$L$7:$O$12,4,FALSE),Q144:$BM144))) -> 0 | Q167: =IF(Q98=0,0,IF($A167="No",Q98,NPV(VLOOKUP(LEFT($B167,3),$L$7:$O$12,4,FALSE),R144:$BM144))) -> 0 | R167: =IF(R98=0,0,IF($A167="No",R98,NPV(VLOOKUP(LEFT($B167,3),$L$7:$O$12,4,FALSE),S144:$BM144))) -> 0 | S167: =IF(S98=0,0,IF($A167="No",S98,NPV(VLOOKUP(LEFT($B167,3),$L$7:$O$12,4,FALSE),T144:$BM144))) -> 0 | T167: =IF(T98=0,0,IF($A167="No",T98,NPV(VLOOKUP(LEFT($B167,3),$L$7:$O$12,4,FALSE),U144:$BM144))) -> 0 | U167: =IF(U98=0,0,IF($A167="No",U98,NPV(VLOOKUP(LEFT($B167,3),$L$7:$O$12,4,FALSE),V144:$BM144))) -> 0 | V167: =IF(V98=0,0,IF($A167="No",V98,NPV(VLOOKUP(LEFT($B167,3),$L$7:$O$12,4,FALSE),W144:$BM144))) -> 0 | W167: =IF(W98=0,0,IF($A167="No",W98,NPV(VLOOKUP(LEFT($B167,3),$L$7:$O$12,4,FALSE),X144:$BM144))) -> 0 | X167: =IF(X98=0,0,IF($A167="No",X98,NPV(VLOOKUP(LEFT($B167,3),$L$7:$O$12,4,FALSE),Y144:$BM144))) -> 0 | Y167: =IF(Y98=0,0,IF($A167="No",Y98,NPV(VLOOKUP(LEFT($B167,3),$L$7:$O$12,4,FALSE),Z144:$BM144))) -> 0 | Z167: =IF(Z98=0,0,IF($A167="No",Z98,NPV(VLOOKUP(LEFT($B167,3),$L$7:$O$12,4,FALSE),AA144:$BM144))) -> 0 | AA167: =IF(AA98=0,0,IF($A167="No",AA98,NPV(VLOOKUP(LEFT($B167,3),$L$7:$O$12,4,FALSE),AB144:$BM144))) -> 0 | AB167: =IF(AB98=0,0,IF($A167="No",AB98,NPV(VLOOKUP(LEFT($B167,3),$L$7:$O$12,4,FALSE),AC144:$BM144))) -> 0 | AC167: =IF(AC98=0,0,IF($A167="No",AC98,NPV(VLOOKUP(LEFT($B167,3),$L$7:$O$12,4,FALSE),AD144:$BM144))) -> 0 | AD167: =IF(AD98=0,0,IF($A167="No",AD98,NPV(VLOOKUP(LEFT($B167,3),$L$7:$O$12,4,FALSE),AE144:$BM144))) -> 0 | AE167: =IF(AE98=0,0,IF($A167="No",AE98,NPV(VLOOKUP(LEFT($B167,3),$L$7:$O$12,4,FALSE),AF144:$BM144))) -> 0 | AF167: =IF(AF98=0,0,IF($A167="No",AF98,NPV(VLOOKUP(LEFT($B167,3),$L$7:$O$12,4,FALSE),AG144:$BM144))) -> 0 | AG167: =IF(AG98=0,0,IF($A167="No",AG98,NPV(VLOOKUP(LEFT($B167,3),$L$7:$O$12,4,FALSE),AH144:$BM144))) -> 0 | AH167: =IF(AH98=0,0,IF($A167="No",AH98,NPV(VLOOKUP(LEFT($B167,3),$L$7:$O$12,4,FALSE),AI144:$BM144))) -> 0 | AI167: =IF(AI98=0,0,IF($A167="No",AI98,NPV(VLOOKUP(LEFT($B167,3),$L$7:$O$12,4,FALSE),AJ144:$BM144))) -> 0 | AJ167: =IF(AJ98=0,0,IF($A167="No",AJ98,NPV(VLOOKUP(LEFT($B167,3),$L$7:$O$12,4,FALSE),AK144:$BM144))) -> 0 | AK167: =IF(AK98=0,0,IF($A167="No",AK98,NPV(VLOOKUP(LEFT($B167,3),$L$7:$O$12,4,FALSE),AL144:$BM144))) -> 0 | AL167: =IF(AL98=0,0,IF($A167="No",AL98,NPV(VLOOKUP(LEFT($B167,3),$L$7:$O$12,4,FALSE),AM144:$BM144))) -> 0 | AM167: =IF(AM98=0,0,IF($A167="No",AM98,NPV(VLOOKUP(LEFT($B167,3),$L$7:$O$12,4,FALSE),AN144:$BM144))) -> 0 | AN167: =IF(AN98=0,0,IF($A167="No",AN98,NPV(VLOOKUP(LEFT($B167,3),$L$7:$O$12,4,FALSE),AO144:$BM144))) -> 0 | AO167: =IF(AO98=0,0,IF($A167="No",AO98,NPV(VLOOKUP(LEFT($B167,3),$L$7:$O$12,4,FALSE),AP144:$BM144))) -> 0 | AP167: =IF(AP98=0,0,IF($A167="No",AP98,NPV(VLOOKUP(LEFT($B167,3),$L$7:$O$12,4,FALSE),AQ144:$BM144))) -> 0 | AQ167: =IF(AQ98=0,0,IF($A167="No",AQ98,NPV(VLOOKUP(LEFT($B167,3),$L$7:$O$12,4,FALSE),AR144:$BM144))) -> 0 | AR167: =IF(AR98=0,0,IF($A167="No",AR98,NPV(VLOOKUP(LEFT($B167,3),$L$7:$O$12,4,FALSE),AS144:$BM144))) -> 0 | AS167: =IF(AS98=0,0,IF($A167="No",AS98,NPV(VLOOKUP(LEFT($B167,3),$L$7:$O$12,4,FALSE),AT144:$BM144))) -> 0 | AT167: =IF(AT98=0,0,IF($A167="No",AT98,NPV(VLOOKUP(LEFT($B167,3),$L$7:$O$12,4,FALSE),AU144:$BM144))) -> 0 | AU167: =IF(AU98=0,0,IF($A167="No",AU98,NPV(VLOOKUP(LEFT($B167,3),$L$7:$O$12,4,FALSE),AV144:$BM144))) -> 0 | AV167: =IF(AV98=0,0,IF($A167="No",AV98,NPV(VLOOKUP(LEFT($B167,3),$L$7:$O$12,4,FALSE),AW144:$BM144))) -> 0 | AW167: =IF(AW98=0,0,IF($A167="No",AW98,NPV(VLOOKUP(LEFT($B167,3),$L$7:$O$12,4,FALSE),AX144:$BM144))) -> 0 | AX167: =IF(AX98=0,0,IF($A167="No",AX98,NPV(VLOOKUP(LEFT($B167,3),$L$7:$O$12,4,FALSE),AY144:$BM144))) -> 0 | AY167: =IF(AY98=0,0,IF($A167="No",AY98,NPV(VLOOKUP(LEFT($B167,3),$L$7:$O$12,4,FALSE),AZ144:$BM144))) -> 0 | AZ167: =IF(AZ98=0,0,IF($A167="No",AZ98,NPV(VLOOKUP(LEFT($B167,3),$L$7:$O$12,4,FALSE),BA144:$BM144))) -> 0 | BA167: =IF(BA98=0,0,IF($A167="No",BA98,NPV(VLOOKUP(LEFT($B167,3),$L$7:$O$12,4,FALSE),BB144:$BM144))) -> 0 | BB167: =IF(BB98=0,0,IF($A167="No",BB98,NPV(VLOOKUP(LEFT($B167,3),$L$7:$O$12,4,FALSE),BC144:$BM144))) -> 0 | BC167: =IF(BC98=0,0,IF($A167="No",BC98,NPV(VLOOKUP(LEFT($B167,3),$L$7:$O$12,4,FALSE),BD144:$BM144))) -> 0 | BD167: =IF(BD98=0,0,IF($A167="No",BD98,NPV(VLOOKUP(LEFT($B167,3),$L$7:$O$12,4,FALSE),BE144:$BM144))) -> 0 | BE167: =IF(BE98=0,0,IF($A167="No",BE98,NPV(VLOOKUP(LEFT($B167,3),$L$7:$O$12,4,FALSE),BF144:$BM144))) -> 0 | BF167: =IF(BF98=0,0,IF($A167="No",BF98,NPV(VLOOKUP(LEFT($B167,3),$L$7:$O$12,4,FALSE),BG144:$BM144))) -> 0 | BG167: =IF(BG98=0,0,IF($A167="No",BG98,NPV(VLOOKUP(LEFT($B167,3),$L$7:$O$12,4,FALSE),BH144:$BM144))) -> 0 | BH167: =IF(BH98=0,0,IF($A167="No",BH98,NPV(VLOOKUP(LEFT($B167,3),$L$7:$O$12,4,FALSE),BI144:$BM144))) -> 0 | BI167: =IF(BI98=0,0,IF($A167="No",BI98,NPV(VLOOKUP(LEFT($B167,3),$L$7:$O$12,4,FALSE),BJ144:$BM144))) -> 0 | BJ167: =IF(BJ98=0,0,IF($A167="No",BJ98,NPV(VLOOKUP(LEFT($B167,3),$L$7:$O$12,4,FALSE),BK144:$BM144))) -> 0 | BK167: =IF(BK98=0,0,IF($A167="No",BK98,NPV(VLOOKUP(LEFT($B167,3),$L$7:$O$12,4,FALSE),BL144:$BM144))) -> 0 | BL167: =IF(BL98=0,0,IF($A167="No",BL98,NPV(VLOOKUP(LEFT($B167,3),$L$7:$O$12,4,FALSE),BM144:$BM144))) -> 0 | BM167: =IF(BM98=0,0,IF($A167="No",BM98,NPV(VLOOKUP(LEFT($B167,3),$L$7:$O$12,4,FALSE),$BM144:BN144))) -> 0
A168: No | B168: =$C$26 -> IDX_20 | E168: =IF(E99=0,0,IF($A168="No",E99,NPV(VLOOKUP(LEFT($B168,3),$L$7:$O$12,4,FALSE),F145:$BM145))) -> 0 | F168: =IF(F99=0,0,IF($A168="No",F99,NPV(VLOOKUP(LEFT($B168,3),$L$7:$O$12,4,FALSE),G145:$BM145))) -> 0 | G168: =IF(G99=0,0,IF($A168="No",G99,NPV(VLOOKUP(LEFT($B168,3),$L$7:$O$12,4,FALSE),H145:$BM145))) -> 0 | H168: =IF(H99=0,0,IF($A168="No",H99,NPV(VLOOKUP(LEFT($B168,3),$L$7:$O$12,4,FALSE),I145:$BM145))) -> 0 | I168: =IF(I99=0,0,IF($A168="No",I99,NPV(VLOOKUP(LEFT($B168,3),$L$7:$O$12,4,FALSE),J145:$BM145))) -> 0 | J168: =IF(J99=0,0,IF($A168="No",J99,NPV(VLOOKUP(LEFT($B168,3),$L$7:$O$12,4,FALSE),K145:$BM145))) -> 0 | K168: =IF(K99=0,0,IF($A168="No",K99,NPV(VLOOKUP(LEFT($B168,3),$L$7:$O$12,4,FALSE),L145:$BM145))) -> 0 | L168: =IF(L99=0,0,IF($A168="No",L99,NPV(VLOOKUP(LEFT($B168,3),$L$7:$O$12,4,FALSE),M145:$BM145))) -> 0 | M168: =IF(M99=0,0,IF($A168="No",M99,NPV(VLOOKUP(LEFT($B168,3),$L$7:$O$12,4,FALSE),N145:$BM145))) -> 0 | N168: =IF(N99=0,0,IF($A168="No",N99,NPV(VLOOKUP(LEFT($B168,3),$L$7:$O$12,4,FALSE),O145:$BM145))) -> 0 | O168: =IF(O99=0,0,IF($A168="No",O99,NPV(VLOOKUP(LEFT($B168,3),$L$7:$O$12,4,FALSE),P145:$BM145))) -> 0 | P168: =IF(P99=0,0,IF($A168="No",P99,NPV(VLOOKUP(LEFT($B168,3),$L$7:$O$12,4,FALSE),Q145:$BM145))) -> 0 | Q168: =IF(Q99=0,0,IF($A168="No",Q99,NPV(VLOOKUP(LEFT($B168,3),$L$7:$O$12,4,FALSE),R145:$BM145))) -> 0 | R168: =IF(R99=0,0,IF($A168="No",R99,NPV(VLOOKUP(LEFT($B168,3),$L$7:$O$12,4,FALSE),S145:$BM145))) -> 0 | S168: =IF(S99=0,0,IF($A168="No",S99,NPV(VLOOKUP(LEFT($B168,3),$L$7:$O$12,4,FALSE),T145:$BM145))) -> 0 | T168: =IF(T99=0,0,IF($A168="No",T99,NPV(VLOOKUP(LEFT($B168,3),$L$7:$O$12,4,FALSE),U145:$BM145))) -> 0 | U168: =IF(U99=0,0,IF($A168="No",U99,NPV(VLOOKUP(LEFT($B168,3),$L$7:$O$12,4,FALSE),V145:$BM145))) -> 0 | V168: =IF(V99=0,0,IF($A168="No",V99,NPV(VLOOKUP(LEFT($B168,3),$L$7:$O$12,4,FALSE),W145:$BM145))) -> 0 | W168: =IF(W99=0,0,IF($A168="No",W99,NPV(VLOOKUP(LEFT($B168,3),$L$7:$O$12,4,FALSE),X145:$BM145))) -> 0 | X168: =IF(X99=0,0,IF($A168="No",X99,NPV(VLOOKUP(LEFT($B168,3),$L$7:$O$12,4,FALSE),Y145:$BM145))) -> 0 | Y168: =IF(Y99=0,0,IF($A168="No",Y99,NPV(VLOOKUP(LEFT($B168,3),$L$7:$O$12,4,FALSE),Z145:$BM145))) -> 0 | Z168: =IF(Z99=0,0,IF($A168="No",Z99,NPV(VLOOKUP(LEFT($B168,3),$L$7:$O$12,4,FALSE),AA145:$BM145))) -> 0 | AA168: =IF(AA99=0,0,IF($A168="No",AA99,NPV(VLOOKUP(LEFT($B168,3),$L$7:$O$12,4,FALSE),AB145:$BM145))) -> 0 | AB168: =IF(AB99=0,0,IF($A168="No",AB99,NPV(VLOOKUP(LEFT($B168,3),$L$7:$O$12,4,FALSE),AC145:$BM145))) -> 0 | AC168: =IF(AC99=0,0,IF($A168="No",AC99,NPV(VLOOKUP(LEFT($B168,3),$L$7:$O$12,4,FALSE),AD145:$BM145))) -> 0 | AD168: =IF(AD99=0,0,IF($A168="No",AD99,NPV(VLOOKUP(LEFT($B168,3),$L$7:$O$12,4,FALSE),AE145:$BM145))) -> 0 | AE168: =IF(AE99=0,0,IF($A168="No",AE99,NPV(VLOOKUP(LEFT($B168,3),$L$7:$O$12,4,FALSE),AF145:$BM145))) -> 0 | AF168: =IF(AF99=0,0,IF($A168="No",AF99,NPV(VLOOKUP(LEFT($B168,3),$L$7:$O$12,4,FALSE),AG145:$BM145))) -> 0 | AG168: =IF(AG99=0,0,IF($A168="No",AG99,NPV(VLOOKUP(LEFT($B168,3),$L$7:$O$12,4,FALSE),AH145:$BM145))) -> 0 | AH168: =IF(AH99=0,0,IF($A168="No",AH99,NPV(VLOOKUP(LEFT($B168,3),$L$7:$O$12,4,FALSE),AI145:$BM145))) -> 0 | AI168: =IF(AI99=0,0,IF($A168="No",AI99,NPV(VLOOKUP(LEFT($B168,3),$L$7:$O$12,4,FALSE),AJ145:$BM145))) -> 0 | AJ168: =IF(AJ99=0,0,IF($A168="No",AJ99,NPV(VLOOKUP(LEFT($B168,3),$L$7:$O$12,4,FALSE),AK145:$BM145))) -> 0 | AK168: =IF(AK99=0,0,IF($A168="No",AK99,NPV(VLOOKUP(LEFT($B168,3),$L$7:$O$12,4,FALSE),AL145:$BM145))) -> 0 | AL168: =IF(AL99=0,0,IF($A168="No",AL99,NPV(VLOOKUP(LEFT($B168,3),$L$7:$O$12,4,FALSE),AM145:$BM145))) -> 0 | AM168: =IF(AM99=0,0,IF($A168="No",AM99,NPV(VLOOKUP(LEFT($B168,3),$L$7:$O$12,4,FALSE),AN145:$BM145))) -> 0 | AN168: =IF(AN99=0,0,IF($A168="No",AN99,NPV(VLOOKUP(LEFT($B168,3),$L$7:$O$12,4,FALSE),AO145:$BM145))) -> 0 | AO168: =IF(AO99=0,0,IF($A168="No",AO99,NPV(VLOOKUP(LEFT($B168,3),$L$7:$O$12,4,FALSE),AP145:$BM145))) -> 0 | AP168: =IF(AP99=0,0,IF($A168="No",AP99,NPV(VLOOKUP(LEFT($B168,3),$L$7:$O$12,4,FALSE),AQ145:$BM145))) -> 0 | AQ168: =IF(AQ99=0,0,IF($A168="No",AQ99,NPV(VLOOKUP(LEFT($B168,3),$L$7:$O$12,4,FALSE),AR145:$BM145))) -> 0 | AR168: =IF(AR99=0,0,IF($A168="No",AR99,NPV(VLOOKUP(LEFT($B168,3),$L$7:$O$12,4,FALSE),AS145:$BM145))) -> 0 | AS168: =IF(AS99=0,0,IF($A168="No",AS99,NPV(VLOOKUP(LEFT($B168,3),$L$7:$O$12,4,FALSE),AT145:$BM145))) -> 0 | AT168: =IF(AT99=0,0,IF($A168="No",AT99,NPV(VLOOKUP(LEFT($B168,3),$L$7:$O$12,4,FALSE),AU145:$BM145))) -> 0 | AU168: =IF(AU99=0,0,IF($A168="No",AU99,NPV(VLOOKUP(LEFT($B168,3),$L$7:$O$12,4,FALSE),AV145:$BM145))) -> 0 | AV168: =IF(AV99=0,0,IF($A168="No",AV99,NPV(VLOOKUP(LEFT($B168,3),$L$7:$O$12,4,FALSE),AW145:$BM145))) -> 0 | AW168: =IF(AW99=0,0,IF($A168="No",AW99,NPV(VLOOKUP(LEFT($B168,3),$L$7:$O$12,4,FALSE),AX145:$BM145))) -> 0 | AX168: =IF(AX99=0,0,IF($A168="No",AX99,NPV(VLOOKUP(LEFT($B168,3),$L$7:$O$12,4,FALSE),AY145:$BM145))) -> 0 | AY168: =IF(AY99=0,0,IF($A168="No",AY99,NPV(VLOOKUP(LEFT($B168,3),$L$7:$O$12,4,FALSE),AZ145:$BM145))) -> 0 | AZ168: =IF(AZ99=0,0,IF($A168="No",AZ99,NPV(VLOOKUP(LEFT($B168,3),$L$7:$O$12,4,FALSE),BA145:$BM145))) -> 0 | BA168: =IF(BA99=0,0,IF($A168="No",BA99,NPV(VLOOKUP(LEFT($B168,3),$L$7:$O$12,4,FALSE),BB145:$BM145))) -> 0 | BB168: =IF(BB99=0,0,IF($A168="No",BB99,NPV(VLOOKUP(LEFT($B168,3),$L$7:$O$12,4,FALSE),BC145:$BM145))) -> 0 | BC168: =IF(BC99=0,0,IF($A168="No",BC99,NPV(VLOOKUP(LEFT($B168,3),$L$7:$O$12,4,FALSE),BD145:$BM145))) -> 0 | BD168: =IF(BD99=0,0,IF($A168="No",BD99,NPV(VLOOKUP(LEFT($B168,3),$L$7:$O$12,4,FALSE),BE145:$BM145))) -> 0 | BE168: =IF(BE99=0,0,IF($A168="No",BE99,NPV(VLOOKUP(LEFT($B168,3),$L$7:$O$12,4,FALSE),BF145:$BM145))) -> 0 | BF168: =IF(BF99=0,0,IF($A168="No",BF99,NPV(VLOOKUP(LEFT($B168,3),$L$7:$O$12,4,FALSE),BG145:$BM145))) -> 0 | BG168: =IF(BG99=0,0,IF($A168="No",BG99,NPV(VLOOKUP(LEFT($B168,3),$L$7:$O$12,4,FALSE),BH145:$BM145))) -> 0 | BH168: =IF(BH99=0,0,IF($A168="No",BH99,NPV(VLOOKUP(LEFT($B168,3),$L$7:$O$12,4,FALSE),BI145:$BM145))) -> 0 | BI168: =IF(BI99=0,0,IF($A168="No",BI99,NPV(VLOOKUP(LEFT($B168,3),$L$7:$O$12,4,FALSE),BJ145:$BM145))) -> 0 | BJ168: =IF(BJ99=0,0,IF($A168="No",BJ99,NPV(VLOOKUP(LEFT($B168,3),$L$7:$O$12,4,FALSE),BK145:$BM145))) -> 0 | BK168: =IF(BK99=0,0,IF($A168="No",BK99,NPV(VLOOKUP(LEFT($B168,3),$L$7:$O$12,4,FALSE),BL145:$BM145))) -> 0 | BL168: =IF(BL99=0,0,IF($A168="No",BL99,NPV(VLOOKUP(LEFT($B168,3),$L$7:$O$12,4,FALSE),BM145:$BM145))) -> 0 | BM168: =IF(BM99=0,0,IF($A168="No",BM99,NPV(VLOOKUP(LEFT($B168,3),$L$7:$O$12,4,FALSE),$BM145:BN145))) -> 0
E169: =SUM(E149:E168) -> 1554.045596 | F169: =SUM(F149:F168) -> 1160.412674 | G169: 1035.359086 | H169: 933.150661 | I169: 841.4069383 | J169: 618.4918761 | K169: 583.4804463 | L169: 379.0883967 | M169: 361.6382197 | N169: 343.4545981 | O169: 285.0508341 | P169: 267.0898339 | Q169: 248.6435821 | R169: 229.5011407 | S169: 209.7044891 | T169: 189.1369153 | U169: 167.7647086 | V169: 145.287789 | W169: 121.91306 | X169: 97.59962803 | Y169: 91.50012576 | Z169: 85.57394233 | AA169: 79.89974141 | AB169: 74.01000934 | AC169: 67.89396958 | AD169: 60.61155046 | AE169: 54.14461245 | AF169: 47.64819151 | AG169: 41.22653016 | AH169: 35.69749035 | AI169: 32.24511904 | AJ169: 28.62442468 | AK169: 24.89590215 | AL169: 22.02589265 | AM169: 18.8038161 | AN169: 15.98317696 | AO169: 13.04848721 | AP169: 9.996186396 | AQ169: 6.818235829 | AR169: 3.508353021 | AS169: 1.896759582 | AT169: 1.114055428 | AU169: 0.2986831168 | AV169: 2.097174716e-08 | AW169: 1.839600098e-08 | AX169: 1.569146749e-08 | AY169: 1.285170733e-08 | AZ169: 9.86995916e-09 | BA169: 6.739123582e-09 | BB169: 3.451746225e-09 | BC169: 0 | BD169: 0 | BE169: 0 | BF169: 0 | BG169: 0 | BH169: 0 | BI169: 0 | BJ169: 0 | BK169: 0 | BL169: 0 | BM169: 0
A171: 4. EXISTING DEBT CASH FLOW IN ORIGINAL CURRENCY (Millions) - Interest payments for (a) fixed-rate instruments are based on existing contractual agreeements & (b) floating-rate instruments are computed using spread in the existing contractual agreements plus market interest rates from the "Macro and Market Data" sheet.
B174: Principal Payments in Original Currency | D174: Sum Principal Repayment | E174: =$B$7 -> 2017 | F174: =E174+1 -> 2018 | G174: 2019 | H174: 2020 | I174: 2021 | J174: 2022 | K174: 2023 | L174: 2024 | M174: 2025 | N174: 2026 | O174: 2027 | P174: 2028 | Q174: 2029 | R174: 2030 | S174: 2031 | T174: 2032 | U174: 2033 | V174: 2034 | W174: 2035 | X174: 2036 | Y174: 2037 | Z174: 2038 | AA174: 2039 | AB174: 2040 | AC174: 2041 | AD174: 2042 | AE174: 2043 | AF174: 2044 | AG174: 2045 | AH174: 2046 | AI174: 2047 | AJ174: 2048 | AK174: 2049 | AL174: 2050 | AM174: 2051 | AN174: 2052 | AO174: 2053 | AP174: 2054 | AQ174: 2055 | AR174: 2056 | AS174: 2057 | AT174: 2058 | AU174: 2059 | AV174: 2060 | AW174: 2061 | AX174: 2062 | AY174: 2063 | AZ174: 2064 | BA174: 2065 | BB174: 2066 | BC174: 2067 | BD174: 2068 | BE174: 2069 | BF174: 2070 | BG174: 2071 | BH174: 2072 | BI174: 2073 | BJ174: 2074 | BK174: 2075 | BL174: 2076 | BM174: 2077
A175: =$E$7 -> Fix | B175: =$C$7 -> USD_1 | D175: =SUM(F175:BC175) -> 208.9282787 | F175: =F57*VLOOKUP(LEFT($B175,3),$L$7:$P$12,IF($B$14=TRUE,5,2),FALSE) -> 3.070675845 | G175: 3.26028563 | H175: 4.826809773 | I175: 5.613230032 | J175: 5.261241078 | K175: 5.256037383 | L175: 6.141022754 | M175: 5.458644947 | N175: 5.55464554 | O175: 5.650823593 | P175: 6.066115345 | Q175: 6.066152293 | R175: 6.066152293 | S175: 5.987377955 | T175: 5.992096283 | U175: 5.992096283 | V175: 6.252026625 | W175: 6.251849165 | X175: 6.251849165 | Y175: 6.251849165 | Z175: 6.257859665 | AA175: 5.997929323 | AB175: 5.997929323 | AC175: 5.997929323 | AD175: 5.997929323 | AE175: 5.997929323 | AF175: 5.997929323 | AG175: 5.663507299 | AH175: 5.213927268 | AI175: 4.903237618 | AJ175: 4.93571639 | AK175: 4.899527706 | AL175: =AL57*VLOOKUP(LEFT($B175,3),$L$7:$P$12,IF($B$14=TRUE,5,2),FALSE) -> 3.891335018 | AM175: 4.129086594 | AN175: 3.597513516 | AO175: 3.597513516 | AP175: 3.595371441 | AQ175: 3.595371441 | AR175: 3.595371441 | AS175: 1.758553216 | AT175: 0.8622734086 | AU175: 0.8622734086 | AV175: 0.3112826284 | AW175: 0 | AX175: 0 | AY175: 0 | AZ175: 0 | BA175: 0 | BB175: 0 | BC175: 0 | BD175: 0 | BE175: 0 | BF175: 0 | BG175: 0 | BH175: 0 | BI175: 0 | BJ175: 0 | BK175: 0 | BL175: 0 | BM175: 0
A176: =$E$8 -> Fix | B176: =$C$8 -> USD_2 | D176: =SUM(F176:BC176) -> 463.5395288 | F176: =F58*VLOOKUP(LEFT($B176,3),$L$7:$P$12,IF($B$14=TRUE,5,2),FALSE) -> 25.18950236 | G176: 23.16046567 | H176: 22.58656567 | I176: 22.59475354 | J176: 22.60089443 | K176: 22.60703533 | L176: 22.65711569 | M176: 22.66530357 | N176: 22.66939745 | O176: 22.67758532 | P176: 22.7003132 | Q176: 22.63191409 | R176: 22.63805495 | S176: 22.64624281 | T176: 22.65443061 | U176: 22.66261847 | V176: 22.67080637 | W176: 22.67899413 | X176: 22.68308811 | Y176: 3.487655272 | Z176: 3.092591428 | AA176: 3.092591428 | AB176: 3.092591428 | AC176: 3.092591428 | AD176: 4.0213477 | AE176: 2.916890217 | AF176: 2.689887398 | AG176: 2.689887398 | AH176: 1.988413286 | AI176: 0 | AJ176: 0 | AK176: 0 | AL176: =AL58*VLOOKUP(LEFT($B176,3),$L$7:$P$12,IF($B$14=TRUE,5,2),FALSE) -> 0 | AM176: 0 | AN176: 0 | AO176: 0 | AP176: 0 | AQ176: 0 | AR176: 0 | AS176: 0 | AT176: 0 | AU176: 0 | AV176: 0 | AW176: 0 | AX176: 0 | AY176: 0 | AZ176: 0 | BA176: 0 | BB176: 0 | BC176: 0 | BD176: 0 | BE176: 0 | BF176: 0 | BG176: 0 | BH176: 0 | BI176: 0 | BJ176: 0 | BK176: 0 | BL176: 0 | BM176: 0
A177: =$E$9 -> Fix | B177: =$C$9 -> USD_3 | D177: 39.27944459 | F177: =F59*VLOOKUP(LEFT($B177,3),$L$7:$P$12,IF($B$14=TRUE,5,2),FALSE) -> 29.31499084 | G177: 6.309980644 | H177: 0 | I177: 0.2030262834 | J177: 0.2030262834 | K177: 0.2030262834 | L177: 0.2030262834 | M177: 0.2030262834 | N177: 0.2030262834 | O177: 0.2030262834 | P177: 0.2030262834 | Q177: 0.2030262834 | R177: 0.2030262834 | S177: 0.2030262834 | T177: 0.2030262834 | U177: 0.2030262834 | V177: 0.2030262834 | W177: 0.2030262834 | X177: 0.2030262834 | Y177: 0.2030262834 | Z177: 0.2030262834 | AA177: 0 | AB177: 0 | AC177: 0 | AD177: 0 | AE177: 0 | AF177: 0 | AG177: 0 | AH177: 0 | AI177: 0 | AJ177: 0 | AK177: 0 | AL177: =AL59*VLOOKUP(LEFT($B177,3),$L$7:$P$12,IF($B$14=TRUE,5,2),FALSE) -> 0 | AM177: 0 | AN177: 0 | AO177: 0 | AP177: 0 | AQ177: 0 | AR177: 0 | AS177: 0 | AT177: 0 | AU177: 0 | AV177: 0 | AW177: 0 | AX177: 0 | AY177: 0 | AZ177: 0 | BA177: 0 | BB177: 0 | BC177: 0 | BD177: 0 | BE177: 0 | BF177: 0 | BG177: 0 | BH177: 0 | BI177: 0 | BJ177: 0 | BK177: 0 | BL177: 0 | BM177: 0
A178: =$E$10 -> Var | B178: =$C$10 -> USD_4 | D178: 76.63160485 | F178: =F60*VLOOKUP(LEFT($B178,3),$L$7:$P$12,IF($B$14=TRUE,5,2),FALSE) -> 23.02278304 | G178: 14.426633 | H178: 13.866003 | I178: 9.599068297 | J178: 3.690362115 | K178: 2.906142842 | L178: 2.252373332 | M178: 2.252373332 | N178: 2.252373332 | O178: 2.252373332 | P178: 0.1111192219 | Q178: 0 | R178: 0 | S178: 0 | T178: 0 | U178: 0 | V178: 0 | W178: 0 | X178: 0 | Y178: 0 | Z178: 0 | AA178: 0 | AB178: 0 | AC178: 0 | AD178: 0 | AE178: 0 | AF178: 0 | AG178: 0 | AH178: 0 | AI178: 0 | AJ178: 0 | AK178: 0 | AL178: =AL60*VLOOKUP(LEFT($B178,3),$L$7:$P$12,IF($B$14=TRUE,5,2),FALSE) -> 0 | AM178: 0 | AN178: 0 | AO178: 0 | AP178: 0 | AQ178: 0 | AR178: 0 | AS178: 0 | AT178: 0 | AU178: 0 | AV178: 0 | AW178: 0 | AX178: 0 | AY178: 0 | AZ178: 0 | BA178: 0 | BB178: 0 | BC178: 0 | BD178: 0 | BE178: 0 | BF178: 0 | BG178: 0 | BH178: 0 | BI178: 0 | BJ178: 0 | BK178: 0 | BL178: 0 | BM178: 0
A179: =$E$11 -> Fix | B179: =$C$11 -> USD_5 | D179: 182.012277 | F179: =F61*VLOOKUP(LEFT($B179,3),$L$7:$P$12,IF($B$14=TRUE,5,2),FALSE) -> 42.01106442 | G179: 40.00015157 | H179: 40.00015157 | I179: 40.00015157 | J179: 20.00015157 | K179: 0.0001515722038 | L179: 0.0001515722038 | M179: 0.0001515722038 | N179: 0.0001515722038 | O179: 0 | P179: 0 | Q179: 0 | R179: 0 | S179: 0 | T179: 0 | U179: 0 | V179: 0 | W179: 0 | X179: 0 | Y179: 0 | Z179: 0 | AA179: 0 | AB179: 0 | AC179: 0 | AD179: 0 | AE179: 0 | AF179: 0 | AG179: 0 | AH179: 0 | AI179: 0 | AJ179: 0 | AK179: 0 | AL179: =AL61*VLOOKUP(LEFT($B179,3),$L$7:$P$12,IF($B$14=TRUE,5,2),FALSE) -> 0 | AM179: 0 | AN179: 0 | AO179: 0 | AP179: 0 | AQ179: 0 | AR179: 0 | AS179: 0 | AT179: 0 | AU179: 0 | AV179: 0 | AW179: 0 | AX179: 0 | AY179: 0 | AZ179: 0 | BA179: 0 | BB179: 0 | BC179: 0 | BD179: 0 | BE179: 0 | BF179: 0 | BG179: 0 | BH179: 0 | BI179: 0 | BJ179: 0 | BK179: 0 | BL179: 0 | BM179: 0
A180: =$E$12 -> Var | B180: =$C$12 -> USD_6 | D180: 203.4345549 | F180: =F62*VLOOKUP(LEFT($B180,3),$L$7:$P$12,IF($B$14=TRUE,5,2),FALSE) -> 37.86175867 | G180: 51.36231627 | H180: 31.13980173 | I180: 30.63980173 | J180: 17.05183016 | K180: 18.38952316 | L180: 16.98952316 | M180: 0 | N180: 0 | O180: 0 | P180: 0 | Q180: 0 | R180: 0 | S180: 0 | T180: 0 | U180: 0 | V180: 0 | W180: 0 | X180: 0 | Y180: 0 | Z180: 0 | AA180: 0 | AB180: 0 | AC180: 0 | AD180: 0 | AE180: 0 | AF180: 0 | AG180: 0 | AH180: 0 | AI180: 0 | AJ180: 0 | AK180: 0 | AL180: =AL62*VLOOKUP(LEFT($B180,3),$L$7:$P$12,IF($B$14=TRUE,5,2),FALSE) -> 0 | AM180: 0 | AN180: 0 | AO180: 0 | AP180: 0 | AQ180: 0 | AR180: 0 | AS180: 0 | AT180: 0 | AU180: 0 | AV180: 0 | AW180: 0 | AX180: 0 | AY180: 0 | AZ180: 0 | BA180: 0 | BB180: 0 | BC180: 0 | BD180: 0 | BE180: 0 | BF180: 0 | BG180: 0 | BH180: 0 | BI180: 0 | BJ180: 0 | BK180: 0 | BL180: 0 | BM180: 0
A181: =$E$13 -> 0 | B181: =$C$13 -> USD_7 | D181: 0 | F181: =F63*VLOOKUP(LEFT($B181,3),$L$7:$P$12,IF($B$14=TRUE,5,2),FALSE) -> 0 | G181: 0 | H181: 0 | I181: 0 | J181: 0 | K181: 0 | L181: 0 | M181: 0 | N181: 0 | O181: 0 | P181: 0 | Q181: 0 | R181: 0 | S181: 0 | T181: 0 | U181: 0 | V181: 0 | W181: 0 | X181: 0 | Y181: 0 | Z181: 0 | AA181: 0 | AB181: 0 | AC181: 0 | AD181: 0 | AE181: 0 | AF181: 0 | AG181: 0 | AH181: 0 | AI181: 0 | AJ181: 0 | AK181: 0 | AL181: =AL63*VLOOKUP(LEFT($B181,3),$L$7:$P$12,IF($B$14=TRUE,5,2),FALSE) -> 0 | AM181: 0 | AN181: 0 | AO181: 0 | AP181: 0 | AQ181: 0 | AR181: 0 | AS181: 0 | AT181: 0 | AU181: 0 | AV181: 0 | AW181: 0 | AX181: 0 | AY181: 0 | AZ181: 0 | BA181: 0 | BB181: 0 | BC181: 0 | BD181: 0 | BE181: 0 | BF181: 0 | BG181: 0 | BH181: 0 | BI181: 0 | BJ181: 0 | BK181: 0 | BL181: 0 | BM181: 0
A182: =$E$14 -> 0 | B182: =$C$14 -> USD_8 | D182: 0 | F182: =F64*VLOOKUP(LEFT($B182,3),$L$7:$P$12,IF($B$14=TRUE,5,2),FALSE) -> 0 | G182: 0 | H182: 0 | I182: 0 | J182: 0 | K182: 0 | L182: 0 | M182: 0 | N182: 0 | O182: 0 | P182: 0 | Q182: 0 | R182: 0 | S182: 0 | T182: 0 | U182: 0 | V182: 0 | W182: 0 | X182: 0 | Y182: 0 | Z182: 0 | AA182: 0 | AB182: 0 | AC182: 0 | AD182: 0 | AE182: 0 | AF182: 0 | AG182: 0 | AH182: 0 | AI182: 0 | AJ182: 0 | AK182: 0 | AL182: =AL64*VLOOKUP(LEFT($B182,3),$L$7:$P$12,IF($B$14=TRUE,5,2),FALSE) -> 0 | AM182: 0 | AN182: 0 | AO182: 0 | AP182: 0 | AQ182: 0 | AR182: 0 | AS182: 0 | AT182: 0 | AU182: 0 | AV182: 0 | AW182: 0 | AX182: 0 | AY182: 0 | AZ182: 0 | BA182: 0 | BB182: 0 | BC182: 0 | BD182: 0 | BE182: 0 | BF182: 0 | BG182: 0 | BH182: 0 | BI182: 0 | BJ182: 0 | BK182: 0 | BL182: 0 | BM182: 0
A183: =$E$15 -> 0 | B183: =$C$15 -> USD_9 | D183: 0 | F183: =F65*VLOOKUP(LEFT($B183,3),$L$7:$P$12,IF($B$14=TRUE,5,2),FALSE) -> 0 | G183: 0 | H183: 0 | I183: 0 | J183: 0 | K183: 0 | L183: 0 | M183: 0 | N183: 0 | O183: 0 | P183: 0 | Q183: 0 | R183: 0 | S183: 0 | T183: 0 | U183: 0 | V183: 0 | W183: 0 | X183: 0 | Y183: 0 | Z183: 0 | AA183: 0 | AB183: 0 | AC183: 0 | AD183: 0 | AE183: 0 | AF183: 0 | AG183: 0 | AH183: 0 | AI183: 0 | AJ183: 0 | AK183: 0 | AL183: =AL65*VLOOKUP(LEFT($B183,3),$L$7:$P$12,IF($B$14=TRUE,5,2),FALSE) -> 0 | AM183: 0 | AN183: 0 | AO183: 0 | AP183: 0 | AQ183: 0 | AR183: 0 | AS183: 0 | AT183: 0 | AU183: 0 | AV183: 0 | AW183: 0 | AX183: 0 | AY183: 0 | AZ183: 0 | BA183: 0 | BB183: 0 | BC183: 0 | BD183: 0 | BE183: 0 | BF183: 0 | BG183: 0 | BH183: 0 | BI183: 0 | BJ183: 0 | BK183: 0 | BL183: 0 | BM183: 0
A184: =$E$16 -> 0 | B184: =$C$16 -> USD_10 | D184: 0 | F184: =F66*VLOOKUP(LEFT($B184,3),$L$7:$P$12,IF($B$14=TRUE,5,2),FALSE) -> 0 | G184: 0 | H184: 0 | I184: 0 | J184: 0 | K184: 0 | L184: 0 | M184: 0 | N184: 0 | O184: 0 | P184: 0 | Q184: 0 | R184: 0 | S184: 0 | T184: 0 | U184: 0 | V184: 0 | W184: 0 | X184: 0 | Y184: 0 | Z184: 0 | AA184: 0 | AB184: 0 | AC184: 0 | AD184: 0 | AE184: 0 | AF184: 0 | AG184: 0 | AH184: 0 | AI184: 0 | AJ184: 0 | AK184: 0 | AL184: =AL66*VLOOKUP(LEFT($B184,3),$L$7:$P$12,IF($B$14=TRUE,5,2),FALSE) -> 0 | AM184: 0 | AN184: 0 | AO184: 0 | AP184: 0 | AQ184: 0 | AR184: 0 | AS184: 0 | AT184: 0 | AU184: 0 | AV184: 0 | AW184: 0 | AX184: 0 | AY184: 0 | AZ184: 0 | BA184: 0 | BB184: 0 | BC184: 0 | BD184: 0 | BE184: 0 | BF184: 0 | BG184: 0 | BH184: 0 | BI184: 0 | BJ184: 0 | BK184: 0 | BL184: 0 | BM184: 0
A185: =$E$17 -> T-bills | B185: =$C$17 -> UTP_11 | D185: =SUM(F185:BC185) -> 3831.304677 | F185: =F67*VLOOKUP(LEFT($B185,3),$L$7:$P$12,IF($B$14=TRUE,5,2),FALSE) -> 3831.304677 | G185: 0 | H185: 0 | I185: 0 | J185: 0 | K185: 0 | L185: 0 | M185: 0 | N185: 0 | O185: 0 | P185: 0 | Q185: 0 | R185: 0 | S185: 0 | T185: 0 | U185: 0 | V185: 0 | W185: 0 | X185: 0 | Y185: 0 | Z185: 0 | AA185: 0 | AB185: 0 | AC185: 0 | AD185: 0 | AE185: 0 | AF185: 0 | AG185: 0 | AH185: 0 | AI185: 0 | AJ185: 0 | AK185: 0 | AL185: =AL67*VLOOKUP(LEFT($B185,3),$L$7:$P$12,IF($B$14=TRUE,5,2),FALSE) -> 0 | AM185: 0 | AN185: 0 | AO185: 0 | AP185: 0 | AQ185: 0 | AR185: 0 | AS185: 0 | AT185: 0 | AU185: 0 | AV185: 0 | AW185: 0 | AX185: 0 | AY185: 0 | AZ185: 0 | BA185: 0 | BB185: 0 | BC185: 0 | BD185: 0 | BE185: 0 | BF185: 0 | BG185: 0 | BH185: 0 | BI185: 0 | BJ185: 0 | BK185: 0 | BL185: 0 | BM185: 0
A186: =$E$18 -> Fix | B186: =$C$18 -> UTP_12 | D186: 225.68828 | F186: =F68*VLOOKUP(LEFT($B186,3),$L$7:$P$12,IF($B$14=TRUE,5,2),FALSE) -> 0 | G186: 100.37065 | H186: 125.31763 | I186: 0 | J186: 0 | K186: 0 | L186: 0 | M186: 0 | N186: 0 | O186: 0 | P186: 0 | Q186: 0 | R186: 0 | S186: 0 | T186: 0 | U186: 0 | V186: 0 | W186: 0 | X186: 0 | Y186: 0 | Z186: 0 | AA186: 0 | AB186: 0 | AC186: 0 | AD186: 0 | AE186: 0 | AF186: 0 | AG186: 0 | AH186: 0 | AI186: 0 | AJ186: 0 | AK186: 0 | AL186: =AL68*VLOOKUP(LEFT($B186,3),$L$7:$P$12,IF($B$14=TRUE,5,2),FALSE) -> 0 | AM186: 0 | AN186: 0 | AO186: 0 | AP186: 0 | AQ186: 0 | AR186: 0 | AS186: 0 | AT186: 0 | AU186: 0 | AV186: 0 | AW186: 0 | AX186: 0 | AY186: 0 | AZ186: 0 | BA186: 0 | BB186: 0 | BC186: 0 | BD186: 0 | BE186: 0 | BF186: 0 | BG186: 0 | BH186: 0 | BI186: 0 | BJ186: 0 | BK186: 0 | BL186: 0 | BM186: 0
A187: =$E$19 -> Fix | B187: =$C$19 -> UTP_13 | D187: 5090.156676 | F187: =F69*VLOOKUP(LEFT($B187,3),$L$7:$P$12,IF($B$14=TRUE,5,2),FALSE) -> 0 | G187: 0 | H187: 0 | I187: 0 | J187: 2541.526802 | K187: 0 | L187: 2548.629874 | M187: 0 | N187: 0 | O187: 0 | P187: 0 | Q187: 0 | R187: 0 | S187: 0 | T187: 0 | U187: 0 | V187: 0 | W187: 0 | X187: 0 | Y187: 0 | Z187: 0 | AA187: 0 | AB187: 0 | AC187: 0 | AD187: 0 | AE187: 0 | AF187: 0 | AG187: 0 | AH187: 0 | AI187: 0 | AJ187: 0 | AK187: 0 | AL187: =AL69*VLOOKUP(LEFT($B187,3),$L$7:$P$12,IF($B$14=TRUE,5,2),FALSE) -> 0 | AM187: 0 | AN187: 0 | AO187: 0 | AP187: 0 | AQ187: 0 | AR187: 0 | AS187: 0 | AT187: 0 | AU187: 0 | AV187: 0 | AW187: 0 | AX187: 0 | AY187: 0 | AZ187: 0 | BA187: 0 | BB187: 0 | BC187: 0 | BD187: 0 | BE187: 0 | BF187: 0 | BG187: 0 | BH187: 0 | BI187: 0 | BJ187: 0 | BK187: 0 | BL187: 0 | BM187: 0
A188: =$E$20 -> Fix | B188: =$C$20 -> UTP_14 | D188: 591.7 | F188: =F70*VLOOKUP(LEFT($B188,3),$L$7:$P$12,IF($B$14=TRUE,5,2),FALSE) -> 0 | G188: 0 | H188: 0 | I188: 0 | J188: 0 | K188: 0 | L188: 0 | M188: 0 | N188: 0 | O188: 591.7 | P188: 0 | Q188: 0 | R188: 0 | S188: 0 | T188: 0 | U188: 0 | V188: 0 | W188: 0 | X188: 0 | Y188: 0 | Z188: 0 | AA188: 0 | AB188: 0 | AC188: 0 | AD188: 0 | AE188: 0 | AF188: 0 | AG188: 0 | AH188: 0 | AI188: 0 | AJ188: 0 | AK188: 0 | AL188: =AL70*VLOOKUP(LEFT($B188,3),$L$7:$P$12,IF($B$14=TRUE,5,2),FALSE) -> 0 | AM188: 0 | AN188: 0 | AO188: 0 | AP188: 0 | AQ188: 0 | AR188: 0 | AS188: 0 | AT188: 0 | AU188: 0 | AV188: 0 | AW188: 0 | AX188: 0 | AY188: 0 | AZ188: 0 | BA188: 0 | BB188: 0 | BC188: 0 | BD188: 0 | BE188: 0 | BF188: 0 | BG188: 0 | BH188: 0 | BI188: 0 | BJ188: 0 | BK188: 0 | BL188: 0 | BM188: 0
A189: =$E$21 -> 0 | B189: =$C$21 -> UTP_15 | D189: 0 | F189: =F71*VLOOKUP(LEFT($B189,3),$L$7:$P$12,IF($B$14=TRUE,5,2),FALSE) -> 0 | G189: 0 | H189: 0 | I189: 0 | J189: 0 | K189: 0 | L189: 0 | M189: 0 | N189: 0 | O189: 0 | P189: 0 | Q189: 0 | R189: 0 | S189: 0 | T189: 0 | U189: 0 | V189: 0 | W189: 0 | X189: 0 | Y189: 0 | Z189: 0 | AA189: 0 | AB189: 0 | AC189: 0 | AD189: 0 | AE189: 0 | AF189: 0 | AG189: 0 | AH189: 0 | AI189: 0 | AJ189: 0 | AK189: 0 | AL189: =AL71*VLOOKUP(LEFT($B189,3),$L$7:$P$12,IF($B$14=TRUE,5,2),FALSE) -> 0 | AM189: 0 | AN189: 0 | AO189: 0 | AP189: 0 | AQ189: 0 | AR189: 0 | AS189: 0 | AT189: 0 | AU189: 0 | AV189: 0 | AW189: 0 | AX189: 0 | AY189: 0 | AZ189: 0 | BA189: 0 | BB189: 0 | BC189: 0 | BD189: 0 | BE189: 0 | BF189: 0 | BG189: 0 | BH189: 0 | BI189: 0 | BJ189: 0 | BK189: 0 | BL189: 0 | BM189: 0
A190: =$E$22 -> 0 | B190: =$C$22 -> UTP_16 | D190: 0 | F190: =F72*VLOOKUP(LEFT($B190,3),$L$7:$P$12,IF($B$14=TRUE,5,2),FALSE) -> 0 | G190: 0 | H190: 0 | I190: 0 | J190: 0 | K190: 0 | L190: 0 | M190: 0 | N190: 0 | O190: 0 | P190: 0 | Q190: 0 | R190: 0 | S190: 0 | T190: 0 | U190: 0 | V190: 0 | W190: 0 | X190: 0 | Y190: 0 | Z190: 0 | AA190: 0 | AB190: 0 | AC190: 0 | AD190: 0 | AE190: 0 | AF190: 0 | AG190: 0 | AH190: 0 | AI190: 0 | AJ190: 0 | AK190: 0 | AL190: =AL72*VLOOKUP(LEFT($B190,3),$L$7:$P$12,IF($B$14=TRUE,5,2),FALSE) -> 0 | AM190: 0 | AN190: 0 | AO190: 0 | AP190: 0 | AQ190: 0 | AR190: 0 | AS190: 0 | AT190: 0 | AU190: 0 | AV190: 0 | AW190: 0 | AX190: 0 | AY190: 0 | AZ190: 0 | BA190: 0 | BB190: 0 | BC190: 0 | BD190: 0 | BE190: 0 | BF190: 0 | BG190: 0 | BH190: 0 | BI190: 0 | BJ190: 0 | BK190: 0 | BL190: 0 | BM190: 0
A191: =$E$23 -> 0 | B191: =$C$23 -> UTP_17 | D191: 0 | F191: =F73*VLOOKUP(LEFT($B191,3),$L$7:$P$12,IF($B$14=TRUE,5,2),FALSE) -> 0 | G191: 0 | H191: 0 | I191: 0 | J191: 0 | K191: 0 | L191: 0 | M191: 0 | N191: 0 | O191: 0 | P191: 0 | Q191: 0 | R191: 0 | S191: 0 | T191: 0 | U191: 0 | V191: 0 | W191: 0 | X191: 0 | Y191: 0 | Z191: 0 | AA191: 0 | AB191: 0 | AC191: 0 | AD191: 0 | AE191: 0 | AF191: 0 | AG191: 0 | AH191: 0 | AI191: 0 | AJ191: 0 | AK191: 0 | AL191: =AL73*VLOOKUP(LEFT($B191,3),$L$7:$P$12,IF($B$14=TRUE,5,2),FALSE) -> 0 | AM191: 0 | AN191: 0 | AO191: 0 | AP191: 0 | AQ191: 0 | AR191: 0 | AS191: 0 | AT191: 0 | AU191: 0 | AV191: 0 | AW191: 0 | AX191: 0 | AY191: 0 | AZ191: 0 | BA191: 0 | BB191: 0 | BC191: 0 | BD191: 0 | BE191: 0 | BF191: 0 | BG191: 0 | BH191: 0 | BI191: 0 | BJ191: 0 | BK191: 0 | BL191: 0 | BM191: 0
A192: =$E$24 -> 0 | B192: =$C$24 -> UTP_18 | D192: 0 | F192: =F74*VLOOKUP(LEFT($B192,3),$L$7:$P$12,IF($B$14=TRUE,5,2),FALSE) -> 0 | G192: 0 | H192: 0 | I192: 0 | J192: 0 | K192: 0 | L192: 0 | M192: 0 | N192: 0 | O192: 0 | P192: 0 | Q192: 0 | R192: 0 | S192: 0 | T192: 0 | U192: 0 | V192: 0 | W192: 0 | X192: 0 | Y192: 0 | Z192: 0 | AA192: 0 | AB192: 0 | AC192: 0 | AD192: 0 | AE192: 0 | AF192: 0 | AG192: 0 | AH192: 0 | AI192: 0 | AJ192: 0 | AK192: 0 | AL192: =AL74*VLOOKUP(LEFT($B192,3),$L$7:$P$12,IF($B$14=TRUE,5,2),FALSE) -> 0 | AM192: 0 | AN192: 0 | AO192: 0 | AP192: 0 | AQ192: 0 | AR192: 0 | AS192: 0 | AT192: 0 | AU192: 0 | AV192: 0 | AW192: 0 | AX192: 0 | AY192: 0 | AZ192: 0 | BA192: 0 | BB192: 0 | BC192: 0 | BD192: 0 | BE192: 0 | BF192: 0 | BG192: 0 | BH192: 0 | BI192: 0 | BJ192: 0 | BK192: 0 | BL192: 0 | BM192: 0
A193: =$E$25 -> 0 | B193: =$C$25 -> UTP_19 | D193: 0 | F193: =F75*VLOOKUP(LEFT($B193,3),$L$7:$P$12,IF($B$14=TRUE,5,2),FALSE) -> 0 | G193: 0 | H193: 0 | I193: 0 | J193: 0 | K193: 0 | L193: 0 | M193: 0 | N193: 0 | O193: 0 | P193: 0 | Q193: 0 | R193: 0 | S193: 0 | T193: 0 | U193: 0 | V193: 0 | W193: 0 | X193: 0 | Y193: 0 | Z193: 0 | AA193: 0 | AB193: 0 | AC193: 0 | AD193: 0 | AE193: 0 | AF193: 0 | AG193: 0 | AH193: 0 | AI193: 0 | AJ193: 0 | AK193: 0 | AL193: =AL75*VLOOKUP(LEFT($B193,3),$L$7:$P$12,IF($B$14=TRUE,5,2),FALSE) -> 0 | AM193: 0 | AN193: 0 | AO193: 0 | AP193: 0 | AQ193: 0 | AR193: 0 | AS193: 0 | AT193: 0 | AU193: 0 | AV193: 0 | AW193: 0 | AX193: 0 | AY193: 0 | AZ193: 0 | BA193: 0 | BB193: 0 | BC193: 0 | BD193: 0 | BE193: 0 | BF193: 0 | BG193: 0 | BH193: 0 | BI193: 0 | BJ193: 0 | BK193: 0 | BL193: 0 | BM193: 0
A194: =$E$26 -> Var | B194: =$C$26 -> IDX_20 | D194: 0 | F194: =F76*VLOOKUP(LEFT($B194,3),$L$7:$P$12,IF($B$14=TRUE,5,2),FALSE) -> 0 | G194: 0 | H194: 0 | I194: 0 | J194: 0 | K194: 0 | L194: 0 | M194: 0 | N194: 0 | O194: 0 | P194: 0 | Q194: 0 | R194: 0 | S194: 0 | T194: 0 | U194: 0 | V194: 0 | W194: 0 | X194: 0 | Y194: 0 | Z194: 0 | AA194: 0 | AB194: 0 | AC194: 0 | AD194: 0 | AE194: 0 | AF194: 0 | AG194: 0 | AH194: 0 | AI194: 0 | AJ194: 0 | AK194: 0 | AL194: =AL76*VLOOKUP(LEFT($B194,3),$L$7:$P$12,IF($B$14=TRUE,5,2),FALSE) -> 0 | AM194: 0 | AN194: 0 | AO194: 0 | AP194: 0 | AQ194: 0 | AR194: 0 | AS194: 0 | AT194: 0 | AU194: 0 | AV194: 0 | AW194: 0 | AX194: 0 | AY194: 0 | AZ194: 0 | BA194: 0 | BB194: 0 | BC194: 0 | BD194: 0 | BE194: 0 | BF194: 0 | BG194: 0 | BH194: 0 | BI194: 0 | BJ194: 0 | BK194: 0 | BL194: 0 | BM194: 0
B197: Outstanding Stock in Original Currency | E197: =$B$7 -> 2017 | F197: =E197+1 -> 2018 | G197: 2019 | H197: 2020 | I197: 2021 | J197: 2022 | K197: 2023 | L197: 2024 | M197: 2025 | N197: 2026 | O197: 2027 | P197: 2028 | Q197: 2029 | R197: 2030 | S197: 2031 | T197: 2032 | U197: 2033 | V197: 2034 | W197: 2035 | X197: 2036 | Y197: 2037 | Z197: 2038 | AA197: 2039 | AB197: 2040 | AC197: 2041 | AD197: 2042 | AE197: 2043 | AF197: 2044 | AG197: 2045 | AH197: 2046 | AI197: 2047 | AJ197: 2048 | AK197: 2049 | AL197: 2050 | AM197: 2051 | AN197: 2052 | AO197: 2053 | AP197: 2054 | AQ197: 2055 | AR197: 2056 | AS197: 2057 | AT197: 2058 | AU197: 2059 | AV197: 2060 | AW197: 2061 | AX197: 2062 | AY197: 2063 | AZ197: 2064 | BA197: 2065 | BB197: 2066 | BC197: 2067 | BD197: 2068 | BE197: 2069 | BF197: 2070 | BG197: 2071 | BH197: 2072 | BI197: 2073 | BJ197: 2074 | BK197: 2075 | BL197: 2076 | BM197: 2077
A198: =$E$7 -> Fix | B198: =$C$7 -> USD_1 | E198: =E80*VLOOKUP(LEFT($B198,3),$L$7:$P$12,IF($B$14=TRUE,5,2),FALSE) -> 208.9282787 | F198: 205.8576028 | G198: 202.5973172 | H198: 197.7705074 | I198: 192.1572774 | J198: 186.8960363 | K198: 181.6399989 | L198: 175.4989762 | M198: 170.0403312 | N198: 164.4856857 | O198: 158.8348621 | P198: 152.7687467 | Q198: 146.7025944 | R198: 140.6364421 | S198: 134.6490642 | T198: 128.6569679 | U198: 122.6648716 | V198: 116.412845 | W198: 110.1609958 | X198: 103.9091467 | Y198: 97.65729751 | Z198: 91.39943785 | AA198: 85.40150852 | AB198: 79.4035792 | AC198: 73.40564988 | AD198: 67.40772056 | AE198: 61.40979123 | AF198: 55.41186191 | AG198: 49.74835461 | AH198: 44.53442734 | AI198: 39.63118972 | AJ198: 34.69547333 | AK198: =AK80*VLOOKUP(LEFT($B198,3),$L$7:$P$12,IF($B$14=TRUE,5,2),FALSE) -> 29.79594563 | AL198: 25.90461061 | AM198: 21.77552402 | AN198: 18.1780105 | AO198: 14.58049698 | AP198: 10.98512554 | AQ198: 7.389754103 | AR198: 3.794382662 | AS198: 2.035829446 | AT198: 1.173556037 | AU198: 0.3112826284 | AV198: -7.166489624e-14 | AW198: -7.166489624e-14 | AX198: -7.166489624e-14 | AY198: -7.166489624e-14 | AZ198: -7.166489624e-14 | BA198: -7.166489624e-14 | BB198: -7.166489624e-14 | BC198: -7.166489624e-14 | BD198: -7.166489624e-14 | BE198: -7.166489624e-14 | BF198: -7.166489624e-14 | BG198: -7.166489624e-14 | BH198: -7.166489624e-14 | BI198: -7.166489624e-14 | BJ198: -7.166489624e-14 | BK198: -7.166489624e-14 | BL198: -7.166489624e-14 | BM198: -7.166489624e-14
A199: =$E$8 -> Fix | B199: =$C$8 -> USD_2 | E199: =E81*VLOOKUP(LEFT($B199,3),$L$7:$P$12,IF($B$14=TRUE,5,2),FALSE) -> 463.5395288 | F199: 438.3500264 | G199: 415.1895608 | H199: 392.6029951 | I199: 370.0082415 | J199: 347.4073471 | K199: 324.8003118 | L199: 302.1431961 | M199: 279.4778925 | N199: 256.8084951 | O199: 234.1309097 | P199: 211.4305965 | Q199: 188.7986824 | R199: 166.1606275 | S199: 143.5143847 | T199: 120.8599541 | U199: 98.1973356 | V199: 75.52652923 | W199: 52.8475351 | X199: 30.16444698 | Y199: 26.67679171 | Z199: 23.58420028 | AA199: 20.49160886 | AB199: 17.39901743 | AC199: 14.306426 | AD199: 10.2850783 | AE199: 7.368188082 | AF199: 4.678300684 | AG199: 1.988413286 | AH199: 4.574118861e-14 | AI199: 4.574118861e-14 | AJ199: 4.574118861e-14 | AK199: =AK81*VLOOKUP(LEFT($B199,3),$L$7:$P$12,IF($B$14=TRUE,5,2),FALSE) -> 4.574118861e-14 | AL199: 4.574118861e-14 | AM199: 4.574118861e-14 | AN199: 4.574118861e-14 | AO199: 4.574118861e-14 | AP199: 4.574118861e-14 | AQ199: 4.574118861e-14 | AR199: 4.574118861e-14 | AS199: 4.574118861e-14 | AT199: 4.574118861e-14 | AU199: 4.574118861e-14 | AV199: 4.574118861e-14 | AW199: 4.574118861e-14 | AX199: 4.574118861e-14 | AY199: 4.574118861e-14 | AZ199: 4.574118861e-14 | BA199: 4.574118861e-14 | BB199: 4.574118861e-14 | BC199: 4.574118861e-14 | BD199: 4.574118861e-14 | BE199: 4.574118861e-14 | BF199: 4.574118861e-14 | BG199: 4.574118861e-14 | BH199: 4.574118861e-14 | BI199: 4.574118861e-14 | BJ199: 4.574118861e-14 | BK199: 4.574118861e-14 | BL199: 4.574118861e-14 | BM199: 4.574118861e-14
A200: =$E$9 -> Fix | B200: =$C$9 -> USD_3 | E200: =E82*VLOOKUP(LEFT($B200,3),$L$7:$P$12,IF($B$14=TRUE,5,2),FALSE) -> 39.27944459 | F200: 9.964453745 | G200: 3.654473101 | H200: 3.654473101 | I200: 3.451446818 | J200: 3.248420534 | K200: 3.045394251 | L200: 2.842367967 | M200: 2.639341684 | N200: 2.436315401 | O200: 2.233289117 | P200: 2.030262834 | Q200: 1.827236551 | R200: 1.624210267 | S200: 1.421183984 | T200: 1.2181577 | U200: 1.015131417 | V200: 0.8121051336 | W200: 0.6090788502 | X200: 0.4060525668 | Y200: 0.2030262834 | Z200: -3.477773625e-14 | AA200: -3.477773625e-14 | AB200: -3.477773625e-14 | AC200: -3.477773625e-14 | AD200: -3.477773625e-14 | AE200: -3.477773625e-14 | AF200: -3.477773625e-14 | AG200: -3.477773625e-14 | AH200: -3.477773625e-14 | AI200: -3.477773625e-14 | AJ200: -3.477773625e-14 | AK200: =AK82*VLOOKUP(LEFT($B200,3),$L$7:$P$12,IF($B$14=TRUE,5,2),FALSE) -> -3.477773625e-14 | AL200: -3.477773625e-14 | AM200: -3.477773625e-14 | AN200: -3.477773625e-14 | AO200: -3.477773625e-14 | AP200: -3.477773625e-14 | AQ200: -3.477773625e-14 | AR200: -3.477773625e-14 | AS200: -3.477773625e-14 | AT200: -3.477773625e-14 | AU200: -3.477773625e-14 | AV200: -3.477773625e-14 | AW200: -3.477773625e-14 | AX200: -3.477773625e-14 | AY200: -3.477773625e-14 | AZ200: -3.477773625e-14 | BA200: -3.477773625e-14 | BB200: -3.477773625e-14 | BC200: -3.477773625e-14 | BD200: -3.477773625e-14 | BE200: -3.477773625e-14 | BF200: -3.477773625e-14 | BG200: -3.477773625e-14 | BH200: -3.477773625e-14 | BI200: -3.477773625e-14 | BJ200: -3.477773625e-14 | BK200: -3.477773625e-14 | BL200: -3.477773625e-14 | BM200: -3.477773625e-14
A201: =$E$10 -> Var | B201: =$C$10 -> USD_4 | E201: =E83*VLOOKUP(LEFT($B201,3),$L$7:$P$12,IF($B$14=TRUE,5,2),FALSE) -> 76.63160485 | F201: 53.60882181 | G201: 39.18218881 | H201: 25.31618581 | I201: 15.71711751 | J201: 12.02675539 | K201: 9.120612551 | L201: 6.868239219 | M201: 4.615865886 | N201: 2.363492554 | O201: 0.1111192219 | P201: -4.579669977e-16 | Q201: -4.579669977e-16 | R201: -4.579669977e-16 | S201: -4.579669977e-16 | T201: -4.579669977e-16 | U201: -4.579669977e-16 | V201: -4.579669977e-16 | W201: -4.579669977e-16 | X201: -4.579669977e-16 | Y201: -4.579669977e-16 | Z201: -4.579669977e-16 | AA201: -4.579669977e-16 | AB201: -4.579669977e-16 | AC201: -4.579669977e-16 | AD201: -4.579669977e-16 | AE201: -4.579669977e-16 | AF201: -4.579669977e-16 | AG201: -4.579669977e-16 | AH201: -4.579669977e-16 | AI201: -4.579669977e-16 | AJ201: -4.579669977e-16 | AK201: =AK83*VLOOKUP(LEFT($B201,3),$L$7:$P$12,IF($B$14=TRUE,5,2),FALSE) -> -4.579669977e-16 | AL201: -4.579669977e-16 | AM201: -4.579669977e-16 | AN201: -4.579669977e-16 | AO201: -4.579669977e-16 | AP201: -4.579669977e-16 | AQ201: -4.579669977e-16 | AR201: -4.579669977e-16 | AS201: -4.579669977e-16 | AT201: -4.579669977e-16 | AU201: -4.579669977e-16 | AV201: -4.579669977e-16 | AW201: -4.579669977e-16 | AX201: -4.579669977e-16 | AY201: -4.579669977e-16 | AZ201: -4.579669977e-16 | BA201: -4.579669977e-16 | BB201: -4.579669977e-16 | BC201: -4.579669977e-16 | BD201: -4.579669977e-16 | BE201: -4.579669977e-16 | BF201: -4.579669977e-16 | BG201: -4.579669977e-16 | BH201: -4.579669977e-16 | BI201: -4.579669977e-16 | BJ201: -4.579669977e-16 | BK201: -4.579669977e-16 | BL201: -4.579669977e-16 | BM201: -4.579669977e-16
A202: =$E$11 -> Fix | B202: =$C$11 -> USD_5 | E202: =E84*VLOOKUP(LEFT($B202,3),$L$7:$P$12,IF($B$14=TRUE,5,2),FALSE) -> 182.012277 | F202: 140.0012126 | G202: 100.001061 | H202: 60.00090943 | I202: 20.00075786 | J202: 0.0006062888151 | K202: 0.0004547166114 | L202: 0.0003031444076 | M202: 0.0001515722038 | N202: 7.881157749e-14 | O202: 7.881157749e-14 | P202: 7.881157749e-14 | Q202: 7.881157749e-14 | R202: 7.881157749e-14 | S202: 7.881157749e-14 | T202: 7.881157749e-14 | U202: 7.881157749e-14 | V202: 7.881157749e-14 | W202: 7.881157749e-14 | X202: 7.881157749e-14 | Y202: 7.881157749e-14 | Z202: 7.881157749e-14 | AA202: 7.881157749e-14 | AB202: 7.881157749e-14 | AC202: 7.881157749e-14 | AD202: 7.881157749e-14 | AE202: 7.881157749e-14 | AF202: 7.881157749e-14 | AG202: 7.881157749e-14 | AH202: 7.881157749e-14 | AI202: 7.881157749e-14 | AJ202: 7.881157749e-14 | AK202: =AK84*VLOOKUP(LEFT($B202,3),$L$7:$P$12,IF($B$14=TRUE,5,2),FALSE) -> 7.881157749e-14 | AL202: 7.881157749e-14 | AM202: 7.881157749e-14 | AN202: 7.881157749e-14 | AO202: 7.881157749e-14 | AP202: 7.881157749e-14 | AQ202: 7.881157749e-14 | AR202: 7.881157749e-14 | AS202: 7.881157749e-14 | AT202: 7.881157749e-14 | AU202: 7.881157749e-14 | AV202: 7.881157749e-14 | AW202: 7.881157749e-14 | AX202: 7.881157749e-14 | AY202: 7.881157749e-14 | AZ202: 7.881157749e-14 | BA202: 7.881157749e-14 | BB202: 7.881157749e-14 | BC202: 7.881157749e-14 | BD202: 7.881157749e-14 | BE202: 7.881157749e-14 | BF202: 7.881157749e-14 | BG202: 7.881157749e-14 | BH202: 7.881157749e-14 | BI202: 7.881157749e-14 | BJ202: 7.881157749e-14 | BK202: 7.881157749e-14 | BL202: 7.881157749e-14 | BM202: 7.881157749e-14
A203: =$E$12 -> Var | B203: =$C$12 -> USD_6 | E203: =E85*VLOOKUP(LEFT($B203,3),$L$7:$P$12,IF($B$14=TRUE,5,2),FALSE) -> 203.4345549 | F203: 165.5727962 | G203: 114.2104799 | H203: 83.07067821 | I203: 52.43087648 | J203: 35.37904632 | K203: 16.98952316 | L203: 0 | M203: 0 | N203: 0 | O203: 0 | P203: 0 | Q203: 0 | R203: 0 | S203: 0 | T203: 0 | U203: 0 | V203: 0 | W203: 0 | X203: 0 | Y203: 0 | Z203: 0 | AA203: 0 | AB203: 0 | AC203: 0 | AD203: 0 | AE203: 0 | AF203: 0 | AG203: 0 | AH203: 0 | AI203: 0 | AJ203: 0 | AK203: =AK85*VLOOKUP(LEFT($B203,3),$L$7:$P$12,IF($B$14=TRUE,5,2),FALSE) -> 0 | AL203: 0 | AM203: 0 | AN203: 0 | AO203: 0 | AP203: 0 | AQ203: 0 | AR203: 0 | AS203: 0 | AT203: 0 | AU203: 0 | AV203: 0 | AW203: 0 | AX203: 0 | AY203: 0 | AZ203: 0 | BA203: 0 | BB203: 0 | BC203: 0 | BD203: 0 | BE203: 0 | BF203: 0 | BG203: 0 | BH203: 0 | BI203: 0 | BJ203: 0 | BK203: 0 | BL203: 0 | BM203: 0
A204: =$E$13 -> 0 | B204: =$C$13 -> USD_7 | E204: =E86*VLOOKUP(LEFT($B204,3),$L$7:$P$12,IF($B$14=TRUE,5,2),FALSE) -> 0 | F204: 0 | G204: 0 | H204: 0 | I204: 0 | J204: 0 | K204: 0 | L204: 0 | M204: 0 | N204: 0 | O204: 0 | P204: 0 | Q204: 0 | R204: 0 | S204: 0 | T204: 0 | U204: 0 | V204: 0 | W204: 0 | X204: 0 | Y204: 0 | Z204: 0 | AA204: 0 | AB204: 0 | AC204: 0 | AD204: 0 | AE204: 0 | AF204: 0 | AG204: 0 | AH204: 0 | AI204: 0 | AJ204: 0 | AK204: =AK86*VLOOKUP(LEFT($B204,3),$L$7:$P$12,IF($B$14=TRUE,5,2),FALSE) -> 0 | AL204: 0 | AM204: 0 | AN204: 0 | AO204: 0 | AP204: 0 | AQ204: 0 | AR204: 0 | AS204: 0 | AT204: 0 | AU204: 0 | AV204: 0 | AW204: 0 | AX204: 0 | AY204: 0 | AZ204: 0 | BA204: 0 | BB204: 0 | BC204: 0 | BD204: 0 | BE204: 0 | BF204: 0 | BG204: 0 | BH204: 0 | BI204: 0 | BJ204: 0 | BK204: 0 | BL204: 0 | BM204: 0
A205: =$E$14 -> 0 | B205: =$C$14 -> USD_8 | E205: =E87*VLOOKUP(LEFT($B205,3),$L$7:$P$12,IF($B$14=TRUE,5,2),FALSE) -> 0 | F205: 0 | G205: 0 | H205: 0 | I205: 0 | J205: 0 | K205: 0 | L205: 0 | M205: 0 | N205: 0 | O205: 0 | P205: 0 | Q205: 0 | R205: 0 | S205: 0 | T205: 0 | U205: 0 | V205: 0 | W205: 0 | X205: 0 | Y205: 0 | Z205: 0 | AA205: 0 | AB205: 0 | AC205: 0 | AD205: 0 | AE205: 0 | AF205: 0 | AG205: 0 | AH205: 0 | AI205: 0 | AJ205: 0 | AK205: =AK87*VLOOKUP(LEFT($B205,3),$L$7:$P$12,IF($B$14=TRUE,5,2),FALSE) -> 0 | AL205: 0 | AM205: 0 | AN205: 0 | AO205: 0 | AP205: 0 | AQ205: 0 | AR205: 0 | AS205: 0 | AT205: 0 | AU205: 0 | AV205: 0 | AW205: 0 | AX205: 0 | AY205: 0 | AZ205: 0 | BA205: 0 | BB205: 0 | BC205: 0 | BD205: 0 | BE205: 0 | BF205: 0 | BG205: 0 | BH205: 0 | BI205: 0 | BJ205: 0 | BK205: 0 | BL205: 0 | BM205: 0
A206: =$E$15 -> 0 | B206: =$C$15 -> USD_9 | E206: =E88*VLOOKUP(LEFT($B206,3),$L$7:$P$12,IF($B$14=TRUE,5,2),FALSE) -> 0 | F206: 0 | G206: 0 | H206: 0 | I206: 0 | J206: 0 | K206: 0 | L206: 0 | M206: 0 | N206: 0 | O206: 0 | P206: 0 | Q206: 0 | R206: 0 | S206: 0 | T206: 0 | U206: 0 | V206: 0 | W206: 0 | X206: 0 | Y206: 0 | Z206: 0 | AA206: 0 | AB206: 0 | AC206: 0 | AD206: 0 | AE206: 0 | AF206: 0 | AG206: 0 | AH206: 0 | AI206: 0 | AJ206: 0 | AK206: =AK88*VLOOKUP(LEFT($B206,3),$L$7:$P$12,IF($B$14=TRUE,5,2),FALSE) -> 0 | AL206: 0 | AM206: 0 | AN206: 0 | AO206: 0 | AP206: 0 | AQ206: 0 | AR206: 0 | AS206: 0 | AT206: 0 | AU206: 0 | AV206: 0 | AW206: 0 | AX206: 0 | AY206: 0 | AZ206: 0 | BA206: 0 | BB206: 0 | BC206: 0 | BD206: 0 | BE206: 0 | BF206: 0 | BG206: 0 | BH206: 0 | BI206: 0 | BJ206: 0 | BK206: 0 | BL206: 0 | BM206: 0
A207: =$E$16 -> 0 | B207: =$C$16 -> USD_10 | E207: =E89*VLOOKUP(LEFT($B207,3),$L$7:$P$12,IF($B$14=TRUE,5,2),FALSE) -> 0 | F207: 0 | G207: 0 | H207: 0 | I207: 0 | J207: 0 | K207: 0 | L207: 0 | M207: 0 | N207: 0 | O207: 0 | P207: 0 | Q207: 0 | R207: 0 | S207: 0 | T207: 0 | U207: 0 | V207: 0 | W207: 0 | X207: 0 | Y207: 0 | Z207: 0 | AA207: 0 | AB207: 0 | AC207: 0 | AD207: 0 | AE207: 0 | AF207: 0 | AG207: 0 | AH207: 0 | AI207: 0 | AJ207: 0 | AK207: =AK89*VLOOKUP(LEFT($B207,3),$L$7:$P$12,IF($B$14=TRUE,5,2),FALSE) -> 0 | AL207: 0 | AM207: 0 | AN207: 0 | AO207: 0 | AP207: 0 | AQ207: 0 | AR207: 0 | AS207: 0 | AT207: 0 | AU207: 0 | AV207: 0 | AW207: 0 | AX207: 0 | AY207: 0 | AZ207: 0 | BA207: 0 | BB207: 0 | BC207: 0 | BD207: 0 | BE207: 0 | BF207: 0 | BG207: 0 | BH207: 0 | BI207: 0 | BJ207: 0 | BK207: 0 | BL207: 0 | BM207: 0
A208: =$E$17 -> T-bills | B208: =$C$17 -> UTP_11 | E208: =E90*VLOOKUP(LEFT($B208,3),$L$7:$P$12,IF($B$14=TRUE,5,2),FALSE) -> 3831.304677 | F208: 0 | G208: 0 | H208: 0 | I208: 0 | J208: 0 | K208: 0 | L208: 0 | M208: 0 | N208: 0 | O208: 0 | P208: 0 | Q208: 0 | R208: 0 | S208: 0 | T208: 0 | U208: 0 | V208: 0 | W208: 0 | X208: 0 | Y208: 0 | Z208: 0 | AA208: 0 | AB208: 0 | AC208: 0 | AD208: 0 | AE208: 0 | AF208: 0 | AG208: 0 | AH208: 0 | AI208: 0 | AJ208: 0 | AK208: =AK90*VLOOKUP(LEFT($B208,3),$L$7:$P$12,IF($B$14=TRUE,5,2),FALSE) -> 0 | AL208: 0 | AM208: 0 | AN208: 0 | AO208: 0 | AP208: 0 | AQ208: 0 | AR208: 0 | AS208: 0 | AT208: 0 | AU208: 0 | AV208: 0 | AW208: 0 | AX208: 0 | AY208: 0 | AZ208: 0 | BA208: 0 | BB208: 0 | BC208: 0 | BD208: 0 | BE208: 0 | BF208: 0 | BG208: 0 | BH208: 0 | BI208: 0 | BJ208: 0 | BK208: 0 | BL208: 0 | BM208: 0
A209: =$E$18 -> Fix | B209: =$C$18 -> UTP_12 | E209: =E91*VLOOKUP(LEFT($B209,3),$L$7:$P$12,IF($B$14=TRUE,5,2),FALSE) -> 225.68828 | F209: 225.68828 | G209: 125.31763 | H209: 0 | I209: 0 | J209: 0 | K209: 0 | L209: 0 | M209: 0 | N209: 0 | O209: 0 | P209: 0 | Q209: 0 | R209: 0 | S209: 0 | T209: 0 | U209: 0 | V209: 0 | W209: 0 | X209: 0 | Y209: 0 | Z209: 0 | AA209: 0 | AB209: 0 | AC209: 0 | AD209: 0 | AE209: 0 | AF209: 0 | AG209: 0 | AH209: 0 | AI209: 0 | AJ209: 0 | AK209: =AK91*VLOOKUP(LEFT($B209,3),$L$7:$P$12,IF($B$14=TRUE,5,2),FALSE) -> 0 | AL209: 0 | AM209: 0 | AN209: 0 | AO209: 0 | AP209: 0 | AQ209: 0 | AR209: 0 | AS209: 0 | AT209: 0 | AU209: 0 | AV209: 0 | AW209: 0 | AX209: 0 | AY209: 0 | AZ209: 0 | BA209: 0 | BB209: 0 | BC209: 0 | BD209: 0 | BE209: 0 | BF209: 0 | BG209: 0 | BH209: 0 | BI209: 0 | BJ209: 0 | BK209: 0 | BL209: 0 | BM209: 0
A210: =$E$19 -> Fix | B210: =$C$19 -> UTP_13 | E210: =E92*VLOOKUP(LEFT($B210,3),$L$7:$P$12,IF($B$14=TRUE,5,2),FALSE) -> 5090.156676 | F210: 5090.156676 | G210: 5090.156676 | H210: 5090.156676 | I210: 5090.156676 | J210: 2548.629874 | K210: 2548.629874 | L210: 0 | M210: 0 | N210: 0 | O210: 0 | P210: 0 | Q210: 0 | R210: 0 | S210: 0 | T210: 0 | U210: 0 | V210: 0 | W210: 0 | X210: 0 | Y210: 0 | Z210: 0 | AA210: 0 | AB210: 0 | AC210: 0 | AD210: 0 | AE210: 0 | AF210: 0 | AG210: 0 | AH210: 0 | AI210: 0 | AJ210: 0 | AK210: =AK92*VLOOKUP(LEFT($B210,3),$L$7:$P$12,IF($B$14=TRUE,5,2),FALSE) -> 0 | AL210: 0 | AM210: 0 | AN210: 0 | AO210: 0 | AP210: 0 | AQ210: 0 | AR210: 0 | AS210: 0 | AT210: 0 | AU210: 0 | AV210: 0 | AW210: 0 | AX210: 0 | AY210: 0 | AZ210: 0 | BA210: 0 | BB210: 0 | BC210: 0 | BD210: 0 | BE210: 0 | BF210: 0 | BG210: 0 | BH210: 0 | BI210: 0 | BJ210: 0 | BK210: 0 | BL210: 0 | BM210: 0
A211: =$E$20 -> Fix | B211: =$C$20 -> UTP_14 | E211: =E93*VLOOKUP(LEFT($B211,3),$L$7:$P$12,IF($B$14=TRUE,5,2),FALSE) -> 591.7 | F211: 591.7 | G211: 591.7 | H211: 591.7 | I211: 591.7 | J211: 591.7 | K211: 591.7 | L211: 591.7 | M211: 591.7 | N211: 591.7 | O211: 0 | P211: 0 | Q211: 0 | R211: 0 | S211: 0 | T211: 0 | U211: 0 | V211: 0 | W211: 0 | X211: 0 | Y211: 0 | Z211: 0 | AA211: 0 | AB211: 0 | AC211: 0 | AD211: 0 | AE211: 0 | AF211: 0 | AG211: 0 | AH211: 0 | AI211: 0 | AJ211: 0 | AK211: =AK93*VLOOKUP(LEFT($B211,3),$L$7:$P$12,IF($B$14=TRUE,5,2),FALSE) -> 0 | AL211: 0 | AM211: 0 | AN211: 0 | AO211: 0 | AP211: 0 | AQ211: 0 | AR211: 0 | AS211: 0 | AT211: 0 | AU211: 0 | AV211: 0 | AW211: 0 | AX211: 0 | AY211: 0 | AZ211: 0 | BA211: 0 | BB211: 0 | BC211: 0 | BD211: 0 | BE211: 0 | BF211: 0 | BG211: 0 | BH211: 0 | BI211: 0 | BJ211: 0 | BK211: 0 | BL211: 0 | BM211: 0
A212: =$E$21 -> 0 | B212: =$C$21 -> UTP_15 | E212: =E94*VLOOKUP(LEFT($B212,3),$L$7:$P$12,IF($B$14=TRUE,5,2),FALSE) -> 0 | F212: 0 | G212: 0 | H212: 0 | I212: 0 | J212: 0 | K212: 0 | L212: 0 | M212: 0 | N212: 0 | O212: 0 | P212: 0 | Q212: 0 | R212: 0 | S212: 0 | T212: 0 | U212: 0 | V212: 0 | W212: 0 | X212: 0 | Y212: 0 | Z212: 0 | AA212: 0 | AB212: 0 | AC212: 0 | AD212: 0 | AE212: 0 | AF212: 0 | AG212: 0 | AH212: 0 | AI212: 0 | AJ212: 0 | AK212: =AK94*VLOOKUP(LEFT($B212,3),$L$7:$P$12,IF($B$14=TRUE,5,2),FALSE) -> 0 | AL212: 0 | AM212: 0 | AN212: 0 | AO212: 0 | AP212: 0 | AQ212: 0 | AR212: 0 | AS212: 0 | AT212: 0 | AU212: 0 | AV212: 0 | AW212: 0 | AX212: 0 | AY212: 0 | AZ212: 0 | BA212: 0 | BB212: 0 | BC212: 0 | BD212: 0 | BE212: 0 | BF212: 0 | BG212: 0 | BH212: 0 | BI212: 0 | BJ212: 0 | BK212: 0 | BL212: 0 | BM212: 0
A213: =$E$22 -> 0 | B213: =$C$22 -> UTP_16 | E213: =E95*VLOOKUP(LEFT($B213,3),$L$7:$P$12,IF($B$14=TRUE,5,2),FALSE) -> 0 | F213: 0 | G213: 0 | H213: 0 | I213: 0 | J213: 0 | K213: 0 | L213: 0 | M213: 0 | N213: 0 | O213: 0 | P213: 0 | Q213: 0 | R213: 0 | S213: 0 | T213: 0 | U213: 0 | V213: 0 | W213: 0 | X213: 0 | Y213: 0 | Z213: 0 | AA213: 0 | AB213: 0 | AC213: 0 | AD213: 0 | AE213: 0 | AF213: 0 | AG213: 0 | AH213: 0 | AI213: 0 | AJ213: 0 | AK213: 0 | AL213: 0 | AM213: 0 | AN213: 0 | AO213: 0 | AP213: 0 | AQ213: 0 | AR213: 0 | AS213: 0 | AT213: 0 | AU213: 0 | AV213: 0 | AW213: 0 | AX213: 0 | AY213: 0 | AZ213: 0 | BA213: 0 | BB213: 0 | BC213: 0 | BD213: 0 | BE213: 0 | BF213: 0 | BG213: 0 | BH213: 0 | BI213: 0 | BJ213: 0 | BK213: 0 | BL213: 0 | BM213: 0
A214: =$E$23 -> 0 | B214: =$C$23 -> UTP_17 | E214: =E96*VLOOKUP(LEFT($B214,3),$L$7:$P$12,IF($B$14=TRUE,5,2),FALSE) -> 0 | F214: 0 | G214: 0 | H214: 0 | I214: 0 | J214: 0 | K214: 0 | L214: 0 | M214: 0 | N214: 0 | O214: 0 | P214: 0 | Q214: 0 | R214: 0 | S214: 0 | T214: 0 | U214: 0 | V214: 0 | W214: 0 | X214: 0 | Y214: 0 | Z214: 0 | AA214: 0 | AB214: 0 | AC214: 0 | AD214: 0 | AE214: 0 | AF214: 0 | AG214: 0 | AH214: 0 | AI214: 0 | AJ214: 0 | AK214: 0 | AL214: 0 | AM214: 0 | AN214: 0 | AO214: 0 | AP214: 0 | AQ214: 0 | AR214: 0 | AS214: 0 | AT214: 0 | AU214: 0 | AV214: 0 | AW214: 0 | AX214: 0 | AY214: 0 | AZ214: 0 | BA214: 0 | BB214: 0 | BC214: 0 | BD214: 0 | BE214: 0 | BF214: 0 | BG214: 0 | BH214: 0 | BI214: 0 | BJ214: 0 | BK214: 0 | BL214: 0 | BM214: 0
A215: =$E$24 -> 0 | B215: =$C$24 -> UTP_18 | E215: =E97*VLOOKUP(LEFT($B215,3),$L$7:$P$12,IF($B$14=TRUE,5,2),FALSE) -> 0 | F215: 0 | G215: 0 | H215: 0 | I215: 0 | J215: 0 | K215: 0 | L215: 0 | M215: 0 | N215: 0 | O215: 0 | P215: 0 | Q215: 0 | R215: 0 | S215: 0 | T215: 0 | U215: 0 | V215: 0 | W215: 0 | X215: 0 | Y215: 0 | Z215: 0 | AA215: 0 | AB215: 0 | AC215: 0 | AD215: 0 | AE215: 0 | AF215: 0 | AG215: 0 | AH215: 0 | AI215: 0 | AJ215: 0 | AK215: 0 | AL215: 0 | AM215: 0 | AN215: 0 | AO215: 0 | AP215: 0 | AQ215: 0 | AR215: 0 | AS215: 0 | AT215: 0 | AU215: 0 | AV215: 0 | AW215: 0 | AX215: 0 | AY215: 0 | AZ215: 0 | BA215: 0 | BB215: 0 | BC215: 0 | BD215: 0 | BE215: 0 | BF215: 0 | BG215: 0 | BH215: 0 | BI215: 0 | BJ215: 0 | BK215: 0 | BL215: 0 | BM215: 0
A216: =$E$25 -> 0 | B216: =$C$25 -> UTP_19 | E216: =E98*VLOOKUP(LEFT($B216,3),$L$7:$P$12,IF($B$14=TRUE,5,2),FALSE) -> 0 | F216: 0 | G216: 0 | H216: 0 | I216: 0 | J216: 0 | K216: 0 | L216: 0 | M216: 0 | N216: 0 | O216: 0 | P216: 0 | Q216: 0 | R216: 0 | S216: 0 | T216: 0 | U216: 0 | V216: 0 | W216: 0 | X216: 0 | Y216: 0 | Z216: 0 | AA216: 0 | AB216: 0 | AC216: 0 | AD216: 0 | AE216: 0 | AF216: 0 | AG216: 0 | AH216: 0 | AI216: 0 | AJ216: 0 | AK216: 0 | AL216: 0 | AM216: 0 | AN216: 0 | AO216: 0 | AP216: 0 | AQ216: 0 | AR216: 0 | AS216: 0 | AT216: 0 | AU216: 0 | AV216: 0 | AW216: 0 | AX216: 0 | AY216: 0 | AZ216: 0 | BA216: 0 | BB216: 0 | BC216: 0 | BD216: 0 | BE216: 0 | BF216: 0 | BG216: 0 | BH216: 0 | BI216: 0 | BJ216: 0 | BK216: 0 | BL216: 0 | BM216: 0
A217: =$E$26 -> Var | B217: =$C$26 -> IDX_20 | E217: =E99*VLOOKUP(LEFT($B217,3),$L$7:$P$12,IF($B$14=TRUE,5,2),FALSE) -> 0 | F217: 0 | G217: 0 | H217: 0 | I217: 0 | J217: 0 | K217: 0 | L217: 0 | M217: 0 | N217: 0 | O217: 0 | P217: 0 | Q217: 0 | R217: 0 | S217: 0 | T217: 0 | U217: 0 | V217: 0 | W217: 0 | X217: 0 | Y217: 0 | Z217: 0 | AA217: 0 | AB217: 0 | AC217: 0 | AD217: 0 | AE217: 0 | AF217: 0 | AG217: 0 | AH217: 0 | AI217: 0 | AJ217: 0 | AK217: 0 | AL217: 0 | AM217: 0 | AN217: 0 | AO217: 0 | AP217: 0 | AQ217: 0 | AR217: 0 | AS217: 0 | AT217: 0 | AU217: 0 | AV217: 0 | AW217: 0 | AX217: 0 | AY217: 0 | AZ217: 0 | BA217: 0 | BB217: 0 | BC217: 0 | BD217: 0 | BE217: 0 | BF217: 0 | BG217: 0 | BH217: 0 | BI217: 0 | BJ217: 0 | BK217: 0 | BL217: 0 | BM217: 0
B220: Interest Payments in Original Currency - Interest payments for fixed-rate instruments are taken from sheet From Database & interest payments for floating-rate instruments are computed using spread-based figures in sheet From Database and market interest rates in sheet Macro and Market Data. | E220: Implied IR | F220: =$B$7+1 -> 2018 | G220: =F220+1 -> 2019 | H220: =G220+1 -> 2020 | I220: 2021 | J220: 2022 | K220: 2023 | L220: 2024 | M220: 2025 | N220: 2026 | O220: 2027 | P220: 2028 | Q220: 2029 | R220: 2030 | S220: 2031 | T220: 2032 | U220: 2033 | V220: 2034 | W220: 2035 | X220: 2036 | Y220: 2037 | Z220: 2038 | AA220: 2039 | AB220: 2040 | AC220: 2041 | AD220: 2042 | AE220: 2043 | AF220: 2044 | AG220: 2045 | AH220: 2046 | AI220: 2047 | AJ220: 2048 | AK220: 2049 | AL220: 2050 | AM220: 2051 | AN220: 2052 | AO220: 2053 | AP220: 2054 | AQ220: 2055 | AR220: 2056 | AS220: 2057 | AT220: 2058 | AU220: 2059 | AV220: 2060 | AW220: 2061 | AX220: 2062 | AY220: 2063 | AZ220: 2064 | BA220: 2065 | BB220: 2066 | BC220: 2067 | BD220: 2068 | BE220: 2069 | BF220: 2070 | BG220: 2071 | BH220: 2072 | BI220: 2073 | BJ220: 2074 | BK220: 2075 | BL220: 2076 | BM220: 2077
